Workbook

Sheet DATEN
B1: Zentrale Daten für die Jahres-Arbeitszeiterfassung | K1: Hinweis: Alle Zeitangaben in Stunden und Minuten!
K2: Individuelle Arbeitsbereiche unten ab Zeile 51
B3: Name Mitarbeiter(in) | C3: Petra Mustermann | F3: Jahr | G3: 2025 | H3: =G3+1 -> / 2026 | K3: selbst zusammenstellen!
B5: Wochenstundenzahl | C5: 1.645833333 | D5: Übertrag aus Vorjahr | G5: gem. DV § 5 Abs 4, Satz 2
B6: Arbeitszeitreduzierung | D6: § 8 II AVO | G6: Betrag | K6: =IF($G$5=$M$101,IF($H$6<=0,"","Bei der Übertragsart nicht möglich!"),IF($G$5=$M$102,IF($H$6<=$C$5-$C$6,"","Bei der Übertragsart nicht möglich!"),"")) -> 
B7: Urlaubstage | C7: 30 | G7: Resturlaub aktuelles Kalenderjahr
G8: Grundsätzlich saldieren | H8: 1
M9: =CONCATENATE("Jahresübersicht ",G3," / ",H3) -> Jahresübersicht 2025 / 2026
B10: Standard-Arbeitszeit | C10: Montag | D10: 0.3291666667 | H10: Tages-Arbeitszeit (h:m:s) bei | M10: =C3 -> Petra Mustermann
C11: Dienstag | D11: 0.3291666667 | G11: 2 Arbeitstagen: | H11: =($C$5-$C$6)/2 -> 0.8229166667 | M11: Arbeits- tage | N11: Urlaubs- tage | O11: Krankheits- tage | R11: Arbeits- stunden | S11: Monat werten | T11: Saldo
C12: Mittwoch | D12: 0.3291666667 | G12: 3 Arbeitstagen: | H12: =($C$5-$C$6)/3 -> 0.5486111111
C13: Donnerstag | D13: 0.3291666667 | G13: 4 Arbeitstagen: | H13: =($C$5-$C$6)/4 -> 0.4114583333
C14: Freitag | D14: 0.3291666667 | G14: 5 Arbeitstagen: | H14: =($C$5-$C$6)/5 -> 0.3291666667 | L14: =TEXT(DATE($G$3,10,1),"MMMM") -> Oktober | M14: =DAY(DATE($G$3,11,0))-COUNTIF(INDIRECT(L14&"!$d$8:$d$348"),"X") -> 22 | N14: =INDIRECT(L14&"!$f$350") -> 0 | O14: =INDIRECT(L14&"!$f$352") -> 0 | R14: =SUMIF(INDIRECT(L14&"!$g$8:$g$348"),"Tagessumme:",INDIRECT(L14&"!$h$8:$h$348")) -> 0 | S14: x | T14: =IF(S14="x",INDIRECT(L14&"!$k$350"),"") -> -7.241666667
C15: Samstag | D15: 0 | F15: =IF(ROUND(SUM(D10:D16),6)<>ROUND(C5-C6,6),CONCATENATE("Summe der Tagesarbeitszeiten (",TEXT(SUM(D10:D16),"[h]:mm"),") entspricht nicht der Wochenstundenzahl (",TEXT(C5-C6,"[h]:mm"),")!"),"") ->  | L15: =TEXT(DATE($G$3,11,1),"MMMM") -> November | M15: =DAY(DATE($G$3,12,0))-COUNTIF(INDIRECT(L15&"!$d$8:$d$348"),"X") -> 20 | N15: =INDIRECT(L15&"!$f$350") -> 0 | O15: =INDIRECT(L15&"!$f$352") -> 0 | R15: =SUMIF(INDIRECT(L15&"!$g$8:$g$348"),"Tagessumme:",INDIRECT(L15&"!$h$8:$h$348")) -> 0 | S15: x | T15: =IF(S15="x",INDIRECT(L15&"!$k$350"),"") -> -6.583333333
C16: Sonntag | D16: 0 | L16: =TEXT(DATE($G$3,12,1),"MMMM") -> Dezember | M16: =DAY(DATE($H$3,1,0))-COUNTIF(INDIRECT(L16&"!$d$8:$d$348"),"X") -> 19 | N16: =INDIRECT(L16&"!$f$350") -> 0 | O16: =INDIRECT(L16&"!$f$352") -> 0 | R16: 0 | S16: x | T16: =IF(S16="x",INDIRECT(L16&"!$k$350"),"") -> -6.254166667
L17: =TEXT(DATE($H$3,1,1),"MMMM") -> Januar | M17: =DAY(DATE($H$3,2,0))-COUNTIF(INDIRECT(L17&"!$d$8:$d$348"),"X") -> 20 | N17: =INDIRECT(L17&"!$f$350") -> 0 | O17: =INDIRECT(L17&"!$f$352") -> 0 | R17: 0 | S17: x | T17: =IF(S17="x",INDIRECT(L17&"!$k$350"),"") -> -6.583333333
B18: Feiertage | C18: Tag d. Dt. Einheit | D18: =DATE(G3,10,3) -> 2025-10-03 | H18: Urlaubstage bei: | L18: =TEXT(DATE($H$3,2,1),"MMMM") -> Februar | M18: =DAY(DATE($H$3,3,0))-COUNTIF(INDIRECT(L18&"!$d$8:$d$348"),"X") -> 20 | N18: =INDIRECT(L18&"!$f$350") -> 0 | O18: =INDIRECT(L18&"!$f$352") -> 0 | R18: 0 | S18: x | T18: =IF(S18="x",INDIRECT(L18&"!$k$350"),"") -> -6.583333333
C19: Allerheiligen | D19: =DATE(G3,11,1) -> 2025-11-01 | G19: 2 Arbeitstagen: | H19: =$C$7/5*2 -> 12 | L19: =TEXT(DATE($H$3,3,1),"MMMM") -> März | M19: =DAY(DATE($H$3,4,0))-COUNTIF(INDIRECT(L19&"!$d$8:$d$348"),"X") -> 22 | N19: =INDIRECT(L19&"!$f$350") -> 0 | O19: =INDIRECT(L19&"!$f$352") -> 0 | R19: 0 | S19: x | T19: =IF(S19="x",INDIRECT(L19&"!$k$350"),"") -> -7.241666667
C20: Heilig Abend | D20: =DATE(G3,12,24) -> 2025-12-24 | G20: 3 Arbeitstagen: | H20: =$C$7/5*3 -> 18 | L20: =TEXT(DATE($H$3,4,1),"MMMM") -> April | M20: =DAY(DATE($H$3,5,0))-COUNTIF(INDIRECT(L20&"!$d$8:$d$348"),"X") -> 20 | N20: =INDIRECT(L20&"!$f$350") -> 0 | O20: =INDIRECT(L20&"!$f$352") -> 0 | R20: 0 | S20: x | T20: =IF(S20="x",INDIRECT(L20&"!$k$350"),"") -> -6.41875
C21: 1. Weihnachtstag | D21: =DATE(G3,12,25) -> 2025-12-25 | G21: 4 Arbeitstagen: | H21: =$C$7/5*4 -> 24 | L21: =TEXT(DATE($G$3,5,1),"MMMM") -> Mai | M21: =DAY(DATE($H$3,6,0))-COUNTIF(INDIRECT(L21&"!$d$8:$d$348"),"X") -> 18 | N21: =INDIRECT(L21&"!$f$350") -> 0 | O21: =INDIRECT(L21&"!$f$352") -> 0 | R21: 0 | S21: x | T21: =IF(S21="x",INDIRECT(L21&"!$k$350"),"") -> -5.925
C22: 2. Weihnachtstag | D22: =DATE(G3,12,26) -> 2025-12-26 | G22: 5 Arbeitstagen: | H22: =$C$7/5*5 -> 30 | L22: =TEXT(DATE($H$3,6,1),"MMMM") -> Juni | M22: =DAY(DATE($H$3,7,0))-COUNTIF(INDIRECT(L22&"!$d$8:$d$348"),"X") -> 21 | N22: =INDIRECT(L22&"!$f$350") -> 0 | O22: =INDIRECT(L22&"!$f$352") -> 0 | R22: 0 | S22: x | T22: =IF(S22="x",INDIRECT(L22&"!$k$350"),"") -> -6.9125
C23: Silvester | D23: =DATE(G3,12,31) -> 2025-12-31 | L23: =TEXT(DATE($H$3,7,1),"MMMM") -> Juli | M23: =DAY(DATE($H$3,8,0))-COUNTIF(INDIRECT(L23&"!$d$8:$d$348"),"X") -> 23 | N23: =INDIRECT(L23&"!$f$350") -> 0 | O23: =INDIRECT(L23&"!$f$352") -> 0 | R23: 0 | S23: x | T23: =IF(S23="x",INDIRECT(L23&"!$k$350"),"") -> -7.570833333
C24: Neujahr | D24: =DATE(H3,1,1) -> 2026-01-01 | L24: =TEXT(DATE($H$3,8,1),"MMMM") -> August | M24: =DAY(DATE($H$3,9,0))-COUNTIF(INDIRECT(L24&"!$d$8:$d$348"),"X") -> 21 | N24: =INDIRECT(L24&"!$f$350") -> 0 | O24: =INDIRECT(L24&"!$f$352") -> 0 | R24: 0 | S24: x | T24: =IF(S24="x",INDIRECT(L24&"!$k$350"),"") -> -6.9125
C25: Hl. Drei Könige | D25: =DATE(H3,1,6) -> 2026-01-06 | L25: =TEXT(DATE($H$3,9,1),"MMMM") -> September | M25: =DAY(DATE($H$3,10,0))-COUNTIF(INDIRECT(L25&"!$d$8:$d$348"),"X") -> 22 | N25: =INDIRECT(L25&"!$f$350") -> 0 | O25: =INDIRECT(L25&"!$f$352") -> 0 | R25: 0 | S25: x | T25: =IF(S25="x",INDIRECT(L25&"!$k$350"),"") -> -7.241666667
C26: Karfreitag | D26: 2026-04-03 | F26: =IF(AND(LEN(C26)>0,YEAR(D26)<>$H$3),"Falsches Jahr!","") ->  | L26: Summe | M26: =SUM(M14:M25) -> 248 | N26: =SUM(N14:N25) -> 0 | O26: =SUM(O14:Q25) -> 0 | R26: =SUM(R14:R25) -> 0 | S26: löschen, | T26: =IF(K6="",SUM(T14:T25)+$H$6,SUM(T14:T25)) -> -81.46875
C27: Ostermontag | D27: =D26+3 -> 2026-04-06 | S27: falls nicht
C28: Maifeiertag | D28: =DATE(H3,5,1) -> 2026-05-01
C29: Chr. Himmelfahrt | D29: =D27+38 -> 2026-05-14 | L29: Übertrag ins Folgejahr | O29: =M101 -> gem. DV § 5 Abs 4, Satz 2 | T29: =IF($T$26>0,0,$T$26) -> -81.46875
C30: Pfingstmontag | D30: =D29+11 -> 2026-05-25
C31: Fronleichnam | D31: =D30+10 -> 2026-06-04 | O31: =M102 -> gem. DV § 5 Abs 4, Satz 1 | T31: =IF($T$26>0,IF($T$26>$C$5-$C$6,$C$5-$C$6,$T$26),"") -> 
F32: =IF(AND(LEN(C32)>0,YEAR(D32)<>$G$3),"Falsches Jahr!","") ->  | O32: =M103 -> gem. DV § 5 Abs 5 | T32: =IF($T$26>0,$T$26,"") -> 
F33: =IF(AND(LEN(C33)>0,YEAR(D33)<>$G$3),"Falsches Jahr!","") -> 
C34: Gründonnerstag | D34: =D26-1 -> 2026-04-02
C35: Ostersonntag | D35: =D26+2 -> 2026-04-05
C36: Pfingstsonntag | D36: =D30-1 -> 2026-05-24 | K36: Die Arbeitszeiten werden in den Monatsblättern eingetragen. Wird an einem Tag nicht gearbeitet, ist in der Spalte I entweder - U für Urlaub, - F für Freizeitausgleich oder - K für krank einzutragen. Ein Monatsblatt ist erst vollständig, wenn kein Feld mehr dunkelrot gefärbt ist. Wenn sich die Wochenstundenzahl oder die Tagesarbeitszeiten während des Jahres ändern, muss dafür eine neue Datei angelegt werden. | P36: Zur einfacheren Eingabe von Uhrzeiten ohne Doppelpunkte enthält diese Datei ein Makro. Wenn Sie das Makro nicht bei jedem Start aktivieren wollen, müssen Sie diese Datei in einen vertrauenswürdigen Ordner speichern. Legen Sie am besten einen neuen Ordner an, in den Sie diese Datei speichern und führen Sie in Excel ab 2007 folgende Schritte durch: - oben links auf die Office-Schaltflächen klicken - Excel-Optionen - Vertrauensstellungcenter = Trust Center - Einstellungen für das Vertrauensstellungcenter - Vertrauenswürdige Speicherorte - neuen Speicherort hinzufügen - mit Durchsuchen den Ordner auswählen
F38: =IF(AND(LEN(D38)>0,YEAR(D38)<>$G$3),"Falsches Jahr!","") -> 
F39: =IF(AND(LEN(D39)>0,YEAR(D39)<>$G$3),"Falsches Jahr!","") -> 
F40: =IF(AND(LEN(D40)>0,YEAR(D40)<>$G$3),"Falsches Jahr!","") -> 
F41: =IF(AND(LEN(D41)>0,YEAR(D41)<>$G$3),"Falsches Jahr!","") -> 
F42: =IF(AND(LEN(D42)>0,YEAR(D42)<>$G$3),"Falsches Jahr!","") -> 
G44: =IF(AND(LEN(C44)>0,OR(YEAR(D44)<>$G$3,YEAR(F44)<>$G$3)),"Falsches Jahr!","") -> 
G45: =IF(AND(LEN(C45)>0,OR(YEAR(D45)<>$G$3,YEAR(F45)<>$G$3)),"Falsches Jahr!","") -> 
G46: =IF(AND(LEN(C46)>0,OR(YEAR(D46)<>$G$3,YEAR(F46)<>$G$3)),"Falsches Jahr!","") -> 
B49: Arbeitsbereiche
D51: =IF(NOT(ISBLANK(B51)),IF(VLOOKUP(B51,ArbKappOrdi,3,FALSE)=0,"",VLOOKUP(B51,ArbKappOrdi,3,FALSE)),"") -> 
B66: Gremienarbeit
B67: Fort und Weiterbildung
B68: Exerzitien
B69: Arbeitsbefreiung §34 AVO
B70: allgemeine Bürotätigkeit
B71: Sonstiges
G77: =IF(AND(LEN(C77)>0,OR(YEAR(D77)<>$G$3,YEAR(F77)<>$G$3)),"Falsches Jahr!","") -> 
G78: =IF(AND(LEN(C78)>0,OR(YEAR(D78)<>$G$3,YEAR(F78)<>$G$3)),"Falsches Jahr!","") -> 
G79: =IF(AND(LEN(C79)>0,OR(YEAR(D79)<>$G$3,YEAR(F79)<>$G$3)),"Falsches Jahr!","") -> 
G80: =IF(AND(LEN(C80)>0,OR(YEAR(D80)<>$G$3,YEAR(F80)<>$G$3)),"Falsches Jahr!","") -> 
B86: Arbeitsbereiche | F86: Kappung pro Tag auf 12 Std: | L86: Rufbereitschaft | N86: Faktor:
L87: Rufbereitschaft | N87: =1/8 -> 0.125
B88: Taufkatechese | F88: Freizeiten/Schullandheime | L88: Sa/So u. Feiertags | N88: =1/6 -> 0.1666666667
B89: Eucharistiekatechese | F89: MAV
B90: Firmkatechese | F90: DiAG MAV | L90: 06:00:00
B91: Religionsunterricht | F91: KODA | L91: 00:30:00 | M91: Pause bei > 6 Std.
B92: Pastoral in Kindertagesstätten | F92: Schwerbehindertenvertretung | L92: 09:00:00
B93: Jugendarbeit | L93: 00:45:00 | M93: Pause bei > 9 Std.
B94: Ehe- und Familienpastoral | L94: 10:00:00 | M94: max. Tagesarbeitszeit
B95: Erwachsenenbildung | L95: 0.5 | M95: max. Tagesarbeitszeit bei "Freizeiten/Schullandheime"
B96: Begleitung/Schulung von Ehrenamtlichen | L96: 0.01041666667 | M96: Mindestzeit einer Tätigkeit
B97: Begleitung von Gemeindeteams | L97: 0.4583333333 | M97: Ruhezeit
B98: Einzelseelsorge/Geistl.Begleitung | L98: 2 | M98: max. Wochen-Arbeitszeit
B99: Geistliche Angebote
B100: Liturgische Aufgaben | M100: Übertrag aus Vorjahr:/ ins Folgejahr
B101: Beerdigungsdienst | M101: gem. DV § 5 Abs 4, Satz 2
B102: Trauerpastoral | M102: gem. DV § 5 Abs 4, Satz 1
B103: Diakonische Aufgaben | M103: gem. DV § 5 Abs 5
B104: Öffentlichkeitsarbeit
B105: Präventionsarbeit
B106: LEVI
B107: Projekte
B108: Freizeiten/Schullandheime
B109: Zusätzliche Aufträge in der Sonderseelsorge (z.B. Klinik, Gefängnis)
B110: Dekanatsaufträge
B111: Diözesaner Zusatzauftrag
B112: Rufbereitschaft
B113: Rufbereitschaft Einsatz
B114: DiAG Supervision
B115: DiAG Kirchenentwicklung
B116: MAV
B117: DiAG MAV
B118: KODA
B119: Schwerbehindertenvertretung

Sheet Oktober
A2: 10 | B2: =CONCATENATE("Arbeitszeiterfassung ",TEXT(B18,"MMMM JJJJ")) -> Arbeitszeiterfassung Oktober 2025
B3: =DATEN!C3 -> Petra Mustermann | M3: Arbeitsbereiche
B4: =IF(DATEN!S14="","!!! Dieser Monat wird nicht gewertet !!!","") ->  | M4: ausblenden mit
E5: Bitte eingeben: | G5: = Arbeitsende am 30. September | M5: x :
B6: Tag | C6: Wochentag | D6: X: Frei V: Vorfeier | E6: Arbeitszeit | I6: Urlaub / krank / frei | J6: Frei / § 34 AVO | K6: Saldo | L6: Bemerkung | M6: Kappung | N6: Pusen- abzug | O6: Differenz- Kalender-woche | P6: KW | Q6: Std. roh | R6: Zus.häng. | S6: Rufbereit. | T6: Kapp.frei | U6: Kapp-12 | V6: Kappung | X6: Wochenarbeitszeit
E7: von | F7: bis | G7: Arbeitsbereich | H7: Std. | Z7: Arbeitsbereich | AA7: Std.
A8: =IF(ISNA(MATCH(B18,DATEN!$D$18:$D$42,0)),"",INDEX(DATEN!$C$18:$D$42,MATCH(B18,DATEN!$D$18:$D$42,0),1)) ->  | B8: =DATE(DATEN!$G$3,$A$2,1) -> 2025-10-01 | H8: =IF(Q8>0,IF(ROUND(F8-E8,6)>=ROUND(Mindest,6),Q8,"<15m!"),"") ->  | M8: =IF(S8="x",TEXT(V18,"# ?/?")&" !",IF(T8="x","Nein","")) ->  | N8: =IF(S8="",IF(R8>Stunden2,Pausen2,IF(R8>Stunden1,Pausen1,0)),0) -> 0 | Q8: =IF(F8-E8>0,IF(S8="x",MROUND((F8-E8)*V18,1/1440),F8-E8),0) -> 0 | R8: =Q8 -> 0 | S8: =IF(G8=DATEN!$L$87,"x","") ->  | T8: =IF(ISNA(VLOOKUP(G8,ArbKapp,3,FALSE))=TRUE,"",IF(VLOOKUP(G8,ArbKapp,3,FALSE)="x","x","")) ->  | U8: =IF(ISNA(MATCH(G8,Kapp12Ordi,0)),"","x") ->  | V8: =Q18-N18 -> 0 | W8: Tagessumme | Z8: =IF(AND(G8>0,G8<>"Tagessumme:"),G8,"") ->  | AA8: =IF(G8<>"Tagessumme:",H8,"") -> 
B9: =DATE(DATEN!$G$3,$A$2,1) -> 2025-10-01 | M9: =IF(S9="x",TEXT(V18,"# ?/?")&" !",IF(T9="x","Nein","")) ->  | N9: =IF(S9="",IF(R9>Stunden2,Pausen2-SUM(N8),IF(R9>Stunden1,Pausen1-SUM(N8),0)),0) -> 0 | Q9: =IF(F9-E9>0,IF(S9="x",MROUND((F9-E9)*V18,1/1440),F9-E9),0) -> 0 | R9: =IF(Q9>0,IF(AND(E9=F8,S8<>"x"),Q9+R8-N8,Q9),0) -> 0 | S9: =IF(G9=DATEN!$L$87,"x","") ->  | T9: =IF(ISNA(VLOOKUP(G9,ArbKapp,3,FALSE))=TRUE,"",IF(VLOOKUP(G9,ArbKapp,3,FALSE)="x","x","")) ->  | V9: =IF(ISNA(MATCH("x",U8:U17,0)),MaxZeit,MaxBildung) -> 0.4166666667 | W9: max. Tageszeit | Z9: =IF(AND(G9>0,G9<>"Tagessumme:"),G9,"") ->  | AA9: =IF(G9<>"Tagessumme:",H9,"") -> 
B10: =DATE(DATEN!$G$3,$A$2,1) -> 2025-10-01 | M10: =IF(S10="x",TEXT(V18,"# ?/?")&" !",IF(T10="x","Nein","")) ->  | N10: =IF(S10="",IF(R10>Stunden2,Pausen2-SUM(N8:N9),IF(R10>Stunden1,Pausen1-SUM(N8:N9),0)),0) -> 0 | Q10: =IF(F10-E10>0,IF(S10="x",MROUND((F10-E10)*V18,1/1440),F10-E10),0) -> 0 | R10: 0 | S10: =IF(G10=DATEN!$L$87,"x","") ->  | V10: =SUMIF(T8:T17,"<>x",H8:H17)-N18 -> 00:00:00 | W10: Summe f. Kappung
B11: =DATE(DATEN!$G$3,$A$2,1) -> 2025-10-01 | M11: =IF(S11="x",TEXT(V18,"# ?/?")&" !",IF(T11="x","Nein","")) ->  | N11: =IF(S11="",IF(R11>Stunden2,Pausen2-SUM(N8:N10),IF(R11>Stunden1,Pausen1-SUM(N8:N10),0)),0) -> 0 | Q11: =IF(F11-E11>0,IF(S11="x",MROUND((F11-E11)*V18,1/1440),F11-E11),0) -> 0 | R11: 0 | S11: =IF(G11=DATEN!$L$87,"x","") ->  | V11: =IF(V10>V9,V9,V10) -> 0 | W11: Summe gekappt
B12: =DATE(DATEN!$G$3,$A$2,1) -> 2025-10-01 | M12: =IF(S12="x",TEXT(V18,"# ?/?")&" !",IF(T12="x","Nein","")) ->  | N12: =IF(S12="",IF(R12>Stunden2,Pausen2-SUM(N8:N11),IF(R12>Stunden1,Pausen1-SUM(N8:N11),0)),0) -> 0 | Q12: =IF(F12-E12>0,IF(S12="x",MROUND((F12-E12)*V18,1/1440),F12-E12),0) -> 0 | R12: 0 | S12: =IF(G12=DATEN!$L$87,"x","") ->  | V12: =V11+SUMIF(T8:T17,"x",H8:H17) -> 0 | W12: zzgl.kappungsfrei
B13: =DATE(DATEN!$G$3,$A$2,1) -> 2025-10-01 | M13: =IF(S13="x",TEXT(V18,"# ?/?")&" !",IF(T13="x","Nein","")) ->  | N13: =IF(S13="",IF(R13>Stunden2,Pausen2-SUM(N8:N12),IF(R13>Stunden1,Pausen1-SUM(N8:N12),0)),0) -> 0 | Q13: =IF(F13-E13>0,IF(S13="x",MROUND((F13-E13)*V18,1/1440),F13-E13),0) -> 0 | R13: 0 | S13: =IF(G13=DATEN!$L$87,"x","") -> 
B14: =DATE(DATEN!$G$3,$A$2,1) -> 2025-10-01 | M14: =IF(S14="x",TEXT(V18,"# ?/?")&" !",IF(T14="x","Nein","")) ->  | N14: =IF(S14="",IF(R14>Stunden2,Pausen2-SUM(N8:N13),IF(R14>Stunden1,Pausen1-SUM(N8:N13),0)),0) -> 0 | Q14: =IF(F14-E14>0,IF(S14="x",MROUND((F14-E14)*V18,1/1440),F14-E14),0) -> 0 | R14: 0 | S14: =IF(G14=DATEN!$L$87,"x","") -> 
B15: =DATE(DATEN!$G$3,$A$2,1) -> 2025-10-01 | M15: =IF(S15="x",TEXT(V18,"# ?/?")&" !",IF(T15="x","Nein","")) ->  | N15: =IF(S15="",IF(R15>Stunden2,Pausen2-SUM(N8:N14),IF(R15>Stunden1,Pausen1-SUM(N8:N14),0)),0) -> 0 | Q15: =IF(F15-E15>0,IF(S15="x",MROUND((F15-E15)*V18,1/1440),F15-E15),0) -> 0 | R15: 0 | S15: =IF(G15=DATEN!$L$87,"x","") -> 
B16: =DATE(DATEN!$G$3,$A$2,1) -> 2025-10-01 | M16: =IF(S16="x",TEXT(V18,"# ?/?")&" !",IF(T16="x","Nein","")) ->  | N16: =IF(S16="",IF(R16>Stunden2,Pausen2-SUM(N8:N15),IF(R16>Stunden1,Pausen1-SUM(N8:N15),0)),0) -> 0 | Q16: =IF(F16-E16>0,IF(S16="x",MROUND((F16-E16)*V18,1/1440),F16-E16),0) -> 0 | R16: 0 | S16: =IF(G16=DATEN!$L$87,"x","") -> 
B17: =DATE(DATEN!$G$3,$A$2,1) -> 2025-10-01 | M17: =IF(S17="x",TEXT(V18,"# ?/?")&" !",IF(T17="x","Nein","")) ->  | N17: =IF(S17="",IF(R17>Stunden2,Pausen2-SUM(N8:N16),IF(R17>Stunden1,Pausen1-SUM(N8:N16),0)),0) -> 0 | Q17: =IF(F17-E17>0,IF(S17="x",MROUND((F17-E17)*V18,1/1440),F17-E17),0) -> 0 | R17: 0 | S17: =IF(G17=DATEN!$L$87,"x","") -> 
A18: =IF(LEN(B18)>0,IF(WEEKDAY(B18)=4,TRUNC((B18-DATE(YEAR(B18+3-MOD(B18-2,7)),1,MOD(B18-2,7)-9))/7),"")) -> 40 | B18: =DATE(DATEN!$G$3,$A$2,1) -> 2025-10-01 | C18: =IF(WEEKDAY(B18)=1,7,WEEKDAY(B18)-1) -> 3 | D18: =IF(LEN(B18)>0,IF(OR(INDIRECT("DATEN!D"&9+C18)=0,NOT(ISNA(MATCH(B18,DATEN!$D$18:$D$33,0)))),"X",IF(OR(B18=DATEN!$D$26-1,B18=DATEN!$D$27-2,B18=DATEN!$D$30-2),"V","")),"") ->  | E18: =IF(VALUE("24:00:00")-VALUE(F5)+VALUE(E8)<VALUE("11:00:00"),"Ruhezeit!","") ->  | G18: Tagessumme: | H18: =V12 -> 0 | K18: =IF(LEN(B18)>0,IF(AND(D18<>"X",I18<>"U",I18<>"u",I18<>"K",I18<>"k",OR(I18="F",I18="f",H18<>0,DATEN!$H$8=1),J18<>"f",J18<>"F"),IF(D18="V",H18-INDIRECT("DATEN!D"&9+C18)/2,H18-INDIRECT("DATEN!D"&9+C18)),H18),"") -> -0.3291666667 | L18: =IF(X18>MaxWoZeit,"WoArbZeit>48h!","") ->  | M18: =IF(V10>V11,V10-V11,"") ->  | N18: =SUM(N8:N17) -> 0 | O18: =IF(WEEKDAY(B18,2)=7,SUMIF('Auswertung-Wochen'!$Y$2:$Y$366,P18,'Auswertung-Wochen'!$V$2:$V$366)-SUMIF('Auswertung-Wochen'!$Y$2:$Y$366,P18,'Auswertung-Wochen'!$W$2:$W$366),"") ->  | P18: =YEAR(B18)&"-"&TEXT(_xlfn.ISOWEEKNUM(B18),"00") -> 2025-40 | Q18: =SUM(Q8:Q17) -> 00:00:00 | V18: =IF(D18="x",DATEN!$N$88,DATEN!$N$87) -> 0.125 | W18: Faktor Rufbereitschaft | X18: =IF(LEN(B18)>0,IF(WEEKDAY(B18,2)=1,H18,H18+X7),X7) -> 0
A19: =IF(ISNA(MATCH(B29,DATEN!$D$18:$D$42,0)),"",INDEX(DATEN!$C$18:$D$42,MATCH(B29,DATEN!$D$18:$D$42,0),1)) ->  | B19: =B8+1 -> 2025-10-02 | H19: =IF(Q19>0,IF(ROUND(F19-E19,6)>=ROUND(Mindest,6),Q19,"<15m!"),"") ->  | M19: =IF(S19="x",TEXT(V29,"# ?/?")&" !",IF(T19="x","Nein","")) ->  | N19: =IF(S19="",IF(R19>Stunden2,Pausen2,IF(R19>Stunden1,Pausen1,0)),0) -> 0 | Q19: =IF(F19-E19>0,IF(S19="x",MROUND((F19-E19)*V29,1/1440),F19-E19),0) -> 0 | R19: =Q19 -> 0 | S19: =IF(G19=DATEN!$L$87,"x","") ->  | T19: =IF(ISNA(VLOOKUP(G19,ArbKapp,3,FALSE))=TRUE,"",IF(VLOOKUP(G19,ArbKapp,3,FALSE)="x","x","")) ->  | U19: =IF(ISNA(MATCH(G19,Kapp12Ordi,0)),"","x") ->  | V19: =Q29-N29 -> 0 | W19: Tagessumme
B20: 2025-10-02 | M20: =IF(S20="x",TEXT(V29,"# ?/?")&" !",IF(T20="x","Nein","")) ->  | N20: =IF(S20="",IF(R20>Stunden2,Pausen2-SUM(N19),IF(R20>Stunden1,Pausen1-SUM(N19),0)),0) -> 0 | Q20: =IF(F20-E20>0,IF(S20="x",MROUND((F20-E20)*V29,1/1440),F20-E20),0) -> 0 | R20: =IF(Q20>0,IF(AND(E20=F19,S19<>"x"),Q20+R19-N19,Q20),0) -> 0 | S20: =IF(G20=DATEN!$L$87,"x","") ->  | V20: =IF(ISNA(MATCH("x",U19:U28,0)),MaxZeit,MaxBildung) -> 0.4166666667 | W20: max. Tageszeit
B21: 2025-10-02 | M21: =IF(S21="x",TEXT(V29,"# ?/?")&" !",IF(T21="x","Nein","")) ->  | N21: =IF(S21="",IF(R21>Stunden2,Pausen2-SUM(N19:N20),IF(R21>Stunden1,Pausen1-SUM(N19:N20),0)),0) -> 0 | Q21: =IF(F21-E21>0,IF(S21="x",MROUND((F21-E21)*V29,1/1440),F21-E21),0) -> 0 | R21: 0 | S21: =IF(G21=DATEN!$L$87,"x","") ->  | V21: =SUMIF(T19:T28,"<>x",H19:H28)-N29 -> 00:00:00 | W21: Summe f. Kappung
B22: 2025-10-02 | M22: =IF(S22="x",TEXT(V29,"# ?/?")&" !",IF(T22="x","Nein","")) ->  | N22: =IF(S22="",IF(R22>Stunden2,Pausen2-SUM(N19:N21),IF(R22>Stunden1,Pausen1-SUM(N19:N21),0)),0) -> 0 | Q22: =IF(F22-E22>0,IF(S22="x",MROUND((F22-E22)*V29,1/1440),F22-E22),0) -> 0 | R22: 0 | S22: =IF(G22=DATEN!$L$87,"x","") ->  | V22: =IF(V21>V20,V20,V21) -> 0 | W22: Summe gekappt
B23: 2025-10-02 | M23: =IF(S23="x",TEXT(V29,"# ?/?")&" !",IF(T23="x","Nein","")) ->  | N23: =IF(S23="",IF(R23>Stunden2,Pausen2-SUM(N19:N22),IF(R23>Stunden1,Pausen1-SUM(N19:N22),0)),0) -> 0 | Q23: =IF(F23-E23>0,IF(S23="x",MROUND((F23-E23)*V29,1/1440),F23-E23),0) -> 0 | R23: 0 | S23: =IF(G23=DATEN!$L$87,"x","") ->  | V23: =V22+SUMIF(T19:T28,"x",H19:H28) -> 0 | W23: zzgl.kappungsfrei
B24: 2025-10-02 | M24: =IF(S24="x",TEXT(V29,"# ?/?")&" !",IF(T24="x","Nein","")) ->  | N24: =IF(S24="",IF(R24>Stunden2,Pausen2-SUM(N19:N23),IF(R24>Stunden1,Pausen1-SUM(N19:N23),0)),0) -> 0 | Q24: =IF(F24-E24>0,IF(S24="x",MROUND((F24-E24)*V29,1/1440),F24-E24),0) -> 0 | R24: 0 | S24: =IF(G24=DATEN!$L$87,"x","") -> 
B25: 2025-10-02 | M25: =IF(S25="x",TEXT(V29,"# ?/?")&" !",IF(T25="x","Nein","")) ->  | N25: =IF(S25="",IF(R25>Stunden2,Pausen2-SUM(N19:N24),IF(R25>Stunden1,Pausen1-SUM(N19:N24),0)),0) -> 0 | Q25: =IF(F25-E25>0,IF(S25="x",MROUND((F25-E25)*V29,1/1440),F25-E25),0) -> 0 | R25: 0 | S25: =IF(G25=DATEN!$L$87,"x","") -> 
B26: 2025-10-02 | M26: =IF(S26="x",TEXT(V29,"# ?/?")&" !",IF(T26="x","Nein","")) ->  | N26: =IF(S26="",IF(R26>Stunden2,Pausen2-SUM(N19:N25),IF(R26>Stunden1,Pausen1-SUM(N19:N25),0)),0) -> 0 | Q26: =IF(F26-E26>0,IF(S26="x",MROUND((F26-E26)*V29,1/1440),F26-E26),0) -> 0 | R26: 0 | S26: =IF(G26=DATEN!$L$87,"x","") -> 
B27: 2025-10-02 | M27: =IF(S27="x",TEXT(V29,"# ?/?")&" !",IF(T27="x","Nein","")) ->  | N27: =IF(S27="",IF(R27>Stunden2,Pausen2-SUM(N19:N26),IF(R27>Stunden1,Pausen1-SUM(N19:N26),0)),0) -> 0 | Q27: =IF(F27-E27>0,IF(S27="x",MROUND((F27-E27)*V29,1/1440),F27-E27),0) -> 0 | R27: 0 | S27: =IF(G27=DATEN!$L$87,"x","") -> 
B28: 2025-10-02 | M28: =IF(S28="x",TEXT(V29,"# ?/?")&" !",IF(T28="x","Nein","")) ->  | N28: =IF(S28="",IF(R28>Stunden2,Pausen2-SUM(N19:N27),IF(R28>Stunden1,Pausen1-SUM(N19:N27),0)),0) -> 0 | Q28: =IF(F28-E28>0,IF(S28="x",MROUND((F28-E28)*V29,1/1440),F28-E28),0) -> 0 | R28: 0 | S28: =IF(G28=DATEN!$L$87,"x","") -> 
A29: =IF(LEN(B29)>0,IF(WEEKDAY(B29)=4,TRUNC((B29-DATE(YEAR(B29+3-MOD(B29-2,7)),1,MOD(B29-2,7)-9))/7),IF(WEEKDAY(B29)=5,"KW","")),"") -> KW | B29: =B18+1 -> 2025-10-02 | C29: =IF(WEEKDAY(B29)=1,7,WEEKDAY(B29)-1) -> 4 | D29: =IF(LEN(B29)>0,IF(OR(INDIRECT("DATEN!D"&9+C29)=0,NOT(ISNA(MATCH(B29,DATEN!$D$18:$D$33,0)))),"X",IF(OR(B29=DATEN!$D$26-1,B29=DATEN!$D$27-2,B29=DATEN!$D$30-2),"V","")),"") ->  | E29: =IF(E19>0,IF(VALUE("24:00:00")-VALUE(MAX(F8:F17))+VALUE(E19)<VALUE("11:00:00"),"Ruhezeit!",""),"") ->  | G29: Tagessumme: | H29: =V23 -> 0 | K29: =IF(LEN(B29)>0,IF(AND(D29<>"X",I29<>"U",I29<>"u",I29<>"K",I29<>"k",OR(I29="F",I29="f",H29<>0,DATEN!$H$8=1),J29<>"f",J29<>"F"),IF(D29="V",H29-INDIRECT("DATEN!D"&9+C29)/2,H29-INDIRECT("DATEN!D"&9+C29)),H29),"") -> -0.3291666667 | L29: =IF(X29>MaxWoZeit,"WoArbZeit>48h!","") ->  | M29: =IF(V21>V22,V21-V22,"") ->  | N29: =SUM(N19:N28) -> 0 | O29: =IF(WEEKDAY(B29,2)=7,SUMIF('Auswertung-Wochen'!$Y$2:$Y$366,P29,'Auswertung-Wochen'!$V$2:$V$366)-SUMIF('Auswertung-Wochen'!$Y$2:$Y$366,P29,'Auswertung-Wochen'!$W$2:$W$366),"") ->  | P29: =YEAR(B29)&"-"&TEXT(_xlfn.ISOWEEKNUM(B29),"00") -> 2025-40 | Q29: =SUM(Q19:Q28) -> 00:00:00 | V29: =IF(D29="x",DATEN!$N$88,DATEN!$N$87) -> 0.125 | W29: Faktor Rufbereitschaft | X29: =IF(LEN(B29)>0,IF(WEEKDAY(B29,2)=1,H29,H29+X18),X18) -> 0
A30: =IF(ISNA(MATCH(B40,DATEN!$D$18:$D$42,0)),"",INDEX(DATEN!$C$18:$D$42,MATCH(B40,DATEN!$D$18:$D$42,0),1)) -> Tag d. Dt. Einheit | B30: =B19+1 -> 2025-10-03 | H30: =IF(Q30>0,IF(ROUND(F30-E30,6)>=ROUND(Mindest,6),Q30,"<15m!"),"") ->  | M30: =IF(S30="x",TEXT(V40,"# ?/?")&" !",IF(T30="x","Nein","")) ->  | N30: =IF(S30="",IF(R30>Stunden2,Pausen2,IF(R30>Stunden1,Pausen1,0)),0) -> 0 | Q30: =IF(F30-E30>0,IF(S30="x",MROUND((F30-E30)*V40,1/1440),F30-E30),0) -> 0 | R30: =Q30 -> 0 | S30: =IF(G30=DATEN!$L$87,"x","") ->  | T30: =IF(ISNA(VLOOKUP(G30,ArbKapp,3,FALSE))=TRUE,"",IF(VLOOKUP(G30,ArbKapp,3,FALSE)="x","x","")) ->  | U30: =IF(ISNA(MATCH(G30,Kapp12Ordi,0)),"","x") ->  | V30: =Q40-N40 -> 0 | W30: Tagessumme
B31: 2025-10-03 | M31: =IF(S31="x",TEXT(V40,"# ?/?")&" !",IF(T31="x","Nein","")) ->  | N31: =IF(S31="",IF(R31>Stunden2,Pausen2-SUM(N30),IF(R31>Stunden1,Pausen1-SUM(N30),0)),0) -> 0 | Q31: =IF(F31-E31>0,IF(S31="x",MROUND((F31-E31)*V40,1/1440),F31-E31),0) -> 0 | R31: =IF(Q31>0,IF(AND(E31=F30,S30<>"x"),Q31+R30-N30,Q31),0) -> 0 | S31: =IF(G31=DATEN!$L$87,"x","") ->  | V31: =IF(ISNA(MATCH("x",U30:U39,0)),MaxZeit,MaxBildung) -> 0.4166666667 | W31: max. Tageszeit
B32: 2025-10-03 | M32: =IF(S32="x",TEXT(V40,"# ?/?")&" !",IF(T32="x","Nein","")) ->  | N32: =IF(S32="",IF(R32>Stunden2,Pausen2-SUM(N30:N31),IF(R32>Stunden1,Pausen1-SUM(N30:N31),0)),0) -> 0 | Q32: =IF(F32-E32>0,IF(S32="x",MROUND((F32-E32)*V40,1/1440),F32-E32),0) -> 0 | R32: 0 | S32: =IF(G32=DATEN!$L$87,"x","") ->  | V32: =SUMIF(T30:T39,"<>x",H30:H39)-N40 -> 00:00:00 | W32: Summe f. Kappung
B33: 2025-10-03 | M33: =IF(S33="x",TEXT(V40,"# ?/?")&" !",IF(T33="x","Nein","")) ->  | N33: =IF(S33="",IF(R33>Stunden2,Pausen2-SUM(N30:N32),IF(R33>Stunden1,Pausen1-SUM(N30:N32),0)),0) -> 0 | Q33: =IF(F33-E33>0,IF(S33="x",MROUND((F33-E33)*V40,1/1440),F33-E33),0) -> 0 | R33: 0 | S33: =IF(G33=DATEN!$L$87,"x","") ->  | V33: =IF(V32>V31,V31,V32) -> 0 | W33: Summe gekappt
B34: 2025-10-03 | M34: =IF(S34="x",TEXT(V40,"# ?/?")&" !",IF(T34="x","Nein","")) ->  | N34: =IF(S34="",IF(R34>Stunden2,Pausen2-SUM(N30:N33),IF(R34>Stunden1,Pausen1-SUM(N30:N33),0)),0) -> 0 | Q34: =IF(F34-E34>0,IF(S34="x",MROUND((F34-E34)*V40,1/1440),F34-E34),0) -> 0 | R34: 0 | S34: =IF(G34=DATEN!$L$87,"x","") ->  | V34: =V33+SUMIF(T30:T39,"x",H30:H39) -> 0 | W34: zzgl.kappungsfrei
B35: 2025-10-03 | M35: =IF(S35="x",TEXT(V40,"# ?/?")&" !",IF(T35="x","Nein","")) ->  | N35: =IF(S35="",IF(R35>Stunden2,Pausen2-SUM(N30:N34),IF(R35>Stunden1,Pausen1-SUM(N30:N34),0)),0) -> 0 | Q35: =IF(F35-E35>0,IF(S35="x",MROUND((F35-E35)*V40,1/1440),F35-E35),0) -> 0 | R35: 0 | S35: =IF(G35=DATEN!$L$87,"x","") -> 
B36: 2025-10-03 | M36: =IF(S36="x",TEXT(V40,"# ?/?")&" !",IF(T36="x","Nein","")) ->  | N36: =IF(S36="",IF(R36>Stunden2,Pausen2-SUM(N30:N35),IF(R36>Stunden1,Pausen1-SUM(N30:N35),0)),0) -> 0 | Q36: =IF(F36-E36>0,IF(S36="x",MROUND((F36-E36)*V40,1/1440),F36-E36),0) -> 0 | R36: 0 | S36: =IF(G36=DATEN!$L$87,"x","") -> 
B37: 2025-10-03 | M37: =IF(S37="x",TEXT(V40,"# ?/?")&" !",IF(T37="x","Nein","")) ->  | N37: =IF(S37="",IF(R37>Stunden2,Pausen2-SUM(N30:N36),IF(R37>Stunden1,Pausen1-SUM(N30:N36),0)),0) -> 0 | Q37: =IF(F37-E37>0,IF(S37="x",MROUND((F37-E37)*V40,1/1440),F37-E37),0) -> 0 | R37: 0 | S37: =IF(G37=DATEN!$L$87,"x","") -> 
B38: 2025-10-03 | M38: =IF(S38="x",TEXT(V40,"# ?/?")&" !",IF(T38="x","Nein","")) ->  | N38: =IF(S38="",IF(R38>Stunden2,Pausen2-SUM(N30:N37),IF(R38>Stunden1,Pausen1-SUM(N30:N37),0)),0) -> 0 | Q38: =IF(F38-E38>0,IF(S38="x",MROUND((F38-E38)*V40,1/1440),F38-E38),0) -> 0 | R38: 0 | S38: =IF(G38=DATEN!$L$87,"x","") -> 
B39: 2025-10-03 | M39: =IF(S39="x",TEXT(V40,"# ?/?")&" !",IF(T39="x","Nein","")) ->  | N39: =IF(S39="",IF(R39>Stunden2,Pausen2-SUM(N30:N38),IF(R39>Stunden1,Pausen1-SUM(N30:N38),0)),0) -> 0 | Q39: =IF(F39-E39>0,IF(S39="x",MROUND((F39-E39)*V40,1/1440),F39-E39),0) -> 0 | R39: 0 | S39: =IF(G39=DATEN!$L$87,"x","") -> 
A40: =IF(LEN(B40)>0,IF(WEEKDAY(B40)=4,TRUNC((B40-DATE(YEAR(B40+3-MOD(B40-2,7)),1,MOD(B40-2,7)-9))/7),IF(WEEKDAY(B40)=5,"KW","")),"") ->  | B40: =B29+1 -> 2025-10-03 | C40: =IF(WEEKDAY(B40)=1,7,WEEKDAY(B40)-1) -> 5 | D40: =IF(LEN(B40)>0,IF(OR(INDIRECT("DATEN!D"&9+C40)=0,NOT(ISNA(MATCH(B40,DATEN!$D$18:$D$33,0)))),"X",IF(OR(B40=DATEN!$D$26-1,B40=DATEN!$D$27-2,B40=DATEN!$D$30-2),"V","")),"") -> X | E40: =IF(E30>0,IF(VALUE("24:00:00")-VALUE(MAX(F19:F28))+VALUE(E30)<VALUE("11:00:00"),"Ruhezeit!",""),"") ->  | G40: Tagessumme: | H40: =V34 -> 0 | K40: =IF(LEN(B40)>0,IF(AND(D40<>"X",I40<>"U",I40<>"u",I40<>"K",I40<>"k",OR(I40="F",I40="f",H40<>0,DATEN!$H$8=1),J40<>"f",J40<>"F"),IF(D40="V",H40-INDIRECT("DATEN!D"&9+C40)/2,H40-INDIRECT("DATEN!D"&9+C40)),H40),"") -> 0 | L40: =IF(X40>MaxWoZeit,"WoArbZeit>48h!","") ->  | M40: =IF(V32>V33,V32-V33,"") ->  | N40: =SUM(N30:N39) -> 0 | O40: =IF(WEEKDAY(B40,2)=7,SUMIF('Auswertung-Wochen'!$Y$2:$Y$366,P40,'Auswertung-Wochen'!$V$2:$V$366)-SUMIF('Auswertung-Wochen'!$Y$2:$Y$366,P40,'Auswertung-Wochen'!$W$2:$W$366),"") ->  | P40: =YEAR(B40)&"-"&TEXT(_xlfn.ISOWEEKNUM(B40),"00") -> 2025-40 | Q40: =SUM(Q30:Q39) -> 00:00:00 | V40: =IF(D40="x",DATEN!$N$88,DATEN!$N$87) -> 0.1666666667 | W40: Faktor Rufbereitschaft | X40: =IF(LEN(B40)>0,IF(WEEKDAY(B40,2)=1,H40,H40+X29),X29) -> 0
A41: =IF(ISNA(MATCH(B51,DATEN!$D$18:$D$42,0)),"",INDEX(DATEN!$C$18:$D$42,MATCH(B51,DATEN!$D$18:$D$42,0),1)) ->  | B41: =B30+1 -> 2025-10-04 | H41: =IF(Q41>0,IF(ROUND(F41-E41,6)>=ROUND(Mindest,6),Q41,"<15m!"),"") ->  | M41: =IF(S41="x",TEXT(V51,"# ?/?")&" !",IF(T41="x","Nein","")) ->  | N41: =IF(S41="",IF(R41>Stunden2,Pausen2,IF(R41>Stunden1,Pausen1,0)),0) -> 0 | Q41: =IF(F41-E41>0,IF(S41="x",MROUND((F41-E41)*V51,1/1440),F41-E41),0) -> 0 | R41: =Q41 -> 0 | S41: =IF(G41=DATEN!$L$87,"x","") ->  | T41: =IF(ISNA(VLOOKUP(G41,ArbKapp,3,FALSE))=TRUE,"",IF(VLOOKUP(G41,ArbKapp,3,FALSE)="x","x","")) ->  | U41: =IF(ISNA(MATCH(G41,Kapp12Ordi,0)),"","x") ->  | V41: =Q51-N51 -> 0 | W41: Tagessumme
B42: 2025-10-04 | M42: =IF(S42="x",TEXT(V51,"# ?/?")&" !",IF(T42="x","Nein","")) ->  | N42: =IF(S42="",IF(R42>Stunden2,Pausen2-SUM(N41),IF(R42>Stunden1,Pausen1-SUM(N41),0)),0) -> 0 | Q42: =IF(F42-E42>0,IF(S42="x",MROUND((F42-E42)*V51,1/1440),F42-E42),0) -> 0 | R42: =IF(Q42>0,IF(AND(E42=F41,S41<>"x"),Q42+R41-N41,Q42),0) -> 0 | S42: =IF(G42=DATEN!$L$87,"x","") ->  | V42: =IF(ISNA(MATCH("x",U41:U50,0)),MaxZeit,MaxBildung) -> 0.4166666667 | W42: max. Tageszeit
B43: 2025-10-04 | M43: =IF(S43="x",TEXT(V51,"# ?/?")&" !",IF(T43="x","Nein","")) ->  | N43: =IF(S43="",IF(R43>Stunden2,Pausen2-SUM(N41:N42),IF(R43>Stunden1,Pausen1-SUM(N41:N42),0)),0) -> 0 | Q43: =IF(F43-E43>0,IF(S43="x",MROUND((F43-E43)*V51,1/1440),F43-E43),0) -> 0 | R43: 0 | S43: =IF(G43=DATEN!$L$87,"x","") ->  | V43: =SUMIF(T41:T50,"<>x",H41:H50)-N51 -> 00:00:00 | W43: Summe f. Kappung
B44: 2025-10-04 | M44: =IF(S44="x",TEXT(V51,"# ?/?")&" !",IF(T44="x","Nein","")) ->  | N44: =IF(S44="",IF(R44>Stunden2,Pausen2-SUM(N41:N43),IF(R44>Stunden1,Pausen1-SUM(N41:N43),0)),0) -> 0 | Q44: =IF(F44-E44>0,IF(S44="x",MROUND((F44-E44)*V51,1/1440),F44-E44),0) -> 0 | R44: 0 | S44: =IF(G44=DATEN!$L$87,"x","") ->  | V44: =IF(V43>V42,V42,V43) -> 0 | W44: Summe gekappt
B45: 2025-10-04 | M45: =IF(S45="x",TEXT(V51,"# ?/?")&" !",IF(T45="x","Nein","")) ->  | N45: =IF(S45="",IF(R45>Stunden2,Pausen2-SUM(N41:N44),IF(R45>Stunden1,Pausen1-SUM(N41:N44),0)),0) -> 0 | Q45: =IF(F45-E45>0,IF(S45="x",MROUND((F45-E45)*V51,1/1440),F45-E45),0) -> 0 | R45: 0 | S45: =IF(G45=DATEN!$L$87,"x","") ->  | V45: =V44+SUMIF(T41:T50,"x",H41:H50) -> 0 | W45: zzgl.kappungsfrei
B46: 2025-10-04 | M46: =IF(S46="x",TEXT(V51,"# ?/?")&" !",IF(T46="x","Nein","")) ->  | N46: =IF(S46="",IF(R46>Stunden2,Pausen2-SUM(N41:N45),IF(R46>Stunden1,Pausen1-SUM(N41:N45),0)),0) -> 0 | Q46: =IF(F46-E46>0,IF(S46="x",MROUND((F46-E46)*V51,1/1440),F46-E46),0) -> 0 | R46: 0 | S46: =IF(G46=DATEN!$L$87,"x","") -> 
B47: 2025-10-04 | M47: =IF(S47="x",TEXT(V51,"# ?/?")&" !",IF(T47="x","Nein","")) ->  | N47: =IF(S47="",IF(R47>Stunden2,Pausen2-SUM(N41:N46),IF(R47>Stunden1,Pausen1-SUM(N41:N46),0)),0) -> 0 | Q47: =IF(F47-E47>0,IF(S47="x",MROUND((F47-E47)*V51,1/1440),F47-E47),0) -> 0 | R47: 0 | S47: =IF(G47=DATEN!$L$87,"x","") -> 
B48: 2025-10-04 | M48: =IF(S48="x",TEXT(V51,"# ?/?")&" !",IF(T48="x","Nein","")) ->  | N48: =IF(S48="",IF(R48>Stunden2,Pausen2-SUM(N41:N47),IF(R48>Stunden1,Pausen1-SUM(N41:N47),0)),0) -> 0 | Q48: =IF(F48-E48>0,IF(S48="x",MROUND((F48-E48)*V51,1/1440),F48-E48),0) -> 0 | R48: 0 | S48: =IF(G48=DATEN!$L$87,"x","") -> 
B49: 2025-10-04 | M49: =IF(S49="x",TEXT(V51,"# ?/?")&" !",IF(T49="x","Nein","")) ->  | N49: =IF(S49="",IF(R49>Stunden2,Pausen2-SUM(N41:N48),IF(R49>Stunden1,Pausen1-SUM(N41:N48),0)),0) -> 0 | Q49: =IF(F49-E49>0,IF(S49="x",MROUND((F49-E49)*V51,1/1440),F49-E49),0) -> 0 | R49: 0 | S49: =IF(G49=DATEN!$L$87,"x","") -> 
B50: 2025-10-04 | M50: =IF(S50="x",TEXT(V51,"# ?/?")&" !",IF(T50="x","Nein","")) ->  | N50: =IF(S50="",IF(R50>Stunden2,Pausen2-SUM(N41:N49),IF(R50>Stunden1,Pausen1-SUM(N41:N49),0)),0) -> 0 | Q50: =IF(F50-E50>0,IF(S50="x",MROUND((F50-E50)*V51,1/1440),F50-E50),0) -> 0 | R50: 0 | S50: =IF(G50=DATEN!$L$87,"x","") -> 
A51: =IF(LEN(B51)>0,IF(WEEKDAY(B51)=4,TRUNC((B51-DATE(YEAR(B51+3-MOD(B51-2,7)),1,MOD(B51-2,7)-9))/7),IF(WEEKDAY(B51)=5,"KW","")),"") ->  | B51: =B40+1 -> 2025-10-04 | C51: =IF(WEEKDAY(B51)=1,7,WEEKDAY(B51)-1) -> 6 | D51: =IF(LEN(B51)>0,IF(OR(INDIRECT("DATEN!D"&9+C51)=0,NOT(ISNA(MATCH(B51,DATEN!$D$18:$D$33,0)))),"X",IF(OR(B51=DATEN!$D$26-1,B51=DATEN!$D$27-2,B51=DATEN!$D$30-2),"V","")),"") -> X | E51: =IF(E41>0,IF(VALUE("24:00:00")-VALUE(MAX(F30:F39))+VALUE(E41)<VALUE("11:00:00"),"Ruhezeit!",""),"") ->  | G51: Tagessumme: | H51: =V45 -> 0 | K51: =IF(LEN(B51)>0,IF(AND(D51<>"X",I51<>"U",I51<>"u",I51<>"K",I51<>"k",OR(I51="F",I51="f",H51<>0,DATEN!$H$8=1),J51<>"f",J51<>"F"),IF(D51="V",H51-INDIRECT("DATEN!D"&9+C51)/2,H51-INDIRECT("DATEN!D"&9+C51)),H51),"") -> 0 | L51: =IF(X51>MaxWoZeit,"WoArbZeit>48h!","") ->  | M51: =IF(V43>V44,V43-V44,"") ->  | N51: =SUM(N41:N50) -> 0 | O51: =IF(WEEKDAY(B51,2)=7,SUMIF('Auswertung-Wochen'!$Y$2:$Y$366,P51,'Auswertung-Wochen'!$V$2:$V$366)-SUMIF('Auswertung-Wochen'!$Y$2:$Y$366,P51,'Auswertung-Wochen'!$W$2:$W$366),"") ->  | P51: =YEAR(B51)&"-"&TEXT(_xlfn.ISOWEEKNUM(B51),"00") -> 2025-40 | Q51: =SUM(Q41:Q50) -> 00:00:00 | V51: =IF(D51="x",DATEN!$N$88,DATEN!$N$87) -> 0.1666666667 | W51: Faktor Rufbereitschaft | X51: =IF(LEN(B51)>0,IF(WEEKDAY(B51,2)=1,H51,H51+X40),X40) -> 0
A52: =IF(ISNA(MATCH(B62,DATEN!$D$18:$D$42,0)),"",INDEX(DATEN!$C$18:$D$42,MATCH(B62,DATEN!$D$18:$D$42,0),1)) ->  | B52: =B41+1 -> 2025-10-05 | H52: =IF(Q52>0,IF(ROUND(F52-E52,6)>=ROUND(Mindest,6),Q52,"<15m!"),"") ->  | M52: =IF(S52="x",TEXT(V62,"# ?/?")&" !",IF(T52="x","Nein","")) ->  | N52: =IF(S52="",IF(R52>Stunden2,Pausen2,IF(R52>Stunden1,Pausen1,0)),0) -> 0 | Q52: =IF(F52-E52>0,IF(S52="x",MROUND((F52-E52)*V62,1/1440),F52-E52),0) -> 0 | R52: =Q52 -> 0 | S52: =IF(G52=DATEN!$L$87,"x","") ->  | T52: =IF(ISNA(VLOOKUP(G52,ArbKapp,3,FALSE))=TRUE,"",IF(VLOOKUP(G52,ArbKapp,3,FALSE)="x","x","")) ->  | U52: =IF(ISNA(MATCH(G52,Kapp12Ordi,0)),"","x") ->  | V52: =Q62-N62 -> 0 | W52: Tagessumme
B53: 2025-10-05 | M53: =IF(S53="x",TEXT(V62,"# ?/?")&" !",IF(T53="x","Nein","")) ->  | N53: =IF(S53="",IF(R53>Stunden2,Pausen2-SUM(N52),IF(R53>Stunden1,Pausen1-SUM(N52),0)),0) -> 0 | Q53: =IF(F53-E53>0,IF(S53="x",MROUND((F53-E53)*V62,1/1440),F53-E53),0) -> 0 | R53: =IF(Q53>0,IF(AND(E53=F52,S52<>"x"),Q53+R52-N52,Q53),0) -> 0 | S53: =IF(G53=DATEN!$L$87,"x","") ->  | V53: =IF(ISNA(MATCH("x",U52:U61,0)),MaxZeit,MaxBildung) -> 0.4166666667 | W53: max. Tageszeit
B54: 2025-10-05 | M54: =IF(S54="x",TEXT(V62,"# ?/?")&" !",IF(T54="x","Nein","")) ->  | N54: =IF(S54="",IF(R54>Stunden2,Pausen2-SUM(N52:N53),IF(R54>Stunden1,Pausen1-SUM(N52:N53),0)),0) -> 0 | Q54: =IF(F54-E54>0,IF(S54="x",MROUND((F54-E54)*V62,1/1440),F54-E54),0) -> 0 | R54: 0 | S54: =IF(G54=DATEN!$L$87,"x","") ->  | V54: =SUMIF(T52:T61,"<>x",H52:H61)-N62 -> 00:00:00 | W54: Summe f. Kappung
B55: 2025-10-05 | M55: =IF(S55="x",TEXT(V62,"# ?/?")&" !",IF(T55="x","Nein","")) ->  | N55: =IF(S55="",IF(R55>Stunden2,Pausen2-SUM(N52:N54),IF(R55>Stunden1,Pausen1-SUM(N52:N54),0)),0) -> 0 | Q55: =IF(F55-E55>0,IF(S55="x",MROUND((F55-E55)*V62,1/1440),F55-E55),0) -> 0 | R55: 0 | S55: =IF(G55=DATEN!$L$87,"x","") ->  | V55: =IF(V54>V53,V53,V54) -> 0 | W55: Summe gekappt
B56: 2025-10-05 | M56: =IF(S56="x",TEXT(V62,"# ?/?")&" !",IF(T56="x","Nein","")) ->  | N56: =IF(S56="",IF(R56>Stunden2,Pausen2-SUM(N52:N55),IF(R56>Stunden1,Pausen1-SUM(N52:N55),0)),0) -> 0 | Q56: =IF(F56-E56>0,IF(S56="x",MROUND((F56-E56)*V62,1/1440),F56-E56),0) -> 0 | R56: 0 | S56: =IF(G56=DATEN!$L$87,"x","") ->  | V56: =V55+SUMIF(T52:T61,"x",H52:H61) -> 0 | W56: zzgl.kappungsfrei
B57: 2025-10-05 | M57: =IF(S57="x",TEXT(V62,"# ?/?")&" !",IF(T57="x","Nein","")) ->  | N57: =IF(S57="",IF(R57>Stunden2,Pausen2-SUM(N52:N56),IF(R57>Stunden1,Pausen1-SUM(N52:N56),0)),0) -> 0 | Q57: =IF(F57-E57>0,IF(S57="x",MROUND((F57-E57)*V62,1/1440),F57-E57),0) -> 0 | R57: 0 | S57: =IF(G57=DATEN!$L$87,"x","") -> 
B58: 2025-10-05 | M58: =IF(S58="x",TEXT(V62,"# ?/?")&" !",IF(T58="x","Nein","")) ->  | N58: =IF(S58="",IF(R58>Stunden2,Pausen2-SUM(N52:N57),IF(R58>Stunden1,Pausen1-SUM(N52:N57),0)),0) -> 0 | Q58: =IF(F58-E58>0,IF(S58="x",MROUND((F58-E58)*V62,1/1440),F58-E58),0) -> 0 | R58: 0 | S58: =IF(G58=DATEN!$L$87,"x","") -> 
B59: 2025-10-05 | M59: =IF(S59="x",TEXT(V62,"# ?/?")&" !",IF(T59="x","Nein","")) ->  | N59: =IF(S59="",IF(R59>Stunden2,Pausen2-SUM(N52:N58),IF(R59>Stunden1,Pausen1-SUM(N52:N58),0)),0) -> 0 | Q59: =IF(F59-E59>0,IF(S59="x",MROUND((F59-E59)*V62,1/1440),F59-E59),0) -> 0 | R59: 0 | S59: =IF(G59=DATEN!$L$87,"x","") -> 
B60: 2025-10-05 | M60: =IF(S60="x",TEXT(V62,"# ?/?")&" !",IF(T60="x","Nein","")) ->  | N60: =IF(S60="",IF(R60>Stunden2,Pausen2-SUM(N52:N59),IF(R60>Stunden1,Pausen1-SUM(N52:N59),0)),0) -> 0 | Q60: =IF(F60-E60>0,IF(S60="x",MROUND((F60-E60)*V62,1/1440),F60-E60),0) -> 0 | R60: 0 | S60: =IF(G60=DATEN!$L$87,"x","") -> 
B61: 2025-10-05 | M61: =IF(S61="x",TEXT(V62,"# ?/?")&" !",IF(T61="x","Nein","")) ->  | N61: =IF(S61="",IF(R61>Stunden2,Pausen2-SUM(N52:N60),IF(R61>Stunden1,Pausen1-SUM(N52:N60),0)),0) -> 0 | Q61: =IF(F61-E61>0,IF(S61="x",MROUND((F61-E61)*V62,1/1440),F61-E61),0) -> 0 | R61: 0 | S61: =IF(G61=DATEN!$L$87,"x","") -> 
A62: =IF(LEN(B62)>0,IF(WEEKDAY(B62)=4,TRUNC((B62-DATE(YEAR(B62+3-MOD(B62-2,7)),1,MOD(B62-2,7)-9))/7),IF(WEEKDAY(B62)=5,"KW","")),"") ->  | B62: =B51+1 -> 2025-10-05 | C62: =IF(WEEKDAY(B62)=1,7,WEEKDAY(B62)-1) -> 7 | D62: =IF(LEN(B62)>0,IF(OR(INDIRECT("DATEN!D"&9+C62)=0,NOT(ISNA(MATCH(B62,DATEN!$D$18:$D$33,0)))),"X",IF(OR(B62=DATEN!$D$26-1,B62=DATEN!$D$27-2,B62=DATEN!$D$30-2),"V","")),"") -> X | E62: =IF(E52>0,IF(VALUE("24:00:00")-VALUE(MAX(F41:F50))+VALUE(E52)<VALUE("11:00:00"),"Ruhezeit!",""),"") ->  | G62: Tagessumme: | H62: =V56 -> 0 | K62: =IF(LEN(B62)>0,IF(AND(D62<>"X",I62<>"U",I62<>"u",I62<>"K",I62<>"k",OR(I62="F",I62="f",H62<>0,DATEN!$H$8=1),J62<>"f",J62<>"F"),IF(D62="V",H62-INDIRECT("DATEN!D"&9+C62)/2,H62-INDIRECT("DATEN!D"&9+C62)),H62),"") -> 0 | L62: =IF(X62>MaxWoZeit,"WoArbZeit>48h!","") ->  | M62: =IF(V54>V55,V54-V55,"") ->  | N62: =SUM(N52:N61) -> 0 | O62: =IF(WEEKDAY(B62,2)=7,SUMIF('Auswertung-Wochen'!$Y$2:$Y$366,P62,'Auswertung-Wochen'!$V$2:$V$366)-SUMIF('Auswertung-Wochen'!$Y$2:$Y$366,P62,'Auswertung-Wochen'!$W$2:$W$366),"") -> -0.6583333333 | P62: =YEAR(B62)&"-"&TEXT(_xlfn.ISOWEEKNUM(B62),"00") -> 2025-40 | Q62: =SUM(Q52:Q61) -> 00:00:00 | V62: =IF(D62="x",DATEN!$N$88,DATEN!$N$87) -> 0.1666666667 | W62: Faktor Rufbereitschaft | X62: =IF(LEN(B62)>0,IF(WEEKDAY(B62,2)=1,H62,H62+X51),X51) -> 0
A63: =IF(ISNA(MATCH(B73,DATEN!$D$18:$D$42,0)),"",INDEX(DATEN!$C$18:$D$42,MATCH(B73,DATEN!$D$18:$D$42,0),1)) ->  | B63: =B52+1 -> 2025-10-06 | H63: =IF(Q63>0,IF(ROUND(F63-E63,6)>=ROUND(Mindest,6),Q63,"<15m!"),"") ->  | M63: =IF(S63="x",TEXT(V73,"# ?/?")&" !",IF(T63="x","Nein","")) ->  | N63: =IF(S63="",IF(R63>Stunden2,Pausen2,IF(R63>Stunden1,Pausen1,0)),0) -> 0 | Q63: =IF(F63-E63>0,IF(S63="x",MROUND((F63-E63)*V73,1/1440),F63-E63),0) -> 0 | R63: =Q63 -> 0 | S63: =IF(G63=DATEN!$L$87,"x","") ->  | T63: =IF(ISNA(VLOOKUP(G63,ArbKapp,3,FALSE))=TRUE,"",IF(VLOOKUP(G63,ArbKapp,3,FALSE)="x","x","")) ->  | U63: =IF(ISNA(MATCH(G63,Kapp12Ordi,0)),"","x") ->  | V63: =Q73-N73 -> 0 | W63: Tagessumme
B64: 2025-10-06 | M64: =IF(S64="x",TEXT(V73,"# ?/?")&" !",IF(T64="x","Nein","")) ->  | N64: =IF(S64="",IF(R64>Stunden2,Pausen2-SUM(N63),IF(R64>Stunden1,Pausen1-SUM(N63),0)),0) -> 0 | Q64: =IF(F64-E64>0,IF(S64="x",MROUND((F64-E64)*V73,1/1440),F64-E64),0) -> 0 | R64: =IF(Q64>0,IF(AND(E64=F63,S63<>"x"),Q64+R63-N63,Q64),0) -> 0 | S64: =IF(G64=DATEN!$L$87,"x","") ->  | V64: =IF(ISNA(MATCH("x",U63:U72,0)),MaxZeit,MaxBildung) -> 0.4166666667 | W64: max. Tageszeit
B65: 2025-10-06 | M65: =IF(S65="x",TEXT(V73,"# ?/?")&" !",IF(T65="x","Nein","")) ->  | N65: =IF(S65="",IF(R65>Stunden2,Pausen2-SUM(N63:N64),IF(R65>Stunden1,Pausen1-SUM(N63:N64),0)),0) -> 0 | Q65: =IF(F65-E65>0,IF(S65="x",MROUND((F65-E65)*V73,1/1440),F65-E65),0) -> 0 | R65: 0 | S65: =IF(G65=DATEN!$L$87,"x","") ->  | V65: =SUMIF(T63:T72,"<>x",H63:H72)-N73 -> 00:00:00 | W65: Summe f. Kappung
B66: 2025-10-06 | M66: =IF(S66="x",TEXT(V73,"# ?/?")&" !",IF(T66="x","Nein","")) ->  | N66: =IF(S66="",IF(R66>Stunden2,Pausen2-SUM(N63:N65),IF(R66>Stunden1,Pausen1-SUM(N63:N65),0)),0) -> 0 | Q66: =IF(F66-E66>0,IF(S66="x",MROUND((F66-E66)*V73,1/1440),F66-E66),0) -> 0 | R66: 0 | S66: =IF(G66=DATEN!$L$87,"x","") ->  | V66: =IF(V65>V64,V64,V65) -> 0 | W66: Summe gekappt
B67: 2025-10-06 | M67: =IF(S67="x",TEXT(V73,"# ?/?")&" !",IF(T67="x","Nein","")) ->  | N67: =IF(S67="",IF(R67>Stunden2,Pausen2-SUM(N63:N66),IF(R67>Stunden1,Pausen1-SUM(N63:N66),0)),0) -> 0 | Q67: =IF(F67-E67>0,IF(S67="x",MROUND((F67-E67)*V73,1/1440),F67-E67),0) -> 0 | R67: 0 | S67: =IF(G67=DATEN!$L$87,"x","") ->  | V67: =V66+SUMIF(T63:T72,"x",H63:H72) -> 0 | W67: zzgl.kappungsfrei
B68: 2025-10-06 | M68: =IF(S68="x",TEXT(V73,"# ?/?")&" !",IF(T68="x","Nein","")) ->  | N68: =IF(S68="",IF(R68>Stunden2,Pausen2-SUM(N63:N67),IF(R68>Stunden1,Pausen1-SUM(N63:N67),0)),0) -> 0 | Q68: =IF(F68-E68>0,IF(S68="x",MROUND((F68-E68)*V73,1/1440),F68-E68),0) -> 0 | R68: 0 | S68: =IF(G68=DATEN!$L$87,"x","") -> 
B69: 2025-10-06 | M69: =IF(S69="x",TEXT(V73,"# ?/?")&" !",IF(T69="x","Nein","")) ->  | N69: =IF(S69="",IF(R69>Stunden2,Pausen2-SUM(N63:N68),IF(R69>Stunden1,Pausen1-SUM(N63:N68),0)),0) -> 0 | Q69: =IF(F69-E69>0,IF(S69="x",MROUND((F69-E69)*V73,1/1440),F69-E69),0) -> 0 | R69: 0 | S69: =IF(G69=DATEN!$L$87,"x","") -> 
B70: 2025-10-06 | M70: =IF(S70="x",TEXT(V73,"# ?/?")&" !",IF(T70="x","Nein","")) ->  | N70: =IF(S70="",IF(R70>Stunden2,Pausen2-SUM(N63:N69),IF(R70>Stunden1,Pausen1-SUM(N63:N69),0)),0) -> 0 | Q70: =IF(F70-E70>0,IF(S70="x",MROUND((F70-E70)*V73,1/1440),F70-E70),0) -> 0 | R70: 0 | S70: =IF(G70=DATEN!$L$87,"x","") -> 
B71: 2025-10-06 | M71: =IF(S71="x",TEXT(V73,"# ?/?")&" !",IF(T71="x","Nein","")) ->  | N71: =IF(S71="",IF(R71>Stunden2,Pausen2-SUM(N63:N70),IF(R71>Stunden1,Pausen1-SUM(N63:N70),0)),0) -> 0 | Q71: =IF(F71-E71>0,IF(S71="x",MROUND((F71-E71)*V73,1/1440),F71-E71),0) -> 0 | R71: 0 | S71: =IF(G71=DATEN!$L$87,"x","") -> 
B72: 2025-10-06 | M72: =IF(S72="x",TEXT(V73,"# ?/?")&" !",IF(T72="x","Nein","")) ->  | N72: =IF(S72="",IF(R72>Stunden2,Pausen2-SUM(N63:N71),IF(R72>Stunden1,Pausen1-SUM(N63:N71),0)),0) -> 0 | Q72: =IF(F72-E72>0,IF(S72="x",MROUND((F72-E72)*V73,1/1440),F72-E72),0) -> 0 | R72: 0 | S72: =IF(G72=DATEN!$L$87,"x","") -> 
A73: =IF(LEN(B73)>0,IF(WEEKDAY(B73)=4,TRUNC((B73-DATE(YEAR(B73+3-MOD(B73-2,7)),1,MOD(B73-2,7)-9))/7),IF(WEEKDAY(B73)=5,"KW","")),"") ->  | B73: =B62+1 -> 2025-10-06 | C73: =IF(WEEKDAY(B73)=1,7,WEEKDAY(B73)-1) -> 1 | D73: =IF(LEN(B73)>0,IF(OR(INDIRECT("DATEN!D"&9+C73)=0,NOT(ISNA(MATCH(B73,DATEN!$D$18:$D$33,0)))),"X",IF(OR(B73=DATEN!$D$26-1,B73=DATEN!$D$27-2,B73=DATEN!$D$30-2),"V","")),"") ->  | E73: =IF(E63>0,IF(VALUE("24:00:00")-VALUE(MAX(F52:F61))+VALUE(E63)<VALUE("11:00:00"),"Ruhezeit!",""),"") ->  | G73: Tagessumme: | H73: =V67 -> 0 | K73: =IF(LEN(B73)>0,IF(AND(D73<>"X",I73<>"U",I73<>"u",I73<>"K",I73<>"k",OR(I73="F",I73="f",H73<>0,DATEN!$H$8=1),J73<>"f",J73<>"F"),IF(D73="V",H73-INDIRECT("DATEN!D"&9+C73)/2,H73-INDIRECT("DATEN!D"&9+C73)),H73),"") -> -0.3291666667 | L73: =IF(X73>MaxWoZeit,"WoArbZeit>48h!","") ->  | M73: =IF(V65>V66,V65-V66,"") ->  | N73: =SUM(N63:N72) -> 0 | O73: =IF(WEEKDAY(B73,2)=7,SUMIF('Auswertung-Wochen'!$Y$2:$Y$366,P73,'Auswertung-Wochen'!$V$2:$V$366)-SUMIF('Auswertung-Wochen'!$Y$2:$Y$366,P73,'Auswertung-Wochen'!$W$2:$W$366),"") ->  | P73: =YEAR(B73)&"-"&TEXT(_xlfn.ISOWEEKNUM(B73),"00") -> 2025-41 | Q73: =SUM(Q63:Q72) -> 00:00:00 | V73: =IF(D73="x",DATEN!$N$88,DATEN!$N$87) -> 0.125 | W73: Faktor Rufbereitschaft | X73: =IF(LEN(B73)>0,IF(WEEKDAY(B73,2)=1,H73,H73+X62),X62) -> 0 | Z73: =IF(AND(G73>0,G73<>"Tagessumme:"),G73,"") ->  | AA73: =IF(G73<>"Tagessumme:",H73,"") -> 
A74: =IF(ISNA(MATCH(B84,DATEN!$D$18:$D$42,0)),"",INDEX(DATEN!$C$18:$D$42,MATCH(B84,DATEN!$D$18:$D$42,0),1)) ->  | B74: =B63+1 -> 2025-10-07 | H74: =IF(Q74>0,IF(ROUND(F74-E74,6)>=ROUND(Mindest,6),Q74,"<15m!"),"") ->  | M74: =IF(S74="x",TEXT(V84,"# ?/?")&" !",IF(T74="x","Nein","")) ->  | N74: =IF(S74="",IF(R74>Stunden2,Pausen2,IF(R74>Stunden1,Pausen1,0)),0) -> 0 | Q74: =IF(F74-E74>0,IF(S74="x",MROUND((F74-E74)*V84,1/1440),F74-E74),0) -> 0 | R74: =Q74 -> 0 | S74: =IF(G74=DATEN!$L$87,"x","") ->  | T74: =IF(ISNA(VLOOKUP(G74,ArbKapp,3,FALSE))=TRUE,"",IF(VLOOKUP(G74,ArbKapp,3,FALSE)="x","x","")) ->  | U74: =IF(ISNA(MATCH(G74,Kapp12Ordi,0)),"","x") ->  | V74: =Q84-N84 -> 0 | W74: Tagessumme
B75: 2025-10-07 | M75: =IF(S75="x",TEXT(V84,"# ?/?")&" !",IF(T75="x","Nein","")) ->  | N75: =IF(S75="",IF(R75>Stunden2,Pausen2-SUM(N74),IF(R75>Stunden1,Pausen1-SUM(N74),0)),0) -> 0 | Q75: =IF(F75-E75>0,IF(S75="x",MROUND((F75-E75)*V84,1/1440),F75-E75),0) -> 0 | R75: =IF(Q75>0,IF(AND(E75=F74,S74<>"x"),Q75+R74-N74,Q75),0) -> 0 | S75: =IF(G75=DATEN!$L$87,"x","") ->  | V75: =IF(ISNA(MATCH("x",U74:U83,0)),MaxZeit,MaxBildung) -> 0.4166666667 | W75: max. Tageszeit
B76: 2025-10-07 | M76: =IF(S76="x",TEXT(V84,"# ?/?")&" !",IF(T76="x","Nein","")) ->  | N76: =IF(S76="",IF(R76>Stunden2,Pausen2-SUM(N74:N75),IF(R76>Stunden1,Pausen1-SUM(N74:N75),0)),0) -> 0 | Q76: =IF(F76-E76>0,IF(S76="x",MROUND((F76-E76)*V84,1/1440),F76-E76),0) -> 0 | R76: 0 | S76: =IF(G76=DATEN!$L$87,"x","") ->  | V76: =SUMIF(T74:T83,"<>x",H74:H83)-N84 -> 00:00:00 | W76: Summe f. Kappung
B77: 2025-10-07 | M77: =IF(S77="x",TEXT(V84,"# ?/?")&" !",IF(T77="x","Nein","")) ->  | N77: =IF(S77="",IF(R77>Stunden2,Pausen2-SUM(N74:N76),IF(R77>Stunden1,Pausen1-SUM(N74:N76),0)),0) -> 0 | Q77: =IF(F77-E77>0,IF(S77="x",MROUND((F77-E77)*V84,1/1440),F77-E77),0) -> 0 | R77: 0 | S77: =IF(G77=DATEN!$L$87,"x","") ->  | V77: =IF(V76>V75,V75,V76) -> 0 | W77: Summe gekappt
B78: 2025-10-07 | M78: =IF(S78="x",TEXT(V84,"# ?/?")&" !",IF(T78="x","Nein","")) ->  | N78: =IF(S78="",IF(R78>Stunden2,Pausen2-SUM(N74:N77),IF(R78>Stunden1,Pausen1-SUM(N74:N77),0)),0) -> 0 | Q78: =IF(F78-E78>0,IF(S78="x",MROUND((F78-E78)*V84,1/1440),F78-E78),0) -> 0 | R78: 0 | S78: =IF(G78=DATEN!$L$87,"x","") ->  | V78: =V77+SUMIF(T74:T83,"x",H74:H83) -> 0 | W78: zzgl.kappungsfrei
B79: 2025-10-07 | M79: =IF(S79="x",TEXT(V84,"# ?/?")&" !",IF(T79="x","Nein","")) ->  | N79: =IF(S79="",IF(R79>Stunden2,Pausen2-SUM(N74:N78),IF(R79>Stunden1,Pausen1-SUM(N74:N78),0)),0) -> 0 | Q79: =IF(F79-E79>0,IF(S79="x",MROUND((F79-E79)*V84,1/1440),F79-E79),0) -> 0 | R79: 0 | S79: =IF(G79=DATEN!$L$87,"x","") -> 
B80: 2025-10-07 | M80: =IF(S80="x",TEXT(V84,"# ?/?")&" !",IF(T80="x","Nein","")) ->  | N80: =IF(S80="",IF(R80>Stunden2,Pausen2-SUM(N74:N79),IF(R80>Stunden1,Pausen1-SUM(N74:N79),0)),0) -> 0 | Q80: =IF(F80-E80>0,IF(S80="x",MROUND((F80-E80)*V84,1/1440),F80-E80),0) -> 0 | R80: 0 | S80: =IF(G80=DATEN!$L$87,"x","") -> 
B81: 2025-10-07 | M81: =IF(S81="x",TEXT(V84,"# ?/?")&" !",IF(T81="x","Nein","")) ->  | N81: =IF(S81="",IF(R81>Stunden2,Pausen2-SUM(N74:N80),IF(R81>Stunden1,Pausen1-SUM(N74:N80),0)),0) -> 0 | Q81: =IF(F81-E81>0,IF(S81="x",MROUND((F81-E81)*V84,1/1440),F81-E81),0) -> 0 | R81: 0 | S81: =IF(G81=DATEN!$L$87,"x","") -> 
B82: 2025-10-07 | M82: =IF(S82="x",TEXT(V84,"# ?/?")&" !",IF(T82="x","Nein","")) ->  | N82: =IF(S82="",IF(R82>Stunden2,Pausen2-SUM(N74:N81),IF(R82>Stunden1,Pausen1-SUM(N74:N81),0)),0) -> 0 | Q82: =IF(F82-E82>0,IF(S82="x",MROUND((F82-E82)*V84,1/1440),F82-E82),0) -> 0 | R82: 0 | S82: =IF(G82=DATEN!$L$87,"x","") -> 
B83: 2025-10-07 | M83: =IF(S83="x",TEXT(V84,"# ?/?")&" !",IF(T83="x","Nein","")) ->  | N83: =IF(S83="",IF(R83>Stunden2,Pausen2-SUM(N74:N82),IF(R83>Stunden1,Pausen1-SUM(N74:N82),0)),0) -> 0 | Q83: =IF(F83-E83>0,IF(S83="x",MROUND((F83-E83)*V84,1/1440),F83-E83),0) -> 0 | R83: 0 | S83: =IF(G83=DATEN!$L$87,"x","") -> 
A84: =IF(LEN(B84)>0,IF(WEEKDAY(B84)=4,TRUNC((B84-DATE(YEAR(B84+3-MOD(B84-2,7)),1,MOD(B84-2,7)-9))/7),IF(WEEKDAY(B84)=5,"KW","")),"") ->  | B84: =B73+1 -> 2025-10-07 | C84: =IF(WEEKDAY(B84)=1,7,WEEKDAY(B84)-1) -> 2 | D84: =IF(LEN(B84)>0,IF(OR(INDIRECT("DATEN!D"&9+C84)=0,NOT(ISNA(MATCH(B84,DATEN!$D$18:$D$33,0)))),"X",IF(OR(B84=DATEN!$D$26-1,B84=DATEN!$D$27-2,B84=DATEN!$D$30-2),"V","")),"") ->  | E84: =IF(E74>0,IF(VALUE("24:00:00")-VALUE(MAX(F63:F72))+VALUE(E74)<VALUE("11:00:00"),"Ruhezeit!",""),"") ->  | G84: Tagessumme: | H84: =V78 -> 0 | K84: =IF(LEN(B84)>0,IF(AND(D84<>"X",I84<>"U",I84<>"u",I84<>"K",I84<>"k",OR(I84="F",I84="f",H84<>0,DATEN!$H$8=1),J84<>"f",J84<>"F"),IF(D84="V",H84-INDIRECT("DATEN!D"&9+C84)/2,H84-INDIRECT("DATEN!D"&9+C84)),H84),"") -> -0.3291666667 | L84: =IF(X84>MaxWoZeit,"WoArbZeit>48h!","") ->  | M84: =IF(V76>V77,V76-V77,"") ->  | N84: =SUM(N74:N83) -> 0 | O84: =IF(WEEKDAY(B84,2)=7,SUMIF('Auswertung-Wochen'!$Y$2:$Y$366,P84,'Auswertung-Wochen'!$V$2:$V$366)-SUMIF('Auswertung-Wochen'!$Y$2:$Y$366,P84,'Auswertung-Wochen'!$W$2:$W$366),"") ->  | P84: =YEAR(B84)&"-"&TEXT(_xlfn.ISOWEEKNUM(B84),"00") -> 2025-41 | Q84: =SUM(Q74:Q83) -> 00:00:00 | V84: =IF(D84="x",DATEN!$N$88,DATEN!$N$87) -> 0.125 | W84: Faktor Rufbereitschaft | X84: =IF(LEN(B84)>0,IF(WEEKDAY(B84,2)=1,H84,H84+X73),X73) -> 0
A85: =IF(ISNA(MATCH(B95,DATEN!$D$18:$D$42,0)),"",INDEX(DATEN!$C$18:$D$42,MATCH(B95,DATEN!$D$18:$D$42,0),1)) ->  | B85: =B74+1 -> 2025-10-08 | H85: =IF(Q85>0,IF(ROUND(F85-E85,6)>=ROUND(Mindest,6),Q85,"<15m!"),"") ->  | M85: =IF(S85="x",TEXT(V95,"# ?/?")&" !",IF(T85="x","Nein","")) ->  | N85: =IF(S85="",IF(R85>Stunden2,Pausen2,IF(R85>Stunden1,Pausen1,0)),0) -> 0 | Q85: =IF(F85-E85>0,IF(S85="x",MROUND((F85-E85)*V95,1/1440),F85-E85),0) -> 0 | R85: =Q85 -> 0 | S85: =IF(G85=DATEN!$L$87,"x","") ->  | T85: =IF(ISNA(VLOOKUP(G85,ArbKapp,3,FALSE))=TRUE,"",IF(VLOOKUP(G85,ArbKapp,3,FALSE)="x","x","")) ->  | U85: =IF(ISNA(MATCH(G85,Kapp12Ordi,0)),"","x") ->  | V85: =Q95-N95 -> 0 | W85: Tagessumme
B86: 2025-10-08 | M86: =IF(S86="x",TEXT(V95,"# ?/?")&" !",IF(T86="x","Nein","")) ->  | N86: =IF(S86="",IF(R86>Stunden2,Pausen2-SUM(N85),IF(R86>Stunden1,Pausen1-SUM(N85),0)),0) -> 0 | Q86: =IF(F86-E86>0,IF(S86="x",MROUND((F86-E86)*V95,1/1440),F86-E86),0) -> 0 | R86: =IF(Q86>0,IF(AND(E86=F85,S85<>"x"),Q86+R85-N85,Q86),0) -> 0 | S86: =IF(G86=DATEN!$L$87,"x","") ->  | V86: =IF(ISNA(MATCH("x",U85:U94,0)),MaxZeit,MaxBildung) -> 0.4166666667 | W86: max. Tageszeit
B87: 2025-10-08 | M87: =IF(S87="x",TEXT(V95,"# ?/?")&" !",IF(T87="x","Nein","")) ->  | N87: =IF(S87="",IF(R87>Stunden2,Pausen2-SUM(N85:N86),IF(R87>Stunden1,Pausen1-SUM(N85:N86),0)),0) -> 0 | Q87: =IF(F87-E87>0,IF(S87="x",MROUND((F87-E87)*V95,1/1440),F87-E87),0) -> 0 | R87: 0 | S87: =IF(G87=DATEN!$L$87,"x","") ->  | V87: =SUMIF(T85:T94,"<>x",H85:H94)-N95 -> 00:00:00 | W87: Summe f. Kappung
B88: 2025-10-08 | M88: =IF(S88="x",TEXT(V95,"# ?/?")&" !",IF(T88="x","Nein","")) ->  | N88: =IF(S88="",IF(R88>Stunden2,Pausen2-SUM(N85:N87),IF(R88>Stunden1,Pausen1-SUM(N85:N87),0)),0) -> 0 | Q88: =IF(F88-E88>0,IF(S88="x",MROUND((F88-E88)*V95,1/1440),F88-E88),0) -> 0 | R88: 0 | S88: =IF(G88=DATEN!$L$87,"x","") ->  | V88: =IF(V87>V86,V86,V87) -> 0 | W88: Summe gekappt
B89: 2025-10-08 | M89: =IF(S89="x",TEXT(V95,"# ?/?")&" !",IF(T89="x","Nein","")) ->  | N89: =IF(S89="",IF(R89>Stunden2,Pausen2-SUM(N85:N88),IF(R89>Stunden1,Pausen1-SUM(N85:N88),0)),0) -> 0 | Q89: =IF(F89-E89>0,IF(S89="x",MROUND((F89-E89)*V95,1/1440),F89-E89),0) -> 0 | R89: 0 | S89: =IF(G89=DATEN!$L$87,"x","") ->  | V89: =V88+SUMIF(T85:T94,"x",H85:H94) -> 0 | W89: zzgl.kappungsfrei
B90: 2025-10-08 | M90: =IF(S90="x",TEXT(V95,"# ?/?")&" !",IF(T90="x","Nein","")) ->  | N90: =IF(S90="",IF(R90>Stunden2,Pausen2-SUM(N85:N89),IF(R90>Stunden1,Pausen1-SUM(N85:N89),0)),0) -> 0 | Q90: =IF(F90-E90>0,IF(S90="x",MROUND((F90-E90)*V95,1/1440),F90-E90),0) -> 0 | R90: 0 | S90: =IF(G90=DATEN!$L$87,"x","") -> 
B91: 2025-10-08 | M91: =IF(S91="x",TEXT(V95,"# ?/?")&" !",IF(T91="x","Nein","")) ->  | N91: =IF(S91="",IF(R91>Stunden2,Pausen2-SUM(N85:N90),IF(R91>Stunden1,Pausen1-SUM(N85:N90),0)),0) -> 0 | Q91: =IF(F91-E91>0,IF(S91="x",MROUND((F91-E91)*V95,1/1440),F91-E91),0) -> 0 | R91: 0 | S91: =IF(G91=DATEN!$L$87,"x","") -> 
B92: 2025-10-08 | M92: =IF(S92="x",TEXT(V95,"# ?/?")&" !",IF(T92="x","Nein","")) ->  | N92: =IF(S92="",IF(R92>Stunden2,Pausen2-SUM(N85:N91),IF(R92>Stunden1,Pausen1-SUM(N85:N91),0)),0) -> 0 | Q92: =IF(F92-E92>0,IF(S92="x",MROUND((F92-E92)*V95,1/1440),F92-E92),0) -> 0 | R92: 0 | S92: =IF(G92=DATEN!$L$87,"x","") -> 
B93: 2025-10-08 | M93: =IF(S93="x",TEXT(V95,"# ?/?")&" !",IF(T93="x","Nein","")) ->  | N93: =IF(S93="",IF(R93>Stunden2,Pausen2-SUM(N85:N92),IF(R93>Stunden1,Pausen1-SUM(N85:N92),0)),0) -> 0 | Q93: =IF(F93-E93>0,IF(S93="x",MROUND((F93-E93)*V95,1/1440),F93-E93),0) -> 0 | R93: 0 | S93: =IF(G93=DATEN!$L$87,"x","") -> 
B94: 2025-10-08 | M94: =IF(S94="x",TEXT(V95,"# ?/?")&" !",IF(T94="x","Nein","")) ->  | N94: =IF(S94="",IF(R94>Stunden2,Pausen2-SUM(N85:N93),IF(R94>Stunden1,Pausen1-SUM(N85:N93),0)),0) -> 0 | Q94: =IF(F94-E94>0,IF(S94="x",MROUND((F94-E94)*V95,1/1440),F94-E94),0) -> 0 | R94: 0 | S94: =IF(G94=DATEN!$L$87,"x","") -> 
A95: =IF(LEN(B95)>0,IF(WEEKDAY(B95)=4,TRUNC((B95-DATE(YEAR(B95+3-MOD(B95-2,7)),1,MOD(B95-2,7)-9))/7),IF(WEEKDAY(B95)=5,"KW","")),"") -> 41 | B95: =B84+1 -> 2025-10-08 | C95: =IF(WEEKDAY(B95)=1,7,WEEKDAY(B95)-1) -> 3 | D95: =IF(LEN(B95)>0,IF(OR(INDIRECT("DATEN!D"&9+C95)=0,NOT(ISNA(MATCH(B95,DATEN!$D$18:$D$33,0)))),"X",IF(OR(B95=DATEN!$D$26-1,B95=DATEN!$D$27-2,B95=DATEN!$D$30-2),"V","")),"") ->  | E95: =IF(E85>0,IF(VALUE("24:00:00")-VALUE(MAX(F74:F83))+VALUE(E85)<VALUE("11:00:00"),"Ruhezeit!",""),"") ->  | G95: Tagessumme: | H95: =V89 -> 0 | K95: =IF(LEN(B95)>0,IF(AND(D95<>"X",I95<>"U",I95<>"u",I95<>"K",I95<>"k",OR(I95="F",I95="f",H95<>0,DATEN!$H$8=1),J95<>"f",J95<>"F"),IF(D95="V",H95-INDIRECT("DATEN!D"&9+C95)/2,H95-INDIRECT("DATEN!D"&9+C95)),H95),"") -> -0.3291666667 | L95: =IF(X95>MaxWoZeit,"WoArbZeit>48h!","") ->  | M95: =IF(V87>V88,V87-V88,"") ->  | N95: =SUM(N85:N94) -> 0 | O95: =IF(WEEKDAY(B95,2)=7,SUMIF('Auswertung-Wochen'!$Y$2:$Y$366,P95,'Auswertung-Wochen'!$V$2:$V$366)-SUMIF('Auswertung-Wochen'!$Y$2:$Y$366,P95,'Auswertung-Wochen'!$W$2:$W$366),"") ->  | P95: =YEAR(B95)&"-"&TEXT(_xlfn.ISOWEEKNUM(B95),"00") -> 2025-41 | Q95: =SUM(Q85:Q94) -> 00:00:00 | V95: =IF(D95="x",DATEN!$N$88,DATEN!$N$87) -> 0.125 | W95: Faktor Rufbereitschaft | X95: =IF(LEN(B95)>0,IF(WEEKDAY(B95,2)=1,H95,H95+X84),X84) -> 0
A96: =IF(ISNA(MATCH(B106,DATEN!$D$18:$D$42,0)),"",INDEX(DATEN!$C$18:$D$42,MATCH(B106,DATEN!$D$18:$D$42,0),1)) ->  | B96: =B85+1 -> 2025-10-09 | H96: =IF(Q96>0,IF(ROUND(F96-E96,6)>=ROUND(Mindest,6),Q96,"<15m!"),"") ->  | M96: =IF(S96="x",TEXT(V106,"# ?/?")&" !",IF(T96="x","Nein","")) ->  | N96: =IF(S96="",IF(R96>Stunden2,Pausen2,IF(R96>Stunden1,Pausen1,0)),0) -> 0 | Q96: =IF(F96-E96>0,IF(S96="x",MROUND((F96-E96)*V106,1/1440),F96-E96),0) -> 0 | R96: =Q96 -> 0 | S96: =IF(G96=DATEN!$L$87,"x","") ->  | T96: =IF(ISNA(VLOOKUP(G96,ArbKapp,3,FALSE))=TRUE,"",IF(VLOOKUP(G96,ArbKapp,3,FALSE)="x","x","")) ->  | U96: =IF(ISNA(MATCH(G96,Kapp12Ordi,0)),"","x") ->  | V96: =Q106-N106 -> 0 | W96: Tagessumme
B97: 2025-10-09 | M97: =IF(S97="x",TEXT(V106,"# ?/?")&" !",IF(T97="x","Nein","")) ->  | N97: =IF(S97="",IF(R97>Stunden2,Pausen2-SUM(N96),IF(R97>Stunden1,Pausen1-SUM(N96),0)),0) -> 0 | Q97: =IF(F97-E97>0,IF(S97="x",MROUND((F97-E97)*V106,1/1440),F97-E97),0) -> 0 | R97: =IF(Q97>0,IF(AND(E97=F96,S96<>"x"),Q97+R96-N96,Q97),0) -> 0 | S97: =IF(G97=DATEN!$L$87,"x","") ->  | V97: =IF(ISNA(MATCH("x",U96:U105,0)),MaxZeit,MaxBildung) -> 0.4166666667 | W97: max. Tageszeit
B98: 2025-10-09 | M98: =IF(S98="x",TEXT(V106,"# ?/?")&" !",IF(T98="x","Nein","")) ->  | N98: =IF(S98="",IF(R98>Stunden2,Pausen2-SUM(N96:N97),IF(R98>Stunden1,Pausen1-SUM(N96:N97),0)),0) -> 0 | Q98: =IF(F98-E98>0,IF(S98="x",MROUND((F98-E98)*V106,1/1440),F98-E98),0) -> 0 | R98: 0 | S98: =IF(G98=DATEN!$L$87,"x","") ->  | V98: =SUMIF(T96:T105,"<>x",H96:H105)-N106 -> 00:00:00 | W98: Summe f. Kappung
B99: 2025-10-09 | M99: =IF(S99="x",TEXT(V106,"# ?/?")&" !",IF(T99="x","Nein","")) ->  | N99: =IF(S99="",IF(R99>Stunden2,Pausen2-SUM(N96:N98),IF(R99>Stunden1,Pausen1-SUM(N96:N98),0)),0) -> 0 | Q99: =IF(F99-E99>0,IF(S99="x",MROUND((F99-E99)*V106,1/1440),F99-E99),0) -> 0 | R99: 0 | S99: =IF(G99=DATEN!$L$87,"x","") ->  | V99: =IF(V98>V97,V97,V98) -> 0 | W99: Summe gekappt
B100: 2025-10-09 | M100: =IF(S100="x",TEXT(V106,"# ?/?")&" !",IF(T100="x","Nein","")) ->  | N100: =IF(S100="",IF(R100>Stunden2,Pausen2-SUM(N96:N99),IF(R100>Stunden1,Pausen1-SUM(N96:N99),0)),0) -> 0 | Q100: =IF(F100-E100>0,IF(S100="x",MROUND((F100-E100)*V106,1/1440),F100-E100),0) -> 0 | R100: 0 | S100: =IF(G100=DATEN!$L$87,"x","") ->  | V100: =V99+SUMIF(T96:T105,"x",H96:H105) -> 0 | W100: zzgl.kappungsfrei
B101: 2025-10-09 | M101: =IF(S101="x",TEXT(V106,"# ?/?")&" !",IF(T101="x","Nein","")) ->  | N101: =IF(S101="",IF(R101>Stunden2,Pausen2-SUM(N96:N100),IF(R101>Stunden1,Pausen1-SUM(N96:N100),0)),0) -> 0 | Q101: =IF(F101-E101>0,IF(S101="x",MROUND((F101-E101)*V106,1/1440),F101-E101),0) -> 0 | R101: 0 | S101: =IF(G101=DATEN!$L$87,"x","") -> 
B102: 2025-10-09 | M102: =IF(S102="x",TEXT(V106,"# ?/?")&" !",IF(T102="x","Nein","")) ->  | N102: =IF(S102="",IF(R102>Stunden2,Pausen2-SUM(N96:N101),IF(R102>Stunden1,Pausen1-SUM(N96:N101),0)),0) -> 0 | Q102: =IF(F102-E102>0,IF(S102="x",MROUND((F102-E102)*V106,1/1440),F102-E102),0) -> 0 | R102: 0 | S102: =IF(G102=DATEN!$L$87,"x","") -> 
B103: 2025-10-09 | M103: =IF(S103="x",TEXT(V106,"# ?/?")&" !",IF(T103="x","Nein","")) ->  | N103: =IF(S103="",IF(R103>Stunden2,Pausen2-SUM(N96:N102),IF(R103>Stunden1,Pausen1-SUM(N96:N102),0)),0) -> 0 | Q103: =IF(F103-E103>0,IF(S103="x",MROUND((F103-E103)*V106,1/1440),F103-E103),0) -> 0 | R103: 0 | S103: =IF(G103=DATEN!$L$87,"x","") -> 
B104: 2025-10-09 | M104: =IF(S104="x",TEXT(V106,"# ?/?")&" !",IF(T104="x","Nein","")) ->  | N104: =IF(S104="",IF(R104>Stunden2,Pausen2-SUM(N96:N103),IF(R104>Stunden1,Pausen1-SUM(N96:N103),0)),0) -> 0 | Q104: =IF(F104-E104>0,IF(S104="x",MROUND((F104-E104)*V106,1/1440),F104-E104),0) -> 0 | R104: 0 | S104: =IF(G104=DATEN!$L$87,"x","") -> 
B105: 2025-10-09 | M105: =IF(S105="x",TEXT(V106,"# ?/?")&" !",IF(T105="x","Nein","")) ->  | N105: =IF(S105="",IF(R105>Stunden2,Pausen2-SUM(N96:N104),IF(R105>Stunden1,Pausen1-SUM(N96:N104),0)),0) -> 0 | Q105: =IF(F105-E105>0,IF(S105="x",MROUND((F105-E105)*V106,1/1440),F105-E105),0) -> 0 | R105: 0 | S105: =IF(G105=DATEN!$L$87,"x","") -> 
A106: =IF(LEN(B106)>0,IF(WEEKDAY(B106)=4,TRUNC((B106-DATE(YEAR(B106+3-MOD(B106-2,7)),1,MOD(B106-2,7)-9))/7),IF(WEEKDAY(B106)=5,"KW","")),"") -> KW | B106: =B95+1 -> 2025-10-09 | C106: =IF(WEEKDAY(B106)=1,7,WEEKDAY(B106)-1) -> 4 | D106: =IF(LEN(B106)>0,IF(OR(INDIRECT("DATEN!D"&9+C106)=0,NOT(ISNA(MATCH(B106,DATEN!$D$18:$D$33,0)))),"X",IF(OR(B106=DATEN!$D$26-1,B106=DATEN!$D$27-2,B106=DATEN!$D$30-2),"V","")),"") ->  | E106: =IF(E96>0,IF(VALUE("24:00:00")-VALUE(MAX(F85:F94))+VALUE(E96)<VALUE("11:00:00"),"Ruhezeit!",""),"") ->  | G106: Tagessumme: | H106: =V100 -> 0 | K106: =IF(LEN(B106)>0,IF(AND(D106<>"X",I106<>"U",I106<>"u",I106<>"K",I106<>"k",OR(I106="F",I106="f",H106<>0,DATEN!$H$8=1),J106<>"f",J106<>"F"),IF(D106="V",H106-INDIRECT("DATEN!D"&9+C106)/2,H106-INDIRECT("DATEN!D"&9+C106)),H106),"") -> -0.3291666667 | L106: =IF(X106>MaxWoZeit,"WoArbZeit>48h!","") ->  | M106: =IF(V98>V99,V98-V99,"") ->  | N106: =SUM(N96:N105) -> 0 | O106: =IF(WEEKDAY(B106,2)=7,SUMIF('Auswertung-Wochen'!$Y$2:$Y$366,P106,'Auswertung-Wochen'!$V$2:$V$366)-SUMIF('Auswertung-Wochen'!$Y$2:$Y$366,P106,'Auswertung-Wochen'!$W$2:$W$366),"") ->  | P106: =YEAR(B106)&"-"&TEXT(_xlfn.ISOWEEKNUM(B106),"00") -> 2025-41 | Q106: =SUM(Q96:Q105) -> 00:00:00 | V106: =IF(D106="x",DATEN!$N$88,DATEN!$N$87) -> 0.125 | W106: Faktor Rufbereitschaft | X106: =IF(LEN(B106)>0,IF(WEEKDAY(B106,2)=1,H106,H106+X95),X95) -> 0
A107: =IF(ISNA(MATCH(B117,DATEN!$D$18:$D$42,0)),"",INDEX(DATEN!$C$18:$D$42,MATCH(B117,DATEN!$D$18:$D$42,0),1)) ->  | B107: =B96+1 -> 2025-10-10 | H107: =IF(Q107>0,IF(ROUND(F107-E107,6)>=ROUND(Mindest,6),Q107,"<15m!"),"") ->  | M107: =IF(S107="x",TEXT(V117,"# ?/?")&" !",IF(T107="x","Nein","")) ->  | N107: =IF(S107="",IF(R107>Stunden2,Pausen2,IF(R107>Stunden1,Pausen1,0)),0) -> 0 | Q107: =IF(F107-E107>0,IF(S107="x",MROUND((F107-E107)*V117,1/1440),F107-E107),0) -> 0 | R107: =Q107 -> 0 | S107: =IF(G107=DATEN!$L$87,"x","") ->  | T107: =IF(ISNA(VLOOKUP(G107,ArbKapp,3,FALSE))=TRUE,"",IF(VLOOKUP(G107,ArbKapp,3,FALSE)="x","x","")) ->  | U107: =IF(ISNA(MATCH(G107,Kapp12Ordi,0)),"","x") ->  | V107: =Q117-N117 -> 0 | W107: Tagessumme
B108: 2025-10-10 | M108: =IF(S108="x",TEXT(V117,"# ?/?")&" !",IF(T108="x","Nein","")) ->  | N108: =IF(S108="",IF(R108>Stunden2,Pausen2-SUM(N107),IF(R108>Stunden1,Pausen1-SUM(N107),0)),0) -> 0 | Q108: =IF(F108-E108>0,IF(S108="x",MROUND((F108-E108)*V117,1/1440),F108-E108),0) -> 0 | R108: =IF(Q108>0,IF(AND(E108=F107,S107<>"x"),Q108+R107-N107,Q108),0) -> 0 | S108: =IF(G108=DATEN!$L$87,"x","") ->  | V108: =IF(ISNA(MATCH("x",U107:U116,0)),MaxZeit,MaxBildung) -> 0.4166666667 | W108: max. Tageszeit
B109: 2025-10-10 | M109: =IF(S109="x",TEXT(V117,"# ?/?")&" !",IF(T109="x","Nein","")) ->  | N109: =IF(S109="",IF(R109>Stunden2,Pausen2-SUM(N107:N108),IF(R109>Stunden1,Pausen1-SUM(N107:N108),0)),0) -> 0 | Q109: =IF(F109-E109>0,IF(S109="x",MROUND((F109-E109)*V117,1/1440),F109-E109),0) -> 0 | R109: 0 | S109: =IF(G109=DATEN!$L$87,"x","") ->  | V109: =SUMIF(T107:T116,"<>x",H107:H116)-N117 -> 00:00:00 | W109: Summe f. Kappung
B110: 2025-10-10 | M110: =IF(S110="x",TEXT(V117,"# ?/?")&" !",IF(T110="x","Nein","")) ->  | N110: =IF(S110="",IF(R110>Stunden2,Pausen2-SUM(N107:N109),IF(R110>Stunden1,Pausen1-SUM(N107:N109),0)),0) -> 0 | Q110: =IF(F110-E110>0,IF(S110="x",MROUND((F110-E110)*V117,1/1440),F110-E110),0) -> 0 | R110: 0 | S110: =IF(G110=DATEN!$L$87,"x","") ->  | V110: =IF(V109>V108,V108,V109) -> 0 | W110: Summe gekappt
B111: 2025-10-10 | M111: =IF(S111="x",TEXT(V117,"# ?/?")&" !",IF(T111="x","Nein","")) ->  | N111: =IF(S111="",IF(R111>Stunden2,Pausen2-SUM(N107:N110),IF(R111>Stunden1,Pausen1-SUM(N107:N110),0)),0) -> 0 | Q111: =IF(F111-E111>0,IF(S111="x",MROUND((F111-E111)*V117,1/1440),F111-E111),0) -> 0 | R111: 0 | S111: =IF(G111=DATEN!$L$87,"x","") ->  | V111: =V110+SUMIF(T107:T116,"x",H107:H116) -> 0 | W111: zzgl.kappungsfrei
B112: 2025-10-10 | M112: =IF(S112="x",TEXT(V117,"# ?/?")&" !",IF(T112="x","Nein","")) ->  | N112: =IF(S112="",IF(R112>Stunden2,Pausen2-SUM(N107:N111),IF(R112>Stunden1,Pausen1-SUM(N107:N111),0)),0) -> 0 | Q112: =IF(F112-E112>0,IF(S112="x",MROUND((F112-E112)*V117,1/1440),F112-E112),0) -> 0 | R112: 0 | S112: =IF(G112=DATEN!$L$87,"x","") -> 
B113: 2025-10-10 | M113: =IF(S113="x",TEXT(V117,"# ?/?")&" !",IF(T113="x","Nein","")) ->  | N113: =IF(S113="",IF(R113>Stunden2,Pausen2-SUM(N107:N112),IF(R113>Stunden1,Pausen1-SUM(N107:N112),0)),0) -> 0 | Q113: =IF(F113-E113>0,IF(S113="x",MROUND((F113-E113)*V117,1/1440),F113-E113),0) -> 0 | R113: 0 | S113: =IF(G113=DATEN!$L$87,"x","") -> 
B114: 2025-10-10 | M114: =IF(S114="x",TEXT(V117,"# ?/?")&" !",IF(T114="x","Nein","")) ->  | N114: =IF(S114="",IF(R114>Stunden2,Pausen2-SUM(N107:N113),IF(R114>Stunden1,Pausen1-SUM(N107:N113),0)),0) -> 0 | Q114: =IF(F114-E114>0,IF(S114="x",MROUND((F114-E114)*V117,1/1440),F114-E114),0) -> 0 | R114: 0 | S114: =IF(G114=DATEN!$L$87,"x","") -> 
B115: 2025-10-10 | M115: =IF(S115="x",TEXT(V117,"# ?/?")&" !",IF(T115="x","Nein","")) ->  | N115: =IF(S115="",IF(R115>Stunden2,Pausen2-SUM(N107:N114),IF(R115>Stunden1,Pausen1-SUM(N107:N114),0)),0) -> 0 | Q115: =IF(F115-E115>0,IF(S115="x",MROUND((F115-E115)*V117,1/1440),F115-E115),0) -> 0 | R115: 0 | S115: =IF(G115=DATEN!$L$87,"x","") -> 
B116: 2025-10-10 | M116: =IF(S116="x",TEXT(V117,"# ?/?")&" !",IF(T116="x","Nein","")) ->  | N116: =IF(S116="",IF(R116>Stunden2,Pausen2-SUM(N107:N115),IF(R116>Stunden1,Pausen1-SUM(N107:N115),0)),0) -> 0 | Q116: =IF(F116-E116>0,IF(S116="x",MROUND((F116-E116)*V117,1/1440),F116-E116),0) -> 0 | R116: 0 | S116: =IF(G116=DATEN!$L$87,"x","") -> 
A117: =IF(LEN(B117)>0,IF(WEEKDAY(B117)=4,TRUNC((B117-DATE(YEAR(B117+3-MOD(B117-2,7)),1,MOD(B117-2,7)-9))/7),IF(WEEKDAY(B117)=5,"KW","")),"") ->  | B117: =B106+1 -> 2025-10-10 | C117: =IF(WEEKDAY(B117)=1,7,WEEKDAY(B117)-1) -> 5 | D117: =IF(LEN(B117)>0,IF(OR(INDIRECT("DATEN!D"&9+C117)=0,NOT(ISNA(MATCH(B117,DATEN!$D$18:$D$33,0)))),"X",IF(OR(B117=DATEN!$D$26-1,B117=DATEN!$D$27-2,B117=DATEN!$D$30-2),"V","")),"") ->  | E117: =IF(E107>0,IF(VALUE("24:00:00")-VALUE(MAX(F96:F105))+VALUE(E107)<VALUE("11:00:00"),"Ruhezeit!",""),"") ->  | G117: Tagessumme: | H117: =V111 -> 0 | K117: =IF(LEN(B117)>0,IF(AND(D117<>"X",I117<>"U",I117<>"u",I117<>"K",I117<>"k",OR(I117="F",I117="f",H117<>0,DATEN!$H$8=1),J117<>"f",J117<>"F"),IF(D117="V",H117-INDIRECT("DATEN!D"&9+C117)/2,H117-INDIRECT("DATEN!D"&9+C117)),H117),"") -> -0.3291666667 | L117: =IF(X117>MaxWoZeit,"WoArbZeit>48h!","") ->  | M117: =IF(V109>V110,V109-V110,"") ->  | N117: =SUM(N107:N116) -> 0 | O117: =IF(WEEKDAY(B117,2)=7,SUMIF('Auswertung-Wochen'!$Y$2:$Y$366,P117,'Auswertung-Wochen'!$V$2:$V$366)-SUMIF('Auswertung-Wochen'!$Y$2:$Y$366,P117,'Auswertung-Wochen'!$W$2:$W$366),"") ->  | P117: =YEAR(B117)&"-"&TEXT(_xlfn.ISOWEEKNUM(B117),"00") -> 2025-41 | Q117: =SUM(Q107:Q116) -> 00:00:00 | V117: =IF(D117="x",DATEN!$N$88,DATEN!$N$87) -> 0.125 | W117: Faktor Rufbereitschaft | X117: =IF(LEN(B117)>0,IF(WEEKDAY(B117,2)=1,H117,H117+X106),X106) -> 0
A118: =IF(ISNA(MATCH(B128,DATEN!$D$18:$D$42,0)),"",INDEX(DATEN!$C$18:$D$42,MATCH(B128,DATEN!$D$18:$D$42,0),1)) ->  | B118: =B107+1 -> 2025-10-11 | H118: =IF(Q118>0,IF(ROUND(F118-E118,6)>=ROUND(Mindest,6),Q118,"<15m!"),"") ->  | M118: =IF(S118="x",TEXT(V128,"# ?/?")&" !",IF(T118="x","Nein","")) ->  | N118: =IF(S118="",IF(R118>Stunden2,Pausen2,IF(R118>Stunden1,Pausen1,0)),0) -> 0 | Q118: =IF(F118-E118>0,IF(S118="x",MROUND((F118-E118)*V128,1/1440),F118-E118),0) -> 0 | R118: =Q118 -> 0 | S118: =IF(G118=DATEN!$L$87,"x","") ->  | T118: =IF(ISNA(VLOOKUP(G118,ArbKapp,3,FALSE))=TRUE,"",IF(VLOOKUP(G118,ArbKapp,3,FALSE)="x","x","")) ->  | U118: =IF(ISNA(MATCH(G118,Kapp12Ordi,0)),"","x") ->  | V118: =Q128-N128 -> 0 | W118: Tagessumme
B119: 2025-10-11 | M119: =IF(S119="x",TEXT(V128,"# ?/?")&" !",IF(T119="x","Nein","")) ->  | N119: =IF(S119="",IF(R119>Stunden2,Pausen2-SUM(N118),IF(R119>Stunden1,Pausen1-SUM(N118),0)),0) -> 0 | Q119: =IF(F119-E119>0,IF(S119="x",MROUND((F119-E119)*V128,1/1440),F119-E119),0) -> 0 | R119: =IF(Q119>0,IF(AND(E119=F118,S118<>"x"),Q119+R118-N118,Q119),0) -> 0 | S119: =IF(G119=DATEN!$L$87,"x","") ->  | V119: =IF(ISNA(MATCH("x",U118:U127,0)),MaxZeit,MaxBildung) -> 0.4166666667 | W119: max. Tageszeit
B120: 2025-10-11 | M120: =IF(S120="x",TEXT(V128,"# ?/?")&" !",IF(T120="x","Nein","")) ->  | N120: =IF(S120="",IF(R120>Stunden2,Pausen2-SUM(N118:N119),IF(R120>Stunden1,Pausen1-SUM(N118:N119),0)),0) -> 0 | Q120: =IF(F120-E120>0,IF(S120="x",MROUND((F120-E120)*V128,1/1440),F120-E120),0) -> 0 | R120: 0 | S120: =IF(G120=DATEN!$L$87,"x","") ->  | V120: =SUMIF(T118:T127,"<>x",H118:H127)-N128 -> 00:00:00 | W120: Summe f. Kappung
B121: 2025-10-11 | M121: =IF(S121="x",TEXT(V128,"# ?/?")&" !",IF(T121="x","Nein","")) ->  | N121: =IF(S121="",IF(R121>Stunden2,Pausen2-SUM(N118:N120),IF(R121>Stunden1,Pausen1-SUM(N118:N120),0)),0) -> 0 | Q121: =IF(F121-E121>0,IF(S121="x",MROUND((F121-E121)*V128,1/1440),F121-E121),0) -> 0 | R121: 0 | S121: =IF(G121=DATEN!$L$87,"x","") ->  | V121: =IF(V120>V119,V119,V120) -> 0 | W121: Summe gekappt
B122: 2025-10-11 | M122: =IF(S122="x",TEXT(V128,"# ?/?")&" !",IF(T122="x","Nein","")) ->  | N122: =IF(S122="",IF(R122>Stunden2,Pausen2-SUM(N118:N121),IF(R122>Stunden1,Pausen1-SUM(N118:N121),0)),0) -> 0 | Q122: =IF(F122-E122>0,IF(S122="x",MROUND((F122-E122)*V128,1/1440),F122-E122),0) -> 0 | R122: 0 | S122: =IF(G122=DATEN!$L$87,"x","") ->  | V122: =V121+SUMIF(T118:T127,"x",H118:H127) -> 0 | W122: zzgl.kappungsfrei
B123: 2025-10-11 | M123: =IF(S123="x",TEXT(V128,"# ?/?")&" !",IF(T123="x","Nein","")) ->  | N123: =IF(S123="",IF(R123>Stunden2,Pausen2-SUM(N118:N122),IF(R123>Stunden1,Pausen1-SUM(N118:N122),0)),0) -> 0 | Q123: =IF(F123-E123>0,IF(S123="x",MROUND((F123-E123)*V128,1/1440),F123-E123),0) -> 0 | R123: 0 | S123: =IF(G123=DATEN!$L$87,"x","") -> 
B124: 2025-10-11 | M124: =IF(S124="x",TEXT(V128,"# ?/?")&" !",IF(T124="x","Nein","")) ->  | N124: =IF(S124="",IF(R124>Stunden2,Pausen2-SUM(N118:N123),IF(R124>Stunden1,Pausen1-SUM(N118:N123),0)),0) -> 0 | Q124: =IF(F124-E124>0,IF(S124="x",MROUND((F124-E124)*V128,1/1440),F124-E124),0) -> 0 | R124: 0 | S124: =IF(G124=DATEN!$L$87,"x","") -> 
B125: 2025-10-11 | M125: =IF(S125="x",TEXT(V128,"# ?/?")&" !",IF(T125="x","Nein","")) ->  | N125: =IF(S125="",IF(R125>Stunden2,Pausen2-SUM(N118:N124),IF(R125>Stunden1,Pausen1-SUM(N118:N124),0)),0) -> 0 | Q125: =IF(F125-E125>0,IF(S125="x",MROUND((F125-E125)*V128,1/1440),F125-E125),0) -> 0 | R125: 0 | S125: =IF(G125=DATEN!$L$87,"x","") -> 
B126: 2025-10-11 | M126: =IF(S126="x",TEXT(V128,"# ?/?")&" !",IF(T126="x","Nein","")) ->  | N126: =IF(S126="",IF(R126>Stunden2,Pausen2-SUM(N118:N125),IF(R126>Stunden1,Pausen1-SUM(N118:N125),0)),0) -> 0 | Q126: =IF(F126-E126>0,IF(S126="x",MROUND((F126-E126)*V128,1/1440),F126-E126),0) -> 0 | R126: 0 | S126: =IF(G126=DATEN!$L$87,"x","") -> 
B127: 2025-10-11 | M127: =IF(S127="x",TEXT(V128,"# ?/?")&" !",IF(T127="x","Nein","")) ->  | N127: =IF(S127="",IF(R127>Stunden2,Pausen2-SUM(N118:N126),IF(R127>Stunden1,Pausen1-SUM(N118:N126),0)),0) -> 0 | Q127: =IF(F127-E127>0,IF(S127="x",MROUND((F127-E127)*V128,1/1440),F127-E127),0) -> 0 | R127: 0 | S127: =IF(G127=DATEN!$L$87,"x","") -> 
A128: =IF(LEN(B128)>0,IF(WEEKDAY(B128)=4,TRUNC((B128-DATE(YEAR(B128+3-MOD(B128-2,7)),1,MOD(B128-2,7)-9))/7),IF(WEEKDAY(B128)=5,"KW","")),"") ->  | B128: =B117+1 -> 2025-10-11 | C128: =IF(WEEKDAY(B128)=1,7,WEEKDAY(B128)-1) -> 6 | D128: =IF(LEN(B128)>0,IF(OR(INDIRECT("DATEN!D"&9+C128)=0,NOT(ISNA(MATCH(B128,DATEN!$D$18:$D$33,0)))),"X",IF(OR(B128=DATEN!$D$26-1,B128=DATEN!$D$27-2,B128=DATEN!$D$30-2),"V","")),"") -> X | E128: =IF(E118>0,IF(VALUE("24:00:00")-VALUE(MAX(F107:F116))+VALUE(E118)<VALUE("11:00:00"),"Ruhezeit!",""),"") ->  | G128: Tagessumme: | H128: =V122 -> 0 | K128: =IF(LEN(B128)>0,IF(AND(D128<>"X",I128<>"U",I128<>"u",I128<>"K",I128<>"k",OR(I128="F",I128="f",H128<>0,DATEN!$H$8=1),J128<>"f",J128<>"F"),IF(D128="V",H128-INDIRECT("DATEN!D"&9+C128)/2,H128-INDIRECT("DATEN!D"&9+C128)),H128),"") -> 0 | L128: =IF(X128>MaxWoZeit,"WoArbZeit>48h!","") ->  | M128: =IF(V120>V121,V120-V121,"") ->  | N128: =SUM(N118:N127) -> 0 | O128: =IF(WEEKDAY(B128,2)=7,SUMIF('Auswertung-Wochen'!$Y$2:$Y$366,P128,'Auswertung-Wochen'!$V$2:$V$366)-SUMIF('Auswertung-Wochen'!$Y$2:$Y$366,P128,'Auswertung-Wochen'!$W$2:$W$366),"") ->  | P128: =YEAR(B128)&"-"&TEXT(_xlfn.ISOWEEKNUM(B128),"00") -> 2025-41 | Q128: =SUM(Q118:Q127) -> 00:00:00 | V128: =IF(D128="x",DATEN!$N$88,DATEN!$N$87) -> 0.1666666667 | W128: Faktor Rufbereitschaft | X128: =IF(LEN(B128)>0,IF(WEEKDAY(B128,2)=1,H128,H128+X117),X117) -> 0
A129: =IF(ISNA(MATCH(B139,DATEN!$D$18:$D$42,0)),"",INDEX(DATEN!$C$18:$D$42,MATCH(B139,DATEN!$D$18:$D$42,0),1)) ->  | B129: =B118+1 -> 2025-10-12 | H129: =IF(Q129>0,IF(ROUND(F129-E129,6)>=ROUND(Mindest,6),Q129,"<15m!"),"") ->  | M129: =IF(S129="x",TEXT(V139,"# ?/?")&" !",IF(T129="x","Nein","")) ->  | N129: =IF(S129="",IF(R129>Stunden2,Pausen2,IF(R129>Stunden1,Pausen1,0)),0) -> 0 | Q129: =IF(F129-E129>0,IF(S129="x",MROUND((F129-E129)*V139,1/1440),F129-E129),0) -> 0 | R129: =Q129 -> 0 | S129: =IF(G129=DATEN!$L$87,"x","") ->  | T129: =IF(ISNA(VLOOKUP(G129,ArbKapp,3,FALSE))=TRUE,"",IF(VLOOKUP(G129,ArbKapp,3,FALSE)="x","x","")) ->  | U129: =IF(ISNA(MATCH(G129,Kapp12Ordi,0)),"","x") ->  | V129: =Q139-N139 -> 0 | W129: Tagessumme
B130: 2025-10-12 | M130: =IF(S130="x",TEXT(V139,"# ?/?")&" !",IF(T130="x","Nein","")) ->  | N130: =IF(S130="",IF(R130>Stunden2,Pausen2-SUM(N129),IF(R130>Stunden1,Pausen1-SUM(N129),0)),0) -> 0 | Q130: =IF(F130-E130>0,IF(S130="x",MROUND((F130-E130)*V139,1/1440),F130-E130),0) -> 0 | R130: =IF(Q130>0,IF(AND(E130=F129,S129<>"x"),Q130+R129-N129,Q130),0) -> 0 | S130: =IF(G130=DATEN!$L$87,"x","") ->  | V130: =IF(ISNA(MATCH("x",U129:U138,0)),MaxZeit,MaxBildung) -> 0.4166666667 | W130: max. Tageszeit
B131: 2025-10-12 | M131: =IF(S131="x",TEXT(V139,"# ?/?")&" !",IF(T131="x","Nein","")) ->  | N131: =IF(S131="",IF(R131>Stunden2,Pausen2-SUM(N129:N130),IF(R131>Stunden1,Pausen1-SUM(N129:N130),0)),0) -> 0 | Q131: =IF(F131-E131>0,IF(S131="x",MROUND((F131-E131)*V139,1/1440),F131-E131),0) -> 0 | R131: 0 | S131: =IF(G131=DATEN!$L$87,"x","") ->  | V131: =SUMIF(T129:T138,"<>x",H129:H138)-N139 -> 00:00:00 | W131: Summe f. Kappung
B132: 2025-10-12 | M132: =IF(S132="x",TEXT(V139,"# ?/?")&" !",IF(T132="x","Nein","")) ->  | N132: =IF(S132="",IF(R132>Stunden2,Pausen2-SUM(N129:N131),IF(R132>Stunden1,Pausen1-SUM(N129:N131),0)),0) -> 0 | Q132: =IF(F132-E132>0,IF(S132="x",MROUND((F132-E132)*V139,1/1440),F132-E132),0) -> 0 | R132: 0 | S132: =IF(G132=DATEN!$L$87,"x","") ->  | V132: =IF(V131>V130,V130,V131) -> 0 | W132: Summe gekappt
B133: 2025-10-12 | M133: =IF(S133="x",TEXT(V139,"# ?/?")&" !",IF(T133="x","Nein","")) ->  | N133: =IF(S133="",IF(R133>Stunden2,Pausen2-SUM(N129:N132),IF(R133>Stunden1,Pausen1-SUM(N129:N132),0)),0) -> 0 | Q133: =IF(F133-E133>0,IF(S133="x",MROUND((F133-E133)*V139,1/1440),F133-E133),0) -> 0 | R133: 0 | S133: =IF(G133=DATEN!$L$87,"x","") ->  | V133: =V132+SUMIF(T129:T138,"x",H129:H138) -> 0 | W133: zzgl.kappungsfrei
B134: 2025-10-12 | M134: =IF(S134="x",TEXT(V139,"# ?/?")&" !",IF(T134="x","Nein","")) ->  | N134: =IF(S134="",IF(R134>Stunden2,Pausen2-SUM(N129:N133),IF(R134>Stunden1,Pausen1-SUM(N129:N133),0)),0) -> 0 | Q134: =IF(F134-E134>0,IF(S134="x",MROUND((F134-E134)*V139,1/1440),F134-E134),0) -> 0 | R134: 0 | S134: =IF(G134=DATEN!$L$87,"x","") -> 
B135: 2025-10-12 | M135: =IF(S135="x",TEXT(V139,"# ?/?")&" !",IF(T135="x","Nein","")) ->  | N135: =IF(S135="",IF(R135>Stunden2,Pausen2-SUM(N129:N134),IF(R135>Stunden1,Pausen1-SUM(N129:N134),0)),0) -> 0 | Q135: =IF(F135-E135>0,IF(S135="x",MROUND((F135-E135)*V139,1/1440),F135-E135),0) -> 0 | R135: 0 | S135: =IF(G135=DATEN!$L$87,"x","") -> 
B136: 2025-10-12 | M136: =IF(S136="x",TEXT(V139,"# ?/?")&" !",IF(T136="x","Nein","")) ->  | N136: =IF(S136="",IF(R136>Stunden2,Pausen2-SUM(N129:N135),IF(R136>Stunden1,Pausen1-SUM(N129:N135),0)),0) -> 0 | Q136: =IF(F136-E136>0,IF(S136="x",MROUND((F136-E136)*V139,1/1440),F136-E136),0) -> 0 | R136: 0 | S136: =IF(G136=DATEN!$L$87,"x","") -> 
B137: 2025-10-12 | M137: =IF(S137="x",TEXT(V139,"# ?/?")&" !",IF(T137="x","Nein","")) ->  | N137: =IF(S137="",IF(R137>Stunden2,Pausen2-SUM(N129:N136),IF(R137>Stunden1,Pausen1-SUM(N129:N136),0)),0) -> 0 | Q137: =IF(F137-E137>0,IF(S137="x",MROUND((F137-E137)*V139,1/1440),F137-E137),0) -> 0 | R137: 0 | S137: =IF(G137=DATEN!$L$87,"x","") ->  | Z137: =IF(AND(G137>0,G137<>"Tagessumme:"),G137,"") ->  | AA137: =IF(G137<>"Tagessumme:",H137,"") -> 
B138: 2025-10-12 | M138: =IF(S138="x",TEXT(V139,"# ?/?")&" !",IF(T138="x","Nein","")) ->  | N138: =IF(S138="",IF(R138>Stunden2,Pausen2-SUM(N129:N137),IF(R138>Stunden1,Pausen1-SUM(N129:N137),0)),0) -> 0 | Q138: =IF(F138-E138>0,IF(S138="x",MROUND((F138-E138)*V139,1/1440),F138-E138),0) -> 0 | R138: 0 | S138: =IF(G138=DATEN!$L$87,"x","") -> 
A139: =IF(LEN(B139)>0,IF(WEEKDAY(B139)=4,TRUNC((B139-DATE(YEAR(B139+3-MOD(B139-2,7)),1,MOD(B139-2,7)-9))/7),IF(WEEKDAY(B139)=5,"KW","")),"") ->  | B139: =B128+1 -> 2025-10-12 | C139: =IF(WEEKDAY(B139)=1,7,WEEKDAY(B139)-1) -> 7 | D139: =IF(LEN(B139)>0,IF(OR(INDIRECT("DATEN!D"&9+C139)=0,NOT(ISNA(MATCH(B139,DATEN!$D$18:$D$33,0)))),"X",IF(OR(B139=DATEN!$D$26-1,B139=DATEN!$D$27-2,B139=DATEN!$D$30-2),"V","")),"") -> X | E139: =IF(E129>0,IF(VALUE("24:00:00")-VALUE(MAX(F118:F127))+VALUE(E129)<VALUE("11:00:00"),"Ruhezeit!",""),"") ->  | G139: Tagessumme: | H139: =V133 -> 0 | K139: =IF(LEN(B139)>0,IF(AND(D139<>"X",I139<>"U",I139<>"u",I139<>"K",I139<>"k",OR(I139="F",I139="f",H139<>0,DATEN!$H$8=1),J139<>"f",J139<>"F"),IF(D139="V",H139-INDIRECT("DATEN!D"&9+C139)/2,H139-INDIRECT("DATEN!D"&9+C139)),H139),"") -> 0 | L139: =IF(X139>MaxWoZeit,"WoArbZeit>48h!","") ->  | M139: =IF(V131>V132,V131-V132,"") ->  | N139: =SUM(N129:N138) -> 0 | O139: =IF(WEEKDAY(B139,2)=7,SUMIF('Auswertung-Wochen'!$Y$2:$Y$366,P139,'Auswertung-Wochen'!$V$2:$V$366)-SUMIF('Auswertung-Wochen'!$Y$2:$Y$366,P139,'Auswertung-Wochen'!$W$2:$W$366),"") -> -1.645833333 | P139: =YEAR(B139)&"-"&TEXT(_xlfn.ISOWEEKNUM(B139),"00") -> 2025-41 | Q139: =SUM(Q129:Q138) -> 00:00:00 | V139: =IF(D139="x",DATEN!$N$88,DATEN!$N$87) -> 0.1666666667 | W139: Faktor Rufbereitschaft | X139: =IF(LEN(B139)>0,IF(WEEKDAY(B139,2)=1,H139,H139+X128),X128) -> 0
A140: =IF(ISNA(MATCH(B150,DATEN!$D$18:$D$42,0)),"",INDEX(DATEN!$C$18:$D$42,MATCH(B150,DATEN!$D$18:$D$42,0),1)) ->  | B140: =B129+1 -> 2025-10-13 | H140: =IF(Q140>0,IF(ROUND(F140-E140,6)>=ROUND(Mindest,6),Q140,"<15m!"),"") ->  | M140: =IF(S140="x",TEXT(V150,"# ?/?")&" !",IF(T140="x","Nein","")) ->  | N140: =IF(S140="",IF(R140>Stunden2,Pausen2,IF(R140>Stunden1,Pausen1,0)),0) -> 0 | Q140: =IF(F140-E140>0,IF(S140="x",MROUND((F140-E140)*V150,1/1440),F140-E140),0) -> 0 | R140: =Q140 -> 0 | S140: =IF(G140=DATEN!$L$87,"x","") ->  | T140: =IF(ISNA(VLOOKUP(G140,ArbKapp,3,FALSE))=TRUE,"",IF(VLOOKUP(G140,ArbKapp,3,FALSE)="x","x","")) ->  | U140: =IF(ISNA(MATCH(G140,Kapp12Ordi,0)),"","x") ->  | V140: =Q150-N150 -> 0 | W140: Tagessumme
B141: 2025-10-13 | M141: =IF(S141="x",TEXT(V150,"# ?/?")&" !",IF(T141="x","Nein","")) ->  | N141: =IF(S141="",IF(R141>Stunden2,Pausen2-SUM(N140),IF(R141>Stunden1,Pausen1-SUM(N140),0)),0) -> 0 | Q141: =IF(F141-E141>0,IF(S141="x",MROUND((F141-E141)*V150,1/1440),F141-E141),0) -> 0 | R141: =IF(Q141>0,IF(AND(E141=F140,S140<>"x"),Q141+R140-N140,Q141),0) -> 0 | S141: =IF(G141=DATEN!$L$87,"x","") ->  | V141: =IF(ISNA(MATCH("x",U140:U149,0)),MaxZeit,MaxBildung) -> 0.4166666667 | W141: max. Tageszeit
B142: 2025-10-13 | M142: =IF(S142="x",TEXT(V150,"# ?/?")&" !",IF(T142="x","Nein","")) ->  | N142: =IF(S142="",IF(R142>Stunden2,Pausen2-SUM(N140:N141),IF(R142>Stunden1,Pausen1-SUM(N140:N141),0)),0) -> 0 | Q142: =IF(F142-E142>0,IF(S142="x",MROUND((F142-E142)*V150,1/1440),F142-E142),0) -> 0 | R142: 0 | S142: =IF(G142=DATEN!$L$87,"x","") ->  | V142: =SUMIF(T140:T149,"<>x",H140:H149)-N150 -> 00:00:00 | W142: Summe f. Kappung
B143: 2025-10-13 | M143: =IF(S143="x",TEXT(V150,"# ?/?")&" !",IF(T143="x","Nein","")) ->  | N143: =IF(S143="",IF(R143>Stunden2,Pausen2-SUM(N140:N142),IF(R143>Stunden1,Pausen1-SUM(N140:N142),0)),0) -> 0 | Q143: =IF(F143-E143>0,IF(S143="x",MROUND((F143-E143)*V150,1/1440),F143-E143),0) -> 0 | R143: 0 | S143: =IF(G143=DATEN!$L$87,"x","") ->  | V143: =IF(V142>V141,V141,V142) -> 0 | W143: Summe gekappt
B144: 2025-10-13 | M144: =IF(S144="x",TEXT(V150,"# ?/?")&" !",IF(T144="x","Nein","")) ->  | N144: =IF(S144="",IF(R144>Stunden2,Pausen2-SUM(N140:N143),IF(R144>Stunden1,Pausen1-SUM(N140:N143),0)),0) -> 0 | Q144: =IF(F144-E144>0,IF(S144="x",MROUND((F144-E144)*V150,1/1440),F144-E144),0) -> 0 | R144: 0 | S144: =IF(G144=DATEN!$L$87,"x","") ->  | V144: =V143+SUMIF(T140:T149,"x",H140:H149) -> 0 | W144: zzgl.kappungsfrei
B145: 2025-10-13 | M145: =IF(S145="x",TEXT(V150,"# ?/?")&" !",IF(T145="x","Nein","")) ->  | N145: =IF(S145="",IF(R145>Stunden2,Pausen2-SUM(N140:N144),IF(R145>Stunden1,Pausen1-SUM(N140:N144),0)),0) -> 0 | Q145: =IF(F145-E145>0,IF(S145="x",MROUND((F145-E145)*V150,1/1440),F145-E145),0) -> 0 | R145: 0 | S145: =IF(G145=DATEN!$L$87,"x","") -> 
B146: 2025-10-13 | M146: =IF(S146="x",TEXT(V150,"# ?/?")&" !",IF(T146="x","Nein","")) ->  | N146: =IF(S146="",IF(R146>Stunden2,Pausen2-SUM(N140:N145),IF(R146>Stunden1,Pausen1-SUM(N140:N145),0)),0) -> 0 | Q146: =IF(F146-E146>0,IF(S146="x",MROUND((F146-E146)*V150,1/1440),F146-E146),0) -> 0 | R146: 0 | S146: =IF(G146=DATEN!$L$87,"x","") -> 
B147: 2025-10-13 | M147: =IF(S147="x",TEXT(V150,"# ?/?")&" !",IF(T147="x","Nein","")) ->  | N147: =IF(S147="",IF(R147>Stunden2,Pausen2-SUM(N140:N146),IF(R147>Stunden1,Pausen1-SUM(N140:N146),0)),0) -> 0 | Q147: =IF(F147-E147>0,IF(S147="x",MROUND((F147-E147)*V150,1/1440),F147-E147),0) -> 0 | R147: 0 | S147: =IF(G147=DATEN!$L$87,"x","") -> 
B148: 2025-10-13 | M148: =IF(S148="x",TEXT(V150,"# ?/?")&" !",IF(T148="x","Nein","")) ->  | N148: =IF(S148="",IF(R148>Stunden2,Pausen2-SUM(N140:N147),IF(R148>Stunden1,Pausen1-SUM(N140:N147),0)),0) -> 0 | Q148: =IF(F148-E148>0,IF(S148="x",MROUND((F148-E148)*V150,1/1440),F148-E148),0) -> 0 | R148: 0 | S148: =IF(G148=DATEN!$L$87,"x","") -> 
B149: 2025-10-13 | M149: =IF(S149="x",TEXT(V150,"# ?/?")&" !",IF(T149="x","Nein","")) ->  | N149: =IF(S149="",IF(R149>Stunden2,Pausen2-SUM(N140:N148),IF(R149>Stunden1,Pausen1-SUM(N140:N148),0)),0) -> 0 | Q149: =IF(F149-E149>0,IF(S149="x",MROUND((F149-E149)*V150,1/1440),F149-E149),0) -> 0 | R149: 0 | S149: =IF(G149=DATEN!$L$87,"x","") -> 
A150: =IF(LEN(B150)>0,IF(WEEKDAY(B150)=4,TRUNC((B150-DATE(YEAR(B150+3-MOD(B150-2,7)),1,MOD(B150-2,7)-9))/7),IF(WEEKDAY(B150)=5,"KW","")),"") ->  | B150: =B139+1 -> 2025-10-13 | C150: =IF(WEEKDAY(B150)=1,7,WEEKDAY(B150)-1) -> 1 | D150: =IF(LEN(B150)>0,IF(OR(INDIRECT("DATEN!D"&9+C150)=0,NOT(ISNA(MATCH(B150,DATEN!$D$18:$D$33,0)))),"X",IF(OR(B150=DATEN!$D$26-1,B150=DATEN!$D$27-2,B150=DATEN!$D$30-2),"V","")),"") ->  | E150: =IF(E140>0,IF(VALUE("24:00:00")-VALUE(MAX(F129:F138))+VALUE(E140)<VALUE("11:00:00"),"Ruhezeit!",""),"") ->  | G150: Tagessumme: | H150: =V144 -> 0 | K150: =IF(LEN(B150)>0,IF(AND(D150<>"X",I150<>"U",I150<>"u",I150<>"K",I150<>"k",OR(I150="F",I150="f",H150<>0,DATEN!$H$8=1),J150<>"f",J150<>"F"),IF(D150="V",H150-INDIRECT("DATEN!D"&9+C150)/2,H150-INDIRECT("DATEN!D"&9+C150)),H150),"") -> -0.3291666667 | L150: =IF(X150>MaxWoZeit,"WoArbZeit>48h!","") ->  | M150: =IF(V142>V143,V142-V143,"") ->  | N150: =SUM(N140:N149) -> 0 | O150: =IF(WEEKDAY(B150,2)=7,SUMIF('Auswertung-Wochen'!$Y$2:$Y$366,P150,'Auswertung-Wochen'!$V$2:$V$366)-SUMIF('Auswertung-Wochen'!$Y$2:$Y$366,P150,'Auswertung-Wochen'!$W$2:$W$366),"") ->  | P150: =YEAR(B150)&"-"&TEXT(_xlfn.ISOWEEKNUM(B150),"00") -> 2025-42 | Q150: =SUM(Q140:Q149) -> 00:00:00 | V150: =IF(D150="x",DATEN!$N$88,DATEN!$N$87) -> 0.125 | W150: Faktor Rufbereitschaft | X150: =IF(LEN(B150)>0,IF(WEEKDAY(B150,2)=1,H150,H150+X139),X139) -> 0
A151: =IF(ISNA(MATCH(B161,DATEN!$D$18:$D$42,0)),"",INDEX(DATEN!$C$18:$D$42,MATCH(B161,DATEN!$D$18:$D$42,0),1)) ->  | B151: =B140+1 -> 2025-10-14 | H151: =IF(Q151>0,IF(ROUND(F151-E151,6)>=ROUND(Mindest,6),Q151,"<15m!"),"") ->  | M151: =IF(S151="x",TEXT(V161,"# ?/?")&" !",IF(T151="x","Nein","")) ->  | N151: =IF(S151="",IF(R151>Stunden2,Pausen2,IF(R151>Stunden1,Pausen1,0)),0) -> 0 | Q151: =IF(F151-E151>0,IF(S151="x",MROUND((F151-E151)*V161,1/1440),F151-E151),0) -> 0 | R151: =Q151 -> 0 | S151: =IF(G151=DATEN!$L$87,"x","") ->  | T151: =IF(ISNA(VLOOKUP(G151,ArbKapp,3,FALSE))=TRUE,"",IF(VLOOKUP(G151,ArbKapp,3,FALSE)="x","x","")) ->  | U151: =IF(ISNA(MATCH(G151,Kapp12Ordi,0)),"","x") ->  | V151: =Q161-N161 -> 0 | W151: Tagessumme
B152: 2025-10-14 | M152: =IF(S152="x",TEXT(V161,"# ?/?")&" !",IF(T152="x","Nein","")) ->  | N152: =IF(S152="",IF(R152>Stunden2,Pausen2-SUM(N151),IF(R152>Stunden1,Pausen1-SUM(N151),0)),0) -> 0 | Q152: =IF(F152-E152>0,IF(S152="x",MROUND((F152-E152)*V161,1/1440),F152-E152),0) -> 0 | R152: =IF(Q152>0,IF(AND(E152=F151,S151<>"x"),Q152+R151-N151,Q152),0) -> 0 | S152: =IF(G152=DATEN!$L$87,"x","") ->  | V152: =IF(ISNA(MATCH("x",U151:U160,0)),MaxZeit,MaxBildung) -> 0.4166666667 | W152: max. Tageszeit
B153: 2025-10-14 | M153: =IF(S153="x",TEXT(V161,"# ?/?")&" !",IF(T153="x","Nein","")) ->  | N153: =IF(S153="",IF(R153>Stunden2,Pausen2-SUM(N151:N152),IF(R153>Stunden1,Pausen1-SUM(N151:N152),0)),0) -> 0 | Q153: =IF(F153-E153>0,IF(S153="x",MROUND((F153-E153)*V161,1/1440),F153-E153),0) -> 0 | R153: 0 | S153: =IF(G153=DATEN!$L$87,"x","") ->  | V153: =SUMIF(T151:T160,"<>x",H151:H160)-N161 -> 00:00:00 | W153: Summe f. Kappung
B154: 2025-10-14 | M154: =IF(S154="x",TEXT(V161,"# ?/?")&" !",IF(T154="x","Nein","")) ->  | N154: =IF(S154="",IF(R154>Stunden2,Pausen2-SUM(N151:N153),IF(R154>Stunden1,Pausen1-SUM(N151:N153),0)),0) -> 0 | Q154: =IF(F154-E154>0,IF(S154="x",MROUND((F154-E154)*V161,1/1440),F154-E154),0) -> 0 | R154: 0 | S154: =IF(G154=DATEN!$L$87,"x","") ->  | V154: =IF(V153>V152,V152,V153) -> 0 | W154: Summe gekappt
B155: 2025-10-14 | M155: =IF(S155="x",TEXT(V161,"# ?/?")&" !",IF(T155="x","Nein","")) ->  | N155: =IF(S155="",IF(R155>Stunden2,Pausen2-SUM(N151:N154),IF(R155>Stunden1,Pausen1-SUM(N151:N154),0)),0) -> 0 | Q155: =IF(F155-E155>0,IF(S155="x",MROUND((F155-E155)*V161,1/1440),F155-E155),0) -> 0 | R155: 0 | S155: =IF(G155=DATEN!$L$87,"x","") ->  | V155: =V154+SUMIF(T151:T160,"x",H151:H160) -> 0 | W155: zzgl.kappungsfrei
B156: 2025-10-14 | M156: =IF(S156="x",TEXT(V161,"# ?/?")&" !",IF(T156="x","Nein","")) ->  | N156: =IF(S156="",IF(R156>Stunden2,Pausen2-SUM(N151:N155),IF(R156>Stunden1,Pausen1-SUM(N151:N155),0)),0) -> 0 | Q156: =IF(F156-E156>0,IF(S156="x",MROUND((F156-E156)*V161,1/1440),F156-E156),0) -> 0 | R156: 0 | S156: =IF(G156=DATEN!$L$87,"x","") -> 
B157: 2025-10-14 | M157: =IF(S157="x",TEXT(V161,"# ?/?")&" !",IF(T157="x","Nein","")) ->  | N157: =IF(S157="",IF(R157>Stunden2,Pausen2-SUM(N151:N156),IF(R157>Stunden1,Pausen1-SUM(N151:N156),0)),0) -> 0 | Q157: =IF(F157-E157>0,IF(S157="x",MROUND((F157-E157)*V161,1/1440),F157-E157),0) -> 0 | R157: 0 | S157: =IF(G157=DATEN!$L$87,"x","") -> 
B158: 2025-10-14 | M158: =IF(S158="x",TEXT(V161,"# ?/?")&" !",IF(T158="x","Nein","")) ->  | N158: =IF(S158="",IF(R158>Stunden2,Pausen2-SUM(N151:N157),IF(R158>Stunden1,Pausen1-SUM(N151:N157),0)),0) -> 0 | Q158: =IF(F158-E158>0,IF(S158="x",MROUND((F158-E158)*V161,1/1440),F158-E158),0) -> 0 | R158: 0 | S158: =IF(G158=DATEN!$L$87,"x","") -> 
B159: 2025-10-14 | M159: =IF(S159="x",TEXT(V161,"# ?/?")&" !",IF(T159="x","Nein","")) ->  | N159: =IF(S159="",IF(R159>Stunden2,Pausen2-SUM(N151:N158),IF(R159>Stunden1,Pausen1-SUM(N151:N158),0)),0) -> 0 | Q159: =IF(F159-E159>0,IF(S159="x",MROUND((F159-E159)*V161,1/1440),F159-E159),0) -> 0 | R159: 0 | S159: =IF(G159=DATEN!$L$87,"x","") -> 
B160: 2025-10-14 | M160: =IF(S160="x",TEXT(V161,"# ?/?")&" !",IF(T160="x","Nein","")) ->  | N160: =IF(S160="",IF(R160>Stunden2,Pausen2-SUM(N151:N159),IF(R160>Stunden1,Pausen1-SUM(N151:N159),0)),0) -> 0 | Q160: =IF(F160-E160>0,IF(S160="x",MROUND((F160-E160)*V161,1/1440),F160-E160),0) -> 0 | R160: 0 | S160: =IF(G160=DATEN!$L$87,"x","") -> 
A161: =IF(LEN(B161)>0,IF(WEEKDAY(B161)=4,TRUNC((B161-DATE(YEAR(B161+3-MOD(B161-2,7)),1,MOD(B161-2,7)-9))/7),IF(WEEKDAY(B161)=5,"KW","")),"") ->  | B161: =B150+1 -> 2025-10-14 | C161: =IF(WEEKDAY(B161)=1,7,WEEKDAY(B161)-1) -> 2 | D161: =IF(LEN(B161)>0,IF(OR(INDIRECT("DATEN!D"&9+C161)=0,NOT(ISNA(MATCH(B161,DATEN!$D$18:$D$33,0)))),"X",IF(OR(B161=DATEN!$D$26-1,B161=DATEN!$D$27-2,B161=DATEN!$D$30-2),"V","")),"") ->  | E161: =IF(E151>0,IF(VALUE("24:00:00")-VALUE(MAX(F140:F149))+VALUE(E151)<VALUE("11:00:00"),"Ruhezeit!",""),"") ->  | G161: Tagessumme: | H161: =V155 -> 0 | K161: =IF(LEN(B161)>0,IF(AND(D161<>"X",I161<>"U",I161<>"u",I161<>"K",I161<>"k",OR(I161="F",I161="f",H161<>0,DATEN!$H$8=1),J161<>"f",J161<>"F"),IF(D161="V",H161-INDIRECT("DATEN!D"&9+C161)/2,H161-INDIRECT("DATEN!D"&9+C161)),H161),"") -> -0.3291666667 | L161: =IF(X161>MaxWoZeit,"WoArbZeit>48h!","") ->  | M161: =IF(V153>V154,V153-V154,"") ->  | N161: =SUM(N151:N160) -> 0 | O161: =IF(WEEKDAY(B161,2)=7,SUMIF('Auswertung-Wochen'!$Y$2:$Y$366,P161,'Auswertung-Wochen'!$V$2:$V$366)-SUMIF('Auswertung-Wochen'!$Y$2:$Y$366,P161,'Auswertung-Wochen'!$W$2:$W$366),"") ->  | P161: =YEAR(B161)&"-"&TEXT(_xlfn.ISOWEEKNUM(B161),"00") -> 2025-42 | Q161: =SUM(Q151:Q160) -> 00:00:00 | V161: =IF(D161="x",DATEN!$N$88,DATEN!$N$87) -> 0.125 | W161: Faktor Rufbereitschaft | X161: =IF(LEN(B161)>0,IF(WEEKDAY(B161,2)=1,H161,H161+X150),X150) -> 0
A162: =IF(ISNA(MATCH(B172,DATEN!$D$18:$D$42,0)),"",INDEX(DATEN!$C$18:$D$42,MATCH(B172,DATEN!$D$18:$D$42,0),1)) ->  | B162: =B151+1 -> 2025-10-15 | H162: =IF(Q162>0,IF(ROUND(F162-E162,6)>=ROUND(Mindest,6),Q162,"<15m!"),"") ->  | M162: =IF(S162="x",TEXT(V172,"# ?/?")&" !",IF(T162="x","Nein","")) ->  | N162: =IF(S162="",IF(R162>Stunden2,Pausen2,IF(R162>Stunden1,Pausen1,0)),0) -> 0 | Q162: =IF(F162-E162>0,IF(S162="x",MROUND((F162-E162)*V172,1/1440),F162-E162),0) -> 0 | R162: =Q162 -> 0 | S162: =IF(G162=DATEN!$L$87,"x","") ->  | T162: =IF(ISNA(VLOOKUP(G162,ArbKapp,3,FALSE))=TRUE,"",IF(VLOOKUP(G162,ArbKapp,3,FALSE)="x","x","")) ->  | U162: =IF(ISNA(MATCH(G162,Kapp12Ordi,0)),"","x") ->  | V162: =Q172-N172 -> 0 | W162: Tagessumme
B163: 2025-10-15 | M163: =IF(S163="x",TEXT(V172,"# ?/?")&" !",IF(T163="x","Nein","")) ->  | N163: =IF(S163="",IF(R163>Stunden2,Pausen2-SUM(N162),IF(R163>Stunden1,Pausen1-SUM(N162),0)),0) -> 0 | Q163: =IF(F163-E163>0,IF(S163="x",MROUND((F163-E163)*V172,1/1440),F163-E163),0) -> 0 | R163: =IF(Q163>0,IF(AND(E163=F162,S162<>"x"),Q163+R162-N162,Q163),0) -> 0 | S163: =IF(G163=DATEN!$L$87,"x","") ->  | V163: =IF(ISNA(MATCH("x",U162:U171,0)),MaxZeit,MaxBildung) -> 0.4166666667 | W163: max. Tageszeit
B164: 2025-10-15 | M164: =IF(S164="x",TEXT(V172,"# ?/?")&" !",IF(T164="x","Nein","")) ->  | N164: =IF(S164="",IF(R164>Stunden2,Pausen2-SUM(N162:N163),IF(R164>Stunden1,Pausen1-SUM(N162:N163),0)),0) -> 0 | Q164: =IF(F164-E164>0,IF(S164="x",MROUND((F164-E164)*V172,1/1440),F164-E164),0) -> 0 | R164: 0 | S164: =IF(G164=DATEN!$L$87,"x","") ->  | V164: =SUMIF(T162:T171,"<>x",H162:H171)-N172 -> 00:00:00 | W164: Summe f. Kappung
B165: 2025-10-15 | M165: =IF(S165="x",TEXT(V172,"# ?/?")&" !",IF(T165="x","Nein","")) ->  | N165: =IF(S165="",IF(R165>Stunden2,Pausen2-SUM(N162:N164),IF(R165>Stunden1,Pausen1-SUM(N162:N164),0)),0) -> 0 | Q165: =IF(F165-E165>0,IF(S165="x",MROUND((F165-E165)*V172,1/1440),F165-E165),0) -> 0 | R165: 0 | S165: =IF(G165=DATEN!$L$87,"x","") ->  | V165: =IF(V164>V163,V163,V164) -> 0 | W165: Summe gekappt
B166: 2025-10-15 | M166: =IF(S166="x",TEXT(V172,"# ?/?")&" !",IF(T166="x","Nein","")) ->  | N166: =IF(S166="",IF(R166>Stunden2,Pausen2-SUM(N162:N165),IF(R166>Stunden1,Pausen1-SUM(N162:N165),0)),0) -> 0 | Q166: =IF(F166-E166>0,IF(S166="x",MROUND((F166-E166)*V172,1/1440),F166-E166),0) -> 0 | R166: 0 | S166: =IF(G166=DATEN!$L$87,"x","") ->  | V166: =V165+SUMIF(T162:T171,"x",H162:H171) -> 0 | W166: zzgl.kappungsfrei
B167: 2025-10-15 | M167: =IF(S167="x",TEXT(V172,"# ?/?")&" !",IF(T167="x","Nein","")) ->  | N167: =IF(S167="",IF(R167>Stunden2,Pausen2-SUM(N162:N166),IF(R167>Stunden1,Pausen1-SUM(N162:N166),0)),0) -> 0 | Q167: =IF(F167-E167>0,IF(S167="x",MROUND((F167-E167)*V172,1/1440),F167-E167),0) -> 0 | R167: 0 | S167: =IF(G167=DATEN!$L$87,"x","") -> 
B168: 2025-10-15 | M168: =IF(S168="x",TEXT(V172,"# ?/?")&" !",IF(T168="x","Nein","")) ->  | N168: =IF(S168="",IF(R168>Stunden2,Pausen2-SUM(N162:N167),IF(R168>Stunden1,Pausen1-SUM(N162:N167),0)),0) -> 0 | Q168: =IF(F168-E168>0,IF(S168="x",MROUND((F168-E168)*V172,1/1440),F168-E168),0) -> 0 | R168: 0 | S168: =IF(G168=DATEN!$L$87,"x","") -> 
B169: 2025-10-15 | M169: =IF(S169="x",TEXT(V172,"# ?/?")&" !",IF(T169="x","Nein","")) ->  | N169: =IF(S169="",IF(R169>Stunden2,Pausen2-SUM(N162:N168),IF(R169>Stunden1,Pausen1-SUM(N162:N168),0)),0) -> 0 | Q169: =IF(F169-E169>0,IF(S169="x",MROUND((F169-E169)*V172,1/1440),F169-E169),0) -> 0 | R169: 0 | S169: =IF(G169=DATEN!$L$87,"x","") -> 
B170: 2025-10-15 | M170: =IF(S170="x",TEXT(V172,"# ?/?")&" !",IF(T170="x","Nein","")) ->  | N170: =IF(S170="",IF(R170>Stunden2,Pausen2-SUM(N162:N169),IF(R170>Stunden1,Pausen1-SUM(N162:N169),0)),0) -> 0 | Q170: =IF(F170-E170>0,IF(S170="x",MROUND((F170-E170)*V172,1/1440),F170-E170),0) -> 0 | R170: 0 | S170: =IF(G170=DATEN!$L$87,"x","") -> 
B171: 2025-10-15 | M171: =IF(S171="x",TEXT(V172,"# ?/?")&" !",IF(T171="x","Nein","")) ->  | N171: =IF(S171="",IF(R171>Stunden2,Pausen2-SUM(N162:N170),IF(R171>Stunden1,Pausen1-SUM(N162:N170),0)),0) -> 0 | Q171: =IF(F171-E171>0,IF(S171="x",MROUND((F171-E171)*V172,1/1440),F171-E171),0) -> 0 | R171: 0 | S171: =IF(G171=DATEN!$L$87,"x","") -> 
A172: =IF(LEN(B172)>0,IF(WEEKDAY(B172)=4,TRUNC((B172-DATE(YEAR(B172+3-MOD(B172-2,7)),1,MOD(B172-2,7)-9))/7),IF(WEEKDAY(B172)=5,"KW","")),"") -> 42 | B172: =B161+1 -> 2025-10-15 | C172: =IF(WEEKDAY(B172)=1,7,WEEKDAY(B172)-1) -> 3 | D172: =IF(LEN(B172)>0,IF(OR(INDIRECT("DATEN!D"&9+C172)=0,NOT(ISNA(MATCH(B172,DATEN!$D$18:$D$33,0)))),"X",IF(OR(B172=DATEN!$D$26-1,B172=DATEN!$D$27-2,B172=DATEN!$D$30-2),"V","")),"") ->  | E172: =IF(E162>0,IF(VALUE("24:00:00")-VALUE(MAX(F151:F160))+VALUE(E162)<VALUE("11:00:00"),"Ruhezeit!",""),"") ->  | G172: Tagessumme: | H172: =V166 -> 0 | K172: =IF(LEN(B172)>0,IF(AND(D172<>"X",I172<>"U",I172<>"u",I172<>"K",I172<>"k",OR(I172="F",I172="f",H172<>0,DATEN!$H$8=1),J172<>"f",J172<>"F"),IF(D172="V",H172-INDIRECT("DATEN!D"&9+C172)/2,H172-INDIRECT("DATEN!D"&9+C172)),H172),"") -> -0.3291666667 | L172: =IF(X172>MaxWoZeit,"WoArbZeit>48h!","") ->  | M172: =IF(V164>V165,V164-V165,"") ->  | N172: =SUM(N162:N171) -> 0 | O172: =IF(WEEKDAY(B172,2)=7,SUMIF('Auswertung-Wochen'!$Y$2:$Y$366,P172,'Auswertung-Wochen'!$V$2:$V$366)-SUMIF('Auswertung-Wochen'!$Y$2:$Y$366,P172,'Auswertung-Wochen'!$W$2:$W$366),"") ->  | P172: =YEAR(B172)&"-"&TEXT(_xlfn.ISOWEEKNUM(B172),"00") -> 2025-42 | Q172: =SUM(Q162:Q171) -> 00:00:00 | V172: =IF(D172="x",DATEN!$N$88,DATEN!$N$87) -> 0.125 | W172: Faktor Rufbereitschaft | X172: =IF(LEN(B172)>0,IF(WEEKDAY(B172,2)=1,H172,H172+X161),X161) -> 0
A173: =IF(ISNA(MATCH(B183,DATEN!$D$18:$D$42,0)),"",INDEX(DATEN!$C$18:$D$42,MATCH(B183,DATEN!$D$18:$D$42,0),1)) ->  | B173: =B162+1 -> 2025-10-16 | H173: =IF(Q173>0,IF(ROUND(F173-E173,6)>=ROUND(Mindest,6),Q173,"<15m!"),"") ->  | M173: =IF(S173="x",TEXT(V183,"# ?/?")&" !",IF(T173="x","Nein","")) ->  | N173: =IF(S173="",IF(R173>Stunden2,Pausen2,IF(R173>Stunden1,Pausen1,0)),0) -> 0 | Q173: =IF(F173-E173>0,IF(S173="x",MROUND((F173-E173)*V183,1/1440),F173-E173),0) -> 0 | R173: =Q173 -> 0 | S173: =IF(G173=DATEN!$L$87,"x","") ->  | T173: =IF(ISNA(VLOOKUP(G173,ArbKapp,3,FALSE))=TRUE,"",IF(VLOOKUP(G173,ArbKapp,3,FALSE)="x","x","")) ->  | U173: =IF(ISNA(MATCH(G173,Kapp12Ordi,0)),"","x") ->  | V173: =Q183-N183 -> 0 | W173: Tagessumme
B174: 2025-10-16 | M174: =IF(S174="x",TEXT(V183,"# ?/?")&" !",IF(T174="x","Nein","")) ->  | N174: =IF(S174="",IF(R174>Stunden2,Pausen2-SUM(N173),IF(R174>Stunden1,Pausen1-SUM(N173),0)),0) -> 0 | Q174: =IF(F174-E174>0,IF(S174="x",MROUND((F174-E174)*V183,1/1440),F174-E174),0) -> 0 | R174: =IF(Q174>0,IF(AND(E174=F173,S173<>"x"),Q174+R173-N173,Q174),0) -> 0 | S174: =IF(G174=DATEN!$L$87,"x","") ->  | V174: =IF(ISNA(MATCH("x",U173:U182,0)),MaxZeit,MaxBildung) -> 0.4166666667 | W174: max. Tageszeit
B175: 2025-10-16 | M175: =IF(S175="x",TEXT(V183,"# ?/?")&" !",IF(T175="x","Nein","")) ->  | N175: =IF(S175="",IF(R175>Stunden2,Pausen2-SUM(N173:N174),IF(R175>Stunden1,Pausen1-SUM(N173:N174),0)),0) -> 0 | Q175: =IF(F175-E175>0,IF(S175="x",MROUND((F175-E175)*V183,1/1440),F175-E175),0) -> 0 | R175: 0 | S175: =IF(G175=DATEN!$L$87,"x","") ->  | V175: =SUMIF(T173:T182,"<>x",H173:H182)-N183 -> 00:00:00 | W175: Summe f. Kappung
B176: 2025-10-16 | M176: =IF(S176="x",TEXT(V183,"# ?/?")&" !",IF(T176="x","Nein","")) ->  | N176: =IF(S176="",IF(R176>Stunden2,Pausen2-SUM(N173:N175),IF(R176>Stunden1,Pausen1-SUM(N173:N175),0)),0) -> 0 | Q176: =IF(F176-E176>0,IF(S176="x",MROUND((F176-E176)*V183,1/1440),F176-E176),0) -> 0 | R176: 0 | S176: =IF(G176=DATEN!$L$87,"x","") ->  | V176: =IF(V175>V174,V174,V175) -> 0 | W176: Summe gekappt
B177: 2025-10-16 | M177: =IF(S177="x",TEXT(V183,"# ?/?")&" !",IF(T177="x","Nein","")) ->  | N177: =IF(S177="",IF(R177>Stunden2,Pausen2-SUM(N173:N176),IF(R177>Stunden1,Pausen1-SUM(N173:N176),0)),0) -> 0 | Q177: =IF(F177-E177>0,IF(S177="x",MROUND((F177-E177)*V183,1/1440),F177-E177),0) -> 0 | R177: 0 | S177: =IF(G177=DATEN!$L$87,"x","") ->  | V177: =V176+SUMIF(T173:T182,"x",H173:H182) -> 0 | W177: zzgl.kappungsfrei
B178: 2025-10-16 | M178: =IF(S178="x",TEXT(V183,"# ?/?")&" !",IF(T178="x","Nein","")) ->  | N178: =IF(S178="",IF(R178>Stunden2,Pausen2-SUM(N173:N177),IF(R178>Stunden1,Pausen1-SUM(N173:N177),0)),0) -> 0 | Q178: =IF(F178-E178>0,IF(S178="x",MROUND((F178-E178)*V183,1/1440),F178-E178),0) -> 0 | R178: 0 | S178: =IF(G178=DATEN!$L$87,"x","") -> 
B179: 2025-10-16 | M179: =IF(S179="x",TEXT(V183,"# ?/?")&" !",IF(T179="x","Nein","")) ->  | N179: =IF(S179="",IF(R179>Stunden2,Pausen2-SUM(N173:N178),IF(R179>Stunden1,Pausen1-SUM(N173:N178),0)),0) -> 0 | Q179: =IF(F179-E179>0,IF(S179="x",MROUND((F179-E179)*V183,1/1440),F179-E179),0) -> 0 | R179: 0 | S179: =IF(G179=DATEN!$L$87,"x","") -> 
B180: 2025-10-16 | M180: =IF(S180="x",TEXT(V183,"# ?/?")&" !",IF(T180="x","Nein","")) ->  | N180: =IF(S180="",IF(R180>Stunden2,Pausen2-SUM(N173:N179),IF(R180>Stunden1,Pausen1-SUM(N173:N179),0)),0) -> 0 | Q180: =IF(F180-E180>0,IF(S180="x",MROUND((F180-E180)*V183,1/1440),F180-E180),0) -> 0 | R180: 0 | S180: =IF(G180=DATEN!$L$87,"x","") -> 
B181: 2025-10-16 | M181: =IF(S181="x",TEXT(V183,"# ?/?")&" !",IF(T181="x","Nein","")) ->  | N181: =IF(S181="",IF(R181>Stunden2,Pausen2-SUM(N173:N180),IF(R181>Stunden1,Pausen1-SUM(N173:N180),0)),0) -> 0 | Q181: =IF(F181-E181>0,IF(S181="x",MROUND((F181-E181)*V183,1/1440),F181-E181),0) -> 0 | R181: 0 | S181: =IF(G181=DATEN!$L$87,"x","") -> 
B182: 2025-10-16 | M182: =IF(S182="x",TEXT(V183,"# ?/?")&" !",IF(T182="x","Nein","")) ->  | N182: =IF(S182="",IF(R182>Stunden2,Pausen2-SUM(N173:N181),IF(R182>Stunden1,Pausen1-SUM(N173:N181),0)),0) -> 0 | Q182: =IF(F182-E182>0,IF(S182="x",MROUND((F182-E182)*V183,1/1440),F182-E182),0) -> 0 | R182: 0 | S182: =IF(G182=DATEN!$L$87,"x","") -> 
A183: =IF(LEN(B183)>0,IF(WEEKDAY(B183)=4,TRUNC((B183-DATE(YEAR(B183+3-MOD(B183-2,7)),1,MOD(B183-2,7)-9))/7),IF(WEEKDAY(B183)=5,"KW","")),"") -> KW | B183: =B172+1 -> 2025-10-16 | C183: =IF(WEEKDAY(B183)=1,7,WEEKDAY(B183)-1) -> 4 | D183: =IF(LEN(B183)>0,IF(OR(INDIRECT("DATEN!D"&9+C183)=0,NOT(ISNA(MATCH(B183,DATEN!$D$18:$D$33,0)))),"X",IF(OR(B183=DATEN!$D$26-1,B183=DATEN!$D$27-2,B183=DATEN!$D$30-2),"V","")),"") ->  | E183: =IF(E173>0,IF(VALUE("24:00:00")-VALUE(MAX(F162:F171))+VALUE(E173)<VALUE("11:00:00"),"Ruhezeit!",""),"") ->  | G183: Tagessumme: | H183: =V177 -> 0 | K183: =IF(LEN(B183)>0,IF(AND(D183<>"X",I183<>"U",I183<>"u",I183<>"K",I183<>"k",OR(I183="F",I183="f",H183<>0,DATEN!$H$8=1),J183<>"f",J183<>"F"),IF(D183="V",H183-INDIRECT("DATEN!D"&9+C183)/2,H183-INDIRECT("DATEN!D"&9+C183)),H183),"") -> -0.3291666667 | L183: =IF(X183>MaxWoZeit,"WoArbZeit>48h!","") ->  | M183: =IF(V175>V176,V175-V176,"") ->  | N183: =SUM(N173:N182) -> 0 | O183: =IF(WEEKDAY(B183,2)=7,SUMIF('Auswertung-Wochen'!$Y$2:$Y$366,P183,'Auswertung-Wochen'!$V$2:$V$366)-SUMIF('Auswertung-Wochen'!$Y$2:$Y$366,P183,'Auswertung-Wochen'!$W$2:$W$366),"") ->  | P183: =YEAR(B183)&"-"&TEXT(_xlfn.ISOWEEKNUM(B183),"00") -> 2025-42 | Q183: =SUM(Q173:Q182) -> 00:00:00 | V183: =IF(D183="x",DATEN!$N$88,DATEN!$N$87) -> 0.125 | W183: Faktor Rufbereitschaft | X183: =IF(LEN(B183)>0,IF(WEEKDAY(B183,2)=1,H183,H183+X172),X172) -> 0
A184: =IF(ISNA(MATCH(B194,DATEN!$D$18:$D$42,0)),"",INDEX(DATEN!$C$18:$D$42,MATCH(B194,DATEN!$D$18:$D$42,0),1)) ->  | B184: =B173+1 -> 2025-10-17 | H184: =IF(Q184>0,IF(ROUND(F184-E184,6)>=ROUND(Mindest,6),Q184,"<15m!"),"") ->  | M184: =IF(S184="x",TEXT(V194,"# ?/?")&" !",IF(T184="x","Nein","")) ->  | N184: =IF(S184="",IF(R184>Stunden2,Pausen2,IF(R184>Stunden1,Pausen1,0)),0) -> 0 | Q184: =IF(F184-E184>0,IF(S184="x",MROUND((F184-E184)*V194,1/1440),F184-E184),0) -> 0 | R184: =Q184 -> 0 | S184: =IF(G184=DATEN!$L$87,"x","") ->  | T184: =IF(ISNA(VLOOKUP(G184,ArbKapp,3,FALSE))=TRUE,"",IF(VLOOKUP(G184,ArbKapp,3,FALSE)="x","x","")) ->  | U184: =IF(ISNA(MATCH(G184,Kapp12Ordi,0)),"","x") ->  | V184: =Q194-N194 -> 0 | W184: Tagessumme
B185: 2025-10-17 | M185: =IF(S185="x",TEXT(V194,"# ?/?")&" !",IF(T185="x","Nein","")) ->  | N185: =IF(S185="",IF(R185>Stunden2,Pausen2-SUM(N184),IF(R185>Stunden1,Pausen1-SUM(N184),0)),0) -> 0 | Q185: =IF(F185-E185>0,IF(S185="x",MROUND((F185-E185)*V194,1/1440),F185-E185),0) -> 0 | R185: =IF(Q185>0,IF(AND(E185=F184,S184<>"x"),Q185+R184-N184,Q185),0) -> 0 | S185: =IF(G185=DATEN!$L$87,"x","") ->  | V185: =IF(ISNA(MATCH("x",U184:U193,0)),MaxZeit,MaxBildung) -> 0.4166666667 | W185: max. Tageszeit
B186: 2025-10-17 | M186: =IF(S186="x",TEXT(V194,"# ?/?")&" !",IF(T186="x","Nein","")) ->  | N186: =IF(S186="",IF(R186>Stunden2,Pausen2-SUM(N184:N185),IF(R186>Stunden1,Pausen1-SUM(N184:N185),0)),0) -> 0 | Q186: =IF(F186-E186>0,IF(S186="x",MROUND((F186-E186)*V194,1/1440),F186-E186),0) -> 0 | R186: 0 | S186: =IF(G186=DATEN!$L$87,"x","") ->  | V186: =SUMIF(T184:T193,"<>x",H184:H193)-N194 -> 00:00:00 | W186: Summe f. Kappung
B187: 2025-10-17 | M187: =IF(S187="x",TEXT(V194,"# ?/?")&" !",IF(T187="x","Nein","")) ->  | N187: =IF(S187="",IF(R187>Stunden2,Pausen2-SUM(N184:N186),IF(R187>Stunden1,Pausen1-SUM(N184:N186),0)),0) -> 0 | Q187: =IF(F187-E187>0,IF(S187="x",MROUND((F187-E187)*V194,1/1440),F187-E187),0) -> 0 | R187: 0 | S187: =IF(G187=DATEN!$L$87,"x","") ->  | V187: =IF(V186>V185,V185,V186) -> 0 | W187: Summe gekappt
B188: 2025-10-17 | M188: =IF(S188="x",TEXT(V194,"# ?/?")&" !",IF(T188="x","Nein","")) ->  | N188: =IF(S188="",IF(R188>Stunden2,Pausen2-SUM(N184:N187),IF(R188>Stunden1,Pausen1-SUM(N184:N187),0)),0) -> 0 | Q188: =IF(F188-E188>0,IF(S188="x",MROUND((F188-E188)*V194,1/1440),F188-E188),0) -> 0 | R188: 0 | S188: =IF(G188=DATEN!$L$87,"x","") ->  | V188: =V187+SUMIF(T184:T193,"x",H184:H193) -> 0 | W188: zzgl.kappungsfrei
B189: 2025-10-17 | M189: =IF(S189="x",TEXT(V194,"# ?/?")&" !",IF(T189="x","Nein","")) ->  | N189: =IF(S189="",IF(R189>Stunden2,Pausen2-SUM(N184:N188),IF(R189>Stunden1,Pausen1-SUM(N184:N188),0)),0) -> 0 | Q189: =IF(F189-E189>0,IF(S189="x",MROUND((F189-E189)*V194,1/1440),F189-E189),0) -> 0 | R189: 0 | S189: =IF(G189=DATEN!$L$87,"x","") -> 
B190: 2025-10-17 | M190: =IF(S190="x",TEXT(V194,"# ?/?")&" !",IF(T190="x","Nein","")) ->  | N190: =IF(S190="",IF(R190>Stunden2,Pausen2-SUM(N184:N189),IF(R190>Stunden1,Pausen1-SUM(N184:N189),0)),0) -> 0 | Q190: =IF(F190-E190>0,IF(S190="x",MROUND((F190-E190)*V194,1/1440),F190-E190),0) -> 0 | R190: 0 | S190: =IF(G190=DATEN!$L$87,"x","") -> 
B191: 2025-10-17 | M191: =IF(S191="x",TEXT(V194,"# ?/?")&" !",IF(T191="x","Nein","")) ->  | N191: =IF(S191="",IF(R191>Stunden2,Pausen2-SUM(N184:N190),IF(R191>Stunden1,Pausen1-SUM(N184:N190),0)),0) -> 0 | Q191: =IF(F191-E191>0,IF(S191="x",MROUND((F191-E191)*V194,1/1440),F191-E191),0) -> 0 | R191: 0 | S191: =IF(G191=DATEN!$L$87,"x","") -> 
B192: 2025-10-17 | M192: =IF(S192="x",TEXT(V194,"# ?/?")&" !",IF(T192="x","Nein","")) ->  | N192: =IF(S192="",IF(R192>Stunden2,Pausen2-SUM(N184:N191),IF(R192>Stunden1,Pausen1-SUM(N184:N191),0)),0) -> 0 | Q192: =IF(F192-E192>0,IF(S192="x",MROUND((F192-E192)*V194,1/1440),F192-E192),0) -> 0 | R192: 0 | S192: =IF(G192=DATEN!$L$87,"x","") -> 
B193: 2025-10-17 | M193: =IF(S193="x",TEXT(V194,"# ?/?")&" !",IF(T193="x","Nein","")) ->  | N193: =IF(S193="",IF(R193>Stunden2,Pausen2-SUM(N184:N192),IF(R193>Stunden1,Pausen1-SUM(N184:N192),0)),0) -> 0 | Q193: =IF(F193-E193>0,IF(S193="x",MROUND((F193-E193)*V194,1/1440),F193-E193),0) -> 0 | R193: 0 | S193: =IF(G193=DATEN!$L$87,"x","") -> 
A194: =IF(LEN(B194)>0,IF(WEEKDAY(B194)=4,TRUNC((B194-DATE(YEAR(B194+3-MOD(B194-2,7)),1,MOD(B194-2,7)-9))/7),IF(WEEKDAY(B194)=5,"KW","")),"") ->  | B194: =B183+1 -> 2025-10-17 | C194: =IF(WEEKDAY(B194)=1,7,WEEKDAY(B194)-1) -> 5 | D194: =IF(LEN(B194)>0,IF(OR(INDIRECT("DATEN!D"&9+C194)=0,NOT(ISNA(MATCH(B194,DATEN!$D$18:$D$33,0)))),"X",IF(OR(B194=DATEN!$D$26-1,B194=DATEN!$D$27-2,B194=DATEN!$D$30-2),"V","")),"") ->  | E194: =IF(E184>0,IF(VALUE("24:00:00")-VALUE(MAX(F173:F182))+VALUE(E184)<VALUE("11:00:00"),"Ruhezeit!",""),"") ->  | G194: Tagessumme: | H194: =V188 -> 0 | K194: =IF(LEN(B194)>0,IF(AND(D194<>"X",I194<>"U",I194<>"u",I194<>"K",I194<>"k",OR(I194="F",I194="f",H194<>0,DATEN!$H$8=1),J194<>"f",J194<>"F"),IF(D194="V",H194-INDIRECT("DATEN!D"&9+C194)/2,H194-INDIRECT("DATEN!D"&9+C194)),H194),"") -> -0.3291666667 | L194: =IF(X194>MaxWoZeit,"WoArbZeit>48h!","") ->  | M194: =IF(V186>V187,V186-V187,"") ->  | N194: =SUM(N184:N193) -> 0 | O194: =IF(WEEKDAY(B194,2)=7,SUMIF('Auswertung-Wochen'!$Y$2:$Y$366,P194,'Auswertung-Wochen'!$V$2:$V$366)-SUMIF('Auswertung-Wochen'!$Y$2:$Y$366,P194,'Auswertung-Wochen'!$W$2:$W$366),"") ->  | P194: =YEAR(B194)&"-"&TEXT(_xlfn.ISOWEEKNUM(B194),"00") -> 2025-42 | Q194: =SUM(Q184:Q193) -> 00:00:00 | V194: =IF(D194="x",DATEN!$N$88,DATEN!$N$87) -> 0.125 | W194: Faktor Rufbereitschaft | X194: =IF(LEN(B194)>0,IF(WEEKDAY(B194,2)=1,H194,H194+X183),X183) -> 0
A195: =IF(ISNA(MATCH(B205,DATEN!$D$18:$D$42,0)),"",INDEX(DATEN!$C$18:$D$42,MATCH(B205,DATEN!$D$18:$D$42,0),1)) ->  | B195: =B184+1 -> 2025-10-18 | H195: =IF(Q195>0,IF(ROUND(F195-E195,6)>=ROUND(Mindest,6),Q195,"<15m!"),"") ->  | M195: =IF(S195="x",TEXT(V205,"# ?/?")&" !",IF(T195="x","Nein","")) ->  | N195: =IF(S195="",IF(R195>Stunden2,Pausen2,IF(R195>Stunden1,Pausen1,0)),0) -> 0 | Q195: =IF(F195-E195>0,IF(S195="x",MROUND((F195-E195)*V205,1/1440),F195-E195),0) -> 0 | R195: =Q195 -> 0 | S195: =IF(G195=DATEN!$L$87,"x","") ->  | T195: =IF(ISNA(VLOOKUP(G195,ArbKapp,3,FALSE))=TRUE,"",IF(VLOOKUP(G195,ArbKapp,3,FALSE)="x","x","")) ->  | U195: =IF(ISNA(MATCH(G195,Kapp12Ordi,0)),"","x") ->  | V195: =Q205-N205 -> 0 | W195: Tagessumme
B196: 2025-10-18 | M196: =IF(S196="x",TEXT(V205,"# ?/?")&" !",IF(T196="x","Nein","")) ->  | N196: =IF(S196="",IF(R196>Stunden2,Pausen2-SUM(N195),IF(R196>Stunden1,Pausen1-SUM(N195),0)),0) -> 0 | Q196: =IF(F196-E196>0,IF(S196="x",MROUND((F196-E196)*V205,1/1440),F196-E196),0) -> 0 | R196: =IF(Q196>0,IF(AND(E196=F195,S195<>"x"),Q196+R195-N195,Q196),0) -> 0 | S196: =IF(G196=DATEN!$L$87,"x","") ->  | V196: =IF(ISNA(MATCH("x",U195:U204,0)),MaxZeit,MaxBildung) -> 0.4166666667 | W196: max. Tageszeit
B197: 2025-10-18 | M197: =IF(S197="x",TEXT(V205,"# ?/?")&" !",IF(T197="x","Nein","")) ->  | N197: =IF(S197="",IF(R197>Stunden2,Pausen2-SUM(N195:N196),IF(R197>Stunden1,Pausen1-SUM(N195:N196),0)),0) -> 0 | Q197: =IF(F197-E197>0,IF(S197="x",MROUND((F197-E197)*V205,1/1440),F197-E197),0) -> 0 | R197: 0 | S197: =IF(G197=DATEN!$L$87,"x","") ->  | V197: =SUMIF(T195:T204,"<>x",H195:H204)-N205 -> 00:00:00 | W197: Summe f. Kappung
B198: 2025-10-18 | M198: =IF(S198="x",TEXT(V205,"# ?/?")&" !",IF(T198="x","Nein","")) ->  | N198: =IF(S198="",IF(R198>Stunden2,Pausen2-SUM(N195:N197),IF(R198>Stunden1,Pausen1-SUM(N195:N197),0)),0) -> 0 | Q198: =IF(F198-E198>0,IF(S198="x",MROUND((F198-E198)*V205,1/1440),F198-E198),0) -> 0 | R198: 0 | S198: =IF(G198=DATEN!$L$87,"x","") ->  | V198: =IF(V197>V196,V196,V197) -> 0 | W198: Summe gekappt
B199: 2025-10-18 | M199: =IF(S199="x",TEXT(V205,"# ?/?")&" !",IF(T199="x","Nein","")) ->  | N199: =IF(S199="",IF(R199>Stunden2,Pausen2-SUM(N195:N198),IF(R199>Stunden1,Pausen1-SUM(N195:N198),0)),0) -> 0 | Q199: =IF(F199-E199>0,IF(S199="x",MROUND((F199-E199)*V205,1/1440),F199-E199),0) -> 0 | R199: 0 | S199: =IF(G199=DATEN!$L$87,"x","") ->  | V199: =V198+SUMIF(T195:T204,"x",H195:H204) -> 0 | W199: zzgl.kappungsfrei
B200: 2025-10-18 | M200: =IF(S200="x",TEXT(V205,"# ?/?")&" !",IF(T200="x","Nein","")) ->  | N200: =IF(S200="",IF(R200>Stunden2,Pausen2-SUM(N195:N199),IF(R200>Stunden1,Pausen1-SUM(N195:N199),0)),0) -> 0 | Q200: =IF(F200-E200>0,IF(S200="x",MROUND((F200-E200)*V205,1/1440),F200-E200),0) -> 0 | R200: 0 | S200: =IF(G200=DATEN!$L$87,"x","") -> 
B201: 2025-10-18 | M201: =IF(S201="x",TEXT(V205,"# ?/?")&" !",IF(T201="x","Nein","")) ->  | N201: =IF(S201="",IF(R201>Stunden2,Pausen2-SUM(N195:N200),IF(R201>Stunden1,Pausen1-SUM(N195:N200),0)),0) -> 0 | Q201: =IF(F201-E201>0,IF(S201="x",MROUND((F201-E201)*V205,1/1440),F201-E201),0) -> 0 | R201: 0 | S201: =IF(G201=DATEN!$L$87,"x","") ->  | Z201: =IF(AND(G201>0,G201<>"Tagessumme:"),G201,"") ->  | AA201: =IF(G201<>"Tagessumme:",H201,"") -> 
... 153 more rows

Sheet November
A2: 11 | B2: =CONCATENATE("Arbeitszeiterfassung ",TEXT(B18,"MMMM JJJJ")) -> Arbeitszeiterfassung November 2025
B3: =DATEN!C3 -> Petra Mustermann | M3: Arbeitsbereiche
B4: =IF(DATEN!S15="","!!! Dieser Monat wird nicht gewertet !!!","") ->  | M4: ausblenden mit
F5: =MAX(Oktober!F338:F347) -> 0 | G5: = Arbeitsende Vortag | M5: x :
B6: Tag | C6: Wochentag | D6: X: Frei V: Vorfeier | E6: Arbeitszeit | I6: Urlaub / krank / frei | J6: Frei / § 34 AVO | K6: Saldo | L6: Bemerkung | M6: Kappung | N6: Pausen- abzug | O6: Differenz- Kalender-woche | P6: KW | Q6: Std. roh | R6: Zus.häng. | S6: Rufbereit. | T6: Kapp.frei | U6: Kapp-12 | V6: Kappung | X6: Wochenarbeitszeit
E7: von | F7: bis | G7: Arbeitsbereich | H7: Std. | X7: =INDIRECT(TEXT(DATE(DATEN!G3,MONTH(B18)-1,1),"MMMM")&"!v348") -> 0.125 | Z7: Arbeitsbereich | AA7: Std.
A8: =IF(ISNA(MATCH(B18,DATEN!$D$18:$D$42,0)),"",INDEX(DATEN!$C$18:$D$42,MATCH(B18,DATEN!$D$18:$D$42,0),1)) -> Allerheiligen | B8: =DATE(DATEN!$G$3,$A$2,1) -> 2025-11-01 | H8: =IF(Q8>0,IF(ROUND(F8-E8,6)>=ROUND(Mindest,6),Q8,"<15m!"),"") ->  | M8: =IF(S8="x",TEXT(V18,"# ?/?")&" !",IF(T8="x","Nein","")) ->  | N8: =IF(S8="",IF(R8>Stunden2,Pausen2,IF(R8>Stunden1,Pausen1,0)),0) -> 0 | Q8: =IF(F8-E8>0,IF(S8="x",MROUND((F8-E8)*V18,1/1440),F8-E8),0) -> 0 | R8: =Q8 -> 0 | S8: =IF(G8=DATEN!$L$87,"x","") ->  | T8: =IF(ISNA(VLOOKUP(G8,ArbKapp,3,FALSE))=TRUE,"",IF(VLOOKUP(G8,ArbKapp,3,FALSE)="x","x","")) ->  | U8: =IF(ISNA(MATCH(G8,Kapp12Ordi,0)),"","x") ->  | V8: =Q18-N18 -> 0 | W8: Tagessumme | Z8: =IF(AND(G8>0,G8<>"Tagessumme:"),G8,"") ->  | AA8: =IF(G8<>"Tagessumme:",H8,"") -> 
B9: =DATE(DATEN!$G$3,$A$2,1) -> 2025-11-01 | M9: =IF(S9="x",TEXT(V18,"# ?/?")&" !",IF(T9="x","Nein","")) ->  | N9: =IF(S9="",IF(R9>Stunden2,Pausen2-SUM(N8),IF(R9>Stunden1,Pausen1-SUM(N8),0)),0) -> 0 | Q9: =IF(F9-E9>0,IF(S9="x",MROUND((F9-E9)*V18,1/1440),F9-E9),0) -> 0 | R9: =IF(Q9>0,IF(AND(E9=F8,S8<>"x"),Q9+R8-N8,Q9),0) -> 0 | S9: =IF(G9=DATEN!$L$87,"x","") ->  | V9: =IF(ISNA(MATCH("x",U8:U17,0)),MaxZeit,MaxBildung) -> 0.4166666667 | W9: max. Tageszeit | Z9: =IF(AND(G9>0,G9<>"Tagessumme:"),G9,"") ->  | AA9: =IF(G9<>"Tagessumme:",H9,"") -> 
B10: =DATE(DATEN!$G$3,$A$2,1) -> 2025-11-01 | M10: =IF(S10="x",TEXT(V18,"# ?/?")&" !",IF(T10="x","Nein","")) ->  | N10: =IF(S10="",IF(R10>Stunden2,Pausen2-SUM(N8:N9),IF(R10>Stunden1,Pausen1-SUM(N8:N9),0)),0) -> 0 | Q10: =IF(F10-E10>0,IF(S10="x",MROUND((F10-E10)*V18,1/1440),F10-E10),0) -> 0 | R10: =IF(Q10>0,IF(AND(E10=F9,S9<>"x"),Q10+R9-N9,Q10),0) -> 0 | S10: =IF(G10=DATEN!$L$87,"x","") ->  | V10: =SUMIF(T8:T17,"<>x",H8:H17)-N18 -> 00:00:00 | W10: Summe f. Kappung
B11: =DATE(DATEN!$G$3,$A$2,1) -> 2025-11-01 | M11: =IF(S11="x",TEXT(V18,"# ?/?")&" !",IF(T11="x","Nein","")) ->  | N11: =IF(S11="",IF(R11>Stunden2,Pausen2-SUM(N8:N10),IF(R11>Stunden1,Pausen1-SUM(N8:N10),0)),0) -> 0 | Q11: =IF(F11-E11>0,IF(S11="x",MROUND((F11-E11)*V18,1/1440),F11-E11),0) -> 0 | R11: =IF(Q11>0,IF(AND(E11=F10,S10<>"x"),Q11+R10-N10,Q11),0) -> 0 | S11: =IF(G11=DATEN!$L$87,"x","") ->  | V11: =IF(V10>V9,V9,V10) -> 0 | W11: Summe gekappt
B12: =DATE(DATEN!$G$3,$A$2,1) -> 2025-11-01 | M12: =IF(S12="x",TEXT(V18,"# ?/?")&" !",IF(T12="x","Nein","")) ->  | N12: =IF(S12="",IF(R12>Stunden2,Pausen2-SUM(N8:N11),IF(R12>Stunden1,Pausen1-SUM(N8:N11),0)),0) -> 0 | Q12: =IF(F12-E12>0,IF(S12="x",MROUND((F12-E12)*V18,1/1440),F12-E12),0) -> 0 | R12: =IF(Q12>0,IF(AND(E12=F11,S11<>"x"),Q12+R11-N11,Q12),0) -> 0 | S12: =IF(G12=DATEN!$L$87,"x","") ->  | V12: =V11+SUMIF(T8:T17,"x",H8:H17) -> 0 | W12: zzgl.kappungsfrei
B13: =DATE(DATEN!$G$3,$A$2,1) -> 2025-11-01 | M13: =IF(S13="x",TEXT(V18,"# ?/?")&" !",IF(T13="x","Nein","")) ->  | N13: =IF(S13="",IF(R13>Stunden2,Pausen2-SUM(N8:N12),IF(R13>Stunden1,Pausen1-SUM(N8:N12),0)),0) -> 0 | Q13: =IF(F13-E13>0,IF(S13="x",MROUND((F13-E13)*V18,1/1440),F13-E13),0) -> 0 | R13: 0 | S13: =IF(G13=DATEN!$L$87,"x","") -> 
B14: =DATE(DATEN!$G$3,$A$2,1) -> 2025-11-01 | M14: =IF(S14="x",TEXT(V18,"# ?/?")&" !",IF(T14="x","Nein","")) ->  | N14: =IF(S14="",IF(R14>Stunden2,Pausen2-SUM(N8:N13),IF(R14>Stunden1,Pausen1-SUM(N8:N13),0)),0) -> 0 | Q14: =IF(F14-E14>0,IF(S14="x",MROUND((F14-E14)*V18,1/1440),F14-E14),0) -> 0 | R14: 0 | S14: =IF(G14=DATEN!$L$87,"x","") -> 
B15: =DATE(DATEN!$G$3,$A$2,1) -> 2025-11-01 | M15: =IF(S15="x",TEXT(V18,"# ?/?")&" !",IF(T15="x","Nein","")) ->  | N15: =IF(S15="",IF(R15>Stunden2,Pausen2-SUM(N8:N14),IF(R15>Stunden1,Pausen1-SUM(N8:N14),0)),0) -> 0 | Q15: =IF(F15-E15>0,IF(S15="x",MROUND((F15-E15)*V18,1/1440),F15-E15),0) -> 0 | R15: 0 | S15: =IF(G15=DATEN!$L$87,"x","") -> 
B16: =DATE(DATEN!$G$3,$A$2,1) -> 2025-11-01 | M16: =IF(S16="x",TEXT(V18,"# ?/?")&" !",IF(T16="x","Nein","")) ->  | N16: =IF(S16="",IF(R16>Stunden2,Pausen2-SUM(N8:N15),IF(R16>Stunden1,Pausen1-SUM(N8:N15),0)),0) -> 0 | Q16: =IF(F16-E16>0,IF(S16="x",MROUND((F16-E16)*V18,1/1440),F16-E16),0) -> 0 | R16: 0 | S16: =IF(G16=DATEN!$L$87,"x","") -> 
B17: =DATE(DATEN!$G$3,$A$2,1) -> 2025-11-01 | M17: =IF(S17="x",TEXT(V18,"# ?/?")&" !",IF(T17="x","Nein","")) ->  | N17: =IF(S17="",IF(R17>Stunden2,Pausen2-SUM(N8:N16),IF(R17>Stunden1,Pausen1-SUM(N8:N16),0)),0) -> 0 | Q17: =IF(F17-E17>0,IF(S17="x",MROUND((F17-E17)*V18,1/1440),F17-E17),0) -> 0 | R17: 0 | S17: =IF(G17=DATEN!$L$87,"x","") -> 
A18: =IF(LEN(B18)>0,IF(WEEKDAY(B18)=4,TRUNC((B18-DATE(YEAR(B18+3-MOD(B18-2,7)),1,MOD(B18-2,7)-9))/7),"")) ->  | B18: =DATE(DATEN!$G$3,$A$2,1) -> 2025-11-01 | C18: =IF(WEEKDAY(B18)=1,7,WEEKDAY(B18)-1) -> 6 | D18: =IF(LEN(B18)>0,IF(OR(INDIRECT("DATEN!D"&9+C18)=0,NOT(ISNA(MATCH(B18,DATEN!$D$18:$D$33,0)))),"X",IF(OR(B18=DATEN!$D$26-1,B18=DATEN!$D$27-2,B18=DATEN!$D$30-2),"V","")),"") -> X | E18: =IF(VALUE("24:00:00")-VALUE(F5)+VALUE(E8)<VALUE("11:00:00"),"Ruhezeit!","") ->  | G18: Tagessumme: | H18: =V12 -> 0 | K18: =IF(LEN(B18)>0,IF(AND(D18<>"X",I18<>"U",I18<>"u",I18<>"K",I18<>"k",OR(I18="F",I18="f",H18<>0,DATEN!$H$8=1),J18<>"f",J18<>"F"),IF(D18="V",H18-INDIRECT("DATEN!D"&9+C18)/2,H18-INDIRECT("DATEN!D"&9+C18)),H18),"") -> 0 | L18: =IF(X18>MaxWoZeit,"WoArbZeit>48h!","") ->  | M18: =IF(V10>V11,V10-V11,"") ->  | N18: =SUM(N8:N17) -> 0 | O18: =IF(WEEKDAY(B18,2)=7,SUMIF('Auswertung-Wochen'!$Y$2:$Y$366,P18,'Auswertung-Wochen'!$V$2:$V$366)-SUMIF('Auswertung-Wochen'!$Y$2:$Y$366,P18,'Auswertung-Wochen'!$W$2:$W$366),"") ->  | P18: =YEAR(B18)&"-"&TEXT(_xlfn.ISOWEEKNUM(B18),"00") -> 2025-44 | Q18: =SUM(Q8:Q17) -> 00:00:00 | V18: =IF(D18="x",DATEN!$N$88,DATEN!$N$87) -> 0.1666666667 | W18: Faktor Rufbereitschaft | X18: =IF(LEN(B18)>0,IF(WEEKDAY(B18,2)=1,H18,H18+X7),X7) -> 0.125
A19: =IF(ISNA(MATCH(B29,DATEN!$D$18:$D$42,0)),"",INDEX(DATEN!$C$18:$D$42,MATCH(B29,DATEN!$D$18:$D$42,0),1)) ->  | B19: =B8+1 -> 2025-11-02 | H19: =IF(Q19>0,IF(ROUND(F19-E19,6)>=ROUND(Mindest,6),Q19,"<15m!"),"") ->  | M19: =IF(S19="x",TEXT(V29,"# ?/?")&" !",IF(T19="x","Nein","")) ->  | N19: =IF(S19="",IF(R19>Stunden2,Pausen2,IF(R19>Stunden1,Pausen1,0)),0) -> 0 | Q19: =IF(F19-E19>0,IF(S19="x",MROUND((F19-E19)*V29,1/1440),F19-E19),0) -> 0 | R19: =Q19 -> 0 | S19: =IF(G19=DATEN!$L$87,"x","") ->  | T19: =IF(ISNA(VLOOKUP(G19,ArbKapp,3,FALSE))=TRUE,"",IF(VLOOKUP(G19,ArbKapp,3,FALSE)="x","x","")) ->  | U19: =IF(ISNA(MATCH(G19,Kapp12Ordi,0)),"","x") ->  | V19: =Q29-N29 -> 0 | W19: Tagessumme
B20: 2025-11-02 | M20: =IF(S20="x",TEXT(V29,"# ?/?")&" !",IF(T20="x","Nein","")) ->  | N20: =IF(S20="",IF(R20>Stunden2,Pausen2-SUM(N19),IF(R20>Stunden1,Pausen1-SUM(N19),0)),0) -> 0 | Q20: =IF(F20-E20>0,IF(S20="x",MROUND((F20-E20)*V29,1/1440),F20-E20),0) -> 0 | R20: =IF(Q20>0,IF(AND(E20=F19,S19<>"x"),Q20+R19-N19,Q20),0) -> 0 | S20: =IF(G20=DATEN!$L$87,"x","") ->  | V20: =IF(ISNA(MATCH("x",U19:U28,0)),MaxZeit,MaxBildung) -> 0.4166666667 | W20: max. Tageszeit
B21: 2025-11-02 | M21: =IF(S21="x",TEXT(V29,"# ?/?")&" !",IF(T21="x","Nein","")) ->  | N21: =IF(S21="",IF(R21>Stunden2,Pausen2-SUM(N19:N20),IF(R21>Stunden1,Pausen1-SUM(N19:N20),0)),0) -> 0 | Q21: =IF(F21-E21>0,IF(S21="x",MROUND((F21-E21)*V29,1/1440),F21-E21),0) -> 0 | R21: =IF(Q21>0,IF(AND(E21=F20,S20<>"x"),Q21+R20-N20,Q21),0) -> 0 | S21: =IF(G21=DATEN!$L$87,"x","") ->  | V21: =SUMIF(T19:T28,"<>x",H19:H28)-N29 -> 00:00:00 | W21: Summe f. Kappung
B22: 2025-11-02 | M22: =IF(S22="x",TEXT(V29,"# ?/?")&" !",IF(T22="x","Nein","")) ->  | N22: =IF(S22="",IF(R22>Stunden2,Pausen2-SUM(N19:N21),IF(R22>Stunden1,Pausen1-SUM(N19:N21),0)),0) -> 0 | Q22: =IF(F22-E22>0,IF(S22="x",MROUND((F22-E22)*V29,1/1440),F22-E22),0) -> 0 | R22: =IF(Q22>0,IF(AND(E22=F21,S21<>"x"),Q22+R21-N21,Q22),0) -> 0 | S22: =IF(G22=DATEN!$L$87,"x","") ->  | V22: =IF(V21>V20,V20,V21) -> 0 | W22: Summe gekappt
B23: 2025-11-02 | M23: =IF(S23="x",TEXT(V29,"# ?/?")&" !",IF(T23="x","Nein","")) ->  | N23: =IF(S23="",IF(R23>Stunden2,Pausen2-SUM(N19:N22),IF(R23>Stunden1,Pausen1-SUM(N19:N22),0)),0) -> 0 | Q23: =IF(F23-E23>0,IF(S23="x",MROUND((F23-E23)*V29,1/1440),F23-E23),0) -> 0 | R23: =IF(Q23>0,IF(AND(E23=F22,S22<>"x"),Q23+R22-N22,Q23),0) -> 0 | S23: =IF(G23=DATEN!$L$87,"x","") ->  | V23: =V22+SUMIF(T19:T28,"x",H19:H28) -> 0 | W23: zzgl.kappungsfrei
B24: 2025-11-02 | M24: =IF(S24="x",TEXT(V29,"# ?/?")&" !",IF(T24="x","Nein","")) ->  | N24: =IF(S24="",IF(R24>Stunden2,Pausen2-SUM(N19:N23),IF(R24>Stunden1,Pausen1-SUM(N19:N23),0)),0) -> 0 | Q24: =IF(F24-E24>0,IF(S24="x",MROUND((F24-E24)*V29,1/1440),F24-E24),0) -> 0 | R24: 0 | S24: =IF(G24=DATEN!$L$87,"x","") -> 
B25: 2025-11-02 | M25: =IF(S25="x",TEXT(V29,"# ?/?")&" !",IF(T25="x","Nein","")) ->  | N25: =IF(S25="",IF(R25>Stunden2,Pausen2-SUM(N19:N24),IF(R25>Stunden1,Pausen1-SUM(N19:N24),0)),0) -> 0 | Q25: =IF(F25-E25>0,IF(S25="x",MROUND((F25-E25)*V29,1/1440),F25-E25),0) -> 0 | R25: 0 | S25: =IF(G25=DATEN!$L$87,"x","") -> 
B26: 2025-11-02 | M26: =IF(S26="x",TEXT(V29,"# ?/?")&" !",IF(T26="x","Nein","")) ->  | N26: =IF(S26="",IF(R26>Stunden2,Pausen2-SUM(N19:N25),IF(R26>Stunden1,Pausen1-SUM(N19:N25),0)),0) -> 0 | Q26: =IF(F26-E26>0,IF(S26="x",MROUND((F26-E26)*V29,1/1440),F26-E26),0) -> 0 | R26: 0 | S26: =IF(G26=DATEN!$L$87,"x","") -> 
B27: 2025-11-02 | M27: =IF(S27="x",TEXT(V29,"# ?/?")&" !",IF(T27="x","Nein","")) ->  | N27: =IF(S27="",IF(R27>Stunden2,Pausen2-SUM(N19:N26),IF(R27>Stunden1,Pausen1-SUM(N19:N26),0)),0) -> 0 | Q27: =IF(F27-E27>0,IF(S27="x",MROUND((F27-E27)*V29,1/1440),F27-E27),0) -> 0 | R27: 0 | S27: =IF(G27=DATEN!$L$87,"x","") -> 
B28: 2025-11-02 | M28: =IF(S28="x",TEXT(V29,"# ?/?")&" !",IF(T28="x","Nein","")) ->  | N28: =IF(S28="",IF(R28>Stunden2,Pausen2-SUM(N19:N27),IF(R28>Stunden1,Pausen1-SUM(N19:N27),0)),0) -> 0 | Q28: =IF(F28-E28>0,IF(S28="x",MROUND((F28-E28)*V29,1/1440),F28-E28),0) -> 0 | R28: 0 | S28: =IF(G28=DATEN!$L$87,"x","") -> 
A29: =IF(LEN(B29)>0,IF(WEEKDAY(B29)=4,TRUNC((B29-DATE(YEAR(B29+3-MOD(B29-2,7)),1,MOD(B29-2,7)-9))/7),IF(WEEKDAY(B29)=5,"KW","")),"") ->  | B29: =B18+1 -> 2025-11-02 | C29: =IF(WEEKDAY(B29)=1,7,WEEKDAY(B29)-1) -> 7 | D29: =IF(LEN(B29)>0,IF(OR(INDIRECT("DATEN!D"&9+C29)=0,NOT(ISNA(MATCH(B29,DATEN!$D$18:$D$33,0)))),"X",IF(OR(B29=DATEN!$D$26-1,B29=DATEN!$D$27-2,B29=DATEN!$D$30-2),"V","")),"") -> X | E29: =IF(E19>0,IF(VALUE("24:00:00")-VALUE(MAX(F8:F17))+VALUE(E19)<VALUE("11:00:00"),"Ruhezeit!",""),"") ->  | G29: Tagessumme: | H29: =V23 -> 0 | K29: =IF(LEN(B29)>0,IF(AND(D29<>"X",I29<>"U",I29<>"u",I29<>"K",I29<>"k",OR(I29="F",I29="f",H29<>0,DATEN!$H$8=1),J29<>"f",J29<>"F"),IF(D29="V",H29-INDIRECT("DATEN!D"&9+C29)/2,H29-INDIRECT("DATEN!D"&9+C29)),H29),"") -> 0 | L29: =IF(X29>MaxWoZeit,"WoArbZeit>48h!","") ->  | M29: =IF(V21>V22,V21-V22,"") ->  | N29: =SUM(N19:N28) -> 0 | O29: =IF(WEEKDAY(B29,2)=7,SUMIF('Auswertung-Wochen'!$Y$2:$Y$366,P29,'Auswertung-Wochen'!$V$2:$V$366)-SUMIF('Auswertung-Wochen'!$Y$2:$Y$366,P29,'Auswertung-Wochen'!$W$2:$W$366),"") -> -1.645833333 | P29: =YEAR(B29)&"-"&TEXT(_xlfn.ISOWEEKNUM(B29),"00") -> 2025-44 | Q29: =SUM(Q19:Q28) -> 00:00:00 | V29: =IF(D29="x",DATEN!$N$88,DATEN!$N$87) -> 0.1666666667 | W29: Faktor Rufbereitschaft | X29: =IF(LEN(B29)>0,IF(WEEKDAY(B29,2)=1,H29,H29+X18),X18) -> 0.125
A30: =IF(ISNA(MATCH(B40,DATEN!$D$18:$D$42,0)),"",INDEX(DATEN!$C$18:$D$42,MATCH(B40,DATEN!$D$18:$D$42,0),1)) ->  | B30: =B19+1 -> 2025-11-03 | H30: =IF(Q30>0,IF(ROUND(F30-E30,6)>=ROUND(Mindest,6),Q30,"<15m!"),"") ->  | M30: =IF(S30="x",TEXT(V40,"# ?/?")&" !",IF(T30="x","Nein","")) ->  | N30: =IF(S30="",IF(R30>Stunden2,Pausen2,IF(R30>Stunden1,Pausen1,0)),0) -> 0 | Q30: =IF(F30-E30>0,IF(S30="x",MROUND((F30-E30)*V40,1/1440),F30-E30),0) -> 0 | R30: =Q30 -> 0 | S30: =IF(G30=DATEN!$L$87,"x","") ->  | T30: =IF(ISNA(VLOOKUP(G30,ArbKapp,3,FALSE))=TRUE,"",IF(VLOOKUP(G30,ArbKapp,3,FALSE)="x","x","")) ->  | U30: =IF(ISNA(MATCH(G30,Kapp12Ordi,0)),"","x") ->  | V30: =Q40-N40 -> 0 | W30: Tagessumme
B31: 2025-11-03 | M31: =IF(S31="x",TEXT(V40,"# ?/?")&" !",IF(T31="x","Nein","")) ->  | N31: =IF(S31="",IF(R31>Stunden2,Pausen2-SUM(N30),IF(R31>Stunden1,Pausen1-SUM(N30),0)),0) -> 0 | Q31: =IF(F31-E31>0,IF(S31="x",MROUND((F31-E31)*V40,1/1440),F31-E31),0) -> 0 | R31: =IF(Q31>0,IF(AND(E31=F30,S30<>"x"),Q31+R30-N30,Q31),0) -> 0 | S31: =IF(G31=DATEN!$L$87,"x","") ->  | V31: =IF(ISNA(MATCH("x",U30:U39,0)),MaxZeit,MaxBildung) -> 0.4166666667 | W31: max. Tageszeit
B32: 2025-11-03 | M32: =IF(S32="x",TEXT(V40,"# ?/?")&" !",IF(T32="x","Nein","")) ->  | N32: =IF(S32="",IF(R32>Stunden2,Pausen2-SUM(N30:N31),IF(R32>Stunden1,Pausen1-SUM(N30:N31),0)),0) -> 0 | Q32: =IF(F32-E32>0,IF(S32="x",MROUND((F32-E32)*V40,1/1440),F32-E32),0) -> 0 | R32: =IF(Q32>0,IF(AND(E32=F31,S31<>"x"),Q32+R31-N31,Q32),0) -> 0 | S32: =IF(G32=DATEN!$L$87,"x","") ->  | V32: =SUMIF(T30:T39,"<>x",H30:H39)-N40 -> 00:00:00 | W32: Summe f. Kappung
B33: 2025-11-03 | M33: =IF(S33="x",TEXT(V40,"# ?/?")&" !",IF(T33="x","Nein","")) ->  | N33: =IF(S33="",IF(R33>Stunden2,Pausen2-SUM(N30:N32),IF(R33>Stunden1,Pausen1-SUM(N30:N32),0)),0) -> 0 | Q33: =IF(F33-E33>0,IF(S33="x",MROUND((F33-E33)*V40,1/1440),F33-E33),0) -> 0 | R33: =IF(Q33>0,IF(AND(E33=F32,S32<>"x"),Q33+R32-N32,Q33),0) -> 0 | S33: =IF(G33=DATEN!$L$87,"x","") ->  | V33: =IF(V32>V31,V31,V32) -> 0 | W33: Summe gekappt
B34: 2025-11-03 | M34: =IF(S34="x",TEXT(V40,"# ?/?")&" !",IF(T34="x","Nein","")) ->  | N34: =IF(S34="",IF(R34>Stunden2,Pausen2-SUM(N30:N33),IF(R34>Stunden1,Pausen1-SUM(N30:N33),0)),0) -> 0 | Q34: =IF(F34-E34>0,IF(S34="x",MROUND((F34-E34)*V40,1/1440),F34-E34),0) -> 0 | R34: =IF(Q34>0,IF(AND(E34=F33,S33<>"x"),Q34+R33-N33,Q34),0) -> 0 | S34: =IF(G34=DATEN!$L$87,"x","") ->  | V34: =V33+SUMIF(T30:T39,"x",H30:H39) -> 0 | W34: zzgl.kappungsfrei
B35: 2025-11-03 | M35: =IF(S35="x",TEXT(V40,"# ?/?")&" !",IF(T35="x","Nein","")) ->  | N35: =IF(S35="",IF(R35>Stunden2,Pausen2-SUM(N30:N34),IF(R35>Stunden1,Pausen1-SUM(N30:N34),0)),0) -> 0 | Q35: =IF(F35-E35>0,IF(S35="x",MROUND((F35-E35)*V40,1/1440),F35-E35),0) -> 0 | R35: 0 | S35: =IF(G35=DATEN!$L$87,"x","") -> 
B36: 2025-11-03 | M36: =IF(S36="x",TEXT(V40,"# ?/?")&" !",IF(T36="x","Nein","")) ->  | N36: =IF(S36="",IF(R36>Stunden2,Pausen2-SUM(N30:N35),IF(R36>Stunden1,Pausen1-SUM(N30:N35),0)),0) -> 0 | Q36: =IF(F36-E36>0,IF(S36="x",MROUND((F36-E36)*V40,1/1440),F36-E36),0) -> 0 | R36: 0 | S36: =IF(G36=DATEN!$L$87,"x","") -> 
B37: 2025-11-03 | M37: =IF(S37="x",TEXT(V40,"# ?/?")&" !",IF(T37="x","Nein","")) ->  | N37: =IF(S37="",IF(R37>Stunden2,Pausen2-SUM(N30:N36),IF(R37>Stunden1,Pausen1-SUM(N30:N36),0)),0) -> 0 | Q37: =IF(F37-E37>0,IF(S37="x",MROUND((F37-E37)*V40,1/1440),F37-E37),0) -> 0 | R37: 0 | S37: =IF(G37=DATEN!$L$87,"x","") -> 
B38: 2025-11-03 | M38: =IF(S38="x",TEXT(V40,"# ?/?")&" !",IF(T38="x","Nein","")) ->  | N38: =IF(S38="",IF(R38>Stunden2,Pausen2-SUM(N30:N37),IF(R38>Stunden1,Pausen1-SUM(N30:N37),0)),0) -> 0 | Q38: =IF(F38-E38>0,IF(S38="x",MROUND((F38-E38)*V40,1/1440),F38-E38),0) -> 0 | R38: 0 | S38: =IF(G38=DATEN!$L$87,"x","") -> 
B39: 2025-11-03 | M39: =IF(S39="x",TEXT(V40,"# ?/?")&" !",IF(T39="x","Nein","")) ->  | N39: =IF(S39="",IF(R39>Stunden2,Pausen2-SUM(N30:N38),IF(R39>Stunden1,Pausen1-SUM(N30:N38),0)),0) -> 0 | Q39: =IF(F39-E39>0,IF(S39="x",MROUND((F39-E39)*V40,1/1440),F39-E39),0) -> 0 | R39: 0 | S39: =IF(G39=DATEN!$L$87,"x","") -> 
A40: =IF(LEN(B40)>0,IF(WEEKDAY(B40)=4,TRUNC((B40-DATE(YEAR(B40+3-MOD(B40-2,7)),1,MOD(B40-2,7)-9))/7),IF(WEEKDAY(B40)=5,"KW","")),"") ->  | B40: =B29+1 -> 2025-11-03 | C40: =IF(WEEKDAY(B40)=1,7,WEEKDAY(B40)-1) -> 1 | D40: =IF(LEN(B40)>0,IF(OR(INDIRECT("DATEN!D"&9+C40)=0,NOT(ISNA(MATCH(B40,DATEN!$D$18:$D$33,0)))),"X",IF(OR(B40=DATEN!$D$26-1,B40=DATEN!$D$27-2,B40=DATEN!$D$30-2),"V","")),"") ->  | E40: =IF(E30>0,IF(VALUE("24:00:00")-VALUE(MAX(F19:F28))+VALUE(E30)<VALUE("11:00:00"),"Ruhezeit!",""),"") ->  | G40: Tagessumme: | H40: =V34 -> 0 | K40: =IF(LEN(B40)>0,IF(AND(D40<>"X",I40<>"U",I40<>"u",I40<>"K",I40<>"k",OR(I40="F",I40="f",H40<>0,DATEN!$H$8=1),J40<>"f",J40<>"F"),IF(D40="V",H40-INDIRECT("DATEN!D"&9+C40)/2,H40-INDIRECT("DATEN!D"&9+C40)),H40),"") -> -0.3291666667 | L40: =IF(X40>MaxWoZeit,"WoArbZeit>48h!","") ->  | M40: =IF(V32>V33,V32-V33,"") ->  | N40: =SUM(N30:N39) -> 0 | O40: =IF(WEEKDAY(B40,2)=7,SUMIF('Auswertung-Wochen'!$Y$2:$Y$366,P40,'Auswertung-Wochen'!$V$2:$V$366)-SUMIF('Auswertung-Wochen'!$Y$2:$Y$366,P40,'Auswertung-Wochen'!$W$2:$W$366),"") ->  | P40: =YEAR(B40)&"-"&TEXT(_xlfn.ISOWEEKNUM(B40),"00") -> 2025-45 | Q40: =SUM(Q30:Q39) -> 00:00:00 | V40: =IF(D40="x",DATEN!$N$88,DATEN!$N$87) -> 0.125 | W40: Faktor Rufbereitschaft | X40: =IF(LEN(B40)>0,IF(WEEKDAY(B40,2)=1,H40,H40+X29),X29) -> 0
A41: =IF(ISNA(MATCH(B51,DATEN!$D$18:$D$42,0)),"",INDEX(DATEN!$C$18:$D$42,MATCH(B51,DATEN!$D$18:$D$42,0),1)) ->  | B41: =B30+1 -> 2025-11-04 | H41: =IF(Q41>0,IF(ROUND(F41-E41,6)>=ROUND(Mindest,6),Q41,"<15m!"),"") ->  | M41: =IF(S41="x",TEXT(V51,"# ?/?")&" !",IF(T41="x","Nein","")) ->  | N41: =IF(S41="",IF(R41>Stunden2,Pausen2,IF(R41>Stunden1,Pausen1,0)),0) -> 0 | Q41: =IF(F41-E41>0,IF(S41="x",MROUND((F41-E41)*V51,1/1440),F41-E41),0) -> 0 | R41: =Q41 -> 0 | S41: =IF(G41=DATEN!$L$87,"x","") ->  | T41: =IF(ISNA(VLOOKUP(G41,ArbKapp,3,FALSE))=TRUE,"",IF(VLOOKUP(G41,ArbKapp,3,FALSE)="x","x","")) ->  | U41: =IF(ISNA(MATCH(G41,Kapp12Ordi,0)),"","x") ->  | V41: =Q51-N51 -> 0 | W41: Tagessumme
B42: 2025-11-04 | M42: =IF(S42="x",TEXT(V51,"# ?/?")&" !",IF(T42="x","Nein","")) ->  | N42: =IF(S42="",IF(R42>Stunden2,Pausen2-SUM(N41),IF(R42>Stunden1,Pausen1-SUM(N41),0)),0) -> 0 | Q42: =IF(F42-E42>0,IF(S42="x",MROUND((F42-E42)*V51,1/1440),F42-E42),0) -> 0 | R42: =IF(Q42>0,IF(AND(E42=F41,S41<>"x"),Q42+R41-N41,Q42),0) -> 0 | S42: =IF(G42=DATEN!$L$87,"x","") ->  | V42: =IF(ISNA(MATCH("x",U41:U50,0)),MaxZeit,MaxBildung) -> 0.4166666667 | W42: max. Tageszeit
B43: 2025-11-04 | M43: =IF(S43="x",TEXT(V51,"# ?/?")&" !",IF(T43="x","Nein","")) ->  | N43: =IF(S43="",IF(R43>Stunden2,Pausen2-SUM(N41:N42),IF(R43>Stunden1,Pausen1-SUM(N41:N42),0)),0) -> 0 | Q43: =IF(F43-E43>0,IF(S43="x",MROUND((F43-E43)*V51,1/1440),F43-E43),0) -> 0 | R43: =IF(Q43>0,IF(AND(E43=F42,S42<>"x"),Q43+R42-N42,Q43),0) -> 0 | S43: =IF(G43=DATEN!$L$87,"x","") ->  | V43: =SUMIF(T41:T50,"<>x",H41:H50)-N51 -> 00:00:00 | W43: Summe f. Kappung
B44: 2025-11-04 | M44: =IF(S44="x",TEXT(V51,"# ?/?")&" !",IF(T44="x","Nein","")) ->  | N44: =IF(S44="",IF(R44>Stunden2,Pausen2-SUM(N41:N43),IF(R44>Stunden1,Pausen1-SUM(N41:N43),0)),0) -> 0 | Q44: =IF(F44-E44>0,IF(S44="x",MROUND((F44-E44)*V51,1/1440),F44-E44),0) -> 0 | R44: =IF(Q44>0,IF(AND(E44=F43,S43<>"x"),Q44+R43-N43,Q44),0) -> 0 | S44: =IF(G44=DATEN!$L$87,"x","") ->  | V44: =IF(V43>V42,V42,V43) -> 0 | W44: Summe gekappt
B45: 2025-11-04 | M45: =IF(S45="x",TEXT(V51,"# ?/?")&" !",IF(T45="x","Nein","")) ->  | N45: =IF(S45="",IF(R45>Stunden2,Pausen2-SUM(N41:N44),IF(R45>Stunden1,Pausen1-SUM(N41:N44),0)),0) -> 0 | Q45: =IF(F45-E45>0,IF(S45="x",MROUND((F45-E45)*V51,1/1440),F45-E45),0) -> 0 | R45: =IF(Q45>0,IF(AND(E45=F44,S44<>"x"),Q45+R44-N44,Q45),0) -> 0 | S45: =IF(G45=DATEN!$L$87,"x","") ->  | V45: =V44+SUMIF(T41:T50,"x",H41:H50) -> 0 | W45: zzgl.kappungsfrei
B46: 2025-11-04 | M46: =IF(S46="x",TEXT(V51,"# ?/?")&" !",IF(T46="x","Nein","")) ->  | N46: =IF(S46="",IF(R46>Stunden2,Pausen2-SUM(N41:N45),IF(R46>Stunden1,Pausen1-SUM(N41:N45),0)),0) -> 0 | Q46: =IF(F46-E46>0,IF(S46="x",MROUND((F46-E46)*V51,1/1440),F46-E46),0) -> 0 | R46: 0 | S46: =IF(G46=DATEN!$L$87,"x","") -> 
B47: 2025-11-04 | M47: =IF(S47="x",TEXT(V51,"# ?/?")&" !",IF(T47="x","Nein","")) ->  | N47: =IF(S47="",IF(R47>Stunden2,Pausen2-SUM(N41:N46),IF(R47>Stunden1,Pausen1-SUM(N41:N46),0)),0) -> 0 | Q47: =IF(F47-E47>0,IF(S47="x",MROUND((F47-E47)*V51,1/1440),F47-E47),0) -> 0 | R47: 0 | S47: =IF(G47=DATEN!$L$87,"x","") -> 
B48: 2025-11-04 | M48: =IF(S48="x",TEXT(V51,"# ?/?")&" !",IF(T48="x","Nein","")) ->  | N48: =IF(S48="",IF(R48>Stunden2,Pausen2-SUM(N41:N47),IF(R48>Stunden1,Pausen1-SUM(N41:N47),0)),0) -> 0 | Q48: =IF(F48-E48>0,IF(S48="x",MROUND((F48-E48)*V51,1/1440),F48-E48),0) -> 0 | R48: 0 | S48: =IF(G48=DATEN!$L$87,"x","") -> 
B49: 2025-11-04 | M49: =IF(S49="x",TEXT(V51,"# ?/?")&" !",IF(T49="x","Nein","")) ->  | N49: =IF(S49="",IF(R49>Stunden2,Pausen2-SUM(N41:N48),IF(R49>Stunden1,Pausen1-SUM(N41:N48),0)),0) -> 0 | Q49: =IF(F49-E49>0,IF(S49="x",MROUND((F49-E49)*V51,1/1440),F49-E49),0) -> 0 | R49: 0 | S49: =IF(G49=DATEN!$L$87,"x","") -> 
B50: 2025-11-04 | M50: =IF(S50="x",TEXT(V51,"# ?/?")&" !",IF(T50="x","Nein","")) ->  | N50: =IF(S50="",IF(R50>Stunden2,Pausen2-SUM(N41:N49),IF(R50>Stunden1,Pausen1-SUM(N41:N49),0)),0) -> 0 | Q50: =IF(F50-E50>0,IF(S50="x",MROUND((F50-E50)*V51,1/1440),F50-E50),0) -> 0 | R50: 0 | S50: =IF(G50=DATEN!$L$87,"x","") -> 
A51: =IF(LEN(B51)>0,IF(WEEKDAY(B51)=4,TRUNC((B51-DATE(YEAR(B51+3-MOD(B51-2,7)),1,MOD(B51-2,7)-9))/7),IF(WEEKDAY(B51)=5,"KW","")),"") ->  | B51: =B40+1 -> 2025-11-04 | C51: =IF(WEEKDAY(B51)=1,7,WEEKDAY(B51)-1) -> 2 | D51: =IF(LEN(B51)>0,IF(OR(INDIRECT("DATEN!D"&9+C51)=0,NOT(ISNA(MATCH(B51,DATEN!$D$18:$D$33,0)))),"X",IF(OR(B51=DATEN!$D$26-1,B51=DATEN!$D$27-2,B51=DATEN!$D$30-2),"V","")),"") ->  | E51: =IF(E41>0,IF(VALUE("24:00:00")-VALUE(MAX(F30:F39))+VALUE(E41)<VALUE("11:00:00"),"Ruhezeit!",""),"") ->  | G51: Tagessumme: | H51: =V45 -> 0 | K51: =IF(LEN(B51)>0,IF(AND(D51<>"X",I51<>"U",I51<>"u",I51<>"K",I51<>"k",OR(I51="F",I51="f",H51<>0,DATEN!$H$8=1),J51<>"f",J51<>"F"),IF(D51="V",H51-INDIRECT("DATEN!D"&9+C51)/2,H51-INDIRECT("DATEN!D"&9+C51)),H51),"") -> -0.3291666667 | L51: =IF(X51>MaxWoZeit,"WoArbZeit>48h!","") ->  | M51: =IF(V43>V44,V43-V44,"") ->  | N51: =SUM(N41:N50) -> 0 | O51: =IF(WEEKDAY(B51,2)=7,SUMIF('Auswertung-Wochen'!$Y$2:$Y$366,P51,'Auswertung-Wochen'!$V$2:$V$366)-SUMIF('Auswertung-Wochen'!$Y$2:$Y$366,P51,'Auswertung-Wochen'!$W$2:$W$366),"") ->  | P51: =YEAR(B51)&"-"&TEXT(_xlfn.ISOWEEKNUM(B51),"00") -> 2025-45 | Q51: =SUM(Q41:Q50) -> 00:00:00 | V51: =IF(D51="x",DATEN!$N$88,DATEN!$N$87) -> 0.125 | W51: Faktor Rufbereitschaft | X51: =IF(LEN(B51)>0,IF(WEEKDAY(B51,2)=1,H51,H51+X40),X40) -> 0
A52: =IF(ISNA(MATCH(B62,DATEN!$D$18:$D$42,0)),"",INDEX(DATEN!$C$18:$D$42,MATCH(B62,DATEN!$D$18:$D$42,0),1)) ->  | B52: =B41+1 -> 2025-11-05 | H52: =IF(Q52>0,IF(ROUND(F52-E52,6)>=ROUND(Mindest,6),Q52,"<15m!"),"") ->  | M52: =IF(S52="x",TEXT(V62,"# ?/?")&" !",IF(T52="x","Nein","")) ->  | N52: =IF(S52="",IF(R52>Stunden2,Pausen2,IF(R52>Stunden1,Pausen1,0)),0) -> 0 | Q52: =IF(F52-E52>0,IF(S52="x",MROUND((F52-E52)*V62,1/1440),F52-E52),0) -> 0 | R52: =Q52 -> 0 | S52: =IF(G52=DATEN!$L$87,"x","") ->  | T52: =IF(ISNA(VLOOKUP(G52,ArbKapp,3,FALSE))=TRUE,"",IF(VLOOKUP(G52,ArbKapp,3,FALSE)="x","x","")) ->  | U52: =IF(ISNA(MATCH(G52,Kapp12Ordi,0)),"","x") ->  | V52: =Q62-N62 -> 0 | W52: Tagessumme
B53: 2025-11-05 | M53: =IF(S53="x",TEXT(V62,"# ?/?")&" !",IF(T53="x","Nein","")) ->  | N53: =IF(S53="",IF(R53>Stunden2,Pausen2-SUM(N52),IF(R53>Stunden1,Pausen1-SUM(N52),0)),0) -> 0 | Q53: =IF(F53-E53>0,IF(S53="x",MROUND((F53-E53)*V62,1/1440),F53-E53),0) -> 0 | R53: =IF(Q53>0,IF(AND(E53=F52,S52<>"x"),Q53+R52-N52,Q53),0) -> 0 | S53: =IF(G53=DATEN!$L$87,"x","") ->  | V53: =IF(ISNA(MATCH("x",U52:U61,0)),MaxZeit,MaxBildung) -> 0.4166666667 | W53: max. Tageszeit
B54: 2025-11-05 | M54: =IF(S54="x",TEXT(V62,"# ?/?")&" !",IF(T54="x","Nein","")) ->  | N54: =IF(S54="",IF(R54>Stunden2,Pausen2-SUM(N52:N53),IF(R54>Stunden1,Pausen1-SUM(N52:N53),0)),0) -> 0 | Q54: =IF(F54-E54>0,IF(S54="x",MROUND((F54-E54)*V62,1/1440),F54-E54),0) -> 0 | R54: =IF(Q54>0,IF(AND(E54=F53,S53<>"x"),Q54+R53-N53,Q54),0) -> 0 | S54: =IF(G54=DATEN!$L$87,"x","") ->  | V54: =SUMIF(T52:T61,"<>x",H52:H61)-N62 -> 00:00:00 | W54: Summe f. Kappung
B55: 2025-11-05 | M55: =IF(S55="x",TEXT(V62,"# ?/?")&" !",IF(T55="x","Nein","")) ->  | N55: =IF(S55="",IF(R55>Stunden2,Pausen2-SUM(N52:N54),IF(R55>Stunden1,Pausen1-SUM(N52:N54),0)),0) -> 0 | Q55: =IF(F55-E55>0,IF(S55="x",MROUND((F55-E55)*V62,1/1440),F55-E55),0) -> 0 | R55: =IF(Q55>0,IF(AND(E55=F54,S54<>"x"),Q55+R54-N54,Q55),0) -> 0 | S55: =IF(G55=DATEN!$L$87,"x","") ->  | V55: =IF(V54>V53,V53,V54) -> 0 | W55: Summe gekappt
B56: 2025-11-05 | M56: =IF(S56="x",TEXT(V62,"# ?/?")&" !",IF(T56="x","Nein","")) ->  | N56: =IF(S56="",IF(R56>Stunden2,Pausen2-SUM(N52:N55),IF(R56>Stunden1,Pausen1-SUM(N52:N55),0)),0) -> 0 | Q56: =IF(F56-E56>0,IF(S56="x",MROUND((F56-E56)*V62,1/1440),F56-E56),0) -> 0 | R56: =IF(Q56>0,IF(AND(E56=F55,S55<>"x"),Q56+R55-N55,Q56),0) -> 0 | S56: =IF(G56=DATEN!$L$87,"x","") ->  | V56: =V55+SUMIF(T52:T61,"x",H52:H61) -> 0 | W56: zzgl.kappungsfrei
B57: 2025-11-05 | M57: =IF(S57="x",TEXT(V62,"# ?/?")&" !",IF(T57="x","Nein","")) ->  | N57: =IF(S57="",IF(R57>Stunden2,Pausen2-SUM(N52:N56),IF(R57>Stunden1,Pausen1-SUM(N52:N56),0)),0) -> 0 | Q57: =IF(F57-E57>0,IF(S57="x",MROUND((F57-E57)*V62,1/1440),F57-E57),0) -> 0 | R57: 0 | S57: =IF(G57=DATEN!$L$87,"x","") -> 
B58: 2025-11-05 | M58: =IF(S58="x",TEXT(V62,"# ?/?")&" !",IF(T58="x","Nein","")) ->  | N58: =IF(S58="",IF(R58>Stunden2,Pausen2-SUM(N52:N57),IF(R58>Stunden1,Pausen1-SUM(N52:N57),0)),0) -> 0 | Q58: =IF(F58-E58>0,IF(S58="x",MROUND((F58-E58)*V62,1/1440),F58-E58),0) -> 0 | R58: 0 | S58: =IF(G58=DATEN!$L$87,"x","") -> 
B59: 2025-11-05 | M59: =IF(S59="x",TEXT(V62,"# ?/?")&" !",IF(T59="x","Nein","")) ->  | N59: =IF(S59="",IF(R59>Stunden2,Pausen2-SUM(N52:N58),IF(R59>Stunden1,Pausen1-SUM(N52:N58),0)),0) -> 0 | Q59: =IF(F59-E59>0,IF(S59="x",MROUND((F59-E59)*V62,1/1440),F59-E59),0) -> 0 | R59: 0 | S59: =IF(G59=DATEN!$L$87,"x","") -> 
B60: 2025-11-05 | M60: =IF(S60="x",TEXT(V62,"# ?/?")&" !",IF(T60="x","Nein","")) ->  | N60: =IF(S60="",IF(R60>Stunden2,Pausen2-SUM(N52:N59),IF(R60>Stunden1,Pausen1-SUM(N52:N59),0)),0) -> 0 | Q60: =IF(F60-E60>0,IF(S60="x",MROUND((F60-E60)*V62,1/1440),F60-E60),0) -> 0 | R60: 0 | S60: =IF(G60=DATEN!$L$87,"x","") -> 
B61: 2025-11-05 | M61: =IF(S61="x",TEXT(V62,"# ?/?")&" !",IF(T61="x","Nein","")) ->  | N61: =IF(S61="",IF(R61>Stunden2,Pausen2-SUM(N52:N60),IF(R61>Stunden1,Pausen1-SUM(N52:N60),0)),0) -> 0 | Q61: =IF(F61-E61>0,IF(S61="x",MROUND((F61-E61)*V62,1/1440),F61-E61),0) -> 0 | R61: 0 | S61: =IF(G61=DATEN!$L$87,"x","") -> 
A62: =IF(LEN(B62)>0,IF(WEEKDAY(B62)=4,TRUNC((B62-DATE(YEAR(B62+3-MOD(B62-2,7)),1,MOD(B62-2,7)-9))/7),IF(WEEKDAY(B62)=5,"KW","")),"") -> 45 | B62: =B51+1 -> 2025-11-05 | C62: =IF(WEEKDAY(B62)=1,7,WEEKDAY(B62)-1) -> 3 | D62: =IF(LEN(B62)>0,IF(OR(INDIRECT("DATEN!D"&9+C62)=0,NOT(ISNA(MATCH(B62,DATEN!$D$18:$D$33,0)))),"X",IF(OR(B62=DATEN!$D$26-1,B62=DATEN!$D$27-2,B62=DATEN!$D$30-2),"V","")),"") ->  | E62: =IF(E52>0,IF(VALUE("24:00:00")-VALUE(MAX(F41:F50))+VALUE(E52)<VALUE("11:00:00"),"Ruhezeit!",""),"") ->  | G62: Tagessumme: | H62: =V56 -> 0 | K62: =IF(LEN(B62)>0,IF(AND(D62<>"X",I62<>"U",I62<>"u",I62<>"K",I62<>"k",OR(I62="F",I62="f",H62<>0,DATEN!$H$8=1),J62<>"f",J62<>"F"),IF(D62="V",H62-INDIRECT("DATEN!D"&9+C62)/2,H62-INDIRECT("DATEN!D"&9+C62)),H62),"") -> -0.3291666667 | L62: =IF(X62>MaxWoZeit,"WoArbZeit>48h!","") ->  | M62: =IF(V54>V55,V54-V55,"") ->  | N62: =SUM(N52:N61) -> 0 | O62: =IF(WEEKDAY(B62,2)=7,SUMIF('Auswertung-Wochen'!$Y$2:$Y$366,P62,'Auswertung-Wochen'!$V$2:$V$366)-SUMIF('Auswertung-Wochen'!$Y$2:$Y$366,P62,'Auswertung-Wochen'!$W$2:$W$366),"") ->  | P62: =YEAR(B62)&"-"&TEXT(_xlfn.ISOWEEKNUM(B62),"00") -> 2025-45 | Q62: =SUM(Q52:Q61) -> 00:00:00 | V62: =IF(D62="x",DATEN!$N$88,DATEN!$N$87) -> 0.125 | W62: Faktor Rufbereitschaft | X62: =IF(LEN(B62)>0,IF(WEEKDAY(B62,2)=1,H62,H62+X51),X51) -> 0
A63: =IF(ISNA(MATCH(B73,DATEN!$D$18:$D$42,0)),"",INDEX(DATEN!$C$18:$D$42,MATCH(B73,DATEN!$D$18:$D$42,0),1)) ->  | B63: =B52+1 -> 2025-11-06 | H63: =IF(Q63>0,IF(ROUND(F63-E63,6)>=ROUND(Mindest,6),Q63,"<15m!"),"") ->  | M63: =IF(S63="x",TEXT(V73,"# ?/?")&" !",IF(T63="x","Nein","")) ->  | N63: =IF(S63="",IF(R63>Stunden2,Pausen2,IF(R63>Stunden1,Pausen1,0)),0) -> 0 | Q63: =IF(F63-E63>0,IF(S63="x",MROUND((F63-E63)*V73,1/1440),F63-E63),0) -> 0 | R63: =Q63 -> 0 | S63: =IF(G63=DATEN!$L$87,"x","") ->  | T63: =IF(ISNA(VLOOKUP(G63,ArbKapp,3,FALSE))=TRUE,"",IF(VLOOKUP(G63,ArbKapp,3,FALSE)="x","x","")) ->  | U63: =IF(ISNA(MATCH(G63,Kapp12Ordi,0)),"","x") ->  | V63: =Q73-N73 -> 0 | W63: Tagessumme
B64: 2025-11-06 | M64: =IF(S64="x",TEXT(V73,"# ?/?")&" !",IF(T64="x","Nein","")) ->  | N64: =IF(S64="",IF(R64>Stunden2,Pausen2-SUM(N63),IF(R64>Stunden1,Pausen1-SUM(N63),0)),0) -> 0 | Q64: =IF(F64-E64>0,IF(S64="x",MROUND((F64-E64)*V73,1/1440),F64-E64),0) -> 0 | R64: =IF(Q64>0,IF(AND(E64=F63,S63<>"x"),Q64+R63-N63,Q64),0) -> 0 | S64: =IF(G64=DATEN!$L$87,"x","") ->  | V64: =IF(ISNA(MATCH("x",U63:U72,0)),MaxZeit,MaxBildung) -> 0.4166666667 | W64: max. Tageszeit
B65: 2025-11-06 | M65: =IF(S65="x",TEXT(V73,"# ?/?")&" !",IF(T65="x","Nein","")) ->  | N65: =IF(S65="",IF(R65>Stunden2,Pausen2-SUM(N63:N64),IF(R65>Stunden1,Pausen1-SUM(N63:N64),0)),0) -> 0 | Q65: =IF(F65-E65>0,IF(S65="x",MROUND((F65-E65)*V73,1/1440),F65-E65),0) -> 0 | R65: =IF(Q65>0,IF(AND(E65=F64,S64<>"x"),Q65+R64-N64,Q65),0) -> 0 | S65: =IF(G65=DATEN!$L$87,"x","") ->  | V65: =SUMIF(T63:T72,"<>x",H63:H72)-N73 -> 00:00:00 | W65: Summe f. Kappung
B66: 2025-11-06 | M66: =IF(S66="x",TEXT(V73,"# ?/?")&" !",IF(T66="x","Nein","")) ->  | N66: =IF(S66="",IF(R66>Stunden2,Pausen2-SUM(N63:N65),IF(R66>Stunden1,Pausen1-SUM(N63:N65),0)),0) -> 0 | Q66: =IF(F66-E66>0,IF(S66="x",MROUND((F66-E66)*V73,1/1440),F66-E66),0) -> 0 | R66: =IF(Q66>0,IF(AND(E66=F65,S65<>"x"),Q66+R65-N65,Q66),0) -> 0 | S66: =IF(G66=DATEN!$L$87,"x","") ->  | V66: =IF(V65>V64,V64,V65) -> 0 | W66: Summe gekappt
B67: 2025-11-06 | M67: =IF(S67="x",TEXT(V73,"# ?/?")&" !",IF(T67="x","Nein","")) ->  | N67: =IF(S67="",IF(R67>Stunden2,Pausen2-SUM(N63:N66),IF(R67>Stunden1,Pausen1-SUM(N63:N66),0)),0) -> 0 | Q67: =IF(F67-E67>0,IF(S67="x",MROUND((F67-E67)*V73,1/1440),F67-E67),0) -> 0 | R67: =IF(Q67>0,IF(AND(E67=F66,S66<>"x"),Q67+R66-N66,Q67),0) -> 0 | S67: =IF(G67=DATEN!$L$87,"x","") ->  | V67: =V66+SUMIF(T63:T72,"x",H63:H72) -> 0 | W67: zzgl.kappungsfrei
B68: 2025-11-06 | M68: =IF(S68="x",TEXT(V73,"# ?/?")&" !",IF(T68="x","Nein","")) ->  | N68: =IF(S68="",IF(R68>Stunden2,Pausen2-SUM(N63:N67),IF(R68>Stunden1,Pausen1-SUM(N63:N67),0)),0) -> 0 | Q68: =IF(F68-E68>0,IF(S68="x",MROUND((F68-E68)*V73,1/1440),F68-E68),0) -> 0 | R68: 0 | S68: =IF(G68=DATEN!$L$87,"x","") -> 
B69: 2025-11-06 | M69: =IF(S69="x",TEXT(V73,"# ?/?")&" !",IF(T69="x","Nein","")) ->  | N69: =IF(S69="",IF(R69>Stunden2,Pausen2-SUM(N63:N68),IF(R69>Stunden1,Pausen1-SUM(N63:N68),0)),0) -> 0 | Q69: =IF(F69-E69>0,IF(S69="x",MROUND((F69-E69)*V73,1/1440),F69-E69),0) -> 0 | R69: 0 | S69: =IF(G69=DATEN!$L$87,"x","") -> 
B70: 2025-11-06 | M70: =IF(S70="x",TEXT(V73,"# ?/?")&" !",IF(T70="x","Nein","")) ->  | N70: =IF(S70="",IF(R70>Stunden2,Pausen2-SUM(N63:N69),IF(R70>Stunden1,Pausen1-SUM(N63:N69),0)),0) -> 0 | Q70: =IF(F70-E70>0,IF(S70="x",MROUND((F70-E70)*V73,1/1440),F70-E70),0) -> 0 | R70: 0 | S70: =IF(G70=DATEN!$L$87,"x","") -> 
B71: 2025-11-06 | M71: =IF(S71="x",TEXT(V73,"# ?/?")&" !",IF(T71="x","Nein","")) ->  | N71: =IF(S71="",IF(R71>Stunden2,Pausen2-SUM(N63:N70),IF(R71>Stunden1,Pausen1-SUM(N63:N70),0)),0) -> 0 | Q71: =IF(F71-E71>0,IF(S71="x",MROUND((F71-E71)*V73,1/1440),F71-E71),0) -> 0 | R71: 0 | S71: =IF(G71=DATEN!$L$87,"x","") -> 
B72: 2025-11-06 | M72: =IF(S72="x",TEXT(V73,"# ?/?")&" !",IF(T72="x","Nein","")) ->  | N72: =IF(S72="",IF(R72>Stunden2,Pausen2-SUM(N63:N71),IF(R72>Stunden1,Pausen1-SUM(N63:N71),0)),0) -> 0 | Q72: =IF(F72-E72>0,IF(S72="x",MROUND((F72-E72)*V73,1/1440),F72-E72),0) -> 0 | R72: 0 | S72: =IF(G72=DATEN!$L$87,"x","") -> 
A73: =IF(LEN(B73)>0,IF(WEEKDAY(B73)=4,TRUNC((B73-DATE(YEAR(B73+3-MOD(B73-2,7)),1,MOD(B73-2,7)-9))/7),IF(WEEKDAY(B73)=5,"KW","")),"") -> KW | B73: =B62+1 -> 2025-11-06 | C73: =IF(WEEKDAY(B73)=1,7,WEEKDAY(B73)-1) -> 4 | D73: =IF(LEN(B73)>0,IF(OR(INDIRECT("DATEN!D"&9+C73)=0,NOT(ISNA(MATCH(B73,DATEN!$D$18:$D$33,0)))),"X",IF(OR(B73=DATEN!$D$26-1,B73=DATEN!$D$27-2,B73=DATEN!$D$30-2),"V","")),"") ->  | E73: =IF(E63>0,IF(VALUE("24:00:00")-VALUE(MAX(F52:F61))+VALUE(E63)<VALUE("11:00:00"),"Ruhezeit!",""),"") ->  | G73: Tagessumme: | H73: =V67 -> 0 | K73: =IF(LEN(B73)>0,IF(AND(D73<>"X",I73<>"U",I73<>"u",I73<>"K",I73<>"k",OR(I73="F",I73="f",H73<>0,DATEN!$H$8=1),J73<>"f",J73<>"F"),IF(D73="V",H73-INDIRECT("DATEN!D"&9+C73)/2,H73-INDIRECT("DATEN!D"&9+C73)),H73),"") -> -0.3291666667 | L73: =IF(X73>MaxWoZeit,"WoArbZeit>48h!","") ->  | M73: =IF(V65>V66,V65-V66,"") ->  | N73: =SUM(N63:N72) -> 0 | O73: =IF(WEEKDAY(B73,2)=7,SUMIF('Auswertung-Wochen'!$Y$2:$Y$366,P73,'Auswertung-Wochen'!$V$2:$V$366)-SUMIF('Auswertung-Wochen'!$Y$2:$Y$366,P73,'Auswertung-Wochen'!$W$2:$W$366),"") ->  | P73: =YEAR(B73)&"-"&TEXT(_xlfn.ISOWEEKNUM(B73),"00") -> 2025-45 | Q73: =SUM(Q63:Q72) -> 00:00:00 | V73: =IF(D73="x",DATEN!$N$88,DATEN!$N$87) -> 0.125 | W73: Faktor Rufbereitschaft | X73: =IF(LEN(B73)>0,IF(WEEKDAY(B73,2)=1,H73,H73+X62),X62) -> 0 | Z73: =IF(AND(G73>0,G73<>"Tagessumme:"),G73,"") ->  | AA73: =IF(G73<>"Tagessumme:",H73,"") -> 
A74: =IF(ISNA(MATCH(B84,DATEN!$D$18:$D$42,0)),"",INDEX(DATEN!$C$18:$D$42,MATCH(B84,DATEN!$D$18:$D$42,0),1)) ->  | B74: =B63+1 -> 2025-11-07 | H74: =IF(Q74>0,IF(ROUND(F74-E74,6)>=ROUND(Mindest,6),Q74,"<15m!"),"") ->  | M74: =IF(S74="x",TEXT(V84,"# ?/?")&" !",IF(T74="x","Nein","")) ->  | N74: =IF(S74="",IF(R74>Stunden2,Pausen2,IF(R74>Stunden1,Pausen1,0)),0) -> 0 | Q74: =IF(F74-E74>0,IF(S74="x",MROUND((F74-E74)*V84,1/1440),F74-E74),0) -> 0 | R74: =Q74 -> 0 | S74: =IF(G74=DATEN!$L$87,"x","") ->  | T74: =IF(ISNA(VLOOKUP(G74,ArbKapp,3,FALSE))=TRUE,"",IF(VLOOKUP(G74,ArbKapp,3,FALSE)="x","x","")) ->  | U74: =IF(ISNA(MATCH(G74,Kapp12Ordi,0)),"","x") ->  | V74: =Q84-N84 -> 0 | W74: Tagessumme
B75: 2025-11-07 | M75: =IF(S75="x",TEXT(V84,"# ?/?")&" !",IF(T75="x","Nein","")) ->  | N75: =IF(S75="",IF(R75>Stunden2,Pausen2-SUM(N74),IF(R75>Stunden1,Pausen1-SUM(N74),0)),0) -> 0 | Q75: =IF(F75-E75>0,IF(S75="x",MROUND((F75-E75)*V84,1/1440),F75-E75),0) -> 0 | R75: =IF(Q75>0,IF(AND(E75=F74,S74<>"x"),Q75+R74-N74,Q75),0) -> 0 | S75: =IF(G75=DATEN!$L$87,"x","") ->  | V75: =IF(ISNA(MATCH("x",U74:U83,0)),MaxZeit,MaxBildung) -> 0.4166666667 | W75: max. Tageszeit
B76: 2025-11-07 | M76: =IF(S76="x",TEXT(V84,"# ?/?")&" !",IF(T76="x","Nein","")) ->  | N76: =IF(S76="",IF(R76>Stunden2,Pausen2-SUM(N74:N75),IF(R76>Stunden1,Pausen1-SUM(N74:N75),0)),0) -> 0 | Q76: =IF(F76-E76>0,IF(S76="x",MROUND((F76-E76)*V84,1/1440),F76-E76),0) -> 0 | R76: =IF(Q76>0,IF(AND(E76=F75,S75<>"x"),Q76+R75-N75,Q76),0) -> 0 | S76: =IF(G76=DATEN!$L$87,"x","") ->  | V76: =SUMIF(T74:T83,"<>x",H74:H83)-N84 -> 00:00:00 | W76: Summe f. Kappung
B77: 2025-11-07 | M77: =IF(S77="x",TEXT(V84,"# ?/?")&" !",IF(T77="x","Nein","")) ->  | N77: =IF(S77="",IF(R77>Stunden2,Pausen2-SUM(N74:N76),IF(R77>Stunden1,Pausen1-SUM(N74:N76),0)),0) -> 0 | Q77: =IF(F77-E77>0,IF(S77="x",MROUND((F77-E77)*V84,1/1440),F77-E77),0) -> 0 | R77: =IF(Q77>0,IF(AND(E77=F76,S76<>"x"),Q77+R76-N76,Q77),0) -> 0 | S77: =IF(G77=DATEN!$L$87,"x","") ->  | V77: =IF(V76>V75,V75,V76) -> 0 | W77: Summe gekappt
B78: 2025-11-07 | M78: =IF(S78="x",TEXT(V84,"# ?/?")&" !",IF(T78="x","Nein","")) ->  | N78: =IF(S78="",IF(R78>Stunden2,Pausen2-SUM(N74:N77),IF(R78>Stunden1,Pausen1-SUM(N74:N77),0)),0) -> 0 | Q78: =IF(F78-E78>0,IF(S78="x",MROUND((F78-E78)*V84,1/1440),F78-E78),0) -> 0 | R78: =IF(Q78>0,IF(AND(E78=F77,S77<>"x"),Q78+R77-N77,Q78),0) -> 0 | S78: =IF(G78=DATEN!$L$87,"x","") ->  | V78: =V77+SUMIF(T74:T83,"x",H74:H83) -> 0 | W78: zzgl.kappungsfrei
B79: 2025-11-07 | M79: =IF(S79="x",TEXT(V84,"# ?/?")&" !",IF(T79="x","Nein","")) ->  | N79: =IF(S79="",IF(R79>Stunden2,Pausen2-SUM(N74:N78),IF(R79>Stunden1,Pausen1-SUM(N74:N78),0)),0) -> 0 | Q79: =IF(F79-E79>0,IF(S79="x",MROUND((F79-E79)*V84,1/1440),F79-E79),0) -> 0 | R79: 0 | S79: =IF(G79=DATEN!$L$87,"x","") -> 
B80: 2025-11-07 | M80: =IF(S80="x",TEXT(V84,"# ?/?")&" !",IF(T80="x","Nein","")) ->  | N80: =IF(S80="",IF(R80>Stunden2,Pausen2-SUM(N74:N79),IF(R80>Stunden1,Pausen1-SUM(N74:N79),0)),0) -> 0 | Q80: =IF(F80-E80>0,IF(S80="x",MROUND((F80-E80)*V84,1/1440),F80-E80),0) -> 0 | R80: 0 | S80: =IF(G80=DATEN!$L$87,"x","") -> 
B81: 2025-11-07 | M81: =IF(S81="x",TEXT(V84,"# ?/?")&" !",IF(T81="x","Nein","")) ->  | N81: =IF(S81="",IF(R81>Stunden2,Pausen2-SUM(N74:N80),IF(R81>Stunden1,Pausen1-SUM(N74:N80),0)),0) -> 0 | Q81: =IF(F81-E81>0,IF(S81="x",MROUND((F81-E81)*V84,1/1440),F81-E81),0) -> 0 | R81: 0 | S81: =IF(G81=DATEN!$L$87,"x","") -> 
B82: 2025-11-07 | M82: =IF(S82="x",TEXT(V84,"# ?/?")&" !",IF(T82="x","Nein","")) ->  | N82: =IF(S82="",IF(R82>Stunden2,Pausen2-SUM(N74:N81),IF(R82>Stunden1,Pausen1-SUM(N74:N81),0)),0) -> 0 | Q82: =IF(F82-E82>0,IF(S82="x",MROUND((F82-E82)*V84,1/1440),F82-E82),0) -> 0 | R82: 0 | S82: =IF(G82=DATEN!$L$87,"x","") -> 
B83: 2025-11-07 | M83: =IF(S83="x",TEXT(V84,"# ?/?")&" !",IF(T83="x","Nein","")) ->  | N83: =IF(S83="",IF(R83>Stunden2,Pausen2-SUM(N74:N82),IF(R83>Stunden1,Pausen1-SUM(N74:N82),0)),0) -> 0 | Q83: =IF(F83-E83>0,IF(S83="x",MROUND((F83-E83)*V84,1/1440),F83-E83),0) -> 0 | R83: 0 | S83: =IF(G83=DATEN!$L$87,"x","") -> 
A84: =IF(LEN(B84)>0,IF(WEEKDAY(B84)=4,TRUNC((B84-DATE(YEAR(B84+3-MOD(B84-2,7)),1,MOD(B84-2,7)-9))/7),IF(WEEKDAY(B84)=5,"KW","")),"") ->  | B84: =B73+1 -> 2025-11-07 | C84: =IF(WEEKDAY(B84)=1,7,WEEKDAY(B84)-1) -> 5 | D84: =IF(LEN(B84)>0,IF(OR(INDIRECT("DATEN!D"&9+C84)=0,NOT(ISNA(MATCH(B84,DATEN!$D$18:$D$33,0)))),"X",IF(OR(B84=DATEN!$D$26-1,B84=DATEN!$D$27-2,B84=DATEN!$D$30-2),"V","")),"") ->  | E84: =IF(E74>0,IF(VALUE("24:00:00")-VALUE(MAX(F63:F72))+VALUE(E74)<VALUE("11:00:00"),"Ruhezeit!",""),"") ->  | G84: Tagessumme: | H84: =V78 -> 0 | K84: =IF(LEN(B84)>0,IF(AND(D84<>"X",I84<>"U",I84<>"u",I84<>"K",I84<>"k",OR(I84="F",I84="f",H84<>0,DATEN!$H$8=1),J84<>"f",J84<>"F"),IF(D84="V",H84-INDIRECT("DATEN!D"&9+C84)/2,H84-INDIRECT("DATEN!D"&9+C84)),H84),"") -> -0.3291666667 | L84: =IF(X84>MaxWoZeit,"WoArbZeit>48h!","") ->  | M84: =IF(V76>V77,V76-V77,"") ->  | N84: =SUM(N74:N83) -> 0 | O84: =IF(WEEKDAY(B84,2)=7,SUMIF('Auswertung-Wochen'!$Y$2:$Y$366,P84,'Auswertung-Wochen'!$V$2:$V$366)-SUMIF('Auswertung-Wochen'!$Y$2:$Y$366,P84,'Auswertung-Wochen'!$W$2:$W$366),"") ->  | P84: =YEAR(B84)&"-"&TEXT(_xlfn.ISOWEEKNUM(B84),"00") -> 2025-45 | Q84: =SUM(Q74:Q83) -> 00:00:00 | V84: =IF(D84="x",DATEN!$N$88,DATEN!$N$87) -> 0.125 | W84: Faktor Rufbereitschaft | X84: =IF(LEN(B84)>0,IF(WEEKDAY(B84,2)=1,H84,H84+X73),X73) -> 0
A85: =IF(ISNA(MATCH(B95,DATEN!$D$18:$D$42,0)),"",INDEX(DATEN!$C$18:$D$42,MATCH(B95,DATEN!$D$18:$D$42,0),1)) ->  | B85: =B74+1 -> 2025-11-08 | H85: =IF(Q85>0,IF(ROUND(F85-E85,6)>=ROUND(Mindest,6),Q85,"<15m!"),"") ->  | M85: =IF(S85="x",TEXT(V95,"# ?/?")&" !",IF(T85="x","Nein","")) ->  | N85: =IF(S85="",IF(R85>Stunden2,Pausen2,IF(R85>Stunden1,Pausen1,0)),0) -> 0 | Q85: =IF(F85-E85>0,IF(S85="x",MROUND((F85-E85)*V95,1/1440),F85-E85),0) -> 0 | R85: =Q85 -> 0 | S85: =IF(G85=DATEN!$L$87,"x","") ->  | T85: =IF(ISNA(VLOOKUP(G85,ArbKapp,3,FALSE))=TRUE,"",IF(VLOOKUP(G85,ArbKapp,3,FALSE)="x","x","")) ->  | U85: =IF(ISNA(MATCH(G85,Kapp12Ordi,0)),"","x") ->  | V85: =Q95-N95 -> 0 | W85: Tagessumme
B86: 2025-11-08 | M86: =IF(S86="x",TEXT(V95,"# ?/?")&" !",IF(T86="x","Nein","")) ->  | N86: =IF(S86="",IF(R86>Stunden2,Pausen2-SUM(N85),IF(R86>Stunden1,Pausen1-SUM(N85),0)),0) -> 0 | Q86: =IF(F86-E86>0,IF(S86="x",MROUND((F86-E86)*V95,1/1440),F86-E86),0) -> 0 | R86: =IF(Q86>0,IF(AND(E86=F85,S85<>"x"),Q86+R85-N85,Q86),0) -> 0 | S86: =IF(G86=DATEN!$L$87,"x","") ->  | V86: =IF(ISNA(MATCH("x",U85:U94,0)),MaxZeit,MaxBildung) -> 0.4166666667 | W86: max. Tageszeit
B87: 2025-11-08 | M87: =IF(S87="x",TEXT(V95,"# ?/?")&" !",IF(T87="x","Nein","")) ->  | N87: =IF(S87="",IF(R87>Stunden2,Pausen2-SUM(N85:N86),IF(R87>Stunden1,Pausen1-SUM(N85:N86),0)),0) -> 0 | Q87: =IF(F87-E87>0,IF(S87="x",MROUND((F87-E87)*V95,1/1440),F87-E87),0) -> 0 | R87: =IF(Q87>0,IF(AND(E87=F86,S86<>"x"),Q87+R86-N86,Q87),0) -> 0 | S87: =IF(G87=DATEN!$L$87,"x","") ->  | V87: =SUMIF(T85:T94,"<>x",H85:H94)-N95 -> 00:00:00 | W87: Summe f. Kappung
B88: 2025-11-08 | M88: =IF(S88="x",TEXT(V95,"# ?/?")&" !",IF(T88="x","Nein","")) ->  | N88: =IF(S88="",IF(R88>Stunden2,Pausen2-SUM(N85:N87),IF(R88>Stunden1,Pausen1-SUM(N85:N87),0)),0) -> 0 | Q88: =IF(F88-E88>0,IF(S88="x",MROUND((F88-E88)*V95,1/1440),F88-E88),0) -> 0 | R88: =IF(Q88>0,IF(AND(E88=F87,S87<>"x"),Q88+R87-N87,Q88),0) -> 0 | S88: =IF(G88=DATEN!$L$87,"x","") ->  | V88: =IF(V87>V86,V86,V87) -> 0 | W88: Summe gekappt
B89: 2025-11-08 | M89: =IF(S89="x",TEXT(V95,"# ?/?")&" !",IF(T89="x","Nein","")) ->  | N89: =IF(S89="",IF(R89>Stunden2,Pausen2-SUM(N85:N88),IF(R89>Stunden1,Pausen1-SUM(N85:N88),0)),0) -> 0 | Q89: =IF(F89-E89>0,IF(S89="x",MROUND((F89-E89)*V95,1/1440),F89-E89),0) -> 0 | R89: =IF(Q89>0,IF(AND(E89=F88,S88<>"x"),Q89+R88-N88,Q89),0) -> 0 | S89: =IF(G89=DATEN!$L$87,"x","") ->  | V89: =V88+SUMIF(T85:T94,"x",H85:H94) -> 0 | W89: zzgl.kappungsfrei
B90: 2025-11-08 | M90: =IF(S90="x",TEXT(V95,"# ?/?")&" !",IF(T90="x","Nein","")) ->  | N90: =IF(S90="",IF(R90>Stunden2,Pausen2-SUM(N85:N89),IF(R90>Stunden1,Pausen1-SUM(N85:N89),0)),0) -> 0 | Q90: =IF(F90-E90>0,IF(S90="x",MROUND((F90-E90)*V95,1/1440),F90-E90),0) -> 0 | R90: 0 | S90: =IF(G90=DATEN!$L$87,"x","") -> 
B91: 2025-11-08 | M91: =IF(S91="x",TEXT(V95,"# ?/?")&" !",IF(T91="x","Nein","")) ->  | N91: =IF(S91="",IF(R91>Stunden2,Pausen2-SUM(N85:N90),IF(R91>Stunden1,Pausen1-SUM(N85:N90),0)),0) -> 0 | Q91: =IF(F91-E91>0,IF(S91="x",MROUND((F91-E91)*V95,1/1440),F91-E91),0) -> 0 | R91: 0 | S91: =IF(G91=DATEN!$L$87,"x","") -> 
B92: 2025-11-08 | M92: =IF(S92="x",TEXT(V95,"# ?/?")&" !",IF(T92="x","Nein","")) ->  | N92: =IF(S92="",IF(R92>Stunden2,Pausen2-SUM(N85:N91),IF(R92>Stunden1,Pausen1-SUM(N85:N91),0)),0) -> 0 | Q92: =IF(F92-E92>0,IF(S92="x",MROUND((F92-E92)*V95,1/1440),F92-E92),0) -> 0 | R92: 0 | S92: =IF(G92=DATEN!$L$87,"x","") -> 
B93: 2025-11-08 | M93: =IF(S93="x",TEXT(V95,"# ?/?")&" !",IF(T93="x","Nein","")) ->  | N93: =IF(S93="",IF(R93>Stunden2,Pausen2-SUM(N85:N92),IF(R93>Stunden1,Pausen1-SUM(N85:N92),0)),0) -> 0 | Q93: =IF(F93-E93>0,IF(S93="x",MROUND((F93-E93)*V95,1/1440),F93-E93),0) -> 0 | R93: 0 | S93: =IF(G93=DATEN!$L$87,"x","") -> 
B94: 2025-11-08 | M94: =IF(S94="x",TEXT(V95,"# ?/?")&" !",IF(T94="x","Nein","")) ->  | N94: =IF(S94="",IF(R94>Stunden2,Pausen2-SUM(N85:N93),IF(R94>Stunden1,Pausen1-SUM(N85:N93),0)),0) -> 0 | Q94: =IF(F94-E94>0,IF(S94="x",MROUND((F94-E94)*V95,1/1440),F94-E94),0) -> 0 | R94: 0 | S94: =IF(G94=DATEN!$L$87,"x","") -> 
A95: =IF(LEN(B95)>0,IF(WEEKDAY(B95)=4,TRUNC((B95-DATE(YEAR(B95+3-MOD(B95-2,7)),1,MOD(B95-2,7)-9))/7),IF(WEEKDAY(B95)=5,"KW","")),"") ->  | B95: =B84+1 -> 2025-11-08 | C95: =IF(WEEKDAY(B95)=1,7,WEEKDAY(B95)-1) -> 6 | D95: =IF(LEN(B95)>0,IF(OR(INDIRECT("DATEN!D"&9+C95)=0,NOT(ISNA(MATCH(B95,DATEN!$D$18:$D$33,0)))),"X",IF(OR(B95=DATEN!$D$26-1,B95=DATEN!$D$27-2,B95=DATEN!$D$30-2),"V","")),"") -> X | E95: =IF(E85>0,IF(VALUE("24:00:00")-VALUE(MAX(F74:F83))+VALUE(E85)<VALUE("11:00:00"),"Ruhezeit!",""),"") ->  | G95: Tagessumme: | H95: =V89 -> 0 | K95: =IF(LEN(B95)>0,IF(AND(D95<>"X",I95<>"U",I95<>"u",I95<>"K",I95<>"k",OR(I95="F",I95="f",H95<>0,DATEN!$H$8=1),J95<>"f",J95<>"F"),IF(D95="V",H95-INDIRECT("DATEN!D"&9+C95)/2,H95-INDIRECT("DATEN!D"&9+C95)),H95),"") -> 0 | L95: =IF(X95>MaxWoZeit,"WoArbZeit>48h!","") ->  | M95: =IF(V87>V88,V87-V88,"") ->  | N95: =SUM(N85:N94) -> 0 | O95: =IF(WEEKDAY(B95,2)=7,SUMIF('Auswertung-Wochen'!$Y$2:$Y$366,P95,'Auswertung-Wochen'!$V$2:$V$366)-SUMIF('Auswertung-Wochen'!$Y$2:$Y$366,P95,'Auswertung-Wochen'!$W$2:$W$366),"") ->  | P95: =YEAR(B95)&"-"&TEXT(_xlfn.ISOWEEKNUM(B95),"00") -> 2025-45 | Q95: =SUM(Q85:Q94) -> 00:00:00 | V95: =IF(D95="x",DATEN!$N$88,DATEN!$N$87) -> 0.1666666667 | W95: Faktor Rufbereitschaft | X95: =IF(LEN(B95)>0,IF(WEEKDAY(B95,2)=1,H95,H95+X84),X84) -> 0
A96: =IF(ISNA(MATCH(B106,DATEN!$D$18:$D$42,0)),"",INDEX(DATEN!$C$18:$D$42,MATCH(B106,DATEN!$D$18:$D$42,0),1)) ->  | B96: =B85+1 -> 2025-11-09 | H96: =IF(Q96>0,IF(ROUND(F96-E96,6)>=ROUND(Mindest,6),Q96,"<15m!"),"") ->  | M96: =IF(S96="x",TEXT(V106,"# ?/?")&" !",IF(T96="x","Nein","")) ->  | N96: =IF(S96="",IF(R96>Stunden2,Pausen2,IF(R96>Stunden1,Pausen1,0)),0) -> 0 | Q96: =IF(F96-E96>0,IF(S96="x",MROUND((F96-E96)*V106,1/1440),F96-E96),0) -> 0 | R96: =Q96 -> 0 | S96: =IF(G96=DATEN!$L$87,"x","") ->  | T96: =IF(ISNA(VLOOKUP(G96,ArbKapp,3,FALSE))=TRUE,"",IF(VLOOKUP(G96,ArbKapp,3,FALSE)="x","x","")) ->  | U96: =IF(ISNA(MATCH(G96,Kapp12Ordi,0)),"","x") ->  | V96: =Q106-N106 -> 0 | W96: Tagessumme
B97: 2025-11-09 | M97: =IF(S97="x",TEXT(V106,"# ?/?")&" !",IF(T97="x","Nein","")) ->  | N97: =IF(S97="",IF(R97>Stunden2,Pausen2-SUM(N96),IF(R97>Stunden1,Pausen1-SUM(N96),0)),0) -> 0 | Q97: =IF(F97-E97>0,IF(S97="x",MROUND((F97-E97)*V106,1/1440),F97-E97),0) -> 0 | R97: =IF(Q97>0,IF(AND(E97=F96,S96<>"x"),Q97+R96-N96,Q97),0) -> 0 | S97: =IF(G97=DATEN!$L$87,"x","") ->  | V97: =IF(ISNA(MATCH("x",U96:U105,0)),MaxZeit,MaxBildung) -> 0.4166666667 | W97: max. Tageszeit
B98: 2025-11-09 | M98: =IF(S98="x",TEXT(V106,"# ?/?")&" !",IF(T98="x","Nein","")) ->  | N98: =IF(S98="",IF(R98>Stunden2,Pausen2-SUM(N96:N97),IF(R98>Stunden1,Pausen1-SUM(N96:N97),0)),0) -> 0 | Q98: =IF(F98-E98>0,IF(S98="x",MROUND((F98-E98)*V106,1/1440),F98-E98),0) -> 0 | R98: =IF(Q98>0,IF(AND(E98=F97,S97<>"x"),Q98+R97-N97,Q98),0) -> 0 | S98: =IF(G98=DATEN!$L$87,"x","") ->  | V98: =SUMIF(T96:T105,"<>x",H96:H105)-N106 -> 00:00:00 | W98: Summe f. Kappung
B99: 2025-11-09 | M99: =IF(S99="x",TEXT(V106,"# ?/?")&" !",IF(T99="x","Nein","")) ->  | N99: =IF(S99="",IF(R99>Stunden2,Pausen2-SUM(N96:N98),IF(R99>Stunden1,Pausen1-SUM(N96:N98),0)),0) -> 0 | Q99: =IF(F99-E99>0,IF(S99="x",MROUND((F99-E99)*V106,1/1440),F99-E99),0) -> 0 | R99: =IF(Q99>0,IF(AND(E99=F98,S98<>"x"),Q99+R98-N98,Q99),0) -> 0 | S99: =IF(G99=DATEN!$L$87,"x","") ->  | V99: =IF(V98>V97,V97,V98) -> 0 | W99: Summe gekappt
B100: 2025-11-09 | M100: =IF(S100="x",TEXT(V106,"# ?/?")&" !",IF(T100="x","Nein","")) ->  | N100: =IF(S100="",IF(R100>Stunden2,Pausen2-SUM(N96:N99),IF(R100>Stunden1,Pausen1-SUM(N96:N99),0)),0) -> 0 | Q100: =IF(F100-E100>0,IF(S100="x",MROUND((F100-E100)*V106,1/1440),F100-E100),0) -> 0 | R100: =IF(Q100>0,IF(AND(E100=F99,S99<>"x"),Q100+R99-N99,Q100),0) -> 0 | S100: =IF(G100=DATEN!$L$87,"x","") ->  | V100: =V99+SUMIF(T96:T105,"x",H96:H105) -> 0 | W100: zzgl.kappungsfrei
B101: 2025-11-09 | M101: =IF(S101="x",TEXT(V106,"# ?/?")&" !",IF(T101="x","Nein","")) ->  | N101: =IF(S101="",IF(R101>Stunden2,Pausen2-SUM(N96:N100),IF(R101>Stunden1,Pausen1-SUM(N96:N100),0)),0) -> 0 | Q101: =IF(F101-E101>0,IF(S101="x",MROUND((F101-E101)*V106,1/1440),F101-E101),0) -> 0 | R101: 0 | S101: =IF(G101=DATEN!$L$87,"x","") -> 
B102: 2025-11-09 | M102: =IF(S102="x",TEXT(V106,"# ?/?")&" !",IF(T102="x","Nein","")) ->  | N102: =IF(S102="",IF(R102>Stunden2,Pausen2-SUM(N96:N101),IF(R102>Stunden1,Pausen1-SUM(N96:N101),0)),0) -> 0 | Q102: =IF(F102-E102>0,IF(S102="x",MROUND((F102-E102)*V106,1/1440),F102-E102),0) -> 0 | R102: 0 | S102: =IF(G102=DATEN!$L$87,"x","") -> 
B103: 2025-11-09 | M103: =IF(S103="x",TEXT(V106,"# ?/?")&" !",IF(T103="x","Nein","")) ->  | N103: =IF(S103="",IF(R103>Stunden2,Pausen2-SUM(N96:N102),IF(R103>Stunden1,Pausen1-SUM(N96:N102),0)),0) -> 0 | Q103: =IF(F103-E103>0,IF(S103="x",MROUND((F103-E103)*V106,1/1440),F103-E103),0) -> 0 | R103: 0 | S103: =IF(G103=DATEN!$L$87,"x","") -> 
B104: 2025-11-09 | M104: =IF(S104="x",TEXT(V106,"# ?/?")&" !",IF(T104="x","Nein","")) ->  | N104: =IF(S104="",IF(R104>Stunden2,Pausen2-SUM(N96:N103),IF(R104>Stunden1,Pausen1-SUM(N96:N103),0)),0) -> 0 | Q104: =IF(F104-E104>0,IF(S104="x",MROUND((F104-E104)*V106,1/1440),F104-E104),0) -> 0 | R104: 0 | S104: =IF(G104=DATEN!$L$87,"x","") -> 
B105: 2025-11-09 | M105: =IF(S105="x",TEXT(V106,"# ?/?")&" !",IF(T105="x","Nein","")) ->  | N105: =IF(S105="",IF(R105>Stunden2,Pausen2-SUM(N96:N104),IF(R105>Stunden1,Pausen1-SUM(N96:N104),0)),0) -> 0 | Q105: =IF(F105-E105>0,IF(S105="x",MROUND((F105-E105)*V106,1/1440),F105-E105),0) -> 0 | R105: 0 | S105: =IF(G105=DATEN!$L$87,"x","") -> 
A106: =IF(LEN(B106)>0,IF(WEEKDAY(B106)=4,TRUNC((B106-DATE(YEAR(B106+3-MOD(B106-2,7)),1,MOD(B106-2,7)-9))/7),IF(WEEKDAY(B106)=5,"KW","")),"") ->  | B106: =B95+1 -> 2025-11-09 | C106: =IF(WEEKDAY(B106)=1,7,WEEKDAY(B106)-1) -> 7 | D106: =IF(LEN(B106)>0,IF(OR(INDIRECT("DATEN!D"&9+C106)=0,NOT(ISNA(MATCH(B106,DATEN!$D$18:$D$33,0)))),"X",IF(OR(B106=DATEN!$D$26-1,B106=DATEN!$D$27-2,B106=DATEN!$D$30-2),"V","")),"") -> X | E106: =IF(E96>0,IF(VALUE("24:00:00")-VALUE(MAX(F85:F94))+VALUE(E96)<VALUE("11:00:00"),"Ruhezeit!",""),"") ->  | G106: Tagessumme: | H106: =V100 -> 0 | K106: =IF(LEN(B106)>0,IF(AND(D106<>"X",I106<>"U",I106<>"u",I106<>"K",I106<>"k",OR(I106="F",I106="f",H106<>0,DATEN!$H$8=1),J106<>"f",J106<>"F"),IF(D106="V",H106-INDIRECT("DATEN!D"&9+C106)/2,H106-INDIRECT("DATEN!D"&9+C106)),H106),"") -> 0 | L106: =IF(X106>MaxWoZeit,"WoArbZeit>48h!","") ->  | M106: =IF(V98>V99,V98-V99,"") ->  | N106: =SUM(N96:N105) -> 0 | O106: =IF(WEEKDAY(B106,2)=7,SUMIF('Auswertung-Wochen'!$Y$2:$Y$366,P106,'Auswertung-Wochen'!$V$2:$V$366)-SUMIF('Auswertung-Wochen'!$Y$2:$Y$366,P106,'Auswertung-Wochen'!$W$2:$W$366),"") -> -1.645833333 | P106: =YEAR(B106)&"-"&TEXT(_xlfn.ISOWEEKNUM(B106),"00") -> 2025-45 | Q106: =SUM(Q96:Q105) -> 00:00:00 | V106: =IF(D106="x",DATEN!$N$88,DATEN!$N$87) -> 0.1666666667 | W106: Faktor Rufbereitschaft | X106: =IF(LEN(B106)>0,IF(WEEKDAY(B106,2)=1,H106,H106+X95),X95) -> 0
A107: =IF(ISNA(MATCH(B117,DATEN!$D$18:$D$42,0)),"",INDEX(DATEN!$C$18:$D$42,MATCH(B117,DATEN!$D$18:$D$42,0),1)) ->  | B107: =B96+1 -> 2025-11-10 | H107: =IF(Q107>0,IF(ROUND(F107-E107,6)>=ROUND(Mindest,6),Q107,"<15m!"),"") ->  | M107: =IF(S107="x",TEXT(V117,"# ?/?")&" !",IF(T107="x","Nein","")) ->  | N107: =IF(S107="",IF(R107>Stunden2,Pausen2,IF(R107>Stunden1,Pausen1,0)),0) -> 0 | Q107: =IF(F107-E107>0,IF(S107="x",MROUND((F107-E107)*V117,1/1440),F107-E107),0) -> 0 | R107: =Q107 -> 0 | S107: =IF(G107=DATEN!$L$87,"x","") ->  | T107: =IF(ISNA(VLOOKUP(G107,ArbKapp,3,FALSE))=TRUE,"",IF(VLOOKUP(G107,ArbKapp,3,FALSE)="x","x","")) ->  | U107: =IF(ISNA(MATCH(G107,Kapp12Ordi,0)),"","x") ->  | V107: =Q117-N117 -> 0 | W107: Tagessumme
B108: 2025-11-10 | M108: =IF(S108="x",TEXT(V117,"# ?/?")&" !",IF(T108="x","Nein","")) ->  | N108: =IF(S108="",IF(R108>Stunden2,Pausen2-SUM(N107),IF(R108>Stunden1,Pausen1-SUM(N107),0)),0) -> 0 | Q108: =IF(F108-E108>0,IF(S108="x",MROUND((F108-E108)*V117,1/1440),F108-E108),0) -> 0 | R108: =IF(Q108>0,IF(AND(E108=F107,S107<>"x"),Q108+R107-N107,Q108),0) -> 0 | S108: =IF(G108=DATEN!$L$87,"x","") ->  | V108: =IF(ISNA(MATCH("x",U107:U116,0)),MaxZeit,MaxBildung) -> 0.4166666667 | W108: max. Tageszeit
B109: 2025-11-10 | M109: =IF(S109="x",TEXT(V117,"# ?/?")&" !",IF(T109="x","Nein","")) ->  | N109: =IF(S109="",IF(R109>Stunden2,Pausen2-SUM(N107:N108),IF(R109>Stunden1,Pausen1-SUM(N107:N108),0)),0) -> 0 | Q109: =IF(F109-E109>0,IF(S109="x",MROUND((F109-E109)*V117,1/1440),F109-E109),0) -> 0 | R109: =IF(Q109>0,IF(AND(E109=F108,S108<>"x"),Q109+R108-N108,Q109),0) -> 0 | S109: =IF(G109=DATEN!$L$87,"x","") ->  | V109: =SUMIF(T107:T116,"<>x",H107:H116)-N117 -> 00:00:00 | W109: Summe f. Kappung
B110: 2025-11-10 | M110: =IF(S110="x",TEXT(V117,"# ?/?")&" !",IF(T110="x","Nein","")) ->  | N110: =IF(S110="",IF(R110>Stunden2,Pausen2-SUM(N107:N109),IF(R110>Stunden1,Pausen1-SUM(N107:N109),0)),0) -> 0 | Q110: =IF(F110-E110>0,IF(S110="x",MROUND((F110-E110)*V117,1/1440),F110-E110),0) -> 0 | R110: =IF(Q110>0,IF(AND(E110=F109,S109<>"x"),Q110+R109-N109,Q110),0) -> 0 | S110: =IF(G110=DATEN!$L$87,"x","") ->  | V110: =IF(V109>V108,V108,V109) -> 0 | W110: Summe gekappt
B111: 2025-11-10 | M111: =IF(S111="x",TEXT(V117,"# ?/?")&" !",IF(T111="x","Nein","")) ->  | N111: =IF(S111="",IF(R111>Stunden2,Pausen2-SUM(N107:N110),IF(R111>Stunden1,Pausen1-SUM(N107:N110),0)),0) -> 0 | Q111: =IF(F111-E111>0,IF(S111="x",MROUND((F111-E111)*V117,1/1440),F111-E111),0) -> 0 | R111: =IF(Q111>0,IF(AND(E111=F110,S110<>"x"),Q111+R110-N110,Q111),0) -> 0 | S111: =IF(G111=DATEN!$L$87,"x","") ->  | V111: =V110+SUMIF(T107:T116,"x",H107:H116) -> 0 | W111: zzgl.kappungsfrei
B112: 2025-11-10 | M112: =IF(S112="x",TEXT(V117,"# ?/?")&" !",IF(T112="x","Nein","")) ->  | N112: =IF(S112="",IF(R112>Stunden2,Pausen2-SUM(N107:N111),IF(R112>Stunden1,Pausen1-SUM(N107:N111),0)),0) -> 0 | Q112: =IF(F112-E112>0,IF(S112="x",MROUND((F112-E112)*V117,1/1440),F112-E112),0) -> 0 | R112: 0 | S112: =IF(G112=DATEN!$L$87,"x","") -> 
B113: 2025-11-10 | M113: =IF(S113="x",TEXT(V117,"# ?/?")&" !",IF(T113="x","Nein","")) ->  | N113: =IF(S113="",IF(R113>Stunden2,Pausen2-SUM(N107:N112),IF(R113>Stunden1,Pausen1-SUM(N107:N112),0)),0) -> 0 | Q113: =IF(F113-E113>0,IF(S113="x",MROUND((F113-E113)*V117,1/1440),F113-E113),0) -> 0 | R113: 0 | S113: =IF(G113=DATEN!$L$87,"x","") -> 
B114: 2025-11-10 | M114: =IF(S114="x",TEXT(V117,"# ?/?")&" !",IF(T114="x","Nein","")) ->  | N114: =IF(S114="",IF(R114>Stunden2,Pausen2-SUM(N107:N113),IF(R114>Stunden1,Pausen1-SUM(N107:N113),0)),0) -> 0 | Q114: =IF(F114-E114>0,IF(S114="x",MROUND((F114-E114)*V117,1/1440),F114-E114),0) -> 0 | R114: 0 | S114: =IF(G114=DATEN!$L$87,"x","") -> 
B115: 2025-11-10 | M115: =IF(S115="x",TEXT(V117,"# ?/?")&" !",IF(T115="x","Nein","")) ->  | N115: =IF(S115="",IF(R115>Stunden2,Pausen2-SUM(N107:N114),IF(R115>Stunden1,Pausen1-SUM(N107:N114),0)),0) -> 0 | Q115: =IF(F115-E115>0,IF(S115="x",MROUND((F115-E115)*V117,1/1440),F115-E115),0) -> 0 | R115: 0 | S115: =IF(G115=DATEN!$L$87,"x","") -> 
B116: 2025-11-10 | M116: =IF(S116="x",TEXT(V117,"# ?/?")&" !",IF(T116="x","Nein","")) ->  | N116: =IF(S116="",IF(R116>Stunden2,Pausen2-SUM(N107:N115),IF(R116>Stunden1,Pausen1-SUM(N107:N115),0)),0) -> 0 | Q116: =IF(F116-E116>0,IF(S116="x",MROUND((F116-E116)*V117,1/1440),F116-E116),0) -> 0 | R116: 0 | S116: =IF(G116=DATEN!$L$87,"x","") -> 
A117: =IF(LEN(B117)>0,IF(WEEKDAY(B117)=4,TRUNC((B117-DATE(YEAR(B117+3-MOD(B117-2,7)),1,MOD(B117-2,7)-9))/7),IF(WEEKDAY(B117)=5,"KW","")),"") ->  | B117: =B106+1 -> 2025-11-10 | C117: =IF(WEEKDAY(B117)=1,7,WEEKDAY(B117)-1) -> 1 | D117: =IF(LEN(B117)>0,IF(OR(INDIRECT("DATEN!D"&9+C117)=0,NOT(ISNA(MATCH(B117,DATEN!$D$18:$D$33,0)))),"X",IF(OR(B117=DATEN!$D$26-1,B117=DATEN!$D$27-2,B117=DATEN!$D$30-2),"V","")),"") ->  | E117: =IF(E107>0,IF(VALUE("24:00:00")-VALUE(MAX(F96:F105))+VALUE(E107)<VALUE("11:00:00"),"Ruhezeit!",""),"") ->  | G117: Tagessumme: | H117: =V111 -> 0 | K117: =IF(LEN(B117)>0,IF(AND(D117<>"X",I117<>"U",I117<>"u",I117<>"K",I117<>"k",OR(I117="F",I117="f",H117<>0,DATEN!$H$8=1),J117<>"f",J117<>"F"),IF(D117="V",H117-INDIRECT("DATEN!D"&9+C117)/2,H117-INDIRECT("DATEN!D"&9+C117)),H117),"") -> -0.3291666667 | L117: =IF(X117>MaxWoZeit,"WoArbZeit>48h!","") ->  | M117: =IF(V109>V110,V109-V110,"") ->  | N117: =SUM(N107:N116) -> 0 | O117: =IF(WEEKDAY(B117,2)=7,SUMIF('Auswertung-Wochen'!$Y$2:$Y$366,P117,'Auswertung-Wochen'!$V$2:$V$366)-SUMIF('Auswertung-Wochen'!$Y$2:$Y$366,P117,'Auswertung-Wochen'!$W$2:$W$366),"") ->  | P117: =YEAR(B117)&"-"&TEXT(_xlfn.ISOWEEKNUM(B117),"00") -> 2025-46 | Q117: =SUM(Q107:Q116) -> 00:00:00 | V117: =IF(D117="x",DATEN!$N$88,DATEN!$N$87) -> 0.125 | W117: Faktor Rufbereitschaft | X117: =IF(LEN(B117)>0,IF(WEEKDAY(B117,2)=1,H117,H117+X106),X106) -> 0
A118: =IF(ISNA(MATCH(B128,DATEN!$D$18:$D$42,0)),"",INDEX(DATEN!$C$18:$D$42,MATCH(B128,DATEN!$D$18:$D$42,0),1)) ->  | B118: =B107+1 -> 2025-11-11 | H118: =IF(Q118>0,IF(ROUND(F118-E118,6)>=ROUND(Mindest,6),Q118,"<15m!"),"") ->  | M118: =IF(S118="x",TEXT(V128,"# ?/?")&" !",IF(T118="x","Nein","")) ->  | N118: =IF(S118="",IF(R118>Stunden2,Pausen2,IF(R118>Stunden1,Pausen1,0)),0) -> 0 | Q118: =IF(F118-E118>0,IF(S118="x",MROUND((F118-E118)*V128,1/1440),F118-E118),0) -> 0 | R118: =Q118 -> 0 | S118: =IF(G118=DATEN!$L$87,"x","") ->  | T118: =IF(ISNA(VLOOKUP(G118,ArbKapp,3,FALSE))=TRUE,"",IF(VLOOKUP(G118,ArbKapp,3,FALSE)="x","x","")) ->  | U118: =IF(ISNA(MATCH(G118,Kapp12Ordi,0)),"","x") ->  | V118: =Q128-N128 -> 0 | W118: Tagessumme
B119: 2025-11-11 | M119: =IF(S119="x",TEXT(V128,"# ?/?")&" !",IF(T119="x","Nein","")) ->  | N119: =IF(S119="",IF(R119>Stunden2,Pausen2-SUM(N118),IF(R119>Stunden1,Pausen1-SUM(N118),0)),0) -> 0 | Q119: =IF(F119-E119>0,IF(S119="x",MROUND((F119-E119)*V128,1/1440),F119-E119),0) -> 0 | R119: =IF(Q119>0,IF(AND(E119=F118,S118<>"x"),Q119+R118-N118,Q119),0) -> 0 | S119: =IF(G119=DATEN!$L$87,"x","") ->  | V119: =IF(ISNA(MATCH("x",U118:U127,0)),MaxZeit,MaxBildung) -> 0.4166666667 | W119: max. Tageszeit
B120: 2025-11-11 | M120: =IF(S120="x",TEXT(V128,"# ?/?")&" !",IF(T120="x","Nein","")) ->  | N120: =IF(S120="",IF(R120>Stunden2,Pausen2-SUM(N118:N119),IF(R120>Stunden1,Pausen1-SUM(N118:N119),0)),0) -> 0 | Q120: =IF(F120-E120>0,IF(S120="x",MROUND((F120-E120)*V128,1/1440),F120-E120),0) -> 0 | R120: =IF(Q120>0,IF(AND(E120=F119,S119<>"x"),Q120+R119-N119,Q120),0) -> 0 | S120: =IF(G120=DATEN!$L$87,"x","") ->  | V120: =SUMIF(T118:T127,"<>x",H118:H127)-N128 -> 00:00:00 | W120: Summe f. Kappung
B121: 2025-11-11 | M121: =IF(S121="x",TEXT(V128,"# ?/?")&" !",IF(T121="x","Nein","")) ->  | N121: =IF(S121="",IF(R121>Stunden2,Pausen2-SUM(N118:N120),IF(R121>Stunden1,Pausen1-SUM(N118:N120),0)),0) -> 0 | Q121: =IF(F121-E121>0,IF(S121="x",MROUND((F121-E121)*V128,1/1440),F121-E121),0) -> 0 | R121: =IF(Q121>0,IF(AND(E121=F120,S120<>"x"),Q121+R120-N120,Q121),0) -> 0 | S121: =IF(G121=DATEN!$L$87,"x","") ->  | V121: =IF(V120>V119,V119,V120) -> 0 | W121: Summe gekappt
B122: 2025-11-11 | M122: =IF(S122="x",TEXT(V128,"# ?/?")&" !",IF(T122="x","Nein","")) ->  | N122: =IF(S122="",IF(R122>Stunden2,Pausen2-SUM(N118:N121),IF(R122>Stunden1,Pausen1-SUM(N118:N121),0)),0) -> 0 | Q122: =IF(F122-E122>0,IF(S122="x",MROUND((F122-E122)*V128,1/1440),F122-E122),0) -> 0 | R122: =IF(Q122>0,IF(AND(E122=F121,S121<>"x"),Q122+R121-N121,Q122),0) -> 0 | S122: =IF(G122=DATEN!$L$87,"x","") ->  | V122: =V121+SUMIF(T118:T127,"x",H118:H127) -> 0 | W122: zzgl.kappungsfrei
B123: 2025-11-11 | M123: =IF(S123="x",TEXT(V128,"# ?/?")&" !",IF(T123="x","Nein","")) ->  | N123: =IF(S123="",IF(R123>Stunden2,Pausen2-SUM(N118:N122),IF(R123>Stunden1,Pausen1-SUM(N118:N122),0)),0) -> 0 | Q123: =IF(F123-E123>0,IF(S123="x",MROUND((F123-E123)*V128,1/1440),F123-E123),0) -> 0 | R123: 0 | S123: =IF(G123=DATEN!$L$87,"x","") -> 
B124: 2025-11-11 | M124: =IF(S124="x",TEXT(V128,"# ?/?")&" !",IF(T124="x","Nein","")) ->  | N124: =IF(S124="",IF(R124>Stunden2,Pausen2-SUM(N118:N123),IF(R124>Stunden1,Pausen1-SUM(N118:N123),0)),0) -> 0 | Q124: =IF(F124-E124>0,IF(S124="x",MROUND((F124-E124)*V128,1/1440),F124-E124),0) -> 0 | R124: 0 | S124: =IF(G124=DATEN!$L$87,"x","") -> 
B125: 2025-11-11 | M125: =IF(S125="x",TEXT(V128,"# ?/?")&" !",IF(T125="x","Nein","")) ->  | N125: =IF(S125="",IF(R125>Stunden2,Pausen2-SUM(N118:N124),IF(R125>Stunden1,Pausen1-SUM(N118:N124),0)),0) -> 0 | Q125: =IF(F125-E125>0,IF(S125="x",MROUND((F125-E125)*V128,1/1440),F125-E125),0) -> 0 | R125: 0 | S125: =IF(G125=DATEN!$L$87,"x","") -> 
B126: 2025-11-11 | M126: =IF(S126="x",TEXT(V128,"# ?/?")&" !",IF(T126="x","Nein","")) ->  | N126: =IF(S126="",IF(R126>Stunden2,Pausen2-SUM(N118:N125),IF(R126>Stunden1,Pausen1-SUM(N118:N125),0)),0) -> 0 | Q126: =IF(F126-E126>0,IF(S126="x",MROUND((F126-E126)*V128,1/1440),F126-E126),0) -> 0 | R126: 0 | S126: =IF(G126=DATEN!$L$87,"x","") -> 
B127: 2025-11-11 | M127: =IF(S127="x",TEXT(V128,"# ?/?")&" !",IF(T127="x","Nein","")) ->  | N127: =IF(S127="",IF(R127>Stunden2,Pausen2-SUM(N118:N126),IF(R127>Stunden1,Pausen1-SUM(N118:N126),0)),0) -> 0 | Q127: =IF(F127-E127>0,IF(S127="x",MROUND((F127-E127)*V128,1/1440),F127-E127),0) -> 0 | R127: 0 | S127: =IF(G127=DATEN!$L$87,"x","") -> 
A128: =IF(LEN(B128)>0,IF(WEEKDAY(B128)=4,TRUNC((B128-DATE(YEAR(B128+3-MOD(B128-2,7)),1,MOD(B128-2,7)-9))/7),IF(WEEKDAY(B128)=5,"KW","")),"") ->  | B128: =B117+1 -> 2025-11-11 | C128: =IF(WEEKDAY(B128)=1,7,WEEKDAY(B128)-1) -> 2 | D128: =IF(LEN(B128)>0,IF(OR(INDIRECT("DATEN!D"&9+C128)=0,NOT(ISNA(MATCH(B128,DATEN!$D$18:$D$33,0)))),"X",IF(OR(B128=DATEN!$D$26-1,B128=DATEN!$D$27-2,B128=DATEN!$D$30-2),"V","")),"") ->  | E128: =IF(E118>0,IF(VALUE("24:00:00")-VALUE(MAX(F107:F116))+VALUE(E118)<VALUE("11:00:00"),"Ruhezeit!",""),"") ->  | G128: Tagessumme: | H128: =V122 -> 0 | K128: =IF(LEN(B128)>0,IF(AND(D128<>"X",I128<>"U",I128<>"u",I128<>"K",I128<>"k",OR(I128="F",I128="f",H128<>0,DATEN!$H$8=1),J128<>"f",J128<>"F"),IF(D128="V",H128-INDIRECT("DATEN!D"&9+C128)/2,H128-INDIRECT("DATEN!D"&9+C128)),H128),"") -> -0.3291666667 | L128: =IF(X128>MaxWoZeit,"WoArbZeit>48h!","") ->  | M128: =IF(V120>V121,V120-V121,"") ->  | N128: =SUM(N118:N127) -> 0 | O128: =IF(WEEKDAY(B128,2)=7,SUMIF('Auswertung-Wochen'!$Y$2:$Y$366,P128,'Auswertung-Wochen'!$V$2:$V$366)-SUMIF('Auswertung-Wochen'!$Y$2:$Y$366,P128,'Auswertung-Wochen'!$W$2:$W$366),"") ->  | P128: =YEAR(B128)&"-"&TEXT(_xlfn.ISOWEEKNUM(B128),"00") -> 2025-46 | Q128: =SUM(Q118:Q127) -> 00:00:00 | V128: =IF(D128="x",DATEN!$N$88,DATEN!$N$87) -> 0.125 | W128: Faktor Rufbereitschaft | X128: =IF(LEN(B128)>0,IF(WEEKDAY(B128,2)=1,H128,H128+X117),X117) -> 0
A129: =IF(ISNA(MATCH(B139,DATEN!$D$18:$D$42,0)),"",INDEX(DATEN!$C$18:$D$42,MATCH(B139,DATEN!$D$18:$D$42,0),1)) ->  | B129: =B118+1 -> 2025-11-12 | H129: =IF(Q129>0,IF(ROUND(F129-E129,6)>=ROUND(Mindest,6),Q129,"<15m!"),"") ->  | M129: =IF(S129="x",TEXT(V139,"# ?/?")&" !",IF(T129="x","Nein","")) ->  | N129: =IF(S129="",IF(R129>Stunden2,Pausen2,IF(R129>Stunden1,Pausen1,0)),0) -> 0 | Q129: =IF(F129-E129>0,IF(S129="x",MROUND((F129-E129)*V139,1/1440),F129-E129),0) -> 0 | R129: =Q129 -> 0 | S129: =IF(G129=DATEN!$L$87,"x","") ->  | T129: =IF(ISNA(VLOOKUP(G129,ArbKapp,3,FALSE))=TRUE,"",IF(VLOOKUP(G129,ArbKapp,3,FALSE)="x","x","")) ->  | U129: =IF(ISNA(MATCH(G129,Kapp12Ordi,0)),"","x") ->  | V129: =Q139-N139 -> 0 | W129: Tagessumme
B130: 2025-11-12 | M130: =IF(S130="x",TEXT(V139,"# ?/?")&" !",IF(T130="x","Nein","")) ->  | N130: =IF(S130="",IF(R130>Stunden2,Pausen2-SUM(N129),IF(R130>Stunden1,Pausen1-SUM(N129),0)),0) -> 0 | Q130: =IF(F130-E130>0,IF(S130="x",MROUND((F130-E130)*V139,1/1440),F130-E130),0) -> 0 | R130: =IF(Q130>0,IF(AND(E130=F129,S129<>"x"),Q130+R129-N129,Q130),0) -> 0 | S130: =IF(G130=DATEN!$L$87,"x","") ->  | V130: =IF(ISNA(MATCH("x",U129:U138,0)),MaxZeit,MaxBildung) -> 0.4166666667 | W130: max. Tageszeit
B131: 2025-11-12 | M131: =IF(S131="x",TEXT(V139,"# ?/?")&" !",IF(T131="x","Nein","")) ->  | N131: =IF(S131="",IF(R131>Stunden2,Pausen2-SUM(N129:N130),IF(R131>Stunden1,Pausen1-SUM(N129:N130),0)),0) -> 0 | Q131: =IF(F131-E131>0,IF(S131="x",MROUND((F131-E131)*V139,1/1440),F131-E131),0) -> 0 | R131: =IF(Q131>0,IF(AND(E131=F130,S130<>"x"),Q131+R130-N130,Q131),0) -> 0 | S131: =IF(G131=DATEN!$L$87,"x","") ->  | V131: =SUMIF(T129:T138,"<>x",H129:H138)-N139 -> 00:00:00 | W131: Summe f. Kappung
B132: 2025-11-12 | M132: =IF(S132="x",TEXT(V139,"# ?/?")&" !",IF(T132="x","Nein","")) ->  | N132: =IF(S132="",IF(R132>Stunden2,Pausen2-SUM(N129:N131),IF(R132>Stunden1,Pausen1-SUM(N129:N131),0)),0) -> 0 | Q132: =IF(F132-E132>0,IF(S132="x",MROUND((F132-E132)*V139,1/1440),F132-E132),0) -> 0 | R132: =IF(Q132>0,IF(AND(E132=F131,S131<>"x"),Q132+R131-N131,Q132),0) -> 0 | S132: =IF(G132=DATEN!$L$87,"x","") ->  | V132: =IF(V131>V130,V130,V131) -> 0 | W132: Summe gekappt
B133: 2025-11-12 | M133: =IF(S133="x",TEXT(V139,"# ?/?")&" !",IF(T133="x","Nein","")) ->  | N133: =IF(S133="",IF(R133>Stunden2,Pausen2-SUM(N129:N132),IF(R133>Stunden1,Pausen1-SUM(N129:N132),0)),0) -> 0 | Q133: =IF(F133-E133>0,IF(S133="x",MROUND((F133-E133)*V139,1/1440),F133-E133),0) -> 0 | R133: =IF(Q133>0,IF(AND(E133=F132,S132<>"x"),Q133+R132-N132,Q133),0) -> 0 | S133: =IF(G133=DATEN!$L$87,"x","") ->  | V133: =V132+SUMIF(T129:T138,"x",H129:H138) -> 0 | W133: zzgl.kappungsfrei
B134: 2025-11-12 | M134: =IF(S134="x",TEXT(V139,"# ?/?")&" !",IF(T134="x","Nein","")) ->  | N134: =IF(S134="",IF(R134>Stunden2,Pausen2-SUM(N129:N133),IF(R134>Stunden1,Pausen1-SUM(N129:N133),0)),0) -> 0 | Q134: =IF(F134-E134>0,IF(S134="x",MROUND((F134-E134)*V139,1/1440),F134-E134),0) -> 0 | R134: 0 | S134: =IF(G134=DATEN!$L$87,"x","") -> 
B135: 2025-11-12 | M135: =IF(S135="x",TEXT(V139,"# ?/?")&" !",IF(T135="x","Nein","")) ->  | N135: =IF(S135="",IF(R135>Stunden2,Pausen2-SUM(N129:N134),IF(R135>Stunden1,Pausen1-SUM(N129:N134),0)),0) -> 0 | Q135: =IF(F135-E135>0,IF(S135="x",MROUND((F135-E135)*V139,1/1440),F135-E135),0) -> 0 | R135: 0 | S135: =IF(G135=DATEN!$L$87,"x","") -> 
B136: 2025-11-12 | M136: =IF(S136="x",TEXT(V139,"# ?/?")&" !",IF(T136="x","Nein","")) ->  | N136: =IF(S136="",IF(R136>Stunden2,Pausen2-SUM(N129:N135),IF(R136>Stunden1,Pausen1-SUM(N129:N135),0)),0) -> 0 | Q136: =IF(F136-E136>0,IF(S136="x",MROUND((F136-E136)*V139,1/1440),F136-E136),0) -> 0 | R136: 0 | S136: =IF(G136=DATEN!$L$87,"x","") -> 
B137: 2025-11-12 | M137: =IF(S137="x",TEXT(V139,"# ?/?")&" !",IF(T137="x","Nein","")) ->  | N137: =IF(S137="",IF(R137>Stunden2,Pausen2-SUM(N129:N136),IF(R137>Stunden1,Pausen1-SUM(N129:N136),0)),0) -> 0 | Q137: =IF(F137-E137>0,IF(S137="x",MROUND((F137-E137)*V139,1/1440),F137-E137),0) -> 0 | R137: 0 | S137: =IF(G137=DATEN!$L$87,"x","") ->  | Z137: =IF(AND(G137>0,G137<>"Tagessumme:"),G137,"") ->  | AA137: =IF(G137<>"Tagessumme:",H137,"") -> 
B138: 2025-11-12 | M138: =IF(S138="x",TEXT(V139,"# ?/?")&" !",IF(T138="x","Nein","")) ->  | N138: =IF(S138="",IF(R138>Stunden2,Pausen2-SUM(N129:N137),IF(R138>Stunden1,Pausen1-SUM(N129:N137),0)),0) -> 0 | Q138: =IF(F138-E138>0,IF(S138="x",MROUND((F138-E138)*V139,1/1440),F138-E138),0) -> 0 | R138: 0 | S138: =IF(G138=DATEN!$L$87,"x","") -> 
A139: =IF(LEN(B139)>0,IF(WEEKDAY(B139)=4,TRUNC((B139-DATE(YEAR(B139+3-MOD(B139-2,7)),1,MOD(B139-2,7)-9))/7),IF(WEEKDAY(B139)=5,"KW","")),"") -> 46 | B139: =B128+1 -> 2025-11-12 | C139: =IF(WEEKDAY(B139)=1,7,WEEKDAY(B139)-1) -> 3 | D139: =IF(LEN(B139)>0,IF(OR(INDIRECT("DATEN!D"&9+C139)=0,NOT(ISNA(MATCH(B139,DATEN!$D$18:$D$33,0)))),"X",IF(OR(B139=DATEN!$D$26-1,B139=DATEN!$D$27-2,B139=DATEN!$D$30-2),"V","")),"") ->  | E139: =IF(E129>0,IF(VALUE("24:00:00")-VALUE(MAX(F118:F127))+VALUE(E129)<VALUE("11:00:00"),"Ruhezeit!",""),"") ->  | G139: Tagessumme: | H139: =V133 -> 0 | K139: =IF(LEN(B139)>0,IF(AND(D139<>"X",I139<>"U",I139<>"u",I139<>"K",I139<>"k",OR(I139="F",I139="f",H139<>0,DATEN!$H$8=1),J139<>"f",J139<>"F"),IF(D139="V",H139-INDIRECT("DATEN!D"&9+C139)/2,H139-INDIRECT("DATEN!D"&9+C139)),H139),"") -> -0.3291666667 | L139: =IF(X139>MaxWoZeit,"WoArbZeit>48h!","") ->  | M139: =IF(V131>V132,V131-V132,"") ->  | N139: =SUM(N129:N138) -> 0 | O139: =IF(WEEKDAY(B139,2)=7,SUMIF('Auswertung-Wochen'!$Y$2:$Y$366,P139,'Auswertung-Wochen'!$V$2:$V$366)-SUMIF('Auswertung-Wochen'!$Y$2:$Y$366,P139,'Auswertung-Wochen'!$W$2:$W$366),"") ->  | P139: =YEAR(B139)&"-"&TEXT(_xlfn.ISOWEEKNUM(B139),"00") -> 2025-46 | Q139: =SUM(Q129:Q138) -> 00:00:00 | V139: =IF(D139="x",DATEN!$N$88,DATEN!$N$87) -> 0.125 | W139: Faktor Rufbereitschaft | X139: =IF(LEN(B139)>0,IF(WEEKDAY(B139,2)=1,H139,H139+X128),X128) -> 0
A140: =IF(ISNA(MATCH(B150,DATEN!$D$18:$D$42,0)),"",INDEX(DATEN!$C$18:$D$42,MATCH(B150,DATEN!$D$18:$D$42,0),1)) ->  | B140: =B129+1 -> 2025-11-13 | H140: =IF(Q140>0,IF(ROUND(F140-E140,6)>=ROUND(Mindest,6),Q140,"<15m!"),"") ->  | M140: =IF(S140="x",TEXT(V150,"# ?/?")&" !",IF(T140="x","Nein","")) ->  | N140: =IF(S140="",IF(R140>Stunden2,Pausen2,IF(R140>Stunden1,Pausen1,0)),0) -> 0 | Q140: =IF(F140-E140>0,IF(S140="x",MROUND((F140-E140)*V150,1/1440),F140-E140),0) -> 0 | R140: =Q140 -> 0 | S140: =IF(G140=DATEN!$L$87,"x","") ->  | T140: =IF(ISNA(VLOOKUP(G140,ArbKapp,3,FALSE))=TRUE,"",IF(VLOOKUP(G140,ArbKapp,3,FALSE)="x","x","")) ->  | U140: =IF(ISNA(MATCH(G140,Kapp12Ordi,0)),"","x") ->  | V140: =Q150-N150 -> 0 | W140: Tagessumme
B141: 2025-11-13 | M141: =IF(S141="x",TEXT(V150,"# ?/?")&" !",IF(T141="x","Nein","")) ->  | N141: =IF(S141="",IF(R141>Stunden2,Pausen2-SUM(N140),IF(R141>Stunden1,Pausen1-SUM(N140),0)),0) -> 0 | Q141: =IF(F141-E141>0,IF(S141="x",MROUND((F141-E141)*V150,1/1440),F141-E141),0) -> 0 | R141: =IF(Q141>0,IF(AND(E141=F140,S140<>"x"),Q141+R140-N140,Q141),0) -> 0 | S141: =IF(G141=DATEN!$L$87,"x","") ->  | V141: =IF(ISNA(MATCH("x",U140:U149,0)),MaxZeit,MaxBildung) -> 0.4166666667 | W141: max. Tageszeit
B142: 2025-11-13 | M142: =IF(S142="x",TEXT(V150,"# ?/?")&" !",IF(T142="x","Nein","")) ->  | N142: =IF(S142="",IF(R142>Stunden2,Pausen2-SUM(N140:N141),IF(R142>Stunden1,Pausen1-SUM(N140:N141),0)),0) -> 0 | Q142: =IF(F142-E142>0,IF(S142="x",MROUND((F142-E142)*V150,1/1440),F142-E142),0) -> 0 | R142: =IF(Q142>0,IF(AND(E142=F141,S141<>"x"),Q142+R141-N141,Q142),0) -> 0 | S142: =IF(G142=DATEN!$L$87,"x","") ->  | V142: =SUMIF(T140:T149,"<>x",H140:H149)-N150 -> 00:00:00 | W142: Summe f. Kappung
B143: 2025-11-13 | M143: =IF(S143="x",TEXT(V150,"# ?/?")&" !",IF(T143="x","Nein","")) ->  | N143: =IF(S143="",IF(R143>Stunden2,Pausen2-SUM(N140:N142),IF(R143>Stunden1,Pausen1-SUM(N140:N142),0)),0) -> 0 | Q143: =IF(F143-E143>0,IF(S143="x",MROUND((F143-E143)*V150,1/1440),F143-E143),0) -> 0 | R143: =IF(Q143>0,IF(AND(E143=F142,S142<>"x"),Q143+R142-N142,Q143),0) -> 0 | S143: =IF(G143=DATEN!$L$87,"x","") ->  | V143: =IF(V142>V141,V141,V142) -> 0 | W143: Summe gekappt
B144: 2025-11-13 | M144: =IF(S144="x",TEXT(V150,"# ?/?")&" !",IF(T144="x","Nein","")) ->  | N144: =IF(S144="",IF(R144>Stunden2,Pausen2-SUM(N140:N143),IF(R144>Stunden1,Pausen1-SUM(N140:N143),0)),0) -> 0 | Q144: =IF(F144-E144>0,IF(S144="x",MROUND((F144-E144)*V150,1/1440),F144-E144),0) -> 0 | R144: =IF(Q144>0,IF(AND(E144=F143,S143<>"x"),Q144+R143-N143,Q144),0) -> 0 | S144: =IF(G144=DATEN!$L$87,"x","") ->  | V144: =V143+SUMIF(T140:T149,"x",H140:H149) -> 0 | W144: zzgl.kappungsfrei
B145: 2025-11-13 | M145: =IF(S145="x",TEXT(V150,"# ?/?")&" !",IF(T145="x","Nein","")) ->  | N145: =IF(S145="",IF(R145>Stunden2,Pausen2-SUM(N140:N144),IF(R145>Stunden1,Pausen1-SUM(N140:N144),0)),0) -> 0 | Q145: =IF(F145-E145>0,IF(S145="x",MROUND((F145-E145)*V150,1/1440),F145-E145),0) -> 0 | R145: 0 | S145: =IF(G145=DATEN!$L$87,"x","") -> 
B146: 2025-11-13 | M146: =IF(S146="x",TEXT(V150,"# ?/?")&" !",IF(T146="x","Nein","")) ->  | N146: =IF(S146="",IF(R146>Stunden2,Pausen2-SUM(N140:N145),IF(R146>Stunden1,Pausen1-SUM(N140:N145),0)),0) -> 0 | Q146: =IF(F146-E146>0,IF(S146="x",MROUND((F146-E146)*V150,1/1440),F146-E146),0) -> 0 | R146: 0 | S146: =IF(G146=DATEN!$L$87,"x","") -> 
B147: 2025-11-13 | M147: =IF(S147="x",TEXT(V150,"# ?/?")&" !",IF(T147="x","Nein","")) ->  | N147: =IF(S147="",IF(R147>Stunden2,Pausen2-SUM(N140:N146),IF(R147>Stunden1,Pausen1-SUM(N140:N146),0)),0) -> 0 | Q147: =IF(F147-E147>0,IF(S147="x",MROUND((F147-E147)*V150,1/1440),F147-E147),0) -> 0 | R147: 0 | S147: =IF(G147=DATEN!$L$87,"x","") -> 
B148: 2025-11-13 | M148: =IF(S148="x",TEXT(V150,"# ?/?")&" !",IF(T148="x","Nein","")) ->  | N148: =IF(S148="",IF(R148>Stunden2,Pausen2-SUM(N140:N147),IF(R148>Stunden1,Pausen1-SUM(N140:N147),0)),0) -> 0 | Q148: =IF(F148-E148>0,IF(S148="x",MROUND((F148-E148)*V150,1/1440),F148-E148),0) -> 0 | R148: 0 | S148: =IF(G148=DATEN!$L$87,"x","") -> 
B149: 2025-11-13 | M149: =IF(S149="x",TEXT(V150,"# ?/?")&" !",IF(T149="x","Nein","")) ->  | N149: =IF(S149="",IF(R149>Stunden2,Pausen2-SUM(N140:N148),IF(R149>Stunden1,Pausen1-SUM(N140:N148),0)),0) -> 0 | Q149: =IF(F149-E149>0,IF(S149="x",MROUND((F149-E149)*V150,1/1440),F149-E149),0) -> 0 | R149: 0 | S149: =IF(G149=DATEN!$L$87,"x","") -> 
A150: =IF(LEN(B150)>0,IF(WEEKDAY(B150)=4,TRUNC((B150-DATE(YEAR(B150+3-MOD(B150-2,7)),1,MOD(B150-2,7)-9))/7),IF(WEEKDAY(B150)=5,"KW","")),"") -> KW | B150: =B139+1 -> 2025-11-13 | C150: =IF(WEEKDAY(B150)=1,7,WEEKDAY(B150)-1) -> 4 | D150: =IF(LEN(B150)>0,IF(OR(INDIRECT("DATEN!D"&9+C150)=0,NOT(ISNA(MATCH(B150,DATEN!$D$18:$D$33,0)))),"X",IF(OR(B150=DATEN!$D$26-1,B150=DATEN!$D$27-2,B150=DATEN!$D$30-2),"V","")),"") ->  | E150: =IF(E140>0,IF(VALUE("24:00:00")-VALUE(MAX(F129:F138))+VALUE(E140)<VALUE("11:00:00"),"Ruhezeit!",""),"") ->  | G150: Tagessumme: | H150: =V144 -> 0 | K150: =IF(LEN(B150)>0,IF(AND(D150<>"X",I150<>"U",I150<>"u",I150<>"K",I150<>"k",OR(I150="F",I150="f",H150<>0,DATEN!$H$8=1),J150<>"f",J150<>"F"),IF(D150="V",H150-INDIRECT("DATEN!D"&9+C150)/2,H150-INDIRECT("DATEN!D"&9+C150)),H150),"") -> -0.3291666667 | L150: =IF(X150>MaxWoZeit,"WoArbZeit>48h!","") ->  | M150: =IF(V142>V143,V142-V143,"") ->  | N150: =SUM(N140:N149) -> 0 | O150: =IF(WEEKDAY(B150,2)=7,SUMIF('Auswertung-Wochen'!$Y$2:$Y$366,P150,'Auswertung-Wochen'!$V$2:$V$366)-SUMIF('Auswertung-Wochen'!$Y$2:$Y$366,P150,'Auswertung-Wochen'!$W$2:$W$366),"") ->  | P150: =YEAR(B150)&"-"&TEXT(_xlfn.ISOWEEKNUM(B150),"00") -> 2025-46 | Q150: =SUM(Q140:Q149) -> 00:00:00 | V150: =IF(D150="x",DATEN!$N$88,DATEN!$N$87) -> 0.125 | W150: Faktor Rufbereitschaft | X150: =IF(LEN(B150)>0,IF(WEEKDAY(B150,2)=1,H150,H150+X139),X139) -> 0
A151: =IF(ISNA(MATCH(B161,DATEN!$D$18:$D$42,0)),"",INDEX(DATEN!$C$18:$D$42,MATCH(B161,DATEN!$D$18:$D$42,0),1)) ->  | B151: =B140+1 -> 2025-11-14 | H151: =IF(Q151>0,IF(ROUND(F151-E151,6)>=ROUND(Mindest,6),Q151,"<15m!"),"") ->  | M151: =IF(S151="x",TEXT(V161,"# ?/?")&" !",IF(T151="x","Nein","")) ->  | N151: =IF(S151="",IF(R151>Stunden2,Pausen2,IF(R151>Stunden1,Pausen1,0)),0) -> 0 | Q151: =IF(F151-E151>0,IF(S151="x",MROUND((F151-E151)*V161,1/1440),F151-E151),0) -> 0 | R151: =Q151 -> 0 | S151: =IF(G151=DATEN!$L$87,"x","") ->  | T151: =IF(ISNA(VLOOKUP(G151,ArbKapp,3,FALSE))=TRUE,"",IF(VLOOKUP(G151,ArbKapp,3,FALSE)="x","x","")) ->  | U151: =IF(ISNA(MATCH(G151,Kapp12Ordi,0)),"","x") ->  | V151: =Q161-N161 -> 0 | W151: Tagessumme
B152: 2025-11-14 | M152: =IF(S152="x",TEXT(V161,"# ?/?")&" !",IF(T152="x","Nein","")) ->  | N152: =IF(S152="",IF(R152>Stunden2,Pausen2-SUM(N151),IF(R152>Stunden1,Pausen1-SUM(N151),0)),0) -> 0 | Q152: =IF(F152-E152>0,IF(S152="x",MROUND((F152-E152)*V161,1/1440),F152-E152),0) -> 0 | R152: =IF(Q152>0,IF(AND(E152=F151,S151<>"x"),Q152+R151-N151,Q152),0) -> 0 | S152: =IF(G152=DATEN!$L$87,"x","") ->  | V152: =IF(ISNA(MATCH("x",U151:U160,0)),MaxZeit,MaxBildung) -> 0.4166666667 | W152: max. Tageszeit
B153: 2025-11-14 | M153: =IF(S153="x",TEXT(V161,"# ?/?")&" !",IF(T153="x","Nein","")) ->  | N153: =IF(S153="",IF(R153>Stunden2,Pausen2-SUM(N151:N152),IF(R153>Stunden1,Pausen1-SUM(N151:N152),0)),0) -> 0 | Q153: =IF(F153-E153>0,IF(S153="x",MROUND((F153-E153)*V161,1/1440),F153-E153),0) -> 0 | R153: =IF(Q153>0,IF(AND(E153=F152,S152<>"x"),Q153+R152-N152,Q153),0) -> 0 | S153: =IF(G153=DATEN!$L$87,"x","") ->  | V153: =SUMIF(T151:T160,"<>x",H151:H160)-N161 -> 00:00:00 | W153: Summe f. Kappung
B154: 2025-11-14 | M154: =IF(S154="x",TEXT(V161,"# ?/?")&" !",IF(T154="x","Nein","")) ->  | N154: =IF(S154="",IF(R154>Stunden2,Pausen2-SUM(N151:N153),IF(R154>Stunden1,Pausen1-SUM(N151:N153),0)),0) -> 0 | Q154: =IF(F154-E154>0,IF(S154="x",MROUND((F154-E154)*V161,1/1440),F154-E154),0) -> 0 | R154: =IF(Q154>0,IF(AND(E154=F153,S153<>"x"),Q154+R153-N153,Q154),0) -> 0 | S154: =IF(G154=DATEN!$L$87,"x","") ->  | V154: =IF(V153>V152,V152,V153) -> 0 | W154: Summe gekappt
B155: 2025-11-14 | M155: =IF(S155="x",TEXT(V161,"# ?/?")&" !",IF(T155="x","Nein","")) ->  | N155: =IF(S155="",IF(R155>Stunden2,Pausen2-SUM(N151:N154),IF(R155>Stunden1,Pausen1-SUM(N151:N154),0)),0) -> 0 | Q155: =IF(F155-E155>0,IF(S155="x",MROUND((F155-E155)*V161,1/1440),F155-E155),0) -> 0 | R155: =IF(Q155>0,IF(AND(E155=F154,S154<>"x"),Q155+R154-N154,Q155),0) -> 0 | S155: =IF(G155=DATEN!$L$87,"x","") ->  | V155: =V154+SUMIF(T151:T160,"x",H151:H160) -> 0 | W155: zzgl.kappungsfrei
B156: 2025-11-14 | M156: =IF(S156="x",TEXT(V161,"# ?/?")&" !",IF(T156="x","Nein","")) ->  | N156: =IF(S156="",IF(R156>Stunden2,Pausen2-SUM(N151:N155),IF(R156>Stunden1,Pausen1-SUM(N151:N155),0)),0) -> 0 | Q156: =IF(F156-E156>0,IF(S156="x",MROUND((F156-E156)*V161,1/1440),F156-E156),0) -> 0 | R156: 0 | S156: =IF(G156=DATEN!$L$87,"x","") -> 
B157: 2025-11-14 | M157: =IF(S157="x",TEXT(V161,"# ?/?")&" !",IF(T157="x","Nein","")) ->  | N157: =IF(S157="",IF(R157>Stunden2,Pausen2-SUM(N151:N156),IF(R157>Stunden1,Pausen1-SUM(N151:N156),0)),0) -> 0 | Q157: =IF(F157-E157>0,IF(S157="x",MROUND((F157-E157)*V161,1/1440),F157-E157),0) -> 0 | R157: 0 | S157: =IF(G157=DATEN!$L$87,"x","") -> 
B158: 2025-11-14 | M158: =IF(S158="x",TEXT(V161,"# ?/?")&" !",IF(T158="x","Nein","")) ->  | N158: =IF(S158="",IF(R158>Stunden2,Pausen2-SUM(N151:N157),IF(R158>Stunden1,Pausen1-SUM(N151:N157),0)),0) -> 0 | Q158: =IF(F158-E158>0,IF(S158="x",MROUND((F158-E158)*V161,1/1440),F158-E158),0) -> 0 | R158: 0 | S158: =IF(G158=DATEN!$L$87,"x","") -> 
B159: 2025-11-14 | M159: =IF(S159="x",TEXT(V161,"# ?/?")&" !",IF(T159="x","Nein","")) ->  | N159: =IF(S159="",IF(R159>Stunden2,Pausen2-SUM(N151:N158),IF(R159>Stunden1,Pausen1-SUM(N151:N158),0)),0) -> 0 | Q159: =IF(F159-E159>0,IF(S159="x",MROUND((F159-E159)*V161,1/1440),F159-E159),0) -> 0 | R159: 0 | S159: =IF(G159=DATEN!$L$87,"x","") -> 
B160: 2025-11-14 | M160: =IF(S160="x",TEXT(V161,"# ?/?")&" !",IF(T160="x","Nein","")) ->  | N160: =IF(S160="",IF(R160>Stunden2,Pausen2-SUM(N151:N159),IF(R160>Stunden1,Pausen1-SUM(N151:N159),0)),0) -> 0 | Q160: =IF(F160-E160>0,IF(S160="x",MROUND((F160-E160)*V161,1/1440),F160-E160),0) -> 0 | R160: 0 | S160: =IF(G160=DATEN!$L$87,"x","") -> 
A161: =IF(LEN(B161)>0,IF(WEEKDAY(B161)=4,TRUNC((B161-DATE(YEAR(B161+3-MOD(B161-2,7)),1,MOD(B161-2,7)-9))/7),IF(WEEKDAY(B161)=5,"KW","")),"") ->  | B161: =B150+1 -> 2025-11-14 | C161: =IF(WEEKDAY(B161)=1,7,WEEKDAY(B161)-1) -> 5 | D161: =IF(LEN(B161)>0,IF(OR(INDIRECT("DATEN!D"&9+C161)=0,NOT(ISNA(MATCH(B161,DATEN!$D$18:$D$33,0)))),"X",IF(OR(B161=DATEN!$D$26-1,B161=DATEN!$D$27-2,B161=DATEN!$D$30-2),"V","")),"") ->  | E161: =IF(E151>0,IF(VALUE("24:00:00")-VALUE(MAX(F140:F149))+VALUE(E151)<VALUE("11:00:00"),"Ruhezeit!",""),"") ->  | G161: Tagessumme: | H161: =V155 -> 0 | K161: =IF(LEN(B161)>0,IF(AND(D161<>"X",I161<>"U",I161<>"u",I161<>"K",I161<>"k",OR(I161="F",I161="f",H161<>0,DATEN!$H$8=1),J161<>"f",J161<>"F"),IF(D161="V",H161-INDIRECT("DATEN!D"&9+C161)/2,H161-INDIRECT("DATEN!D"&9+C161)),H161),"") -> -0.3291666667 | L161: =IF(X161>MaxWoZeit,"WoArbZeit>48h!","") ->  | M161: =IF(V153>V154,V153-V154,"") ->  | N161: =SUM(N151:N160) -> 0 | O161: =IF(WEEKDAY(B161,2)=7,SUMIF('Auswertung-Wochen'!$Y$2:$Y$366,P161,'Auswertung-Wochen'!$V$2:$V$366)-SUMIF('Auswertung-Wochen'!$Y$2:$Y$366,P161,'Auswertung-Wochen'!$W$2:$W$366),"") ->  | P161: =YEAR(B161)&"-"&TEXT(_xlfn.ISOWEEKNUM(B161),"00") -> 2025-46 | Q161: =SUM(Q151:Q160) -> 00:00:00 | V161: =IF(D161="x",DATEN!$N$88,DATEN!$N$87) -> 0.125 | W161: Faktor Rufbereitschaft | X161: =IF(LEN(B161)>0,IF(WEEKDAY(B161,2)=1,H161,H161+X150),X150) -> 0
A162: =IF(ISNA(MATCH(B172,DATEN!$D$18:$D$42,0)),"",INDEX(DATEN!$C$18:$D$42,MATCH(B172,DATEN!$D$18:$D$42,0),1)) ->  | B162: =B151+1 -> 2025-11-15 | H162: =IF(Q162>0,IF(ROUND(F162-E162,6)>=ROUND(Mindest,6),Q162,"<15m!"),"") ->  | M162: =IF(S162="x",TEXT(V172,"# ?/?")&" !",IF(T162="x","Nein","")) ->  | N162: =IF(S162="",IF(R162>Stunden2,Pausen2,IF(R162>Stunden1,Pausen1,0)),0) -> 0 | Q162: =IF(F162-E162>0,IF(S162="x",MROUND((F162-E162)*V172,1/1440),F162-E162),0) -> 0 | R162: =Q162 -> 0 | S162: =IF(G162=DATEN!$L$87,"x","") ->  | T162: =IF(ISNA(VLOOKUP(G162,ArbKapp,3,FALSE))=TRUE,"",IF(VLOOKUP(G162,ArbKapp,3,FALSE)="x","x","")) ->  | U162: =IF(ISNA(MATCH(G162,Kapp12Ordi,0)),"","x") ->  | V162: =Q172-N172 -> 0 | W162: Tagessumme
B163: 2025-11-15 | M163: =IF(S163="x",TEXT(V172,"# ?/?")&" !",IF(T163="x","Nein","")) ->  | N163: =IF(S163="",IF(R163>Stunden2,Pausen2-SUM(N162),IF(R163>Stunden1,Pausen1-SUM(N162),0)),0) -> 0 | Q163: =IF(F163-E163>0,IF(S163="x",MROUND((F163-E163)*V172,1/1440),F163-E163),0) -> 0 | R163: =IF(Q163>0,IF(AND(E163=F162,S162<>"x"),Q163+R162-N162,Q163),0) -> 0 | S163: =IF(G163=DATEN!$L$87,"x","") ->  | V163: =IF(ISNA(MATCH("x",U162:U171,0)),MaxZeit,MaxBildung) -> 0.4166666667 | W163: max. Tageszeit
B164: 2025-11-15 | M164: =IF(S164="x",TEXT(V172,"# ?/?")&" !",IF(T164="x","Nein","")) ->  | N164: =IF(S164="",IF(R164>Stunden2,Pausen2-SUM(N162:N163),IF(R164>Stunden1,Pausen1-SUM(N162:N163),0)),0) -> 0 | Q164: =IF(F164-E164>0,IF(S164="x",MROUND((F164-E164)*V172,1/1440),F164-E164),0) -> 0 | R164: =IF(Q164>0,IF(AND(E164=F163,S163<>"x"),Q164+R163-N163,Q164),0) -> 0 | S164: =IF(G164=DATEN!$L$87,"x","") ->  | V164: =SUMIF(T162:T171,"<>x",H162:H171)-N172 -> 00:00:00 | W164: Summe f. Kappung
B165: 2025-11-15 | M165: =IF(S165="x",TEXT(V172,"# ?/?")&" !",IF(T165="x","Nein","")) ->  | N165: =IF(S165="",IF(R165>Stunden2,Pausen2-SUM(N162:N164),IF(R165>Stunden1,Pausen1-SUM(N162:N164),0)),0) -> 0 | Q165: =IF(F165-E165>0,IF(S165="x",MROUND((F165-E165)*V172,1/1440),F165-E165),0) -> 0 | R165: =IF(Q165>0,IF(AND(E165=F164,S164<>"x"),Q165+R164-N164,Q165),0) -> 0 | S165: =IF(G165=DATEN!$L$87,"x","") ->  | V165: =IF(V164>V163,V163,V164) -> 0 | W165: Summe gekappt
B166: 2025-11-15 | M166: =IF(S166="x",TEXT(V172,"# ?/?")&" !",IF(T166="x","Nein","")) ->  | N166: =IF(S166="",IF(R166>Stunden2,Pausen2-SUM(N162:N165),IF(R166>Stunden1,Pausen1-SUM(N162:N165),0)),0) -> 0 | Q166: =IF(F166-E166>0,IF(S166="x",MROUND((F166-E166)*V172,1/1440),F166-E166),0) -> 0 | R166: =IF(Q166>0,IF(AND(E166=F165,S165<>"x"),Q166+R165-N165,Q166),0) -> 0 | S166: =IF(G166=DATEN!$L$87,"x","") ->  | V166: =V165+SUMIF(T162:T171,"x",H162:H171) -> 0 | W166: zzgl.kappungsfrei
B167: 2025-11-15 | M167: =IF(S167="x",TEXT(V172,"# ?/?")&" !",IF(T167="x","Nein","")) ->  | N167: =IF(S167="",IF(R167>Stunden2,Pausen2-SUM(N162:N166),IF(R167>Stunden1,Pausen1-SUM(N162:N166),0)),0) -> 0 | Q167: =IF(F167-E167>0,IF(S167="x",MROUND((F167-E167)*V172,1/1440),F167-E167),0) -> 0 | R167: 0 | S167: =IF(G167=DATEN!$L$87,"x","") -> 
B168: 2025-11-15 | M168: =IF(S168="x",TEXT(V172,"# ?/?")&" !",IF(T168="x","Nein","")) ->  | N168: =IF(S168="",IF(R168>Stunden2,Pausen2-SUM(N162:N167),IF(R168>Stunden1,Pausen1-SUM(N162:N167),0)),0) -> 0 | Q168: =IF(F168-E168>0,IF(S168="x",MROUND((F168-E168)*V172,1/1440),F168-E168),0) -> 0 | R168: 0 | S168: =IF(G168=DATEN!$L$87,"x","") -> 
B169: 2025-11-15 | M169: =IF(S169="x",TEXT(V172,"# ?/?")&" !",IF(T169="x","Nein","")) ->  | N169: =IF(S169="",IF(R169>Stunden2,Pausen2-SUM(N162:N168),IF(R169>Stunden1,Pausen1-SUM(N162:N168),0)),0) -> 0 | Q169: =IF(F169-E169>0,IF(S169="x",MROUND((F169-E169)*V172,1/1440),F169-E169),0) -> 0 | R169: 0 | S169: =IF(G169=DATEN!$L$87,"x","") -> 
B170: 2025-11-15 | M170: =IF(S170="x",TEXT(V172,"# ?/?")&" !",IF(T170="x","Nein","")) ->  | N170: =IF(S170="",IF(R170>Stunden2,Pausen2-SUM(N162:N169),IF(R170>Stunden1,Pausen1-SUM(N162:N169),0)),0) -> 0 | Q170: =IF(F170-E170>0,IF(S170="x",MROUND((F170-E170)*V172,1/1440),F170-E170),0) -> 0 | R170: 0 | S170: =IF(G170=DATEN!$L$87,"x","") -> 
B171: 2025-11-15 | M171: =IF(S171="x",TEXT(V172,"# ?/?")&" !",IF(T171="x","Nein","")) ->  | N171: =IF(S171="",IF(R171>Stunden2,Pausen2-SUM(N162:N170),IF(R171>Stunden1,Pausen1-SUM(N162:N170),0)),0) -> 0 | Q171: =IF(F171-E171>0,IF(S171="x",MROUND((F171-E171)*V172,1/1440),F171-E171),0) -> 0 | R171: 0 | S171: =IF(G171=DATEN!$L$87,"x","") -> 
A172: =IF(LEN(B172)>0,IF(WEEKDAY(B172)=4,TRUNC((B172-DATE(YEAR(B172+3-MOD(B172-2,7)),1,MOD(B172-2,7)-9))/7),IF(WEEKDAY(B172)=5,"KW","")),"") ->  | B172: =B161+1 -> 2025-11-15 | C172: =IF(WEEKDAY(B172)=1,7,WEEKDAY(B172)-1) -> 6 | D172: =IF(LEN(B172)>0,IF(OR(INDIRECT("DATEN!D"&9+C172)=0,NOT(ISNA(MATCH(B172,DATEN!$D$18:$D$33,0)))),"X",IF(OR(B172=DATEN!$D$26-1,B172=DATEN!$D$27-2,B172=DATEN!$D$30-2),"V","")),"") -> X | E172: =IF(E162>0,IF(VALUE("24:00:00")-VALUE(MAX(F151:F160))+VALUE(E162)<VALUE("11:00:00"),"Ruhezeit!",""),"") ->  | G172: Tagessumme: | H172: =V166 -> 0 | K172: =IF(LEN(B172)>0,IF(AND(D172<>"X",I172<>"U",I172<>"u",I172<>"K",I172<>"k",OR(I172="F",I172="f",H172<>0,DATEN!$H$8=1),J172<>"f",J172<>"F"),IF(D172="V",H172-INDIRECT("DATEN!D"&9+C172)/2,H172-INDIRECT("DATEN!D"&9+C172)),H172),"") -> 0 | L172: =IF(X172>MaxWoZeit,"WoArbZeit>48h!","") ->  | M172: =IF(V164>V165,V164-V165,"") ->  | N172: =SUM(N162:N171) -> 0 | O172: =IF(WEEKDAY(B172,2)=7,SUMIF('Auswertung-Wochen'!$Y$2:$Y$366,P172,'Auswertung-Wochen'!$V$2:$V$366)-SUMIF('Auswertung-Wochen'!$Y$2:$Y$366,P172,'Auswertung-Wochen'!$W$2:$W$366),"") ->  | P172: =YEAR(B172)&"-"&TEXT(_xlfn.ISOWEEKNUM(B172),"00") -> 2025-46 | Q172: =SUM(Q162:Q171) -> 00:00:00 | V172: =IF(D172="x",DATEN!$N$88,DATEN!$N$87) -> 0.1666666667 | W172: Faktor Rufbereitschaft | X172: =IF(LEN(B172)>0,IF(WEEKDAY(B172,2)=1,H172,H172+X161),X161) -> 0
A173: =IF(ISNA(MATCH(B183,DATEN!$D$18:$D$42,0)),"",INDEX(DATEN!$C$18:$D$42,MATCH(B183,DATEN!$D$18:$D$42,0),1)) ->  | B173: =B162+1 -> 2025-11-16 | H173: =IF(Q173>0,IF(ROUND(F173-E173,6)>=ROUND(Mindest,6),Q173,"<15m!"),"") ->  | M173: =IF(S173="x",TEXT(V183,"# ?/?")&" !",IF(T173="x","Nein","")) ->  | N173: =IF(S173="",IF(R173>Stunden2,Pausen2,IF(R173>Stunden1,Pausen1,0)),0) -> 0 | Q173: =IF(F173-E173>0,IF(S173="x",MROUND((F173-E173)*V183,1/1440),F173-E173),0) -> 0 | R173: =Q173 -> 0 | S173: =IF(G173=DATEN!$L$87,"x","") ->  | T173: =IF(ISNA(VLOOKUP(G173,ArbKapp,3,FALSE))=TRUE,"",IF(VLOOKUP(G173,ArbKapp,3,FALSE)="x","x","")) ->  | U173: =IF(ISNA(MATCH(G173,Kapp12Ordi,0)),"","x") ->  | V173: =Q183-N183 -> 0 | W173: Tagessumme
B174: 2025-11-16 | M174: =IF(S174="x",TEXT(V183,"# ?/?")&" !",IF(T174="x","Nein","")) ->  | N174: =IF(S174="",IF(R174>Stunden2,Pausen2-SUM(N173),IF(R174>Stunden1,Pausen1-SUM(N173),0)),0) -> 0 | Q174: =IF(F174-E174>0,IF(S174="x",MROUND((F174-E174)*V183,1/1440),F174-E174),0) -> 0 | R174: =IF(Q174>0,IF(AND(E174=F173,S173<>"x"),Q174+R173-N173,Q174),0) -> 0 | S174: =IF(G174=DATEN!$L$87,"x","") ->  | V174: =IF(ISNA(MATCH("x",U173:U182,0)),MaxZeit,MaxBildung) -> 0.4166666667 | W174: max. Tageszeit
B175: 2025-11-16 | M175: =IF(S175="x",TEXT(V183,"# ?/?")&" !",IF(T175="x","Nein","")) ->  | N175: =IF(S175="",IF(R175>Stunden2,Pausen2-SUM(N173:N174),IF(R175>Stunden1,Pausen1-SUM(N173:N174),0)),0) -> 0 | Q175: =IF(F175-E175>0,IF(S175="x",MROUND((F175-E175)*V183,1/1440),F175-E175),0) -> 0 | R175: =IF(Q175>0,IF(AND(E175=F174,S174<>"x"),Q175+R174-N174,Q175),0) -> 0 | S175: =IF(G175=DATEN!$L$87,"x","") ->  | V175: =SUMIF(T173:T182,"<>x",H173:H182)-N183 -> 00:00:00 | W175: Summe f. Kappung
B176: 2025-11-16 | M176: =IF(S176="x",TEXT(V183,"# ?/?")&" !",IF(T176="x","Nein","")) ->  | N176: =IF(S176="",IF(R176>Stunden2,Pausen2-SUM(N173:N175),IF(R176>Stunden1,Pausen1-SUM(N173:N175),0)),0) -> 0 | Q176: =IF(F176-E176>0,IF(S176="x",MROUND((F176-E176)*V183,1/1440),F176-E176),0) -> 0 | R176: =IF(Q176>0,IF(AND(E176=F175,S175<>"x"),Q176+R175-N175,Q176),0) -> 0 | S176: =IF(G176=DATEN!$L$87,"x","") ->  | V176: =IF(V175>V174,V174,V175) -> 0 | W176: Summe gekappt
B177: 2025-11-16 | M177: =IF(S177="x",TEXT(V183,"# ?/?")&" !",IF(T177="x","Nein","")) ->  | N177: =IF(S177="",IF(R177>Stunden2,Pausen2-SUM(N173:N176),IF(R177>Stunden1,Pausen1-SUM(N173:N176),0)),0) -> 0 | Q177: =IF(F177-E177>0,IF(S177="x",MROUND((F177-E177)*V183,1/1440),F177-E177),0) -> 0 | R177: =IF(Q177>0,IF(AND(E177=F176,S176<>"x"),Q177+R176-N176,Q177),0) -> 0 | S177: =IF(G177=DATEN!$L$87,"x","") ->  | V177: =V176+SUMIF(T173:T182,"x",H173:H182) -> 0 | W177: zzgl.kappungsfrei
B178: 2025-11-16 | M178: =IF(S178="x",TEXT(V183,"# ?/?")&" !",IF(T178="x","Nein","")) ->  | N178: =IF(S178="",IF(R178>Stunden2,Pausen2-SUM(N173:N177),IF(R178>Stunden1,Pausen1-SUM(N173:N177),0)),0) -> 0 | Q178: =IF(F178-E178>0,IF(S178="x",MROUND((F178-E178)*V183,1/1440),F178-E178),0) -> 0 | R178: 0 | S178: =IF(G178=DATEN!$L$87,"x","") -> 
B179: 2025-11-16 | M179: =IF(S179="x",TEXT(V183,"# ?/?")&" !",IF(T179="x","Nein","")) ->  | N179: =IF(S179="",IF(R179>Stunden2,Pausen2-SUM(N173:N178),IF(R179>Stunden1,Pausen1-SUM(N173:N178),0)),0) -> 0 | Q179: =IF(F179-E179>0,IF(S179="x",MROUND((F179-E179)*V183,1/1440),F179-E179),0) -> 0 | R179: 0 | S179: =IF(G179=DATEN!$L$87,"x","") -> 
B180: 2025-11-16 | M180: =IF(S180="x",TEXT(V183,"# ?/?")&" !",IF(T180="x","Nein","")) ->  | N180: =IF(S180="",IF(R180>Stunden2,Pausen2-SUM(N173:N179),IF(R180>Stunden1,Pausen1-SUM(N173:N179),0)),0) -> 0 | Q180: =IF(F180-E180>0,IF(S180="x",MROUND((F180-E180)*V183,1/1440),F180-E180),0) -> 0 | R180: 0 | S180: =IF(G180=DATEN!$L$87,"x","") -> 
B181: 2025-11-16 | M181: =IF(S181="x",TEXT(V183,"# ?/?")&" !",IF(T181="x","Nein","")) ->  | N181: =IF(S181="",IF(R181>Stunden2,Pausen2-SUM(N173:N180),IF(R181>Stunden1,Pausen1-SUM(N173:N180),0)),0) -> 0 | Q181: =IF(F181-E181>0,IF(S181="x",MROUND((F181-E181)*V183,1/1440),F181-E181),0) -> 0 | R181: 0 | S181: =IF(G181=DATEN!$L$87,"x","") -> 
B182: 2025-11-16 | M182: =IF(S182="x",TEXT(V183,"# ?/?")&" !",IF(T182="x","Nein","")) ->  | N182: =IF(S182="",IF(R182>Stunden2,Pausen2-SUM(N173:N181),IF(R182>Stunden1,Pausen1-SUM(N173:N181),0)),0) -> 0 | Q182: =IF(F182-E182>0,IF(S182="x",MROUND((F182-E182)*V183,1/1440),F182-E182),0) -> 0 | R182: 0 | S182: =IF(G182=DATEN!$L$87,"x","") -> 
A183: =IF(LEN(B183)>0,IF(WEEKDAY(B183)=4,TRUNC((B183-DATE(YEAR(B183+3-MOD(B183-2,7)),1,MOD(B183-2,7)-9))/7),IF(WEEKDAY(B183)=5,"KW","")),"") ->  | B183: =B172+1 -> 2025-11-16 | C183: =IF(WEEKDAY(B183)=1,7,WEEKDAY(B183)-1) -> 7 | D183: =IF(LEN(B183)>0,IF(OR(INDIRECT("DATEN!D"&9+C183)=0,NOT(ISNA(MATCH(B183,DATEN!$D$18:$D$33,0)))),"X",IF(OR(B183=DATEN!$D$26-1,B183=DATEN!$D$27-2,B183=DATEN!$D$30-2),"V","")),"") -> X | E183: =IF(E173>0,IF(VALUE("24:00:00")-VALUE(MAX(F162:F171))+VALUE(E173)<VALUE("11:00:00"),"Ruhezeit!",""),"") ->  | G183: Tagessumme: | H183: =V177 -> 0 | K183: =IF(LEN(B183)>0,IF(AND(D183<>"X",I183<>"U",I183<>"u",I183<>"K",I183<>"k",OR(I183="F",I183="f",H183<>0,DATEN!$H$8=1),J183<>"f",J183<>"F"),IF(D183="V",H183-INDIRECT("DATEN!D"&9+C183)/2,H183-INDIRECT("DATEN!D"&9+C183)),H183),"") -> 0 | L183: =IF(X183>MaxWoZeit,"WoArbZeit>48h!","") ->  | M183: =IF(V175>V176,V175-V176,"") ->  | N183: =SUM(N173:N182) -> 0 | O183: =IF(WEEKDAY(B183,2)=7,SUMIF('Auswertung-Wochen'!$Y$2:$Y$366,P183,'Auswertung-Wochen'!$V$2:$V$366)-SUMIF('Auswertung-Wochen'!$Y$2:$Y$366,P183,'Auswertung-Wochen'!$W$2:$W$366),"") -> -1.645833333 | P183: =YEAR(B183)&"-"&TEXT(_xlfn.ISOWEEKNUM(B183),"00") -> 2025-46 | Q183: =SUM(Q173:Q182) -> 00:00:00 | V183: =IF(D183="x",DATEN!$N$88,DATEN!$N$87) -> 0.1666666667 | W183: Faktor Rufbereitschaft | X183: =IF(LEN(B183)>0,IF(WEEKDAY(B183,2)=1,H183,H183+X172),X172) -> 0
A184: =IF(ISNA(MATCH(B194,DATEN!$D$18:$D$42,0)),"",INDEX(DATEN!$C$18:$D$42,MATCH(B194,DATEN!$D$18:$D$42,0),1)) ->  | B184: =B173+1 -> 2025-11-17 | H184: =IF(Q184>0,IF(ROUND(F184-E184,6)>=ROUND(Mindest,6),Q184,"<15m!"),"") ->  | M184: =IF(S184="x",TEXT(V194,"# ?/?")&" !",IF(T184="x","Nein","")) ->  | N184: =IF(S184="",IF(R184>Stunden2,Pausen2,IF(R184>Stunden1,Pausen1,0)),0) -> 0 | Q184: =IF(F184-E184>0,IF(S184="x",MROUND((F184-E184)*V194,1/1440),F184-E184),0) -> 0 | R184: =Q184 -> 0 | S184: =IF(G184=DATEN!$L$87,"x","") ->  | T184: =IF(ISNA(VLOOKUP(G184,ArbKapp,3,FALSE))=TRUE,"",IF(VLOOKUP(G184,ArbKapp,3,FALSE)="x","x","")) ->  | U184: =IF(ISNA(MATCH(G184,Kapp12Ordi,0)),"","x") ->  | V184: =Q194-N194 -> 0 | W184: Tagessumme
B185: 2025-11-17 | M185: =IF(S185="x",TEXT(V194,"# ?/?")&" !",IF(T185="x","Nein","")) ->  | N185: =IF(S185="",IF(R185>Stunden2,Pausen2-SUM(N184),IF(R185>Stunden1,Pausen1-SUM(N184),0)),0) -> 0 | Q185: =IF(F185-E185>0,IF(S185="x",MROUND((F185-E185)*V194,1/1440),F185-E185),0) -> 0 | R185: =IF(Q185>0,IF(AND(E185=F184,S184<>"x"),Q185+R184-N184,Q185),0) -> 0 | S185: =IF(G185=DATEN!$L$87,"x","") ->  | V185: =IF(ISNA(MATCH("x",U184:U193,0)),MaxZeit,MaxBildung) -> 0.4166666667 | W185: max. Tageszeit
B186: 2025-11-17 | M186: =IF(S186="x",TEXT(V194,"# ?/?")&" !",IF(T186="x","Nein","")) ->  | N186: =IF(S186="",IF(R186>Stunden2,Pausen2-SUM(N184:N185),IF(R186>Stunden1,Pausen1-SUM(N184:N185),0)),0) -> 0 | Q186: =IF(F186-E186>0,IF(S186="x",MROUND((F186-E186)*V194,1/1440),F186-E186),0) -> 0 | R186: =IF(Q186>0,IF(AND(E186=F185,S185<>"x"),Q186+R185-N185,Q186),0) -> 0 | S186: =IF(G186=DATEN!$L$87,"x","") ->  | V186: =SUMIF(T184:T193,"<>x",H184:H193)-N194 -> 00:00:00 | W186: Summe f. Kappung
B187: 2025-11-17 | M187: =IF(S187="x",TEXT(V194,"# ?/?")&" !",IF(T187="x","Nein","")) ->  | N187: =IF(S187="",IF(R187>Stunden2,Pausen2-SUM(N184:N186),IF(R187>Stunden1,Pausen1-SUM(N184:N186),0)),0) -> 0 | Q187: =IF(F187-E187>0,IF(S187="x",MROUND((F187-E187)*V194,1/1440),F187-E187),0) -> 0 | R187: =IF(Q187>0,IF(AND(E187=F186,S186<>"x"),Q187+R186-N186,Q187),0) -> 0 | S187: =IF(G187=DATEN!$L$87,"x","") ->  | V187: =IF(V186>V185,V185,V186) -> 0 | W187: Summe gekappt
B188: 2025-11-17 | M188: =IF(S188="x",TEXT(V194,"# ?/?")&" !",IF(T188="x","Nein","")) ->  | N188: =IF(S188="",IF(R188>Stunden2,Pausen2-SUM(N184:N187),IF(R188>Stunden1,Pausen1-SUM(N184:N187),0)),0) -> 0 | Q188: =IF(F188-E188>0,IF(S188="x",MROUND((F188-E188)*V194,1/1440),F188-E188),0) -> 0 | R188: =IF(Q188>0,IF(AND(E188=F187,S187<>"x"),Q188+R187-N187,Q188),0) -> 0 | S188: =IF(G188=DATEN!$L$87,"x","") ->  | V188: =V187+SUMIF(T184:T193,"x",H184:H193) -> 0 | W188: zzgl.kappungsfrei
B189: 2025-11-17 | M189: =IF(S189="x",TEXT(V194,"# ?/?")&" !",IF(T189="x","Nein","")) ->  | N189: =IF(S189="",IF(R189>Stunden2,Pausen2-SUM(N184:N188),IF(R189>Stunden1,Pausen1-SUM(N184:N188),0)),0) -> 0 | Q189: =IF(F189-E189>0,IF(S189="x",MROUND((F189-E189)*V194,1/1440),F189-E189),0) -> 0 | R189: 0 | S189: =IF(G189=DATEN!$L$87,"x","") -> 
B190: 2025-11-17 | M190: =IF(S190="x",TEXT(V194,"# ?/?")&" !",IF(T190="x","Nein","")) ->  | N190: =IF(S190="",IF(R190>Stunden2,Pausen2-SUM(N184:N189),IF(R190>Stunden1,Pausen1-SUM(N184:N189),0)),0) -> 0 | Q190: =IF(F190-E190>0,IF(S190="x",MROUND((F190-E190)*V194,1/1440),F190-E190),0) -> 0 | R190: 0 | S190: =IF(G190=DATEN!$L$87,"x","") -> 
B191: 2025-11-17 | M191: =IF(S191="x",TEXT(V194,"# ?/?")&" !",IF(T191="x","Nein","")) ->  | N191: =IF(S191="",IF(R191>Stunden2,Pausen2-SUM(N184:N190),IF(R191>Stunden1,Pausen1-SUM(N184:N190),0)),0) -> 0 | Q191: =IF(F191-E191>0,IF(S191="x",MROUND((F191-E191)*V194,1/1440),F191-E191),0) -> 0 | R191: 0 | S191: =IF(G191=DATEN!$L$87,"x","") -> 
B192: 2025-11-17 | M192: =IF(S192="x",TEXT(V194,"# ?/?")&" !",IF(T192="x","Nein","")) ->  | N192: =IF(S192="",IF(R192>Stunden2,Pausen2-SUM(N184:N191),IF(R192>Stunden1,Pausen1-SUM(N184:N191),0)),0) -> 0 | Q192: =IF(F192-E192>0,IF(S192="x",MROUND((F192-E192)*V194,1/1440),F192-E192),0) -> 0 | R192: 0 | S192: =IF(G192=DATEN!$L$87,"x","") -> 
B193: 2025-11-17 | M193: =IF(S193="x",TEXT(V194,"# ?/?")&" !",IF(T193="x","Nein","")) ->  | N193: =IF(S193="",IF(R193>Stunden2,Pausen2-SUM(N184:N192),IF(R193>Stunden1,Pausen1-SUM(N184:N192),0)),0) -> 0 | Q193: =IF(F193-E193>0,IF(S193="x",MROUND((F193-E193)*V194,1/1440),F193-E193),0) -> 0 | R193: 0 | S193: =IF(G193=DATEN!$L$87,"x","") -> 
A194: =IF(LEN(B194)>0,IF(WEEKDAY(B194)=4,TRUNC((B194-DATE(YEAR(B194+3-MOD(B194-2,7)),1,MOD(B194-2,7)-9))/7),IF(WEEKDAY(B194)=5,"KW","")),"") ->  | B194: =B183+1 -> 2025-11-17 | C194: =IF(WEEKDAY(B194)=1,7,WEEKDAY(B194)-1) -> 1 | D194: =IF(LEN(B194)>0,IF(OR(INDIRECT("DATEN!D"&9+C194)=0,NOT(ISNA(MATCH(B194,DATEN!$D$18:$D$33,0)))),"X",IF(OR(B194=DATEN!$D$26-1,B194=DATEN!$D$27-2,B194=DATEN!$D$30-2),"V","")),"") ->  | E194: =IF(E184>0,IF(VALUE("24:00:00")-VALUE(MAX(F173:F182))+VALUE(E184)<VALUE("11:00:00"),"Ruhezeit!",""),"") ->  | G194: Tagessumme: | H194: =V188 -> 0 | K194: =IF(LEN(B194)>0,IF(AND(D194<>"X",I194<>"U",I194<>"u",I194<>"K",I194<>"k",OR(I194="F",I194="f",H194<>0,DATEN!$H$8=1),J194<>"f",J194<>"F"),IF(D194="V",H194-INDIRECT("DATEN!D"&9+C194)/2,H194-INDIRECT("DATEN!D"&9+C194)),H194),"") -> -0.3291666667 | L194: =IF(X194>MaxWoZeit,"WoArbZeit>48h!","") ->  | M194: =IF(V186>V187,V186-V187,"") ->  | N194: =SUM(N184:N193) -> 0 | O194: =IF(WEEKDAY(B194,2)=7,SUMIF('Auswertung-Wochen'!$Y$2:$Y$366,P194,'Auswertung-Wochen'!$V$2:$V$366)-SUMIF('Auswertung-Wochen'!$Y$2:$Y$366,P194,'Auswertung-Wochen'!$W$2:$W$366),"") ->  | P194: =YEAR(B194)&"-"&TEXT(_xlfn.ISOWEEKNUM(B194),"00") -> 2025-47 | Q194: =SUM(Q184:Q193) -> 00:00:00 | V194: =IF(D194="x",DATEN!$N$88,DATEN!$N$87) -> 0.125 | W194: Faktor Rufbereitschaft | X194: =IF(LEN(B194)>0,IF(WEEKDAY(B194,2)=1,H194,H194+X183),X183) -> 0
A195: =IF(ISNA(MATCH(B205,DATEN!$D$18:$D$42,0)),"",INDEX(DATEN!$C$18:$D$42,MATCH(B205,DATEN!$D$18:$D$42,0),1)) ->  | B195: =B184+1 -> 2025-11-18 | H195: =IF(Q195>0,IF(ROUND(F195-E195,6)>=ROUND(Mindest,6),Q195,"<15m!"),"") ->  | M195: =IF(S195="x",TEXT(V205,"# ?/?")&" !",IF(T195="x","Nein","")) ->  | N195: =IF(S195="",IF(R195>Stunden2,Pausen2,IF(R195>Stunden1,Pausen1,0)),0) -> 0 | Q195: =IF(F195-E195>0,IF(S195="x",MROUND((F195-E195)*V205,1/1440),F195-E195),0) -> 0 | R195: =Q195 -> 0 | S195: =IF(G195=DATEN!$L$87,"x","") ->  | T195: =IF(ISNA(VLOOKUP(G195,ArbKapp,3,FALSE))=TRUE,"",IF(VLOOKUP(G195,ArbKapp,3,FALSE)="x","x","")) ->  | U195: =IF(ISNA(MATCH(G195,Kapp12Ordi,0)),"","x") ->  | V195: =Q205-N205 -> 0 | W195: Tagessumme
B196: 2025-11-18 | M196: =IF(S196="x",TEXT(V205,"# ?/?")&" !",IF(T196="x","Nein","")) ->  | N196: =IF(S196="",IF(R196>Stunden2,Pausen2-SUM(N195),IF(R196>Stunden1,Pausen1-SUM(N195),0)),0) -> 0 | Q196: =IF(F196-E196>0,IF(S196="x",MROUND((F196-E196)*V205,1/1440),F196-E196),0) -> 0 | R196: =IF(Q196>0,IF(AND(E196=F195,S195<>"x"),Q196+R195-N195,Q196),0) -> 0 | S196: =IF(G196=DATEN!$L$87,"x","") ->  | V196: =IF(ISNA(MATCH("x",U195:U204,0)),MaxZeit,MaxBildung) -> 0.4166666667 | W196: max. Tageszeit
B197: 2025-11-18 | M197: =IF(S197="x",TEXT(V205,"# ?/?")&" !",IF(T197="x","Nein","")) ->  | N197: =IF(S197="",IF(R197>Stunden2,Pausen2-SUM(N195:N196),IF(R197>Stunden1,Pausen1-SUM(N195:N196),0)),0) -> 0 | Q197: =IF(F197-E197>0,IF(S197="x",MROUND((F197-E197)*V205,1/1440),F197-E197),0) -> 0 | R197: =IF(Q197>0,IF(AND(E197=F196,S196<>"x"),Q197+R196-N196,Q197),0) -> 0 | S197: =IF(G197=DATEN!$L$87,"x","") ->  | V197: =SUMIF(T195:T204,"<>x",H195:H204)-N205 -> 00:00:00 | W197: Summe f. Kappung
B198: 2025-11-18 | M198: =IF(S198="x",TEXT(V205,"# ?/?")&" !",IF(T198="x","Nein","")) ->  | N198: =IF(S198="",IF(R198>Stunden2,Pausen2-SUM(N195:N197),IF(R198>Stunden1,Pausen1-SUM(N195:N197),0)),0) -> 0 | Q198: =IF(F198-E198>0,IF(S198="x",MROUND((F198-E198)*V205,1/1440),F198-E198),0) -> 0 | R198: =IF(Q198>0,IF(AND(E198=F197,S197<>"x"),Q198+R197-N197,Q198),0) -> 0 | S198: =IF(G198=DATEN!$L$87,"x","") ->  | V198: =IF(V197>V196,V196,V197) -> 0 | W198: Summe gekappt
B199: 2025-11-18 | M199: =IF(S199="x",TEXT(V205,"# ?/?")&" !",IF(T199="x","Nein","")) ->  | N199: =IF(S199="",IF(R199>Stunden2,Pausen2-SUM(N195:N198),IF(R199>Stunden1,Pausen1-SUM(N195:N198),0)),0) -> 0 | Q199: =IF(F199-E199>0,IF(S199="x",MROUND((F199-E199)*V205,1/1440),F199-E199),0) -> 0 | R199: =IF(Q199>0,IF(AND(E199=F198,S198<>"x"),Q199+R198-N198,Q199),0) -> 0 | S199: =IF(G199=DATEN!$L$87,"x","") ->  | V199: =V198+SUMIF(T195:T204,"x",H195:H204) -> 0 | W199: zzgl.kappungsfrei
B200: 2025-11-18 | M200: =IF(S200="x",TEXT(V205,"# ?/?")&" !",IF(T200="x","Nein","")) ->  | N200: =IF(S200="",IF(R200>Stunden2,Pausen2-SUM(N195:N199),IF(R200>Stunden1,Pausen1-SUM(N195:N199),0)),0) -> 0 | Q200: =IF(F200-E200>0,IF(S200="x",MROUND((F200-E200)*V205,1/1440),F200-E200),0) -> 0 | R200: 0 | S200: =IF(G200=DATEN!$L$87,"x","") -> 
B201: 2025-11-18 | M201: =IF(S201="x",TEXT(V205,"# ?/?")&" !",IF(T201="x","Nein","")) ->  | N201: =IF(S201="",IF(R201>Stunden2,Pausen2-SUM(N195:N200),IF(R201>Stunden1,Pausen1-SUM(N195:N200),0)),0) -> 0 | Q201: =IF(F201-E201>0,IF(S201="x",MROUND((F201-E201)*V205,1/1440),F201-E201),0) -> 0 | R201: 0 | S201: =IF(G201=DATEN!$L$87,"x","") ->  | Z201: =IF(AND(G201>0,G201<>"Tagessumme:"),G201,"") ->  | AA201: =IF(G201<>"Tagessumme:",H201,"") -> 
... 153 more rows

Sheet Dezember
A2: 12 | B2: =CONCATENATE("Arbeitszeiterfassung ",TEXT(B18,"MMMM JJJJ")) -> Arbeitszeiterfassung Dezember 2025
B3: =DATEN!C3 -> Petra Mustermann | M3: Arbeitsbereiche
B4: =IF(DATEN!S16="","!!! Dieser Monat wird nicht gewertet !!!","") ->  | M4: ausblenden mit
F5: =MAX(November!F338:F347) -> 0 | G5: = Arbeitsende Vortag | M5: x :
B6: Tag | C6: Wochentag | D6: X: Frei V: Vorfeier | E6: Arbeitszeit | I6: Urlaub / krank / frei | J6: Frei / § 34 AVO | K6: Saldo | L6: Bemerkung | M6: Kappung | N6: Pausen- abzug | O6: Differenz- Kalender-woche | P6: KW | Q6: Std. roh | R6: Zus.häng. | S6: Rufbereit. | T6: Kapp.frei | U6: Kapp-12 | V6: Kappung | X6: Wochenarbeitszeit
E7: von | F7: bis | G7: Arbeitsbereich | H7: Std. | X7: =INDIRECT(TEXT(DATE(DATEN!G3,MONTH(B18)-1,1),"MMMM")&"!v348") -> 0.125 | Z7: Arbeitsbereich | AA7: Std.
A8: =IF(ISNA(MATCH(B18,DATEN!$D$18:$D$42,0)),"",INDEX(DATEN!$C$18:$D$42,MATCH(B18,DATEN!$D$18:$D$42,0),1)) ->  | B8: =DATE(DATEN!$G$3,$A$2,1) -> 2025-12-01 | H8: =IF(Q8>0,IF(ROUND(F8-E8,6)>=ROUND(Mindest,6),Q8,"<15m!"),"") ->  | M8: =IF(S8="x",TEXT(V18,"# ?/?")&" !",IF(T8="x","Nein","")) ->  | N8: =IF(S8="",IF(R8>Stunden2,Pausen2,IF(R8>Stunden1,Pausen1,0)),0) -> 0 | Q8: =IF(F8-E8>0,IF(S8="x",MROUND((F8-E8)*V18,1/1440),F8-E8),0) -> 0 | R8: =Q8 -> 0 | S8: =IF(G8=DATEN!$L$87,"x","") ->  | T8: =IF(ISNA(VLOOKUP(G8,ArbKapp,3,FALSE))=TRUE,"",IF(VLOOKUP(G8,ArbKapp,3,FALSE)="x","x","")) ->  | U8: =IF(ISNA(MATCH(G8,Kapp12Ordi,0)),"","x") ->  | V8: =Q18-N18 -> 0 | W8: Tagessumme | Z8: =IF(AND(G8>0,G8<>"Tagessumme:"),G8,"") ->  | AA8: =IF(G8<>"Tagessumme:",H8,"") -> 
B9: =DATE(DATEN!$G$3,$A$2,1) -> 2025-12-01 | M9: =IF(S9="x",TEXT(V18,"# ?/?")&" !",IF(T9="x","Nein","")) ->  | N9: =IF(S9="",IF(R9>Stunden2,Pausen2-SUM(N8),IF(R9>Stunden1,Pausen1-SUM(N8),0)),0) -> 0 | Q9: =IF(F9-E9>0,IF(S9="x",MROUND((F9-E9)*V18,1/1440),F9-E9),0) -> 0 | R9: =IF(Q9>0,IF(AND(E9=F8,S8<>"x"),Q9+R8-N8,Q9),0) -> 0 | S9: =IF(G9=DATEN!$L$87,"x","") ->  | V9: =IF(ISNA(MATCH("x",U8:U17,0)),MaxZeit,MaxBildung) -> 0.4166666667 | W9: max. Tageszeit | Z9: =IF(AND(G9>0,G9<>"Tagessumme:"),G9,"") ->  | AA9: =IF(G9<>"Tagessumme:",H9,"") -> 
B10: =DATE(DATEN!$G$3,$A$2,1) -> 2025-12-01 | M10: =IF(S10="x",TEXT(V18,"# ?/?")&" !",IF(T10="x","Nein","")) ->  | N10: =IF(S10="",IF(R10>Stunden2,Pausen2-SUM(N8:N9),IF(R10>Stunden1,Pausen1-SUM(N8:N9),0)),0) -> 0 | Q10: =IF(F10-E10>0,IF(S10="x",MROUND((F10-E10)*V18,1/1440),F10-E10),0) -> 0 | R10: =IF(Q10>0,IF(AND(E10=F9,S9<>"x"),Q10+R9-N9,Q10),0) -> 0 | S10: =IF(G10=DATEN!$L$87,"x","") ->  | V10: =SUMIF(T8:T17,"<>x",H8:H17)-N18 -> 00:00:00 | W10: Summe f. Kappung
B11: =DATE(DATEN!$G$3,$A$2,1) -> 2025-12-01 | M11: =IF(S11="x",TEXT(V18,"# ?/?")&" !",IF(T11="x","Nein","")) ->  | N11: =IF(S11="",IF(R11>Stunden2,Pausen2-SUM(N8:N10),IF(R11>Stunden1,Pausen1-SUM(N8:N10),0)),0) -> 0 | Q11: =IF(F11-E11>0,IF(S11="x",MROUND((F11-E11)*V18,1/1440),F11-E11),0) -> 0 | R11: 0 | S11: =IF(G11=DATEN!$L$87,"x","") ->  | V11: =IF(V10>V9,V9,V10) -> 0 | W11: Summe gekappt
B12: =DATE(DATEN!$G$3,$A$2,1) -> 2025-12-01 | M12: =IF(S12="x",TEXT(V18,"# ?/?")&" !",IF(T12="x","Nein","")) ->  | N12: =IF(S12="",IF(R12>Stunden2,Pausen2-SUM(N8:N11),IF(R12>Stunden1,Pausen1-SUM(N8:N11),0)),0) -> 0 | Q12: =IF(F12-E12>0,IF(S12="x",MROUND((F12-E12)*V18,1/1440),F12-E12),0) -> 0 | R12: 0 | S12: =IF(G12=DATEN!$L$87,"x","") ->  | V12: =V11+SUMIF(T8:T17,"x",H8:H17) -> 0 | W12: zzgl.kappungsfrei
B13: =DATE(DATEN!$G$3,$A$2,1) -> 2025-12-01 | M13: =IF(S13="x",TEXT(V18,"# ?/?")&" !",IF(T13="x","Nein","")) ->  | N13: =IF(S13="",IF(R13>Stunden2,Pausen2-SUM(N8:N12),IF(R13>Stunden1,Pausen1-SUM(N8:N12),0)),0) -> 0 | Q13: =IF(F13-E13>0,IF(S13="x",MROUND((F13-E13)*V18,1/1440),F13-E13),0) -> 0 | R13: 0 | S13: =IF(G13=DATEN!$L$87,"x","") -> 
B14: =DATE(DATEN!$G$3,$A$2,1) -> 2025-12-01 | M14: =IF(S14="x",TEXT(V18,"# ?/?")&" !",IF(T14="x","Nein","")) ->  | N14: =IF(S14="",IF(R14>Stunden2,Pausen2-SUM(N8:N13),IF(R14>Stunden1,Pausen1-SUM(N8:N13),0)),0) -> 0 | Q14: =IF(F14-E14>0,IF(S14="x",MROUND((F14-E14)*V18,1/1440),F14-E14),0) -> 0 | R14: 0 | S14: =IF(G14=DATEN!$L$87,"x","") -> 
B15: =DATE(DATEN!$G$3,$A$2,1) -> 2025-12-01 | M15: =IF(S15="x",TEXT(V18,"# ?/?")&" !",IF(T15="x","Nein","")) ->  | N15: =IF(S15="",IF(R15>Stunden2,Pausen2-SUM(N8:N14),IF(R15>Stunden1,Pausen1-SUM(N8:N14),0)),0) -> 0 | Q15: =IF(F15-E15>0,IF(S15="x",MROUND((F15-E15)*V18,1/1440),F15-E15),0) -> 0 | R15: 0 | S15: =IF(G15=DATEN!$L$87,"x","") -> 
B16: =DATE(DATEN!$G$3,$A$2,1) -> 2025-12-01 | M16: =IF(S16="x",TEXT(V18,"# ?/?")&" !",IF(T16="x","Nein","")) ->  | N16: =IF(S16="",IF(R16>Stunden2,Pausen2-SUM(N8:N15),IF(R16>Stunden1,Pausen1-SUM(N8:N15),0)),0) -> 0 | Q16: =IF(F16-E16>0,IF(S16="x",MROUND((F16-E16)*V18,1/1440),F16-E16),0) -> 0 | R16: 0 | S16: =IF(G16=DATEN!$L$87,"x","") -> 
B17: =DATE(DATEN!$G$3,$A$2,1) -> 2025-12-01 | M17: =IF(S17="x",TEXT(V18,"# ?/?")&" !",IF(T17="x","Nein","")) ->  | N17: =IF(S17="",IF(R17>Stunden2,Pausen2-SUM(N8:N16),IF(R17>Stunden1,Pausen1-SUM(N8:N16),0)),0) -> 0 | Q17: =IF(F17-E17>0,IF(S17="x",MROUND((F17-E17)*V18,1/1440),F17-E17),0) -> 0 | R17: 0 | S17: =IF(G17=DATEN!$L$87,"x","") -> 
A18: =IF(LEN(B18)>0,IF(WEEKDAY(B18)=4,TRUNC((B18-DATE(YEAR(B18+3-MOD(B18-2,7)),1,MOD(B18-2,7)-9))/7),"")) ->  | B18: =DATE(DATEN!$G$3,$A$2,1) -> 2025-12-01 | C18: =IF(WEEKDAY(B18)=1,7,WEEKDAY(B18)-1) -> 1 | D18: =IF(LEN(B18)>0,IF(OR(INDIRECT("DATEN!D"&9+C18)=0,NOT(ISNA(MATCH(B18,DATEN!$D$18:$D$33,0)))),"X",IF(OR(B18=DATEN!$D$26-1,B18=DATEN!$D$27-2,B18=DATEN!$D$30-2),"V","")),"") ->  | E18: =IF(VALUE("24:00:00")-VALUE(F5)+VALUE(E8)<VALUE("11:00:00"),"Ruhezeit!","") ->  | G18: Tagessumme: | H18: =V12 -> 0 | K18: =IF(LEN(B18)>0,IF(AND(D18<>"X",I18<>"U",I18<>"u",I18<>"K",I18<>"k",OR(I18="F",I18="f",H18<>0,DATEN!$H$8=1),J18<>"f",J18<>"F"),IF(D18="V",H18-INDIRECT("DATEN!D"&9+C18)/2,H18-INDIRECT("DATEN!D"&9+C18)),H18),"") -> -0.3291666667 | L18: =IF(X18>MaxWoZeit,"WoArbZeit>48h!","") ->  | M18: =IF(V10>V11,V10-V11,"") ->  | N18: =SUM(N8:N17) -> 0 | O18: =IF(WEEKDAY(B18,2)=7,SUMIF('Auswertung-Wochen'!$Y$2:$Y$366,P18,'Auswertung-Wochen'!$V$2:$V$366)-SUMIF('Auswertung-Wochen'!$Y$2:$Y$366,P18,'Auswertung-Wochen'!$W$2:$W$366),"") ->  | P18: =YEAR(B18)&"-"&TEXT(_xlfn.ISOWEEKNUM(B18),"00") -> 2025-49 | Q18: =SUM(Q8:Q17) -> 00:00:00 | V18: =IF(D18="x",DATEN!$N$88,DATEN!$N$87) -> 0.125 | W18: Faktor Rufbereitschaft | X18: =IF(LEN(B18)>0,IF(WEEKDAY(B18,2)=1,H18,H18+X7),X7) -> 0
A19: =IF(ISNA(MATCH(B29,DATEN!$D$18:$D$42,0)),"",INDEX(DATEN!$C$18:$D$42,MATCH(B29,DATEN!$D$18:$D$42,0),1)) ->  | B19: =B8+1 -> 2025-12-02 | H19: =IF(Q19>0,IF(ROUND(F19-E19,6)>=ROUND(Mindest,6),Q19,"<15m!"),"") ->  | M19: =IF(S19="x",TEXT(V29,"# ?/?")&" !",IF(T19="x","Nein","")) ->  | N19: =IF(S19="",IF(R19>Stunden2,Pausen2,IF(R19>Stunden1,Pausen1,0)),0) -> 0 | Q19: =IF(F19-E19>0,IF(S19="x",MROUND((F19-E19)*V29,1/1440),F19-E19),0) -> 0 | R19: =Q19 -> 0 | S19: =IF(G19=DATEN!$L$87,"x","") ->  | T19: =IF(ISNA(VLOOKUP(G19,ArbKapp,3,FALSE))=TRUE,"",IF(VLOOKUP(G19,ArbKapp,3,FALSE)="x","x","")) ->  | U19: =IF(ISNA(MATCH(G19,Kapp12Ordi,0)),"","x") ->  | V19: =Q29-N29 -> 0 | W19: Tagessumme
B20: 2025-12-02 | M20: =IF(S20="x",TEXT(V29,"# ?/?")&" !",IF(T20="x","Nein","")) ->  | N20: =IF(S20="",IF(R20>Stunden2,Pausen2-SUM(N19),IF(R20>Stunden1,Pausen1-SUM(N19),0)),0) -> 0 | Q20: =IF(F20-E20>0,IF(S20="x",MROUND((F20-E20)*V29,1/1440),F20-E20),0) -> 0 | R20: =IF(Q20>0,IF(AND(E20=F19,S19<>"x"),Q20+R19-N19,Q20),0) -> 0 | S20: =IF(G20=DATEN!$L$87,"x","") ->  | V20: =IF(ISNA(MATCH("x",U19:U28,0)),MaxZeit,MaxBildung) -> 0.4166666667 | W20: max. Tageszeit
B21: 2025-12-02 | M21: =IF(S21="x",TEXT(V29,"# ?/?")&" !",IF(T21="x","Nein","")) ->  | N21: =IF(S21="",IF(R21>Stunden2,Pausen2-SUM(N19:N20),IF(R21>Stunden1,Pausen1-SUM(N19:N20),0)),0) -> 0 | Q21: =IF(F21-E21>0,IF(S21="x",MROUND((F21-E21)*V29,1/1440),F21-E21),0) -> 0 | R21: =IF(Q21>0,IF(AND(E21=F20,S20<>"x"),Q21+R20-N20,Q21),0) -> 0 | S21: =IF(G21=DATEN!$L$87,"x","") ->  | V21: =SUMIF(T19:T28,"<>x",H19:H28)-N29 -> 00:00:00 | W21: Summe f. Kappung
B22: 2025-12-02 | M22: =IF(S22="x",TEXT(V29,"# ?/?")&" !",IF(T22="x","Nein","")) ->  | N22: =IF(S22="",IF(R22>Stunden2,Pausen2-SUM(N19:N21),IF(R22>Stunden1,Pausen1-SUM(N19:N21),0)),0) -> 0 | Q22: =IF(F22-E22>0,IF(S22="x",MROUND((F22-E22)*V29,1/1440),F22-E22),0) -> 0 | R22: 0 | S22: =IF(G22=DATEN!$L$87,"x","") ->  | V22: =IF(V21>V20,V20,V21) -> 0 | W22: Summe gekappt
B23: 2025-12-02 | M23: =IF(S23="x",TEXT(V29,"# ?/?")&" !",IF(T23="x","Nein","")) ->  | N23: =IF(S23="",IF(R23>Stunden2,Pausen2-SUM(N19:N22),IF(R23>Stunden1,Pausen1-SUM(N19:N22),0)),0) -> 0 | Q23: =IF(F23-E23>0,IF(S23="x",MROUND((F23-E23)*V29,1/1440),F23-E23),0) -> 0 | R23: 0 | S23: =IF(G23=DATEN!$L$87,"x","") ->  | V23: =V22+SUMIF(T19:T28,"x",H19:H28) -> 0 | W23: zzgl.kappungsfrei
B24: 2025-12-02 | M24: =IF(S24="x",TEXT(V29,"# ?/?")&" !",IF(T24="x","Nein","")) ->  | N24: =IF(S24="",IF(R24>Stunden2,Pausen2-SUM(N19:N23),IF(R24>Stunden1,Pausen1-SUM(N19:N23),0)),0) -> 0 | Q24: =IF(F24-E24>0,IF(S24="x",MROUND((F24-E24)*V29,1/1440),F24-E24),0) -> 0 | R24: 0 | S24: =IF(G24=DATEN!$L$87,"x","") -> 
B25: 2025-12-02 | M25: =IF(S25="x",TEXT(V29,"# ?/?")&" !",IF(T25="x","Nein","")) ->  | N25: =IF(S25="",IF(R25>Stunden2,Pausen2-SUM(N19:N24),IF(R25>Stunden1,Pausen1-SUM(N19:N24),0)),0) -> 0 | Q25: =IF(F25-E25>0,IF(S25="x",MROUND((F25-E25)*V29,1/1440),F25-E25),0) -> 0 | R25: 0 | S25: =IF(G25=DATEN!$L$87,"x","") -> 
B26: 2025-12-02 | M26: =IF(S26="x",TEXT(V29,"# ?/?")&" !",IF(T26="x","Nein","")) ->  | N26: =IF(S26="",IF(R26>Stunden2,Pausen2-SUM(N19:N25),IF(R26>Stunden1,Pausen1-SUM(N19:N25),0)),0) -> 0 | Q26: =IF(F26-E26>0,IF(S26="x",MROUND((F26-E26)*V29,1/1440),F26-E26),0) -> 0 | R26: 0 | S26: =IF(G26=DATEN!$L$87,"x","") -> 
B27: 2025-12-02 | M27: =IF(S27="x",TEXT(V29,"# ?/?")&" !",IF(T27="x","Nein","")) ->  | N27: =IF(S27="",IF(R27>Stunden2,Pausen2-SUM(N19:N26),IF(R27>Stunden1,Pausen1-SUM(N19:N26),0)),0) -> 0 | Q27: =IF(F27-E27>0,IF(S27="x",MROUND((F27-E27)*V29,1/1440),F27-E27),0) -> 0 | R27: 0 | S27: =IF(G27=DATEN!$L$87,"x","") -> 
B28: 2025-12-02 | M28: =IF(S28="x",TEXT(V29,"# ?/?")&" !",IF(T28="x","Nein","")) ->  | N28: =IF(S28="",IF(R28>Stunden2,Pausen2-SUM(N19:N27),IF(R28>Stunden1,Pausen1-SUM(N19:N27),0)),0) -> 0 | Q28: =IF(F28-E28>0,IF(S28="x",MROUND((F28-E28)*V29,1/1440),F28-E28),0) -> 0 | R28: 0 | S28: =IF(G28=DATEN!$L$87,"x","") -> 
A29: =IF(LEN(B29)>0,IF(WEEKDAY(B29)=4,TRUNC((B29-DATE(YEAR(B29+3-MOD(B29-2,7)),1,MOD(B29-2,7)-9))/7),IF(WEEKDAY(B29)=5,"KW","")),"") ->  | B29: =B18+1 -> 2025-12-02 | C29: =IF(WEEKDAY(B29)=1,7,WEEKDAY(B29)-1) -> 2 | D29: =IF(LEN(B29)>0,IF(OR(INDIRECT("DATEN!D"&9+C29)=0,NOT(ISNA(MATCH(B29,DATEN!$D$18:$D$33,0)))),"X",IF(OR(B29=DATEN!$D$26-1,B29=DATEN!$D$27-2,B29=DATEN!$D$30-2),"V","")),"") ->  | E29: =IF(E19>0,IF(VALUE("24:00:00")-VALUE(MAX(F8:F17))+VALUE(E19)<VALUE("11:00:00"),"Ruhezeit!",""),"") ->  | G29: Tagessumme: | H29: =V23 -> 0 | K29: =IF(LEN(B29)>0,IF(AND(D29<>"X",I29<>"U",I29<>"u",I29<>"K",I29<>"k",OR(I29="F",I29="f",H29<>0,DATEN!$H$8=1),J29<>"f",J29<>"F"),IF(D29="V",H29-INDIRECT("DATEN!D"&9+C29)/2,H29-INDIRECT("DATEN!D"&9+C29)),H29),"") -> -0.3291666667 | L29: =IF(X29>MaxWoZeit,"WoArbZeit>48h!","") ->  | M29: =IF(V21>V22,V21-V22,"") ->  | N29: =SUM(N19:N28) -> 0 | O29: =IF(WEEKDAY(B29,2)=7,SUMIF('Auswertung-Wochen'!$Y$2:$Y$366,P29,'Auswertung-Wochen'!$V$2:$V$366)-SUMIF('Auswertung-Wochen'!$Y$2:$Y$366,P29,'Auswertung-Wochen'!$W$2:$W$366),"") ->  | P29: =YEAR(B29)&"-"&TEXT(_xlfn.ISOWEEKNUM(B29),"00") -> 2025-49 | Q29: =SUM(Q19:Q28) -> 00:00:00 | V29: =IF(D29="x",DATEN!$N$88,DATEN!$N$87) -> 0.125 | W29: Faktor Rufbereitschaft | X29: =IF(LEN(B29)>0,IF(WEEKDAY(B29,2)=1,H29,H29+X18),X18) -> 0
A30: =IF(ISNA(MATCH(B40,DATEN!$D$18:$D$42,0)),"",INDEX(DATEN!$C$18:$D$42,MATCH(B40,DATEN!$D$18:$D$42,0),1)) ->  | B30: =B19+1 -> 2025-12-03 | H30: =IF(Q30>0,IF(ROUND(F30-E30,6)>=ROUND(Mindest,6),Q30,"<15m!"),"") ->  | M30: =IF(S30="x",TEXT(V40,"# ?/?")&" !",IF(T30="x","Nein","")) ->  | N30: =IF(S30="",IF(R30>Stunden2,Pausen2,IF(R30>Stunden1,Pausen1,0)),0) -> 0 | Q30: =IF(F30-E30>0,IF(S30="x",MROUND((F30-E30)*V40,1/1440),F30-E30),0) -> 0 | R30: =Q30 -> 0 | S30: =IF(G30=DATEN!$L$87,"x","") ->  | T30: =IF(ISNA(VLOOKUP(G30,ArbKapp,3,FALSE))=TRUE,"",IF(VLOOKUP(G30,ArbKapp,3,FALSE)="x","x","")) ->  | U30: =IF(ISNA(MATCH(G30,Kapp12Ordi,0)),"","x") ->  | V30: =Q40-N40 -> 0 | W30: Tagessumme
B31: 2025-12-03 | M31: =IF(S31="x",TEXT(V40,"# ?/?")&" !",IF(T31="x","Nein","")) ->  | N31: =IF(S31="",IF(R31>Stunden2,Pausen2-SUM(N30),IF(R31>Stunden1,Pausen1-SUM(N30),0)),0) -> 0 | Q31: =IF(F31-E31>0,IF(S31="x",MROUND((F31-E31)*V40,1/1440),F31-E31),0) -> 0 | R31: =IF(Q31>0,IF(AND(E31=F30,S30<>"x"),Q31+R30-N30,Q31),0) -> 0 | S31: =IF(G31=DATEN!$L$87,"x","") ->  | V31: =IF(ISNA(MATCH("x",U30:U39,0)),MaxZeit,MaxBildung) -> 0.4166666667 | W31: max. Tageszeit
B32: 2025-12-03 | M32: =IF(S32="x",TEXT(V40,"# ?/?")&" !",IF(T32="x","Nein","")) ->  | N32: =IF(S32="",IF(R32>Stunden2,Pausen2-SUM(N30:N31),IF(R32>Stunden1,Pausen1-SUM(N30:N31),0)),0) -> 0 | Q32: =IF(F32-E32>0,IF(S32="x",MROUND((F32-E32)*V40,1/1440),F32-E32),0) -> 0 | R32: =IF(Q32>0,IF(AND(E32=F31,S31<>"x"),Q32+R31-N31,Q32),0) -> 0 | S32: =IF(G32=DATEN!$L$87,"x","") ->  | V32: =SUMIF(T30:T39,"<>x",H30:H39)-N40 -> 00:00:00 | W32: Summe f. Kappung
B33: 2025-12-03 | M33: =IF(S33="x",TEXT(V40,"# ?/?")&" !",IF(T33="x","Nein","")) ->  | N33: =IF(S33="",IF(R33>Stunden2,Pausen2-SUM(N30:N32),IF(R33>Stunden1,Pausen1-SUM(N30:N32),0)),0) -> 0 | Q33: =IF(F33-E33>0,IF(S33="x",MROUND((F33-E33)*V40,1/1440),F33-E33),0) -> 0 | R33: 0 | S33: =IF(G33=DATEN!$L$87,"x","") ->  | V33: =IF(V32>V31,V31,V32) -> 0 | W33: Summe gekappt
B34: 2025-12-03 | M34: =IF(S34="x",TEXT(V40,"# ?/?")&" !",IF(T34="x","Nein","")) ->  | N34: =IF(S34="",IF(R34>Stunden2,Pausen2-SUM(N30:N33),IF(R34>Stunden1,Pausen1-SUM(N30:N33),0)),0) -> 0 | Q34: =IF(F34-E34>0,IF(S34="x",MROUND((F34-E34)*V40,1/1440),F34-E34),0) -> 0 | R34: 0 | S34: =IF(G34=DATEN!$L$87,"x","") ->  | V34: =V33+SUMIF(T30:T39,"x",H30:H39) -> 0 | W34: zzgl.kappungsfrei
B35: 2025-12-03 | M35: =IF(S35="x",TEXT(V40,"# ?/?")&" !",IF(T35="x","Nein","")) ->  | N35: =IF(S35="",IF(R35>Stunden2,Pausen2-SUM(N30:N34),IF(R35>Stunden1,Pausen1-SUM(N30:N34),0)),0) -> 0 | Q35: =IF(F35-E35>0,IF(S35="x",MROUND((F35-E35)*V40,1/1440),F35-E35),0) -> 0 | R35: 0 | S35: =IF(G35=DATEN!$L$87,"x","") -> 
B36: 2025-12-03 | M36: =IF(S36="x",TEXT(V40,"# ?/?")&" !",IF(T36="x","Nein","")) ->  | N36: =IF(S36="",IF(R36>Stunden2,Pausen2-SUM(N30:N35),IF(R36>Stunden1,Pausen1-SUM(N30:N35),0)),0) -> 0 | Q36: =IF(F36-E36>0,IF(S36="x",MROUND((F36-E36)*V40,1/1440),F36-E36),0) -> 0 | R36: 0 | S36: =IF(G36=DATEN!$L$87,"x","") -> 
B37: 2025-12-03 | M37: =IF(S37="x",TEXT(V40,"# ?/?")&" !",IF(T37="x","Nein","")) ->  | N37: =IF(S37="",IF(R37>Stunden2,Pausen2-SUM(N30:N36),IF(R37>Stunden1,Pausen1-SUM(N30:N36),0)),0) -> 0 | Q37: =IF(F37-E37>0,IF(S37="x",MROUND((F37-E37)*V40,1/1440),F37-E37),0) -> 0 | R37: 0 | S37: =IF(G37=DATEN!$L$87,"x","") -> 
B38: 2025-12-03 | M38: =IF(S38="x",TEXT(V40,"# ?/?")&" !",IF(T38="x","Nein","")) ->  | N38: =IF(S38="",IF(R38>Stunden2,Pausen2-SUM(N30:N37),IF(R38>Stunden1,Pausen1-SUM(N30:N37),0)),0) -> 0 | Q38: =IF(F38-E38>0,IF(S38="x",MROUND((F38-E38)*V40,1/1440),F38-E38),0) -> 0 | R38: 0 | S38: =IF(G38=DATEN!$L$87,"x","") -> 
B39: 2025-12-03 | M39: =IF(S39="x",TEXT(V40,"# ?/?")&" !",IF(T39="x","Nein","")) ->  | N39: =IF(S39="",IF(R39>Stunden2,Pausen2-SUM(N30:N38),IF(R39>Stunden1,Pausen1-SUM(N30:N38),0)),0) -> 0 | Q39: =IF(F39-E39>0,IF(S39="x",MROUND((F39-E39)*V40,1/1440),F39-E39),0) -> 0 | R39: 0 | S39: =IF(G39=DATEN!$L$87,"x","") -> 
A40: =IF(LEN(B40)>0,IF(WEEKDAY(B40)=4,TRUNC((B40-DATE(YEAR(B40+3-MOD(B40-2,7)),1,MOD(B40-2,7)-9))/7),IF(WEEKDAY(B40)=5,"KW","")),"") -> 49 | B40: =B29+1 -> 2025-12-03 | C40: =IF(WEEKDAY(B40)=1,7,WEEKDAY(B40)-1) -> 3 | D40: =IF(LEN(B40)>0,IF(OR(INDIRECT("DATEN!D"&9+C40)=0,NOT(ISNA(MATCH(B40,DATEN!$D$18:$D$33,0)))),"X",IF(OR(B40=DATEN!$D$26-1,B40=DATEN!$D$27-2,B40=DATEN!$D$30-2),"V","")),"") ->  | E40: =IF(E30>0,IF(VALUE("24:00:00")-VALUE(MAX(F19:F28))+VALUE(E30)<VALUE("11:00:00"),"Ruhezeit!",""),"") ->  | G40: Tagessumme: | H40: =V34 -> 0 | K40: =IF(LEN(B40)>0,IF(AND(D40<>"X",I40<>"U",I40<>"u",I40<>"K",I40<>"k",OR(I40="F",I40="f",H40<>0,DATEN!$H$8=1),J40<>"f",J40<>"F"),IF(D40="V",H40-INDIRECT("DATEN!D"&9+C40)/2,H40-INDIRECT("DATEN!D"&9+C40)),H40),"") -> -0.3291666667 | L40: =IF(X40>MaxWoZeit,"WoArbZeit>48h!","") ->  | M40: =IF(V32>V33,V32-V33,"") ->  | N40: =SUM(N30:N39) -> 0 | O40: =IF(WEEKDAY(B40,2)=7,SUMIF('Auswertung-Wochen'!$Y$2:$Y$366,P40,'Auswertung-Wochen'!$V$2:$V$366)-SUMIF('Auswertung-Wochen'!$Y$2:$Y$366,P40,'Auswertung-Wochen'!$W$2:$W$366),"") ->  | P40: =YEAR(B40)&"-"&TEXT(_xlfn.ISOWEEKNUM(B40),"00") -> 2025-49 | Q40: =SUM(Q30:Q39) -> 00:00:00 | V40: =IF(D40="x",DATEN!$N$88,DATEN!$N$87) -> 0.125 | W40: Faktor Rufbereitschaft | X40: =IF(LEN(B40)>0,IF(WEEKDAY(B40,2)=1,H40,H40+X29),X29) -> 0
A41: =IF(ISNA(MATCH(B51,DATEN!$D$18:$D$42,0)),"",INDEX(DATEN!$C$18:$D$42,MATCH(B51,DATEN!$D$18:$D$42,0),1)) ->  | B41: =B30+1 -> 2025-12-04 | H41: =IF(Q41>0,IF(ROUND(F41-E41,6)>=ROUND(Mindest,6),Q41,"<15m!"),"") ->  | M41: =IF(S41="x",TEXT(V51,"# ?/?")&" !",IF(T41="x","Nein","")) ->  | N41: =IF(S41="",IF(R41>Stunden2,Pausen2,IF(R41>Stunden1,Pausen1,0)),0) -> 0 | Q41: =IF(F41-E41>0,IF(S41="x",MROUND((F41-E41)*V51,1/1440),F41-E41),0) -> 0 | R41: =Q41 -> 0 | S41: =IF(G41=DATEN!$L$87,"x","") ->  | T41: =IF(ISNA(VLOOKUP(G41,ArbKapp,3,FALSE))=TRUE,"",IF(VLOOKUP(G41,ArbKapp,3,FALSE)="x","x","")) ->  | U41: =IF(ISNA(MATCH(G41,Kapp12Ordi,0)),"","x") ->  | V41: =Q51-N51 -> 0 | W41: Tagessumme
B42: 2025-12-04 | M42: =IF(S42="x",TEXT(V51,"# ?/?")&" !",IF(T42="x","Nein","")) ->  | N42: =IF(S42="",IF(R42>Stunden2,Pausen2-SUM(N41),IF(R42>Stunden1,Pausen1-SUM(N41),0)),0) -> 0 | Q42: =IF(F42-E42>0,IF(S42="x",MROUND((F42-E42)*V51,1/1440),F42-E42),0) -> 0 | R42: =IF(Q42>0,IF(AND(E42=F41,S41<>"x"),Q42+R41-N41,Q42),0) -> 0 | S42: =IF(G42=DATEN!$L$87,"x","") ->  | V42: =IF(ISNA(MATCH("x",U41:U50,0)),MaxZeit,MaxBildung) -> 0.4166666667 | W42: max. Tageszeit
B43: 2025-12-04 | M43: =IF(S43="x",TEXT(V51,"# ?/?")&" !",IF(T43="x","Nein","")) ->  | N43: =IF(S43="",IF(R43>Stunden2,Pausen2-SUM(N41:N42),IF(R43>Stunden1,Pausen1-SUM(N41:N42),0)),0) -> 0 | Q43: =IF(F43-E43>0,IF(S43="x",MROUND((F43-E43)*V51,1/1440),F43-E43),0) -> 0 | R43: =IF(Q43>0,IF(AND(E43=F42,S42<>"x"),Q43+R42-N42,Q43),0) -> 0 | S43: =IF(G43=DATEN!$L$87,"x","") ->  | V43: =SUMIF(T41:T50,"<>x",H41:H50)-N51 -> 00:00:00 | W43: Summe f. Kappung
B44: 2025-12-04 | M44: =IF(S44="x",TEXT(V51,"# ?/?")&" !",IF(T44="x","Nein","")) ->  | N44: =IF(S44="",IF(R44>Stunden2,Pausen2-SUM(N41:N43),IF(R44>Stunden1,Pausen1-SUM(N41:N43),0)),0) -> 0 | Q44: =IF(F44-E44>0,IF(S44="x",MROUND((F44-E44)*V51,1/1440),F44-E44),0) -> 0 | R44: 0 | S44: =IF(G44=DATEN!$L$87,"x","") ->  | V44: =IF(V43>V42,V42,V43) -> 0 | W44: Summe gekappt
B45: 2025-12-04 | M45: =IF(S45="x",TEXT(V51,"# ?/?")&" !",IF(T45="x","Nein","")) ->  | N45: =IF(S45="",IF(R45>Stunden2,Pausen2-SUM(N41:N44),IF(R45>Stunden1,Pausen1-SUM(N41:N44),0)),0) -> 0 | Q45: =IF(F45-E45>0,IF(S45="x",MROUND((F45-E45)*V51,1/1440),F45-E45),0) -> 0 | R45: 0 | S45: =IF(G45=DATEN!$L$87,"x","") ->  | V45: =V44+SUMIF(T41:T50,"x",H41:H50) -> 0 | W45: zzgl.kappungsfrei
B46: 2025-12-04 | M46: =IF(S46="x",TEXT(V51,"# ?/?")&" !",IF(T46="x","Nein","")) ->  | N46: =IF(S46="",IF(R46>Stunden2,Pausen2-SUM(N41:N45),IF(R46>Stunden1,Pausen1-SUM(N41:N45),0)),0) -> 0 | Q46: =IF(F46-E46>0,IF(S46="x",MROUND((F46-E46)*V51,1/1440),F46-E46),0) -> 0 | R46: 0 | S46: =IF(G46=DATEN!$L$87,"x","") -> 
B47: 2025-12-04 | M47: =IF(S47="x",TEXT(V51,"# ?/?")&" !",IF(T47="x","Nein","")) ->  | N47: =IF(S47="",IF(R47>Stunden2,Pausen2-SUM(N41:N46),IF(R47>Stunden1,Pausen1-SUM(N41:N46),0)),0) -> 0 | Q47: =IF(F47-E47>0,IF(S47="x",MROUND((F47-E47)*V51,1/1440),F47-E47),0) -> 0 | R47: 0 | S47: =IF(G47=DATEN!$L$87,"x","") -> 
B48: 2025-12-04 | M48: =IF(S48="x",TEXT(V51,"# ?/?")&" !",IF(T48="x","Nein","")) ->  | N48: =IF(S48="",IF(R48>Stunden2,Pausen2-SUM(N41:N47),IF(R48>Stunden1,Pausen1-SUM(N41:N47),0)),0) -> 0 | Q48: =IF(F48-E48>0,IF(S48="x",MROUND((F48-E48)*V51,1/1440),F48-E48),0) -> 0 | R48: 0 | S48: =IF(G48=DATEN!$L$87,"x","") -> 
B49: 2025-12-04 | M49: =IF(S49="x",TEXT(V51,"# ?/?")&" !",IF(T49="x","Nein","")) ->  | N49: =IF(S49="",IF(R49>Stunden2,Pausen2-SUM(N41:N48),IF(R49>Stunden1,Pausen1-SUM(N41:N48),0)),0) -> 0 | Q49: =IF(F49-E49>0,IF(S49="x",MROUND((F49-E49)*V51,1/1440),F49-E49),0) -> 0 | R49: 0 | S49: =IF(G49=DATEN!$L$87,"x","") -> 
B50: 2025-12-04 | M50: =IF(S50="x",TEXT(V51,"# ?/?")&" !",IF(T50="x","Nein","")) ->  | N50: =IF(S50="",IF(R50>Stunden2,Pausen2-SUM(N41:N49),IF(R50>Stunden1,Pausen1-SUM(N41:N49),0)),0) -> 0 | Q50: =IF(F50-E50>0,IF(S50="x",MROUND((F50-E50)*V51,1/1440),F50-E50),0) -> 0 | R50: 0 | S50: =IF(G50=DATEN!$L$87,"x","") -> 
A51: =IF(LEN(B51)>0,IF(WEEKDAY(B51)=4,TRUNC((B51-DATE(YEAR(B51+3-MOD(B51-2,7)),1,MOD(B51-2,7)-9))/7),IF(WEEKDAY(B51)=5,"KW","")),"") -> KW | B51: =B40+1 -> 2025-12-04 | C51: =IF(WEEKDAY(B51)=1,7,WEEKDAY(B51)-1) -> 4 | D51: =IF(LEN(B51)>0,IF(OR(INDIRECT("DATEN!D"&9+C51)=0,NOT(ISNA(MATCH(B51,DATEN!$D$18:$D$33,0)))),"X",IF(OR(B51=DATEN!$D$26-1,B51=DATEN!$D$27-2,B51=DATEN!$D$30-2),"V","")),"") ->  | E51: =IF(E41>0,IF(VALUE("24:00:00")-VALUE(MAX(F30:F39))+VALUE(E41)<VALUE("11:00:00"),"Ruhezeit!",""),"") ->  | G51: Tagessumme: | H51: =V45 -> 0 | K51: =IF(LEN(B51)>0,IF(AND(D51<>"X",I51<>"U",I51<>"u",I51<>"K",I51<>"k",OR(I51="F",I51="f",H51<>0,DATEN!$H$8=1),J51<>"f",J51<>"F"),IF(D51="V",H51-INDIRECT("DATEN!D"&9+C51)/2,H51-INDIRECT("DATEN!D"&9+C51)),H51),"") -> -0.3291666667 | L51: =IF(X51>MaxWoZeit,"WoArbZeit>48h!","") ->  | M51: =IF(V43>V44,V43-V44,"") ->  | N51: =SUM(N41:N50) -> 0 | O51: =IF(WEEKDAY(B51,2)=7,SUMIF('Auswertung-Wochen'!$Y$2:$Y$366,P51,'Auswertung-Wochen'!$V$2:$V$366)-SUMIF('Auswertung-Wochen'!$Y$2:$Y$366,P51,'Auswertung-Wochen'!$W$2:$W$366),"") ->  | P51: =YEAR(B51)&"-"&TEXT(_xlfn.ISOWEEKNUM(B51),"00") -> 2025-49 | Q51: =SUM(Q41:Q50) -> 00:00:00 | V51: =IF(D51="x",DATEN!$N$88,DATEN!$N$87) -> 0.125 | W51: Faktor Rufbereitschaft | X51: =IF(LEN(B51)>0,IF(WEEKDAY(B51,2)=1,H51,H51+X40),X40) -> 0
A52: =IF(ISNA(MATCH(B62,DATEN!$D$18:$D$42,0)),"",INDEX(DATEN!$C$18:$D$42,MATCH(B62,DATEN!$D$18:$D$42,0),1)) ->  | B52: =B41+1 -> 2025-12-05 | H52: =IF(Q52>0,IF(ROUND(F52-E52,6)>=ROUND(Mindest,6),Q52,"<15m!"),"") ->  | M52: =IF(S52="x",TEXT(V62,"# ?/?")&" !",IF(T52="x","Nein","")) ->  | N52: =IF(S52="",IF(R52>Stunden2,Pausen2,IF(R52>Stunden1,Pausen1,0)),0) -> 0 | Q52: =IF(F52-E52>0,IF(S52="x",MROUND((F52-E52)*V62,1/1440),F52-E52),0) -> 0 | R52: =Q52 -> 0 | S52: =IF(G52=DATEN!$L$87,"x","") ->  | T52: =IF(ISNA(VLOOKUP(G52,ArbKapp,3,FALSE))=TRUE,"",IF(VLOOKUP(G52,ArbKapp,3,FALSE)="x","x","")) ->  | U52: =IF(ISNA(MATCH(G52,Kapp12Ordi,0)),"","x") ->  | V52: =Q62-N62 -> 0 | W52: Tagessumme
B53: 2025-12-05 | M53: =IF(S53="x",TEXT(V62,"# ?/?")&" !",IF(T53="x","Nein","")) ->  | N53: =IF(S53="",IF(R53>Stunden2,Pausen2-SUM(N52),IF(R53>Stunden1,Pausen1-SUM(N52),0)),0) -> 0 | Q53: =IF(F53-E53>0,IF(S53="x",MROUND((F53-E53)*V62,1/1440),F53-E53),0) -> 0 | R53: =IF(Q53>0,IF(AND(E53=F52,S52<>"x"),Q53+R52-N52,Q53),0) -> 0 | S53: =IF(G53=DATEN!$L$87,"x","") ->  | V53: =IF(ISNA(MATCH("x",U52:U61,0)),MaxZeit,MaxBildung) -> 0.4166666667 | W53: max. Tageszeit
B54: 2025-12-05 | M54: =IF(S54="x",TEXT(V62,"# ?/?")&" !",IF(T54="x","Nein","")) ->  | N54: =IF(S54="",IF(R54>Stunden2,Pausen2-SUM(N52:N53),IF(R54>Stunden1,Pausen1-SUM(N52:N53),0)),0) -> 0 | Q54: =IF(F54-E54>0,IF(S54="x",MROUND((F54-E54)*V62,1/1440),F54-E54),0) -> 0 | R54: =IF(Q54>0,IF(AND(E54=F53,S53<>"x"),Q54+R53-N53,Q54),0) -> 0 | S54: =IF(G54=DATEN!$L$87,"x","") ->  | V54: =SUMIF(T52:T61,"<>x",H52:H61)-N62 -> 00:00:00 | W54: Summe f. Kappung
B55: 2025-12-05 | M55: =IF(S55="x",TEXT(V62,"# ?/?")&" !",IF(T55="x","Nein","")) ->  | N55: =IF(S55="",IF(R55>Stunden2,Pausen2-SUM(N52:N54),IF(R55>Stunden1,Pausen1-SUM(N52:N54),0)),0) -> 0 | Q55: =IF(F55-E55>0,IF(S55="x",MROUND((F55-E55)*V62,1/1440),F55-E55),0) -> 0 | R55: 0 | S55: =IF(G55=DATEN!$L$87,"x","") ->  | V55: =IF(V54>V53,V53,V54) -> 0 | W55: Summe gekappt
B56: 2025-12-05 | M56: =IF(S56="x",TEXT(V62,"# ?/?")&" !",IF(T56="x","Nein","")) ->  | N56: =IF(S56="",IF(R56>Stunden2,Pausen2-SUM(N52:N55),IF(R56>Stunden1,Pausen1-SUM(N52:N55),0)),0) -> 0 | Q56: =IF(F56-E56>0,IF(S56="x",MROUND((F56-E56)*V62,1/1440),F56-E56),0) -> 0 | R56: 0 | S56: =IF(G56=DATEN!$L$87,"x","") ->  | V56: =V55+SUMIF(T52:T61,"x",H52:H61) -> 0 | W56: zzgl.kappungsfrei
B57: 2025-12-05 | M57: =IF(S57="x",TEXT(V62,"# ?/?")&" !",IF(T57="x","Nein","")) ->  | N57: =IF(S57="",IF(R57>Stunden2,Pausen2-SUM(N52:N56),IF(R57>Stunden1,Pausen1-SUM(N52:N56),0)),0) -> 0 | Q57: =IF(F57-E57>0,IF(S57="x",MROUND((F57-E57)*V62,1/1440),F57-E57),0) -> 0 | R57: 0 | S57: =IF(G57=DATEN!$L$87,"x","") -> 
B58: 2025-12-05 | M58: =IF(S58="x",TEXT(V62,"# ?/?")&" !",IF(T58="x","Nein","")) ->  | N58: =IF(S58="",IF(R58>Stunden2,Pausen2-SUM(N52:N57),IF(R58>Stunden1,Pausen1-SUM(N52:N57),0)),0) -> 0 | Q58: =IF(F58-E58>0,IF(S58="x",MROUND((F58-E58)*V62,1/1440),F58-E58),0) -> 0 | R58: 0 | S58: =IF(G58=DATEN!$L$87,"x","") -> 
B59: 2025-12-05 | M59: =IF(S59="x",TEXT(V62,"# ?/?")&" !",IF(T59="x","Nein","")) ->  | N59: =IF(S59="",IF(R59>Stunden2,Pausen2-SUM(N52:N58),IF(R59>Stunden1,Pausen1-SUM(N52:N58),0)),0) -> 0 | Q59: =IF(F59-E59>0,IF(S59="x",MROUND((F59-E59)*V62,1/1440),F59-E59),0) -> 0 | R59: 0 | S59: =IF(G59=DATEN!$L$87,"x","") -> 
B60: 2025-12-05 | M60: =IF(S60="x",TEXT(V62,"# ?/?")&" !",IF(T60="x","Nein","")) ->  | N60: =IF(S60="",IF(R60>Stunden2,Pausen2-SUM(N52:N59),IF(R60>Stunden1,Pausen1-SUM(N52:N59),0)),0) -> 0 | Q60: =IF(F60-E60>0,IF(S60="x",MROUND((F60-E60)*V62,1/1440),F60-E60),0) -> 0 | R60: 0 | S60: =IF(G60=DATEN!$L$87,"x","") -> 
B61: 2025-12-05 | M61: =IF(S61="x",TEXT(V62,"# ?/?")&" !",IF(T61="x","Nein","")) ->  | N61: =IF(S61="",IF(R61>Stunden2,Pausen2-SUM(N52:N60),IF(R61>Stunden1,Pausen1-SUM(N52:N60),0)),0) -> 0 | Q61: =IF(F61-E61>0,IF(S61="x",MROUND((F61-E61)*V62,1/1440),F61-E61),0) -> 0 | R61: 0 | S61: =IF(G61=DATEN!$L$87,"x","") -> 
A62: =IF(LEN(B62)>0,IF(WEEKDAY(B62)=4,TRUNC((B62-DATE(YEAR(B62+3-MOD(B62-2,7)),1,MOD(B62-2,7)-9))/7),IF(WEEKDAY(B62)=5,"KW","")),"") ->  | B62: =B51+1 -> 2025-12-05 | C62: =IF(WEEKDAY(B62)=1,7,WEEKDAY(B62)-1) -> 5 | D62: =IF(LEN(B62)>0,IF(OR(INDIRECT("DATEN!D"&9+C62)=0,NOT(ISNA(MATCH(B62,DATEN!$D$18:$D$33,0)))),"X",IF(OR(B62=DATEN!$D$26-1,B62=DATEN!$D$27-2,B62=DATEN!$D$30-2),"V","")),"") ->  | E62: =IF(E52>0,IF(VALUE("24:00:00")-VALUE(MAX(F41:F50))+VALUE(E52)<VALUE("11:00:00"),"Ruhezeit!",""),"") ->  | G62: Tagessumme: | H62: =V56 -> 0 | K62: =IF(LEN(B62)>0,IF(AND(D62<>"X",I62<>"U",I62<>"u",I62<>"K",I62<>"k",OR(I62="F",I62="f",H62<>0,DATEN!$H$8=1),J62<>"f",J62<>"F"),IF(D62="V",H62-INDIRECT("DATEN!D"&9+C62)/2,H62-INDIRECT("DATEN!D"&9+C62)),H62),"") -> -0.3291666667 | L62: =IF(X62>MaxWoZeit,"WoArbZeit>48h!","") ->  | M62: =IF(V54>V55,V54-V55,"") ->  | N62: =SUM(N52:N61) -> 0 | O62: =IF(WEEKDAY(B62,2)=7,SUMIF('Auswertung-Wochen'!$Y$2:$Y$366,P62,'Auswertung-Wochen'!$V$2:$V$366)-SUMIF('Auswertung-Wochen'!$Y$2:$Y$366,P62,'Auswertung-Wochen'!$W$2:$W$366),"") ->  | P62: =YEAR(B62)&"-"&TEXT(_xlfn.ISOWEEKNUM(B62),"00") -> 2025-49 | Q62: =SUM(Q52:Q61) -> 00:00:00 | V62: =IF(D62="x",DATEN!$N$88,DATEN!$N$87) -> 0.125 | W62: Faktor Rufbereitschaft | X62: =IF(LEN(B62)>0,IF(WEEKDAY(B62,2)=1,H62,H62+X51),X51) -> 0
A63: =IF(ISNA(MATCH(B73,DATEN!$D$18:$D$42,0)),"",INDEX(DATEN!$C$18:$D$42,MATCH(B73,DATEN!$D$18:$D$42,0),1)) ->  | B63: =B52+1 -> 2025-12-06 | H63: =IF(Q63>0,IF(ROUND(F63-E63,6)>=ROUND(Mindest,6),Q63,"<15m!"),"") ->  | M63: =IF(S63="x",TEXT(V73,"# ?/?")&" !",IF(T63="x","Nein","")) ->  | N63: =IF(S63="",IF(R63>Stunden2,Pausen2,IF(R63>Stunden1,Pausen1,0)),0) -> 0 | Q63: =IF(F63-E63>0,IF(S63="x",MROUND((F63-E63)*V73,1/1440),F63-E63),0) -> 0 | R63: =Q63 -> 0 | S63: =IF(G63=DATEN!$L$87,"x","") ->  | T63: =IF(ISNA(VLOOKUP(G63,ArbKapp,3,FALSE))=TRUE,"",IF(VLOOKUP(G63,ArbKapp,3,FALSE)="x","x","")) ->  | U63: =IF(ISNA(MATCH(G63,Kapp12Ordi,0)),"","x") ->  | V63: =Q73-N73 -> 0 | W63: Tagessumme
B64: 2025-12-06 | M64: =IF(S64="x",TEXT(V73,"# ?/?")&" !",IF(T64="x","Nein","")) ->  | N64: =IF(S64="",IF(R64>Stunden2,Pausen2-SUM(N63),IF(R64>Stunden1,Pausen1-SUM(N63),0)),0) -> 0 | Q64: =IF(F64-E64>0,IF(S64="x",MROUND((F64-E64)*V73,1/1440),F64-E64),0) -> 0 | R64: =IF(Q64>0,IF(AND(E64=F63,S63<>"x"),Q64+R63-N63,Q64),0) -> 0 | S64: =IF(G64=DATEN!$L$87,"x","") ->  | V64: =IF(ISNA(MATCH("x",U63:U72,0)),MaxZeit,MaxBildung) -> 0.4166666667 | W64: max. Tageszeit
B65: 2025-12-06 | M65: =IF(S65="x",TEXT(V73,"# ?/?")&" !",IF(T65="x","Nein","")) ->  | N65: =IF(S65="",IF(R65>Stunden2,Pausen2-SUM(N63:N64),IF(R65>Stunden1,Pausen1-SUM(N63:N64),0)),0) -> 0 | Q65: =IF(F65-E65>0,IF(S65="x",MROUND((F65-E65)*V73,1/1440),F65-E65),0) -> 0 | R65: =IF(Q65>0,IF(AND(E65=F64,S64<>"x"),Q65+R64-N64,Q65),0) -> 0 | S65: =IF(G65=DATEN!$L$87,"x","") ->  | V65: =SUMIF(T63:T72,"<>x",H63:H72)-N73 -> 00:00:00 | W65: Summe f. Kappung
B66: 2025-12-06 | M66: =IF(S66="x",TEXT(V73,"# ?/?")&" !",IF(T66="x","Nein","")) ->  | N66: =IF(S66="",IF(R66>Stunden2,Pausen2-SUM(N63:N65),IF(R66>Stunden1,Pausen1-SUM(N63:N65),0)),0) -> 0 | Q66: =IF(F66-E66>0,IF(S66="x",MROUND((F66-E66)*V73,1/1440),F66-E66),0) -> 0 | R66: 0 | S66: =IF(G66=DATEN!$L$87,"x","") ->  | V66: =IF(V65>V64,V64,V65) -> 0 | W66: Summe gekappt
B67: 2025-12-06 | M67: =IF(S67="x",TEXT(V73,"# ?/?")&" !",IF(T67="x","Nein","")) ->  | N67: =IF(S67="",IF(R67>Stunden2,Pausen2-SUM(N63:N66),IF(R67>Stunden1,Pausen1-SUM(N63:N66),0)),0) -> 0 | Q67: =IF(F67-E67>0,IF(S67="x",MROUND((F67-E67)*V73,1/1440),F67-E67),0) -> 0 | R67: 0 | S67: =IF(G67=DATEN!$L$87,"x","") ->  | V67: =V66+SUMIF(T63:T72,"x",H63:H72) -> 0 | W67: zzgl.kappungsfrei
B68: 2025-12-06 | M68: =IF(S68="x",TEXT(V73,"# ?/?")&" !",IF(T68="x","Nein","")) ->  | N68: =IF(S68="",IF(R68>Stunden2,Pausen2-SUM(N63:N67),IF(R68>Stunden1,Pausen1-SUM(N63:N67),0)),0) -> 0 | Q68: =IF(F68-E68>0,IF(S68="x",MROUND((F68-E68)*V73,1/1440),F68-E68),0) -> 0 | R68: 0 | S68: =IF(G68=DATEN!$L$87,"x","") -> 
B69: 2025-12-06 | M69: =IF(S69="x",TEXT(V73,"# ?/?")&" !",IF(T69="x","Nein","")) ->  | N69: =IF(S69="",IF(R69>Stunden2,Pausen2-SUM(N63:N68),IF(R69>Stunden1,Pausen1-SUM(N63:N68),0)),0) -> 0 | Q69: =IF(F69-E69>0,IF(S69="x",MROUND((F69-E69)*V73,1/1440),F69-E69),0) -> 0 | R69: 0 | S69: =IF(G69=DATEN!$L$87,"x","") -> 
B70: 2025-12-06 | M70: =IF(S70="x",TEXT(V73,"# ?/?")&" !",IF(T70="x","Nein","")) ->  | N70: =IF(S70="",IF(R70>Stunden2,Pausen2-SUM(N63:N69),IF(R70>Stunden1,Pausen1-SUM(N63:N69),0)),0) -> 0 | Q70: =IF(F70-E70>0,IF(S70="x",MROUND((F70-E70)*V73,1/1440),F70-E70),0) -> 0 | R70: 0 | S70: =IF(G70=DATEN!$L$87,"x","") -> 
B71: 2025-12-06 | M71: =IF(S71="x",TEXT(V73,"# ?/?")&" !",IF(T71="x","Nein","")) ->  | N71: =IF(S71="",IF(R71>Stunden2,Pausen2-SUM(N63:N70),IF(R71>Stunden1,Pausen1-SUM(N63:N70),0)),0) -> 0 | Q71: =IF(F71-E71>0,IF(S71="x",MROUND((F71-E71)*V73,1/1440),F71-E71),0) -> 0 | R71: 0 | S71: =IF(G71=DATEN!$L$87,"x","") -> 
B72: 2025-12-06 | M72: =IF(S72="x",TEXT(V73,"# ?/?")&" !",IF(T72="x","Nein","")) ->  | N72: =IF(S72="",IF(R72>Stunden2,Pausen2-SUM(N63:N71),IF(R72>Stunden1,Pausen1-SUM(N63:N71),0)),0) -> 0 | Q72: =IF(F72-E72>0,IF(S72="x",MROUND((F72-E72)*V73,1/1440),F72-E72),0) -> 0 | R72: 0 | S72: =IF(G72=DATEN!$L$87,"x","") -> 
A73: =IF(LEN(B73)>0,IF(WEEKDAY(B73)=4,TRUNC((B73-DATE(YEAR(B73+3-MOD(B73-2,7)),1,MOD(B73-2,7)-9))/7),IF(WEEKDAY(B73)=5,"KW","")),"") ->  | B73: =B62+1 -> 2025-12-06 | C73: =IF(WEEKDAY(B73)=1,7,WEEKDAY(B73)-1) -> 6 | D73: =IF(LEN(B73)>0,IF(OR(INDIRECT("DATEN!D"&9+C73)=0,NOT(ISNA(MATCH(B73,DATEN!$D$18:$D$33,0)))),"X",IF(OR(B73=DATEN!$D$26-1,B73=DATEN!$D$27-2,B73=DATEN!$D$30-2),"V","")),"") -> X | E73: =IF(E63>0,IF(VALUE("24:00:00")-VALUE(MAX(F52:F61))+VALUE(E63)<VALUE("11:00:00"),"Ruhezeit!",""),"") ->  | G73: Tagessumme: | H73: =V67 -> 0 | K73: =IF(LEN(B73)>0,IF(AND(D73<>"X",I73<>"U",I73<>"u",I73<>"K",I73<>"k",OR(I73="F",I73="f",H73<>0,DATEN!$H$8=1),J73<>"f",J73<>"F"),IF(D73="V",H73-INDIRECT("DATEN!D"&9+C73)/2,H73-INDIRECT("DATEN!D"&9+C73)),H73),"") -> 0 | L73: =IF(X73>MaxWoZeit,"WoArbZeit>48h!","") ->  | M73: =IF(V65>V66,V65-V66,"") ->  | N73: =SUM(N63:N72) -> 0 | O73: =IF(WEEKDAY(B73,2)=7,SUMIF('Auswertung-Wochen'!$Y$2:$Y$366,P73,'Auswertung-Wochen'!$V$2:$V$366)-SUMIF('Auswertung-Wochen'!$Y$2:$Y$366,P73,'Auswertung-Wochen'!$W$2:$W$366),"") ->  | P73: =YEAR(B73)&"-"&TEXT(_xlfn.ISOWEEKNUM(B73),"00") -> 2025-49 | Q73: =SUM(Q63:Q72) -> 00:00:00 | V73: =IF(D73="x",DATEN!$N$88,DATEN!$N$87) -> 0.1666666667 | W73: Faktor Rufbereitschaft | X73: =IF(LEN(B73)>0,IF(WEEKDAY(B73,2)=1,H73,H73+X62),X62) -> 0 | Z73: =IF(AND(G73>0,G73<>"Tagessumme:"),G73,"") ->  | AA73: =IF(G73<>"Tagessumme:",H73,"") -> 
A74: =IF(ISNA(MATCH(B84,DATEN!$D$18:$D$42,0)),"",INDEX(DATEN!$C$18:$D$42,MATCH(B84,DATEN!$D$18:$D$42,0),1)) ->  | B74: =B63+1 -> 2025-12-07 | H74: =IF(Q74>0,IF(ROUND(F74-E74,6)>=ROUND(Mindest,6),Q74,"<15m!"),"") ->  | M74: =IF(S74="x",TEXT(V84,"# ?/?")&" !",IF(T74="x","Nein","")) ->  | N74: =IF(S74="",IF(R74>Stunden2,Pausen2,IF(R74>Stunden1,Pausen1,0)),0) -> 0 | Q74: =IF(F74-E74>0,IF(S74="x",MROUND((F74-E74)*V84,1/1440),F74-E74),0) -> 0 | R74: =Q74 -> 0 | S74: =IF(G74=DATEN!$L$87,"x","") ->  | T74: =IF(ISNA(VLOOKUP(G74,ArbKapp,3,FALSE))=TRUE,"",IF(VLOOKUP(G74,ArbKapp,3,FALSE)="x","x","")) ->  | U74: =IF(ISNA(MATCH(G74,Kapp12Ordi,0)),"","x") ->  | V74: =Q84-N84 -> 0 | W74: Tagessumme
B75: 2025-12-07 | M75: =IF(S75="x",TEXT(V84,"# ?/?")&" !",IF(T75="x","Nein","")) ->  | N75: =IF(S75="",IF(R75>Stunden2,Pausen2-SUM(N74),IF(R75>Stunden1,Pausen1-SUM(N74),0)),0) -> 0 | Q75: =IF(F75-E75>0,IF(S75="x",MROUND((F75-E75)*V84,1/1440),F75-E75),0) -> 0 | R75: =IF(Q75>0,IF(AND(E75=F74,S74<>"x"),Q75+R74-N74,Q75),0) -> 0 | S75: =IF(G75=DATEN!$L$87,"x","") ->  | V75: =IF(ISNA(MATCH("x",U74:U83,0)),MaxZeit,MaxBildung) -> 0.4166666667 | W75: max. Tageszeit
B76: 2025-12-07 | M76: =IF(S76="x",TEXT(V84,"# ?/?")&" !",IF(T76="x","Nein","")) ->  | N76: =IF(S76="",IF(R76>Stunden2,Pausen2-SUM(N74:N75),IF(R76>Stunden1,Pausen1-SUM(N74:N75),0)),0) -> 0 | Q76: =IF(F76-E76>0,IF(S76="x",MROUND((F76-E76)*V84,1/1440),F76-E76),0) -> 0 | R76: =IF(Q76>0,IF(AND(E76=F75,S75<>"x"),Q76+R75-N75,Q76),0) -> 0 | S76: =IF(G76=DATEN!$L$87,"x","") ->  | V76: =SUMIF(T74:T83,"<>x",H74:H83)-N84 -> 00:00:00 | W76: Summe f. Kappung
B77: 2025-12-07 | M77: =IF(S77="x",TEXT(V84,"# ?/?")&" !",IF(T77="x","Nein","")) ->  | N77: =IF(S77="",IF(R77>Stunden2,Pausen2-SUM(N74:N76),IF(R77>Stunden1,Pausen1-SUM(N74:N76),0)),0) -> 0 | Q77: =IF(F77-E77>0,IF(S77="x",MROUND((F77-E77)*V84,1/1440),F77-E77),0) -> 0 | R77: 0 | S77: =IF(G77=DATEN!$L$87,"x","") ->  | V77: =IF(V76>V75,V75,V76) -> 0 | W77: Summe gekappt
B78: 2025-12-07 | M78: =IF(S78="x",TEXT(V84,"# ?/?")&" !",IF(T78="x","Nein","")) ->  | N78: =IF(S78="",IF(R78>Stunden2,Pausen2-SUM(N74:N77),IF(R78>Stunden1,Pausen1-SUM(N74:N77),0)),0) -> 0 | Q78: =IF(F78-E78>0,IF(S78="x",MROUND((F78-E78)*V84,1/1440),F78-E78),0) -> 0 | R78: 0 | S78: =IF(G78=DATEN!$L$87,"x","") ->  | V78: =V77+SUMIF(T74:T83,"x",H74:H83) -> 0 | W78: zzgl.kappungsfrei
B79: 2025-12-07 | M79: =IF(S79="x",TEXT(V84,"# ?/?")&" !",IF(T79="x","Nein","")) ->  | N79: =IF(S79="",IF(R79>Stunden2,Pausen2-SUM(N74:N78),IF(R79>Stunden1,Pausen1-SUM(N74:N78),0)),0) -> 0 | Q79: =IF(F79-E79>0,IF(S79="x",MROUND((F79-E79)*V84,1/1440),F79-E79),0) -> 0 | R79: 0 | S79: =IF(G79=DATEN!$L$87,"x","") -> 
B80: 2025-12-07 | M80: =IF(S80="x",TEXT(V84,"# ?/?")&" !",IF(T80="x","Nein","")) ->  | N80: =IF(S80="",IF(R80>Stunden2,Pausen2-SUM(N74:N79),IF(R80>Stunden1,Pausen1-SUM(N74:N79),0)),0) -> 0 | Q80: =IF(F80-E80>0,IF(S80="x",MROUND((F80-E80)*V84,1/1440),F80-E80),0) -> 0 | R80: 0 | S80: =IF(G80=DATEN!$L$87,"x","") -> 
B81: 2025-12-07 | M81: =IF(S81="x",TEXT(V84,"# ?/?")&" !",IF(T81="x","Nein","")) ->  | N81: =IF(S81="",IF(R81>Stunden2,Pausen2-SUM(N74:N80),IF(R81>Stunden1,Pausen1-SUM(N74:N80),0)),0) -> 0 | Q81: =IF(F81-E81>0,IF(S81="x",MROUND((F81-E81)*V84,1/1440),F81-E81),0) -> 0 | R81: 0 | S81: =IF(G81=DATEN!$L$87,"x","") -> 
B82: 2025-12-07 | M82: =IF(S82="x",TEXT(V84,"# ?/?")&" !",IF(T82="x","Nein","")) ->  | N82: =IF(S82="",IF(R82>Stunden2,Pausen2-SUM(N74:N81),IF(R82>Stunden1,Pausen1-SUM(N74:N81),0)),0) -> 0 | Q82: =IF(F82-E82>0,IF(S82="x",MROUND((F82-E82)*V84,1/1440),F82-E82),0) -> 0 | R82: 0 | S82: =IF(G82=DATEN!$L$87,"x","") -> 
B83: 2025-12-07 | M83: =IF(S83="x",TEXT(V84,"# ?/?")&" !",IF(T83="x","Nein","")) ->  | N83: =IF(S83="",IF(R83>Stunden2,Pausen2-SUM(N74:N82),IF(R83>Stunden1,Pausen1-SUM(N74:N82),0)),0) -> 0 | Q83: =IF(F83-E83>0,IF(S83="x",MROUND((F83-E83)*V84,1/1440),F83-E83),0) -> 0 | R83: 0 | S83: =IF(G83=DATEN!$L$87,"x","") -> 
A84: =IF(LEN(B84)>0,IF(WEEKDAY(B84)=4,TRUNC((B84-DATE(YEAR(B84+3-MOD(B84-2,7)),1,MOD(B84-2,7)-9))/7),IF(WEEKDAY(B84)=5,"KW","")),"") ->  | B84: =B73+1 -> 2025-12-07 | C84: =IF(WEEKDAY(B84)=1,7,WEEKDAY(B84)-1) -> 7 | D84: =IF(LEN(B84)>0,IF(OR(INDIRECT("DATEN!D"&9+C84)=0,NOT(ISNA(MATCH(B84,DATEN!$D$18:$D$33,0)))),"X",IF(OR(B84=DATEN!$D$26-1,B84=DATEN!$D$27-2,B84=DATEN!$D$30-2),"V","")),"") -> X | E84: =IF(E74>0,IF(VALUE("24:00:00")-VALUE(MAX(F63:F72))+VALUE(E74)<VALUE("11:00:00"),"Ruhezeit!",""),"") ->  | G84: Tagessumme: | H84: =V78 -> 0 | K84: =IF(LEN(B84)>0,IF(AND(D84<>"X",I84<>"U",I84<>"u",I84<>"K",I84<>"k",OR(I84="F",I84="f",H84<>0,DATEN!$H$8=1),J84<>"f",J84<>"F"),IF(D84="V",H84-INDIRECT("DATEN!D"&9+C84)/2,H84-INDIRECT("DATEN!D"&9+C84)),H84),"") -> 0 | L84: =IF(X84>MaxWoZeit,"WoArbZeit>48h!","") ->  | M84: =IF(V76>V77,V76-V77,"") ->  | N84: =SUM(N74:N83) -> 0 | O84: =IF(WEEKDAY(B84,2)=7,SUMIF('Auswertung-Wochen'!$Y$2:$Y$366,P84,'Auswertung-Wochen'!$V$2:$V$366)-SUMIF('Auswertung-Wochen'!$Y$2:$Y$366,P84,'Auswertung-Wochen'!$W$2:$W$366),"") -> -1.645833333 | P84: =YEAR(B84)&"-"&TEXT(_xlfn.ISOWEEKNUM(B84),"00") -> 2025-49 | Q84: =SUM(Q74:Q83) -> 00:00:00 | V84: =IF(D84="x",DATEN!$N$88,DATEN!$N$87) -> 0.1666666667 | W84: Faktor Rufbereitschaft | X84: =IF(LEN(B84)>0,IF(WEEKDAY(B84,2)=1,H84,H84+X73),X73) -> 0
A85: =IF(ISNA(MATCH(B95,DATEN!$D$18:$D$42,0)),"",INDEX(DATEN!$C$18:$D$42,MATCH(B95,DATEN!$D$18:$D$42,0),1)) ->  | B85: =B74+1 -> 2025-12-08 | H85: =IF(Q85>0,IF(ROUND(F85-E85,6)>=ROUND(Mindest,6),Q85,"<15m!"),"") ->  | M85: =IF(S85="x",TEXT(V95,"# ?/?")&" !",IF(T85="x","Nein","")) ->  | N85: =IF(S85="",IF(R85>Stunden2,Pausen2,IF(R85>Stunden1,Pausen1,0)),0) -> 0 | Q85: =IF(F85-E85>0,IF(S85="x",MROUND((F85-E85)*V95,1/1440),F85-E85),0) -> 0 | R85: =Q85 -> 0 | S85: =IF(G85=DATEN!$L$87,"x","") ->  | T85: =IF(ISNA(VLOOKUP(G85,ArbKapp,3,FALSE))=TRUE,"",IF(VLOOKUP(G85,ArbKapp,3,FALSE)="x","x","")) ->  | U85: =IF(ISNA(MATCH(G85,Kapp12Ordi,0)),"","x") ->  | V85: =Q95-N95 -> 0 | W85: Tagessumme
B86: 2025-12-08 | M86: =IF(S86="x",TEXT(V95,"# ?/?")&" !",IF(T86="x","Nein","")) ->  | N86: =IF(S86="",IF(R86>Stunden2,Pausen2-SUM(N85),IF(R86>Stunden1,Pausen1-SUM(N85),0)),0) -> 0 | Q86: =IF(F86-E86>0,IF(S86="x",MROUND((F86-E86)*V95,1/1440),F86-E86),0) -> 0 | R86: =IF(Q86>0,IF(AND(E86=F85,S85<>"x"),Q86+R85-N85,Q86),0) -> 0 | S86: =IF(G86=DATEN!$L$87,"x","") ->  | V86: =IF(ISNA(MATCH("x",U85:U94,0)),MaxZeit,MaxBildung) -> 0.4166666667 | W86: max. Tageszeit
B87: 2025-12-08 | M87: =IF(S87="x",TEXT(V95,"# ?/?")&" !",IF(T87="x","Nein","")) ->  | N87: =IF(S87="",IF(R87>Stunden2,Pausen2-SUM(N85:N86),IF(R87>Stunden1,Pausen1-SUM(N85:N86),0)),0) -> 0 | Q87: =IF(F87-E87>0,IF(S87="x",MROUND((F87-E87)*V95,1/1440),F87-E87),0) -> 0 | R87: =IF(Q87>0,IF(AND(E87=F86,S86<>"x"),Q87+R86-N86,Q87),0) -> 0 | S87: =IF(G87=DATEN!$L$87,"x","") ->  | V87: =SUMIF(T85:T94,"<>x",H85:H94)-N95 -> 00:00:00 | W87: Summe f. Kappung
B88: 2025-12-08 | M88: =IF(S88="x",TEXT(V95,"# ?/?")&" !",IF(T88="x","Nein","")) ->  | N88: =IF(S88="",IF(R88>Stunden2,Pausen2-SUM(N85:N87),IF(R88>Stunden1,Pausen1-SUM(N85:N87),0)),0) -> 0 | Q88: =IF(F88-E88>0,IF(S88="x",MROUND((F88-E88)*V95,1/1440),F88-E88),0) -> 0 | R88: 0 | S88: =IF(G88=DATEN!$L$87,"x","") ->  | V88: =IF(V87>V86,V86,V87) -> 0 | W88: Summe gekappt
B89: 2025-12-08 | M89: =IF(S89="x",TEXT(V95,"# ?/?")&" !",IF(T89="x","Nein","")) ->  | N89: =IF(S89="",IF(R89>Stunden2,Pausen2-SUM(N85:N88),IF(R89>Stunden1,Pausen1-SUM(N85:N88),0)),0) -> 0 | Q89: =IF(F89-E89>0,IF(S89="x",MROUND((F89-E89)*V95,1/1440),F89-E89),0) -> 0 | R89: 0 | S89: =IF(G89=DATEN!$L$87,"x","") ->  | V89: =V88+SUMIF(T85:T94,"x",H85:H94) -> 0 | W89: zzgl.kappungsfrei
B90: 2025-12-08 | M90: =IF(S90="x",TEXT(V95,"# ?/?")&" !",IF(T90="x","Nein","")) ->  | N90: =IF(S90="",IF(R90>Stunden2,Pausen2-SUM(N85:N89),IF(R90>Stunden1,Pausen1-SUM(N85:N89),0)),0) -> 0 | Q90: =IF(F90-E90>0,IF(S90="x",MROUND((F90-E90)*V95,1/1440),F90-E90),0) -> 0 | R90: 0 | S90: =IF(G90=DATEN!$L$87,"x","") -> 
B91: 2025-12-08 | M91: =IF(S91="x",TEXT(V95,"# ?/?")&" !",IF(T91="x","Nein","")) ->  | N91: =IF(S91="",IF(R91>Stunden2,Pausen2-SUM(N85:N90),IF(R91>Stunden1,Pausen1-SUM(N85:N90),0)),0) -> 0 | Q91: =IF(F91-E91>0,IF(S91="x",MROUND((F91-E91)*V95,1/1440),F91-E91),0) -> 0 | R91: 0 | S91: =IF(G91=DATEN!$L$87,"x","") -> 
B92: 2025-12-08 | M92: =IF(S92="x",TEXT(V95,"# ?/?")&" !",IF(T92="x","Nein","")) ->  | N92: =IF(S92="",IF(R92>Stunden2,Pausen2-SUM(N85:N91),IF(R92>Stunden1,Pausen1-SUM(N85:N91),0)),0) -> 0 | Q92: =IF(F92-E92>0,IF(S92="x",MROUND((F92-E92)*V95,1/1440),F92-E92),0) -> 0 | R92: 0 | S92: =IF(G92=DATEN!$L$87,"x","") -> 
B93: 2025-12-08 | M93: =IF(S93="x",TEXT(V95,"# ?/?")&" !",IF(T93="x","Nein","")) ->  | N93: =IF(S93="",IF(R93>Stunden2,Pausen2-SUM(N85:N92),IF(R93>Stunden1,Pausen1-SUM(N85:N92),0)),0) -> 0 | Q93: =IF(F93-E93>0,IF(S93="x",MROUND((F93-E93)*V95,1/1440),F93-E93),0) -> 0 | R93: 0 | S93: =IF(G93=DATEN!$L$87,"x","") -> 
B94: 2025-12-08 | M94: =IF(S94="x",TEXT(V95,"# ?/?")&" !",IF(T94="x","Nein","")) ->  | N94: =IF(S94="",IF(R94>Stunden2,Pausen2-SUM(N85:N93),IF(R94>Stunden1,Pausen1-SUM(N85:N93),0)),0) -> 0 | Q94: =IF(F94-E94>0,IF(S94="x",MROUND((F94-E94)*V95,1/1440),F94-E94),0) -> 0 | R94: 0 | S94: =IF(G94=DATEN!$L$87,"x","") -> 
A95: =IF(LEN(B95)>0,IF(WEEKDAY(B95)=4,TRUNC((B95-DATE(YEAR(B95+3-MOD(B95-2,7)),1,MOD(B95-2,7)-9))/7),IF(WEEKDAY(B95)=5,"KW","")),"") ->  | B95: =B84+1 -> 2025-12-08 | C95: =IF(WEEKDAY(B95)=1,7,WEEKDAY(B95)-1) -> 1 | D95: =IF(LEN(B95)>0,IF(OR(INDIRECT("DATEN!D"&9+C95)=0,NOT(ISNA(MATCH(B95,DATEN!$D$18:$D$33,0)))),"X",IF(OR(B95=DATEN!$D$26-1,B95=DATEN!$D$27-2,B95=DATEN!$D$30-2),"V","")),"") ->  | E95: =IF(E85>0,IF(VALUE("24:00:00")-VALUE(MAX(F74:F83))+VALUE(E85)<VALUE("11:00:00"),"Ruhezeit!",""),"") ->  | G95: Tagessumme: | H95: =V89 -> 0 | K95: =IF(LEN(B95)>0,IF(AND(D95<>"X",I95<>"U",I95<>"u",I95<>"K",I95<>"k",OR(I95="F",I95="f",H95<>0,DATEN!$H$8=1),J95<>"f",J95<>"F"),IF(D95="V",H95-INDIRECT("DATEN!D"&9+C95)/2,H95-INDIRECT("DATEN!D"&9+C95)),H95),"") -> -0.3291666667 | L95: =IF(X95>MaxWoZeit,"WoArbZeit>48h!","") ->  | M95: =IF(V87>V88,V87-V88,"") ->  | N95: =SUM(N85:N94) -> 0 | O95: =IF(WEEKDAY(B95,2)=7,SUMIF('Auswertung-Wochen'!$Y$2:$Y$366,P95,'Auswertung-Wochen'!$V$2:$V$366)-SUMIF('Auswertung-Wochen'!$Y$2:$Y$366,P95,'Auswertung-Wochen'!$W$2:$W$366),"") ->  | P95: =YEAR(B95)&"-"&TEXT(_xlfn.ISOWEEKNUM(B95),"00") -> 2025-50 | Q95: =SUM(Q85:Q94) -> 00:00:00 | V95: =IF(D95="x",DATEN!$N$88,DATEN!$N$87) -> 0.125 | W95: Faktor Rufbereitschaft | X95: =IF(LEN(B95)>0,IF(WEEKDAY(B95,2)=1,H95,H95+X84),X84) -> 0
A96: =IF(ISNA(MATCH(B106,DATEN!$D$18:$D$42,0)),"",INDEX(DATEN!$C$18:$D$42,MATCH(B106,DATEN!$D$18:$D$42,0),1)) ->  | B96: =B85+1 -> 2025-12-09 | H96: =IF(Q96>0,IF(ROUND(F96-E96,6)>=ROUND(Mindest,6),Q96,"<15m!"),"") ->  | M96: =IF(S96="x",TEXT(V106,"# ?/?")&" !",IF(T96="x","Nein","")) ->  | N96: =IF(S96="",IF(R96>Stunden2,Pausen2,IF(R96>Stunden1,Pausen1,0)),0) -> 0 | Q96: =IF(F96-E96>0,IF(S96="x",MROUND((F96-E96)*V106,1/1440),F96-E96),0) -> 0 | R96: =Q96 -> 0 | S96: =IF(G96=DATEN!$L$87,"x","") ->  | T96: =IF(ISNA(VLOOKUP(G96,ArbKapp,3,FALSE))=TRUE,"",IF(VLOOKUP(G96,ArbKapp,3,FALSE)="x","x","")) ->  | U96: =IF(ISNA(MATCH(G96,Kapp12Ordi,0)),"","x") ->  | V96: =Q106-N106 -> 0 | W96: Tagessumme
B97: 2025-12-09 | M97: =IF(S97="x",TEXT(V106,"# ?/?")&" !",IF(T97="x","Nein","")) ->  | N97: =IF(S97="",IF(R97>Stunden2,Pausen2-SUM(N96),IF(R97>Stunden1,Pausen1-SUM(N96),0)),0) -> 0 | Q97: =IF(F97-E97>0,IF(S97="x",MROUND((F97-E97)*V106,1/1440),F97-E97),0) -> 0 | R97: =IF(Q97>0,IF(AND(E97=F96,S96<>"x"),Q97+R96-N96,Q97),0) -> 0 | S97: =IF(G97=DATEN!$L$87,"x","") ->  | V97: =IF(ISNA(MATCH("x",U96:U105,0)),MaxZeit,MaxBildung) -> 0.4166666667 | W97: max. Tageszeit
B98: 2025-12-09 | M98: =IF(S98="x",TEXT(V106,"# ?/?")&" !",IF(T98="x","Nein","")) ->  | N98: =IF(S98="",IF(R98>Stunden2,Pausen2-SUM(N96:N97),IF(R98>Stunden1,Pausen1-SUM(N96:N97),0)),0) -> 0 | Q98: =IF(F98-E98>0,IF(S98="x",MROUND((F98-E98)*V106,1/1440),F98-E98),0) -> 0 | R98: =IF(Q98>0,IF(AND(E98=F97,S97<>"x"),Q98+R97-N97,Q98),0) -> 0 | S98: =IF(G98=DATEN!$L$87,"x","") ->  | V98: =SUMIF(T96:T105,"<>x",H96:H105)-N106 -> 00:00:00 | W98: Summe f. Kappung
B99: 2025-12-09 | M99: =IF(S99="x",TEXT(V106,"# ?/?")&" !",IF(T99="x","Nein","")) ->  | N99: =IF(S99="",IF(R99>Stunden2,Pausen2-SUM(N96:N98),IF(R99>Stunden1,Pausen1-SUM(N96:N98),0)),0) -> 0 | Q99: =IF(F99-E99>0,IF(S99="x",MROUND((F99-E99)*V106,1/1440),F99-E99),0) -> 0 | R99: 0 | S99: =IF(G99=DATEN!$L$87,"x","") ->  | V99: =IF(V98>V97,V97,V98) -> 0 | W99: Summe gekappt
B100: 2025-12-09 | M100: =IF(S100="x",TEXT(V106,"# ?/?")&" !",IF(T100="x","Nein","")) ->  | N100: =IF(S100="",IF(R100>Stunden2,Pausen2-SUM(N96:N99),IF(R100>Stunden1,Pausen1-SUM(N96:N99),0)),0) -> 0 | Q100: =IF(F100-E100>0,IF(S100="x",MROUND((F100-E100)*V106,1/1440),F100-E100),0) -> 0 | R100: 0 | S100: =IF(G100=DATEN!$L$87,"x","") ->  | V100: =V99+SUMIF(T96:T105,"x",H96:H105) -> 0 | W100: zzgl.kappungsfrei
B101: 2025-12-09 | M101: =IF(S101="x",TEXT(V106,"# ?/?")&" !",IF(T101="x","Nein","")) ->  | N101: =IF(S101="",IF(R101>Stunden2,Pausen2-SUM(N96:N100),IF(R101>Stunden1,Pausen1-SUM(N96:N100),0)),0) -> 0 | Q101: =IF(F101-E101>0,IF(S101="x",MROUND((F101-E101)*V106,1/1440),F101-E101),0) -> 0 | R101: 0 | S101: =IF(G101=DATEN!$L$87,"x","") -> 
B102: 2025-12-09 | M102: =IF(S102="x",TEXT(V106,"# ?/?")&" !",IF(T102="x","Nein","")) ->  | N102: =IF(S102="",IF(R102>Stunden2,Pausen2-SUM(N96:N101),IF(R102>Stunden1,Pausen1-SUM(N96:N101),0)),0) -> 0 | Q102: =IF(F102-E102>0,IF(S102="x",MROUND((F102-E102)*V106,1/1440),F102-E102),0) -> 0 | R102: 0 | S102: =IF(G102=DATEN!$L$87,"x","") -> 
B103: 2025-12-09 | M103: =IF(S103="x",TEXT(V106,"# ?/?")&" !",IF(T103="x","Nein","")) ->  | N103: =IF(S103="",IF(R103>Stunden2,Pausen2-SUM(N96:N102),IF(R103>Stunden1,Pausen1-SUM(N96:N102),0)),0) -> 0 | Q103: =IF(F103-E103>0,IF(S103="x",MROUND((F103-E103)*V106,1/1440),F103-E103),0) -> 0 | R103: 0 | S103: =IF(G103=DATEN!$L$87,"x","") -> 
B104: 2025-12-09 | M104: =IF(S104="x",TEXT(V106,"# ?/?")&" !",IF(T104="x","Nein","")) ->  | N104: =IF(S104="",IF(R104>Stunden2,Pausen2-SUM(N96:N103),IF(R104>Stunden1,Pausen1-SUM(N96:N103),0)),0) -> 0 | Q104: =IF(F104-E104>0,IF(S104="x",MROUND((F104-E104)*V106,1/1440),F104-E104),0) -> 0 | R104: 0 | S104: =IF(G104=DATEN!$L$87,"x","") -> 
B105: 2025-12-09 | M105: =IF(S105="x",TEXT(V106,"# ?/?")&" !",IF(T105="x","Nein","")) ->  | N105: =IF(S105="",IF(R105>Stunden2,Pausen2-SUM(N96:N104),IF(R105>Stunden1,Pausen1-SUM(N96:N104),0)),0) -> 0 | Q105: =IF(F105-E105>0,IF(S105="x",MROUND((F105-E105)*V106,1/1440),F105-E105),0) -> 0 | R105: 0 | S105: =IF(G105=DATEN!$L$87,"x","") -> 
A106: =IF(LEN(B106)>0,IF(WEEKDAY(B106)=4,TRUNC((B106-DATE(YEAR(B106+3-MOD(B106-2,7)),1,MOD(B106-2,7)-9))/7),IF(WEEKDAY(B106)=5,"KW","")),"") ->  | B106: =B95+1 -> 2025-12-09 | C106: =IF(WEEKDAY(B106)=1,7,WEEKDAY(B106)-1) -> 2 | D106: =IF(LEN(B106)>0,IF(OR(INDIRECT("DATEN!D"&9+C106)=0,NOT(ISNA(MATCH(B106,DATEN!$D$18:$D$33,0)))),"X",IF(OR(B106=DATEN!$D$26-1,B106=DATEN!$D$27-2,B106=DATEN!$D$30-2),"V","")),"") ->  | E106: =IF(E96>0,IF(VALUE("24:00:00")-VALUE(MAX(F85:F94))+VALUE(E96)<VALUE("11:00:00"),"Ruhezeit!",""),"") ->  | G106: Tagessumme: | H106: =V100 -> 0 | K106: =IF(LEN(B106)>0,IF(AND(D106<>"X",I106<>"U",I106<>"u",I106<>"K",I106<>"k",OR(I106="F",I106="f",H106<>0,DATEN!$H$8=1),J106<>"f",J106<>"F"),IF(D106="V",H106-INDIRECT("DATEN!D"&9+C106)/2,H106-INDIRECT("DATEN!D"&9+C106)),H106),"") -> -0.3291666667 | L106: =IF(X106>MaxWoZeit,"WoArbZeit>48h!","") ->  | M106: =IF(V98>V99,V98-V99,"") ->  | N106: =SUM(N96:N105) -> 0 | O106: =IF(WEEKDAY(B106,2)=7,SUMIF('Auswertung-Wochen'!$Y$2:$Y$366,P106,'Auswertung-Wochen'!$V$2:$V$366)-SUMIF('Auswertung-Wochen'!$Y$2:$Y$366,P106,'Auswertung-Wochen'!$W$2:$W$366),"") ->  | P106: =YEAR(B106)&"-"&TEXT(_xlfn.ISOWEEKNUM(B106),"00") -> 2025-50 | Q106: =SUM(Q96:Q105) -> 00:00:00 | V106: =IF(D106="x",DATEN!$N$88,DATEN!$N$87) -> 0.125 | W106: Faktor Rufbereitschaft | X106: =IF(LEN(B106)>0,IF(WEEKDAY(B106,2)=1,H106,H106+X95),X95) -> 0
A107: =IF(ISNA(MATCH(B117,DATEN!$D$18:$D$42,0)),"",INDEX(DATEN!$C$18:$D$42,MATCH(B117,DATEN!$D$18:$D$42,0),1)) ->  | B107: =B96+1 -> 2025-12-10 | H107: =IF(Q107>0,IF(ROUND(F107-E107,6)>=ROUND(Mindest,6),Q107,"<15m!"),"") ->  | M107: =IF(S107="x",TEXT(V117,"# ?/?")&" !",IF(T107="x","Nein","")) ->  | N107: =IF(S107="",IF(R107>Stunden2,Pausen2,IF(R107>Stunden1,Pausen1,0)),0) -> 0 | Q107: =IF(F107-E107>0,IF(S107="x",MROUND((F107-E107)*V117,1/1440),F107-E107),0) -> 0 | R107: =Q107 -> 0 | S107: =IF(G107=DATEN!$L$87,"x","") ->  | T107: =IF(ISNA(VLOOKUP(G107,ArbKapp,3,FALSE))=TRUE,"",IF(VLOOKUP(G107,ArbKapp,3,FALSE)="x","x","")) ->  | U107: =IF(ISNA(MATCH(G107,Kapp12Ordi,0)),"","x") ->  | V107: =Q117-N117 -> 0 | W107: Tagessumme
B108: 2025-12-10 | M108: =IF(S108="x",TEXT(V117,"# ?/?")&" !",IF(T108="x","Nein","")) ->  | N108: =IF(S108="",IF(R108>Stunden2,Pausen2-SUM(N107),IF(R108>Stunden1,Pausen1-SUM(N107),0)),0) -> 0 | Q108: =IF(F108-E108>0,IF(S108="x",MROUND((F108-E108)*V117,1/1440),F108-E108),0) -> 0 | R108: =IF(Q108>0,IF(AND(E108=F107,S107<>"x"),Q108+R107-N107,Q108),0) -> 0 | S108: =IF(G108=DATEN!$L$87,"x","") ->  | V108: =IF(ISNA(MATCH("x",U107:U116,0)),MaxZeit,MaxBildung) -> 0.4166666667 | W108: max. Tageszeit
B109: 2025-12-10 | M109: =IF(S109="x",TEXT(V117,"# ?/?")&" !",IF(T109="x","Nein","")) ->  | N109: =IF(S109="",IF(R109>Stunden2,Pausen2-SUM(N107:N108),IF(R109>Stunden1,Pausen1-SUM(N107:N108),0)),0) -> 0 | Q109: =IF(F109-E109>0,IF(S109="x",MROUND((F109-E109)*V117,1/1440),F109-E109),0) -> 0 | R109: =IF(Q109>0,IF(AND(E109=F108,S108<>"x"),Q109+R108-N108,Q109),0) -> 0 | S109: =IF(G109=DATEN!$L$87,"x","") ->  | V109: =SUMIF(T107:T116,"<>x",H107:H116)-N117 -> 00:00:00 | W109: Summe f. Kappung
B110: 2025-12-10 | M110: =IF(S110="x",TEXT(V117,"# ?/?")&" !",IF(T110="x","Nein","")) ->  | N110: =IF(S110="",IF(R110>Stunden2,Pausen2-SUM(N107:N109),IF(R110>Stunden1,Pausen1-SUM(N107:N109),0)),0) -> 0 | Q110: =IF(F110-E110>0,IF(S110="x",MROUND((F110-E110)*V117,1/1440),F110-E110),0) -> 0 | R110: 0 | S110: =IF(G110=DATEN!$L$87,"x","") ->  | V110: =IF(V109>V108,V108,V109) -> 0 | W110: Summe gekappt
B111: 2025-12-10 | M111: =IF(S111="x",TEXT(V117,"# ?/?")&" !",IF(T111="x","Nein","")) ->  | N111: =IF(S111="",IF(R111>Stunden2,Pausen2-SUM(N107:N110),IF(R111>Stunden1,Pausen1-SUM(N107:N110),0)),0) -> 0 | Q111: =IF(F111-E111>0,IF(S111="x",MROUND((F111-E111)*V117,1/1440),F111-E111),0) -> 0 | R111: 0 | S111: =IF(G111=DATEN!$L$87,"x","") ->  | V111: =V110+SUMIF(T107:T116,"x",H107:H116) -> 0 | W111: zzgl.kappungsfrei
B112: 2025-12-10 | M112: =IF(S112="x",TEXT(V117,"# ?/?")&" !",IF(T112="x","Nein","")) ->  | N112: =IF(S112="",IF(R112>Stunden2,Pausen2-SUM(N107:N111),IF(R112>Stunden1,Pausen1-SUM(N107:N111),0)),0) -> 0 | Q112: =IF(F112-E112>0,IF(S112="x",MROUND((F112-E112)*V117,1/1440),F112-E112),0) -> 0 | R112: 0 | S112: =IF(G112=DATEN!$L$87,"x","") -> 
B113: 2025-12-10 | M113: =IF(S113="x",TEXT(V117,"# ?/?")&" !",IF(T113="x","Nein","")) ->  | N113: =IF(S113="",IF(R113>Stunden2,Pausen2-SUM(N107:N112),IF(R113>Stunden1,Pausen1-SUM(N107:N112),0)),0) -> 0 | Q113: =IF(F113-E113>0,IF(S113="x",MROUND((F113-E113)*V117,1/1440),F113-E113),0) -> 0 | R113: 0 | S113: =IF(G113=DATEN!$L$87,"x","") -> 
B114: 2025-12-10 | M114: =IF(S114="x",TEXT(V117,"# ?/?")&" !",IF(T114="x","Nein","")) ->  | N114: =IF(S114="",IF(R114>Stunden2,Pausen2-SUM(N107:N113),IF(R114>Stunden1,Pausen1-SUM(N107:N113),0)),0) -> 0 | Q114: =IF(F114-E114>0,IF(S114="x",MROUND((F114-E114)*V117,1/1440),F114-E114),0) -> 0 | R114: 0 | S114: =IF(G114=DATEN!$L$87,"x","") -> 
B115: 2025-12-10 | M115: =IF(S115="x",TEXT(V117,"# ?/?")&" !",IF(T115="x","Nein","")) ->  | N115: =IF(S115="",IF(R115>Stunden2,Pausen2-SUM(N107:N114),IF(R115>Stunden1,Pausen1-SUM(N107:N114),0)),0) -> 0 | Q115: =IF(F115-E115>0,IF(S115="x",MROUND((F115-E115)*V117,1/1440),F115-E115),0) -> 0 | R115: 0 | S115: =IF(G115=DATEN!$L$87,"x","") -> 
B116: 2025-12-10 | M116: =IF(S116="x",TEXT(V117,"# ?/?")&" !",IF(T116="x","Nein","")) ->  | N116: =IF(S116="",IF(R116>Stunden2,Pausen2-SUM(N107:N115),IF(R116>Stunden1,Pausen1-SUM(N107:N115),0)),0) -> 0 | Q116: =IF(F116-E116>0,IF(S116="x",MROUND((F116-E116)*V117,1/1440),F116-E116),0) -> 0 | R116: 0 | S116: =IF(G116=DATEN!$L$87,"x","") -> 
A117: =IF(LEN(B117)>0,IF(WEEKDAY(B117)=4,TRUNC((B117-DATE(YEAR(B117+3-MOD(B117-2,7)),1,MOD(B117-2,7)-9))/7),IF(WEEKDAY(B117)=5,"KW","")),"") -> 50 | B117: =B106+1 -> 2025-12-10 | C117: =IF(WEEKDAY(B117)=1,7,WEEKDAY(B117)-1) -> 3 | D117: =IF(LEN(B117)>0,IF(OR(INDIRECT("DATEN!D"&9+C117)=0,NOT(ISNA(MATCH(B117,DATEN!$D$18:$D$33,0)))),"X",IF(OR(B117=DATEN!$D$26-1,B117=DATEN!$D$27-2,B117=DATEN!$D$30-2),"V","")),"") ->  | E117: =IF(E107>0,IF(VALUE("24:00:00")-VALUE(MAX(F96:F105))+VALUE(E107)<VALUE("11:00:00"),"Ruhezeit!",""),"") ->  | G117: Tagessumme: | H117: =V111 -> 0 | K117: =IF(LEN(B117)>0,IF(AND(D117<>"X",I117<>"U",I117<>"u",I117<>"K",I117<>"k",OR(I117="F",I117="f",H117<>0,DATEN!$H$8=1),J117<>"f",J117<>"F"),IF(D117="V",H117-INDIRECT("DATEN!D"&9+C117)/2,H117-INDIRECT("DATEN!D"&9+C117)),H117),"") -> -0.3291666667 | L117: =IF(X117>MaxWoZeit,"WoArbZeit>48h!","") ->  | M117: =IF(V109>V110,V109-V110,"") ->  | N117: =SUM(N107:N116) -> 0 | O117: =IF(WEEKDAY(B117,2)=7,SUMIF('Auswertung-Wochen'!$Y$2:$Y$366,P117,'Auswertung-Wochen'!$V$2:$V$366)-SUMIF('Auswertung-Wochen'!$Y$2:$Y$366,P117,'Auswertung-Wochen'!$W$2:$W$366),"") ->  | P117: =YEAR(B117)&"-"&TEXT(_xlfn.ISOWEEKNUM(B117),"00") -> 2025-50 | Q117: =SUM(Q107:Q116) -> 00:00:00 | V117: =IF(D117="x",DATEN!$N$88,DATEN!$N$87) -> 0.125 | W117: Faktor Rufbereitschaft | X117: =IF(LEN(B117)>0,IF(WEEKDAY(B117,2)=1,H117,H117+X106),X106) -> 0
A118: =IF(ISNA(MATCH(B128,DATEN!$D$18:$D$42,0)),"",INDEX(DATEN!$C$18:$D$42,MATCH(B128,DATEN!$D$18:$D$42,0),1)) ->  | B118: =B107+1 -> 2025-12-11 | H118: =IF(Q118>0,IF(ROUND(F118-E118,6)>=ROUND(Mindest,6),Q118,"<15m!"),"") ->  | M118: =IF(S118="x",TEXT(V128,"# ?/?")&" !",IF(T118="x","Nein","")) ->  | N118: =IF(S118="",IF(R118>Stunden2,Pausen2,IF(R118>Stunden1,Pausen1,0)),0) -> 0 | Q118: =IF(F118-E118>0,IF(S118="x",MROUND((F118-E118)*V128,1/1440),F118-E118),0) -> 0 | R118: =Q118 -> 0 | S118: =IF(G118=DATEN!$L$87,"x","") ->  | T118: =IF(ISNA(VLOOKUP(G118,ArbKapp,3,FALSE))=TRUE,"",IF(VLOOKUP(G118,ArbKapp,3,FALSE)="x","x","")) ->  | U118: =IF(ISNA(MATCH(G118,Kapp12Ordi,0)),"","x") ->  | V118: =Q128-N128 -> 0 | W118: Tagessumme
B119: 2025-12-11 | M119: =IF(S119="x",TEXT(V128,"# ?/?")&" !",IF(T119="x","Nein","")) ->  | N119: =IF(S119="",IF(R119>Stunden2,Pausen2-SUM(N118),IF(R119>Stunden1,Pausen1-SUM(N118),0)),0) -> 0 | Q119: =IF(F119-E119>0,IF(S119="x",MROUND((F119-E119)*V128,1/1440),F119-E119),0) -> 0 | R119: =IF(Q119>0,IF(AND(E119=F118,S118<>"x"),Q119+R118-N118,Q119),0) -> 0 | S119: =IF(G119=DATEN!$L$87,"x","") ->  | V119: =IF(ISNA(MATCH("x",U118:U127,0)),MaxZeit,MaxBildung) -> 0.4166666667 | W119: max. Tageszeit
B120: 2025-12-11 | M120: =IF(S120="x",TEXT(V128,"# ?/?")&" !",IF(T120="x","Nein","")) ->  | N120: =IF(S120="",IF(R120>Stunden2,Pausen2-SUM(N118:N119),IF(R120>Stunden1,Pausen1-SUM(N118:N119),0)),0) -> 0 | Q120: =IF(F120-E120>0,IF(S120="x",MROUND((F120-E120)*V128,1/1440),F120-E120),0) -> 0 | R120: =IF(Q120>0,IF(AND(E120=F119,S119<>"x"),Q120+R119-N119,Q120),0) -> 0 | S120: =IF(G120=DATEN!$L$87,"x","") ->  | V120: =SUMIF(T118:T127,"<>x",H118:H127)-N128 -> 00:00:00 | W120: Summe f. Kappung
B121: 2025-12-11 | M121: =IF(S121="x",TEXT(V128,"# ?/?")&" !",IF(T121="x","Nein","")) ->  | N121: =IF(S121="",IF(R121>Stunden2,Pausen2-SUM(N118:N120),IF(R121>Stunden1,Pausen1-SUM(N118:N120),0)),0) -> 0 | Q121: =IF(F121-E121>0,IF(S121="x",MROUND((F121-E121)*V128,1/1440),F121-E121),0) -> 0 | R121: 0 | S121: =IF(G121=DATEN!$L$87,"x","") ->  | V121: =IF(V120>V119,V119,V120) -> 0 | W121: Summe gekappt
B122: 2025-12-11 | M122: =IF(S122="x",TEXT(V128,"# ?/?")&" !",IF(T122="x","Nein","")) ->  | N122: =IF(S122="",IF(R122>Stunden2,Pausen2-SUM(N118:N121),IF(R122>Stunden1,Pausen1-SUM(N118:N121),0)),0) -> 0 | Q122: =IF(F122-E122>0,IF(S122="x",MROUND((F122-E122)*V128,1/1440),F122-E122),0) -> 0 | R122: 0 | S122: =IF(G122=DATEN!$L$87,"x","") ->  | V122: =V121+SUMIF(T118:T127,"x",H118:H127) -> 0 | W122: zzgl.kappungsfrei
B123: 2025-12-11 | M123: =IF(S123="x",TEXT(V128,"# ?/?")&" !",IF(T123="x","Nein","")) ->  | N123: =IF(S123="",IF(R123>Stunden2,Pausen2-SUM(N118:N122),IF(R123>Stunden1,Pausen1-SUM(N118:N122),0)),0) -> 0 | Q123: =IF(F123-E123>0,IF(S123="x",MROUND((F123-E123)*V128,1/1440),F123-E123),0) -> 0 | R123: 0 | S123: =IF(G123=DATEN!$L$87,"x","") -> 
B124: 2025-12-11 | M124: =IF(S124="x",TEXT(V128,"# ?/?")&" !",IF(T124="x","Nein","")) ->  | N124: =IF(S124="",IF(R124>Stunden2,Pausen2-SUM(N118:N123),IF(R124>Stunden1,Pausen1-SUM(N118:N123),0)),0) -> 0 | Q124: =IF(F124-E124>0,IF(S124="x",MROUND((F124-E124)*V128,1/1440),F124-E124),0) -> 0 | R124: 0 | S124: =IF(G124=DATEN!$L$87,"x","") -> 
B125: 2025-12-11 | M125: =IF(S125="x",TEXT(V128,"# ?/?")&" !",IF(T125="x","Nein","")) ->  | N125: =IF(S125="",IF(R125>Stunden2,Pausen2-SUM(N118:N124),IF(R125>Stunden1,Pausen1-SUM(N118:N124),0)),0) -> 0 | Q125: =IF(F125-E125>0,IF(S125="x",MROUND((F125-E125)*V128,1/1440),F125-E125),0) -> 0 | R125: 0 | S125: =IF(G125=DATEN!$L$87,"x","") -> 
B126: 2025-12-11 | M126: =IF(S126="x",TEXT(V128,"# ?/?")&" !",IF(T126="x","Nein","")) ->  | N126: =IF(S126="",IF(R126>Stunden2,Pausen2-SUM(N118:N125),IF(R126>Stunden1,Pausen1-SUM(N118:N125),0)),0) -> 0 | Q126: =IF(F126-E126>0,IF(S126="x",MROUND((F126-E126)*V128,1/1440),F126-E126),0) -> 0 | R126: 0 | S126: =IF(G126=DATEN!$L$87,"x","") -> 
B127: 2025-12-11 | M127: =IF(S127="x",TEXT(V128,"# ?/?")&" !",IF(T127="x","Nein","")) ->  | N127: =IF(S127="",IF(R127>Stunden2,Pausen2-SUM(N118:N126),IF(R127>Stunden1,Pausen1-SUM(N118:N126),0)),0) -> 0 | Q127: =IF(F127-E127>0,IF(S127="x",MROUND((F127-E127)*V128,1/1440),F127-E127),0) -> 0 | R127: 0 | S127: =IF(G127=DATEN!$L$87,"x","") -> 
A128: =IF(LEN(B128)>0,IF(WEEKDAY(B128)=4,TRUNC((B128-DATE(YEAR(B128+3-MOD(B128-2,7)),1,MOD(B128-2,7)-9))/7),IF(WEEKDAY(B128)=5,"KW","")),"") -> KW | B128: =B117+1 -> 2025-12-11 | C128: =IF(WEEKDAY(B128)=1,7,WEEKDAY(B128)-1) -> 4 | D128: =IF(LEN(B128)>0,IF(OR(INDIRECT("DATEN!D"&9+C128)=0,NOT(ISNA(MATCH(B128,DATEN!$D$18:$D$33,0)))),"X",IF(OR(B128=DATEN!$D$26-1,B128=DATEN!$D$27-2,B128=DATEN!$D$30-2),"V","")),"") ->  | E128: =IF(E118>0,IF(VALUE("24:00:00")-VALUE(MAX(F107:F116))+VALUE(E118)<VALUE("11:00:00"),"Ruhezeit!",""),"") ->  | G128: Tagessumme: | H128: =V122 -> 0 | K128: =IF(LEN(B128)>0,IF(AND(D128<>"X",I128<>"U",I128<>"u",I128<>"K",I128<>"k",OR(I128="F",I128="f",H128<>0,DATEN!$H$8=1),J128<>"f",J128<>"F"),IF(D128="V",H128-INDIRECT("DATEN!D"&9+C128)/2,H128-INDIRECT("DATEN!D"&9+C128)),H128),"") -> -0.3291666667 | L128: =IF(X128>MaxWoZeit,"WoArbZeit>48h!","") ->  | M128: =IF(V120>V121,V120-V121,"") ->  | N128: =SUM(N118:N127) -> 0 | O128: =IF(WEEKDAY(B128,2)=7,SUMIF('Auswertung-Wochen'!$Y$2:$Y$366,P128,'Auswertung-Wochen'!$V$2:$V$366)-SUMIF('Auswertung-Wochen'!$Y$2:$Y$366,P128,'Auswertung-Wochen'!$W$2:$W$366),"") ->  | P128: =YEAR(B128)&"-"&TEXT(_xlfn.ISOWEEKNUM(B128),"00") -> 2025-50 | Q128: =SUM(Q118:Q127) -> 00:00:00 | V128: =IF(D128="x",DATEN!$N$88,DATEN!$N$87) -> 0.125 | W128: Faktor Rufbereitschaft | X128: =IF(LEN(B128)>0,IF(WEEKDAY(B128,2)=1,H128,H128+X117),X117) -> 0
A129: =IF(ISNA(MATCH(B139,DATEN!$D$18:$D$42,0)),"",INDEX(DATEN!$C$18:$D$42,MATCH(B139,DATEN!$D$18:$D$42,0),1)) ->  | B129: =B118+1 -> 2025-12-12 | H129: =IF(Q129>0,IF(ROUND(F129-E129,6)>=ROUND(Mindest,6),Q129,"<15m!"),"") ->  | M129: =IF(S129="x",TEXT(V139,"# ?/?")&" !",IF(T129="x","Nein","")) ->  | N129: =IF(S129="",IF(R129>Stunden2,Pausen2,IF(R129>Stunden1,Pausen1,0)),0) -> 0 | Q129: =IF(F129-E129>0,IF(S129="x",MROUND((F129-E129)*V139,1/1440),F129-E129),0) -> 0 | R129: =Q129 -> 0 | S129: =IF(G129=DATEN!$L$87,"x","") ->  | T129: =IF(ISNA(VLOOKUP(G129,ArbKapp,3,FALSE))=TRUE,"",IF(VLOOKUP(G129,ArbKapp,3,FALSE)="x","x","")) ->  | U129: =IF(ISNA(MATCH(G129,Kapp12Ordi,0)),"","x") ->  | V129: =Q139-N139 -> 0 | W129: Tagessumme
B130: 2025-12-12 | M130: =IF(S130="x",TEXT(V139,"# ?/?")&" !",IF(T130="x","Nein","")) ->  | N130: =IF(S130="",IF(R130>Stunden2,Pausen2-SUM(N129),IF(R130>Stunden1,Pausen1-SUM(N129),0)),0) -> 0 | Q130: =IF(F130-E130>0,IF(S130="x",MROUND((F130-E130)*V139,1/1440),F130-E130),0) -> 0 | R130: =IF(Q130>0,IF(AND(E130=F129,S129<>"x"),Q130+R129-N129,Q130),0) -> 0 | S130: =IF(G130=DATEN!$L$87,"x","") ->  | V130: =IF(ISNA(MATCH("x",U129:U138,0)),MaxZeit,MaxBildung) -> 0.4166666667 | W130: max. Tageszeit
B131: 2025-12-12 | M131: =IF(S131="x",TEXT(V139,"# ?/?")&" !",IF(T131="x","Nein","")) ->  | N131: =IF(S131="",IF(R131>Stunden2,Pausen2-SUM(N129:N130),IF(R131>Stunden1,Pausen1-SUM(N129:N130),0)),0) -> 0 | Q131: =IF(F131-E131>0,IF(S131="x",MROUND((F131-E131)*V139,1/1440),F131-E131),0) -> 0 | R131: =IF(Q131>0,IF(AND(E131=F130,S130<>"x"),Q131+R130-N130,Q131),0) -> 0 | S131: =IF(G131=DATEN!$L$87,"x","") ->  | V131: =SUMIF(T129:T138,"<>x",H129:H138)-N139 -> 00:00:00 | W131: Summe f. Kappung
B132: 2025-12-12 | M132: =IF(S132="x",TEXT(V139,"# ?/?")&" !",IF(T132="x","Nein","")) ->  | N132: =IF(S132="",IF(R132>Stunden2,Pausen2-SUM(N129:N131),IF(R132>Stunden1,Pausen1-SUM(N129:N131),0)),0) -> 0 | Q132: =IF(F132-E132>0,IF(S132="x",MROUND((F132-E132)*V139,1/1440),F132-E132),0) -> 0 | R132: 0 | S132: =IF(G132=DATEN!$L$87,"x","") ->  | V132: =IF(V131>V130,V130,V131) -> 0 | W132: Summe gekappt
B133: 2025-12-12 | M133: =IF(S133="x",TEXT(V139,"# ?/?")&" !",IF(T133="x","Nein","")) ->  | N133: =IF(S133="",IF(R133>Stunden2,Pausen2-SUM(N129:N132),IF(R133>Stunden1,Pausen1-SUM(N129:N132),0)),0) -> 0 | Q133: =IF(F133-E133>0,IF(S133="x",MROUND((F133-E133)*V139,1/1440),F133-E133),0) -> 0 | R133: 0 | S133: =IF(G133=DATEN!$L$87,"x","") ->  | V133: =V132+SUMIF(T129:T138,"x",H129:H138) -> 0 | W133: zzgl.kappungsfrei
B134: 2025-12-12 | M134: =IF(S134="x",TEXT(V139,"# ?/?")&" !",IF(T134="x","Nein","")) ->  | N134: =IF(S134="",IF(R134>Stunden2,Pausen2-SUM(N129:N133),IF(R134>Stunden1,Pausen1-SUM(N129:N133),0)),0) -> 0 | Q134: =IF(F134-E134>0,IF(S134="x",MROUND((F134-E134)*V139,1/1440),F134-E134),0) -> 0 | R134: 0 | S134: =IF(G134=DATEN!$L$87,"x","") -> 
B135: 2025-12-12 | M135: =IF(S135="x",TEXT(V139,"# ?/?")&" !",IF(T135="x","Nein","")) ->  | N135: =IF(S135="",IF(R135>Stunden2,Pausen2-SUM(N129:N134),IF(R135>Stunden1,Pausen1-SUM(N129:N134),0)),0) -> 0 | Q135: =IF(F135-E135>0,IF(S135="x",MROUND((F135-E135)*V139,1/1440),F135-E135),0) -> 0 | R135: 0 | S135: =IF(G135=DATEN!$L$87,"x","") -> 
B136: 2025-12-12 | M136: =IF(S136="x",TEXT(V139,"# ?/?")&" !",IF(T136="x","Nein","")) ->  | N136: =IF(S136="",IF(R136>Stunden2,Pausen2-SUM(N129:N135),IF(R136>Stunden1,Pausen1-SUM(N129:N135),0)),0) -> 0 | Q136: =IF(F136-E136>0,IF(S136="x",MROUND((F136-E136)*V139,1/1440),F136-E136),0) -> 0 | R136: 0 | S136: =IF(G136=DATEN!$L$87,"x","") -> 
B137: 2025-12-12 | M137: =IF(S137="x",TEXT(V139,"# ?/?")&" !",IF(T137="x","Nein","")) ->  | N137: =IF(S137="",IF(R137>Stunden2,Pausen2-SUM(N129:N136),IF(R137>Stunden1,Pausen1-SUM(N129:N136),0)),0) -> 0 | Q137: =IF(F137-E137>0,IF(S137="x",MROUND((F137-E137)*V139,1/1440),F137-E137),0) -> 0 | R137: 0 | S137: =IF(G137=DATEN!$L$87,"x","") ->  | Z137: =IF(AND(G137>0,G137<>"Tagessumme:"),G137,"") ->  | AA137: =IF(G137<>"Tagessumme:",H137,"") -> 
B138: 2025-12-12 | M138: =IF(S138="x",TEXT(V139,"# ?/?")&" !",IF(T138="x","Nein","")) ->  | N138: =IF(S138="",IF(R138>Stunden2,Pausen2-SUM(N129:N137),IF(R138>Stunden1,Pausen1-SUM(N129:N137),0)),0) -> 0 | Q138: =IF(F138-E138>0,IF(S138="x",MROUND((F138-E138)*V139,1/1440),F138-E138),0) -> 0 | R138: 0 | S138: =IF(G138=DATEN!$L$87,"x","") -> 
A139: =IF(LEN(B139)>0,IF(WEEKDAY(B139)=4,TRUNC((B139-DATE(YEAR(B139+3-MOD(B139-2,7)),1,MOD(B139-2,7)-9))/7),IF(WEEKDAY(B139)=5,"KW","")),"") ->  | B139: =B128+1 -> 2025-12-12 | C139: =IF(WEEKDAY(B139)=1,7,WEEKDAY(B139)-1) -> 5 | D139: =IF(LEN(B139)>0,IF(OR(INDIRECT("DATEN!D"&9+C139)=0,NOT(ISNA(MATCH(B139,DATEN!$D$18:$D$33,0)))),"X",IF(OR(B139=DATEN!$D$26-1,B139=DATEN!$D$27-2,B139=DATEN!$D$30-2),"V","")),"") ->  | E139: =IF(E129>0,IF(VALUE("24:00:00")-VALUE(MAX(F118:F127))+VALUE(E129)<VALUE("11:00:00"),"Ruhezeit!",""),"") ->  | G139: Tagessumme: | H139: =V133 -> 0 | K139: =IF(LEN(B139)>0,IF(AND(D139<>"X",I139<>"U",I139<>"u",I139<>"K",I139<>"k",OR(I139="F",I139="f",H139<>0,DATEN!$H$8=1),J139<>"f",J139<>"F"),IF(D139="V",H139-INDIRECT("DATEN!D"&9+C139)/2,H139-INDIRECT("DATEN!D"&9+C139)),H139),"") -> -0.3291666667 | L139: =IF(X139>MaxWoZeit,"WoArbZeit>48h!","") ->  | M139: =IF(V131>V132,V131-V132,"") ->  | N139: =SUM(N129:N138) -> 0 | O139: =IF(WEEKDAY(B139,2)=7,SUMIF('Auswertung-Wochen'!$Y$2:$Y$366,P139,'Auswertung-Wochen'!$V$2:$V$366)-SUMIF('Auswertung-Wochen'!$Y$2:$Y$366,P139,'Auswertung-Wochen'!$W$2:$W$366),"") ->  | P139: =YEAR(B139)&"-"&TEXT(_xlfn.ISOWEEKNUM(B139),"00") -> 2025-50 | Q139: =SUM(Q129:Q138) -> 00:00:00 | V139: =IF(D139="x",DATEN!$N$88,DATEN!$N$87) -> 0.125 | W139: Faktor Rufbereitschaft | X139: =IF(LEN(B139)>0,IF(WEEKDAY(B139,2)=1,H139,H139+X128),X128) -> 0
A140: =IF(ISNA(MATCH(B150,DATEN!$D$18:$D$42,0)),"",INDEX(DATEN!$C$18:$D$42,MATCH(B150,DATEN!$D$18:$D$42,0),1)) ->  | B140: =B129+1 -> 2025-12-13 | H140: =IF(Q140>0,IF(ROUND(F140-E140,6)>=ROUND(Mindest,6),Q140,"<15m!"),"") ->  | M140: =IF(S140="x",TEXT(V150,"# ?/?")&" !",IF(T140="x","Nein","")) ->  | N140: =IF(S140="",IF(R140>Stunden2,Pausen2,IF(R140>Stunden1,Pausen1,0)),0) -> 0 | Q140: =IF(F140-E140>0,IF(S140="x",MROUND((F140-E140)*V150,1/1440),F140-E140),0) -> 0 | R140: =Q140 -> 0 | S140: =IF(G140=DATEN!$L$87,"x","") ->  | T140: =IF(ISNA(VLOOKUP(G140,ArbKapp,3,FALSE))=TRUE,"",IF(VLOOKUP(G140,ArbKapp,3,FALSE)="x","x","")) ->  | U140: =IF(ISNA(MATCH(G140,Kapp12Ordi,0)),"","x") ->  | V140: =Q150-N150 -> 0 | W140: Tagessumme
B141: 2025-12-13 | M141: =IF(S141="x",TEXT(V150,"# ?/?")&" !",IF(T141="x","Nein","")) ->  | N141: =IF(S141="",IF(R141>Stunden2,Pausen2-SUM(N140),IF(R141>Stunden1,Pausen1-SUM(N140),0)),0) -> 0 | Q141: =IF(F141-E141>0,IF(S141="x",MROUND((F141-E141)*V150,1/1440),F141-E141),0) -> 0 | R141: =IF(Q141>0,IF(AND(E141=F140,S140<>"x"),Q141+R140-N140,Q141),0) -> 0 | S141: =IF(G141=DATEN!$L$87,"x","") ->  | V141: =IF(ISNA(MATCH("x",U140:U149,0)),MaxZeit,MaxBildung) -> 0.4166666667 | W141: max. Tageszeit
B142: 2025-12-13 | M142: =IF(S142="x",TEXT(V150,"# ?/?")&" !",IF(T142="x","Nein","")) ->  | N142: =IF(S142="",IF(R142>Stunden2,Pausen2-SUM(N140:N141),IF(R142>Stunden1,Pausen1-SUM(N140:N141),0)),0) -> 0 | Q142: =IF(F142-E142>0,IF(S142="x",MROUND((F142-E142)*V150,1/1440),F142-E142),0) -> 0 | R142: =IF(Q142>0,IF(AND(E142=F141,S141<>"x"),Q142+R141-N141,Q142),0) -> 0 | S142: =IF(G142=DATEN!$L$87,"x","") ->  | V142: =SUMIF(T140:T149,"<>x",H140:H149)-N150 -> 00:00:00 | W142: Summe f. Kappung
B143: 2025-12-13 | M143: =IF(S143="x",TEXT(V150,"# ?/?")&" !",IF(T143="x","Nein","")) ->  | N143: =IF(S143="",IF(R143>Stunden2,Pausen2-SUM(N140:N142),IF(R143>Stunden1,Pausen1-SUM(N140:N142),0)),0) -> 0 | Q143: =IF(F143-E143>0,IF(S143="x",MROUND((F143-E143)*V150,1/1440),F143-E143),0) -> 0 | R143: 0 | S143: =IF(G143=DATEN!$L$87,"x","") ->  | V143: =IF(V142>V141,V141,V142) -> 0 | W143: Summe gekappt
B144: 2025-12-13 | M144: =IF(S144="x",TEXT(V150,"# ?/?")&" !",IF(T144="x","Nein","")) ->  | N144: =IF(S144="",IF(R144>Stunden2,Pausen2-SUM(N140:N143),IF(R144>Stunden1,Pausen1-SUM(N140:N143),0)),0) -> 0 | Q144: =IF(F144-E144>0,IF(S144="x",MROUND((F144-E144)*V150,1/1440),F144-E144),0) -> 0 | R144: 0 | S144: =IF(G144=DATEN!$L$87,"x","") ->  | V144: =V143+SUMIF(T140:T149,"x",H140:H149) -> 0 | W144: zzgl.kappungsfrei
B145: 2025-12-13 | M145: =IF(S145="x",TEXT(V150,"# ?/?")&" !",IF(T145="x","Nein","")) ->  | N145: =IF(S145="",IF(R145>Stunden2,Pausen2-SUM(N140:N144),IF(R145>Stunden1,Pausen1-SUM(N140:N144),0)),0) -> 0 | Q145: =IF(F145-E145>0,IF(S145="x",MROUND((F145-E145)*V150,1/1440),F145-E145),0) -> 0 | R145: 0 | S145: =IF(G145=DATEN!$L$87,"x","") -> 
B146: 2025-12-13 | M146: =IF(S146="x",TEXT(V150,"# ?/?")&" !",IF(T146="x","Nein","")) ->  | N146: =IF(S146="",IF(R146>Stunden2,Pausen2-SUM(N140:N145),IF(R146>Stunden1,Pausen1-SUM(N140:N145),0)),0) -> 0 | Q146: =IF(F146-E146>0,IF(S146="x",MROUND((F146-E146)*V150,1/1440),F146-E146),0) -> 0 | R146: 0 | S146: =IF(G146=DATEN!$L$87,"x","") -> 
B147: 2025-12-13 | M147: =IF(S147="x",TEXT(V150,"# ?/?")&" !",IF(T147="x","Nein","")) ->  | N147: =IF(S147="",IF(R147>Stunden2,Pausen2-SUM(N140:N146),IF(R147>Stunden1,Pausen1-SUM(N140:N146),0)),0) -> 0 | Q147: =IF(F147-E147>0,IF(S147="x",MROUND((F147-E147)*V150,1/1440),F147-E147),0) -> 0 | R147: 0 | S147: =IF(G147=DATEN!$L$87,"x","") -> 
B148: 2025-12-13 | M148: =IF(S148="x",TEXT(V150,"# ?/?")&" !",IF(T148="x","Nein","")) ->  | N148: =IF(S148="",IF(R148>Stunden2,Pausen2-SUM(N140:N147),IF(R148>Stunden1,Pausen1-SUM(N140:N147),0)),0) -> 0 | Q148: =IF(F148-E148>0,IF(S148="x",MROUND((F148-E148)*V150,1/1440),F148-E148),0) -> 0 | R148: 0 | S148: =IF(G148=DATEN!$L$87,"x","") -> 
B149: 2025-12-13 | M149: =IF(S149="x",TEXT(V150,"# ?/?")&" !",IF(T149="x","Nein","")) ->  | N149: =IF(S149="",IF(R149>Stunden2,Pausen2-SUM(N140:N148),IF(R149>Stunden1,Pausen1-SUM(N140:N148),0)),0) -> 0 | Q149: =IF(F149-E149>0,IF(S149="x",MROUND((F149-E149)*V150,1/1440),F149-E149),0) -> 0 | R149: 0 | S149: =IF(G149=DATEN!$L$87,"x","") -> 
A150: =IF(LEN(B150)>0,IF(WEEKDAY(B150)=4,TRUNC((B150-DATE(YEAR(B150+3-MOD(B150-2,7)),1,MOD(B150-2,7)-9))/7),IF(WEEKDAY(B150)=5,"KW","")),"") ->  | B150: =B139+1 -> 2025-12-13 | C150: =IF(WEEKDAY(B150)=1,7,WEEKDAY(B150)-1) -> 6 | D150: =IF(LEN(B150)>0,IF(OR(INDIRECT("DATEN!D"&9+C150)=0,NOT(ISNA(MATCH(B150,DATEN!$D$18:$D$33,0)))),"X",IF(OR(B150=DATEN!$D$26-1,B150=DATEN!$D$27-2,B150=DATEN!$D$30-2),"V","")),"") -> X | E150: =IF(E140>0,IF(VALUE("24:00:00")-VALUE(MAX(F129:F138))+VALUE(E140)<VALUE("11:00:00"),"Ruhezeit!",""),"") ->  | G150: Tagessumme: | H150: =V144 -> 0 | K150: =IF(LEN(B150)>0,IF(AND(D150<>"X",I150<>"U",I150<>"u",I150<>"K",I150<>"k",OR(I150="F",I150="f",H150<>0,DATEN!$H$8=1),J150<>"f",J150<>"F"),IF(D150="V",H150-INDIRECT("DATEN!D"&9+C150)/2,H150-INDIRECT("DATEN!D"&9+C150)),H150),"") -> 0 | L150: =IF(X150>MaxWoZeit,"WoArbZeit>48h!","") ->  | M150: =IF(V142>V143,V142-V143,"") ->  | N150: =SUM(N140:N149) -> 0 | O150: =IF(WEEKDAY(B150,2)=7,SUMIF('Auswertung-Wochen'!$Y$2:$Y$366,P150,'Auswertung-Wochen'!$V$2:$V$366)-SUMIF('Auswertung-Wochen'!$Y$2:$Y$366,P150,'Auswertung-Wochen'!$W$2:$W$366),"") ->  | P150: =YEAR(B150)&"-"&TEXT(_xlfn.ISOWEEKNUM(B150),"00") -> 2025-50 | Q150: =SUM(Q140:Q149) -> 00:00:00 | V150: =IF(D150="x",DATEN!$N$88,DATEN!$N$87) -> 0.1666666667 | W150: Faktor Rufbereitschaft | X150: =IF(LEN(B150)>0,IF(WEEKDAY(B150,2)=1,H150,H150+X139),X139) -> 0
A151: =IF(ISNA(MATCH(B161,DATEN!$D$18:$D$42,0)),"",INDEX(DATEN!$C$18:$D$42,MATCH(B161,DATEN!$D$18:$D$42,0),1)) ->  | B151: =B140+1 -> 2025-12-14 | H151: =IF(Q151>0,IF(ROUND(F151-E151,6)>=ROUND(Mindest,6),Q151,"<15m!"),"") ->  | M151: =IF(S151="x",TEXT(V161,"# ?/?")&" !",IF(T151="x","Nein","")) ->  | N151: =IF(S151="",IF(R151>Stunden2,Pausen2,IF(R151>Stunden1,Pausen1,0)),0) -> 0 | Q151: =IF(F151-E151>0,IF(S151="x",MROUND((F151-E151)*V161,1/1440),F151-E151),0) -> 0 | R151: =Q151 -> 0 | S151: =IF(G151=DATEN!$L$87,"x","") ->  | T151: =IF(ISNA(VLOOKUP(G151,ArbKapp,3,FALSE))=TRUE,"",IF(VLOOKUP(G151,ArbKapp,3,FALSE)="x","x","")) ->  | U151: =IF(ISNA(MATCH(G151,Kapp12Ordi,0)),"","x") ->  | V151: =Q161-N161 -> 0 | W151: Tagessumme
B152: 2025-12-14 | M152: =IF(S152="x",TEXT(V161,"# ?/?")&" !",IF(T152="x","Nein","")) ->  | N152: =IF(S152="",IF(R152>Stunden2,Pausen2-SUM(N151),IF(R152>Stunden1,Pausen1-SUM(N151),0)),0) -> 0 | Q152: =IF(F152-E152>0,IF(S152="x",MROUND((F152-E152)*V161,1/1440),F152-E152),0) -> 0 | R152: =IF(Q152>0,IF(AND(E152=F151,S151<>"x"),Q152+R151-N151,Q152),0) -> 0 | S152: =IF(G152=DATEN!$L$87,"x","") ->  | V152: =IF(ISNA(MATCH("x",U151:U160,0)),MaxZeit,MaxBildung) -> 0.4166666667 | W152: max. Tageszeit
B153: 2025-12-14 | M153: =IF(S153="x",TEXT(V161,"# ?/?")&" !",IF(T153="x","Nein","")) ->  | N153: =IF(S153="",IF(R153>Stunden2,Pausen2-SUM(N151:N152),IF(R153>Stunden1,Pausen1-SUM(N151:N152),0)),0) -> 0 | Q153: =IF(F153-E153>0,IF(S153="x",MROUND((F153-E153)*V161,1/1440),F153-E153),0) -> 0 | R153: =IF(Q153>0,IF(AND(E153=F152,S152<>"x"),Q153+R152-N152,Q153),0) -> 0 | S153: =IF(G153=DATEN!$L$87,"x","") ->  | V153: =SUMIF(T151:T160,"<>x",H151:H160)-N161 -> 00:00:00 | W153: Summe f. Kappung
B154: 2025-12-14 | M154: =IF(S154="x",TEXT(V161,"# ?/?")&" !",IF(T154="x","Nein","")) ->  | N154: =IF(S154="",IF(R154>Stunden2,Pausen2-SUM(N151:N153),IF(R154>Stunden1,Pausen1-SUM(N151:N153),0)),0) -> 0 | Q154: =IF(F154-E154>0,IF(S154="x",MROUND((F154-E154)*V161,1/1440),F154-E154),0) -> 0 | R154: 0 | S154: =IF(G154=DATEN!$L$87,"x","") ->  | V154: =IF(V153>V152,V152,V153) -> 0 | W154: Summe gekappt
B155: 2025-12-14 | M155: =IF(S155="x",TEXT(V161,"# ?/?")&" !",IF(T155="x","Nein","")) ->  | N155: =IF(S155="",IF(R155>Stunden2,Pausen2-SUM(N151:N154),IF(R155>Stunden1,Pausen1-SUM(N151:N154),0)),0) -> 0 | Q155: =IF(F155-E155>0,IF(S155="x",MROUND((F155-E155)*V161,1/1440),F155-E155),0) -> 0 | R155: 0 | S155: =IF(G155=DATEN!$L$87,"x","") ->  | V155: =V154+SUMIF(T151:T160,"x",H151:H160) -> 0 | W155: zzgl.kappungsfrei
B156: 2025-12-14 | M156: =IF(S156="x",TEXT(V161,"# ?/?")&" !",IF(T156="x","Nein","")) ->  | N156: =IF(S156="",IF(R156>Stunden2,Pausen2-SUM(N151:N155),IF(R156>Stunden1,Pausen1-SUM(N151:N155),0)),0) -> 0 | Q156: =IF(F156-E156>0,IF(S156="x",MROUND((F156-E156)*V161,1/1440),F156-E156),0) -> 0 | R156: 0 | S156: =IF(G156=DATEN!$L$87,"x","") -> 
B157: 2025-12-14 | M157: =IF(S157="x",TEXT(V161,"# ?/?")&" !",IF(T157="x","Nein","")) ->  | N157: =IF(S157="",IF(R157>Stunden2,Pausen2-SUM(N151:N156),IF(R157>Stunden1,Pausen1-SUM(N151:N156),0)),0) -> 0 | Q157: =IF(F157-E157>0,IF(S157="x",MROUND((F157-E157)*V161,1/1440),F157-E157),0) -> 0 | R157: 0 | S157: =IF(G157=DATEN!$L$87,"x","") -> 
B158: 2025-12-14 | M158: =IF(S158="x",TEXT(V161,"# ?/?")&" !",IF(T158="x","Nein","")) ->  | N158: =IF(S158="",IF(R158>Stunden2,Pausen2-SUM(N151:N157),IF(R158>Stunden1,Pausen1-SUM(N151:N157),0)),0) -> 0 | Q158: =IF(F158-E158>0,IF(S158="x",MROUND((F158-E158)*V161,1/1440),F158-E158),0) -> 0 | R158: 0 | S158: =IF(G158=DATEN!$L$87,"x","") -> 
B159: 2025-12-14 | M159: =IF(S159="x",TEXT(V161,"# ?/?")&" !",IF(T159="x","Nein","")) ->  | N159: =IF(S159="",IF(R159>Stunden2,Pausen2-SUM(N151:N158),IF(R159>Stunden1,Pausen1-SUM(N151:N158),0)),0) -> 0 | Q159: =IF(F159-E159>0,IF(S159="x",MROUND((F159-E159)*V161,1/1440),F159-E159),0) -> 0 | R159: 0 | S159: =IF(G159=DATEN!$L$87,"x","") -> 
B160: 2025-12-14 | M160: =IF(S160="x",TEXT(V161,"# ?/?")&" !",IF(T160="x","Nein","")) ->  | N160: =IF(S160="",IF(R160>Stunden2,Pausen2-SUM(N151:N159),IF(R160>Stunden1,Pausen1-SUM(N151:N159),0)),0) -> 0 | Q160: =IF(F160-E160>0,IF(S160="x",MROUND((F160-E160)*V161,1/1440),F160-E160),0) -> 0 | R160: 0 | S160: =IF(G160=DATEN!$L$87,"x","") -> 
A161: =IF(LEN(B161)>0,IF(WEEKDAY(B161)=4,TRUNC((B161-DATE(YEAR(B161+3-MOD(B161-2,7)),1,MOD(B161-2,7)-9))/7),IF(WEEKDAY(B161)=5,"KW","")),"") ->  | B161: =B150+1 -> 2025-12-14 | C161: =IF(WEEKDAY(B161)=1,7,WEEKDAY(B161)-1) -> 7 | D161: =IF(LEN(B161)>0,IF(OR(INDIRECT("DATEN!D"&9+C161)=0,NOT(ISNA(MATCH(B161,DATEN!$D$18:$D$33,0)))),"X",IF(OR(B161=DATEN!$D$26-1,B161=DATEN!$D$27-2,B161=DATEN!$D$30-2),"V","")),"") -> X | E161: =IF(E151>0,IF(VALUE("24:00:00")-VALUE(MAX(F140:F149))+VALUE(E151)<VALUE("11:00:00"),"Ruhezeit!",""),"") ->  | G161: Tagessumme: | H161: =V155 -> 0 | K161: =IF(LEN(B161)>0,IF(AND(D161<>"X",I161<>"U",I161<>"u",I161<>"K",I161<>"k",OR(I161="F",I161="f",H161<>0,DATEN!$H$8=1),J161<>"f",J161<>"F"),IF(D161="V",H161-INDIRECT("DATEN!D"&9+C161)/2,H161-INDIRECT("DATEN!D"&9+C161)),H161),"") -> 0 | L161: =IF(X161>MaxWoZeit,"WoArbZeit>48h!","") ->  | M161: =IF(V153>V154,V153-V154,"") ->  | N161: =SUM(N151:N160) -> 0 | O161: =IF(WEEKDAY(B161,2)=7,SUMIF('Auswertung-Wochen'!$Y$2:$Y$366,P161,'Auswertung-Wochen'!$V$2:$V$366)-SUMIF('Auswertung-Wochen'!$Y$2:$Y$366,P161,'Auswertung-Wochen'!$W$2:$W$366),"") -> -1.645833333 | P161: =YEAR(B161)&"-"&TEXT(_xlfn.ISOWEEKNUM(B161),"00") -> 2025-50 | Q161: =SUM(Q151:Q160) -> 00:00:00 | V161: =IF(D161="x",DATEN!$N$88,DATEN!$N$87) -> 0.1666666667 | W161: Faktor Rufbereitschaft | X161: =IF(LEN(B161)>0,IF(WEEKDAY(B161,2)=1,H161,H161+X150),X150) -> 0
A162: =IF(ISNA(MATCH(B172,DATEN!$D$18:$D$42,0)),"",INDEX(DATEN!$C$18:$D$42,MATCH(B172,DATEN!$D$18:$D$42,0),1)) ->  | B162: =B151+1 -> 2025-12-15 | H162: =IF(Q162>0,IF(ROUND(F162-E162,6)>=ROUND(Mindest,6),Q162,"<15m!"),"") ->  | M162: =IF(S162="x",TEXT(V172,"# ?/?")&" !",IF(T162="x","Nein","")) ->  | N162: =IF(S162="",IF(R162>Stunden2,Pausen2,IF(R162>Stunden1,Pausen1,0)),0) -> 0 | Q162: =IF(F162-E162>0,IF(S162="x",MROUND((F162-E162)*V172,1/1440),F162-E162),0) -> 0 | R162: =Q162 -> 0 | S162: =IF(G162=DATEN!$L$87,"x","") ->  | T162: =IF(ISNA(VLOOKUP(G162,ArbKapp,3,FALSE))=TRUE,"",IF(VLOOKUP(G162,ArbKapp,3,FALSE)="x","x","")) ->  | U162: =IF(ISNA(MATCH(G162,Kapp12Ordi,0)),"","x") ->  | V162: =Q172-N172 -> 0 | W162: Tagessumme
B163: 2025-12-15 | M163: =IF(S163="x",TEXT(V172,"# ?/?")&" !",IF(T163="x","Nein","")) ->  | N163: =IF(S163="",IF(R163>Stunden2,Pausen2-SUM(N162),IF(R163>Stunden1,Pausen1-SUM(N162),0)),0) -> 0 | Q163: =IF(F163-E163>0,IF(S163="x",MROUND((F163-E163)*V172,1/1440),F163-E163),0) -> 0 | R163: =IF(Q163>0,IF(AND(E163=F162,S162<>"x"),Q163+R162-N162,Q163),0) -> 0 | S163: =IF(G163=DATEN!$L$87,"x","") ->  | V163: =IF(ISNA(MATCH("x",U162:U171,0)),MaxZeit,MaxBildung) -> 0.4166666667 | W163: max. Tageszeit
B164: 2025-12-15 | M164: =IF(S164="x",TEXT(V172,"# ?/?")&" !",IF(T164="x","Nein","")) ->  | N164: =IF(S164="",IF(R164>Stunden2,Pausen2-SUM(N162:N163),IF(R164>Stunden1,Pausen1-SUM(N162:N163),0)),0) -> 0 | Q164: =IF(F164-E164>0,IF(S164="x",MROUND((F164-E164)*V172,1/1440),F164-E164),0) -> 0 | R164: =IF(Q164>0,IF(AND(E164=F163,S163<>"x"),Q164+R163-N163,Q164),0) -> 0 | S164: =IF(G164=DATEN!$L$87,"x","") ->  | V164: =SUMIF(T162:T171,"<>x",H162:H171)-N172 -> 00:00:00 | W164: Summe f. Kappung
B165: 2025-12-15 | M165: =IF(S165="x",TEXT(V172,"# ?/?")&" !",IF(T165="x","Nein","")) ->  | N165: =IF(S165="",IF(R165>Stunden2,Pausen2-SUM(N162:N164),IF(R165>Stunden1,Pausen1-SUM(N162:N164),0)),0) -> 0 | Q165: =IF(F165-E165>0,IF(S165="x",MROUND((F165-E165)*V172,1/1440),F165-E165),0) -> 0 | R165: 0 | S165: =IF(G165=DATEN!$L$87,"x","") ->  | V165: =IF(V164>V163,V163,V164) -> 0 | W165: Summe gekappt
B166: 2025-12-15 | M166: =IF(S166="x",TEXT(V172,"# ?/?")&" !",IF(T166="x","Nein","")) ->  | N166: =IF(S166="",IF(R166>Stunden2,Pausen2-SUM(N162:N165),IF(R166>Stunden1,Pausen1-SUM(N162:N165),0)),0) -> 0 | Q166: =IF(F166-E166>0,IF(S166="x",MROUND((F166-E166)*V172,1/1440),F166-E166),0) -> 0 | R166: 0 | S166: =IF(G166=DATEN!$L$87,"x","") ->  | V166: =V165+SUMIF(T162:T171,"x",H162:H171) -> 0 | W166: zzgl.kappungsfrei
B167: 2025-12-15 | M167: =IF(S167="x",TEXT(V172,"# ?/?")&" !",IF(T167="x","Nein","")) ->  | N167: =IF(S167="",IF(R167>Stunden2,Pausen2-SUM(N162:N166),IF(R167>Stunden1,Pausen1-SUM(N162:N166),0)),0) -> 0 | Q167: =IF(F167-E167>0,IF(S167="x",MROUND((F167-E167)*V172,1/1440),F167-E167),0) -> 0 | R167: 0 | S167: =IF(G167=DATEN!$L$87,"x","") -> 
B168: 2025-12-15 | M168: =IF(S168="x",TEXT(V172,"# ?/?")&" !",IF(T168="x","Nein","")) ->  | N168: =IF(S168="",IF(R168>Stunden2,Pausen2-SUM(N162:N167),IF(R168>Stunden1,Pausen1-SUM(N162:N167),0)),0) -> 0 | Q168: =IF(F168-E168>0,IF(S168="x",MROUND((F168-E168)*V172,1/1440),F168-E168),0) -> 0 | R168: 0 | S168: =IF(G168=DATEN!$L$87,"x","") -> 
B169: 2025-12-15 | M169: =IF(S169="x",TEXT(V172,"# ?/?")&" !",IF(T169="x","Nein","")) ->  | N169: =IF(S169="",IF(R169>Stunden2,Pausen2-SUM(N162:N168),IF(R169>Stunden1,Pausen1-SUM(N162:N168),0)),0) -> 0 | Q169: =IF(F169-E169>0,IF(S169="x",MROUND((F169-E169)*V172,1/1440),F169-E169),0) -> 0 | R169: 0 | S169: =IF(G169=DATEN!$L$87,"x","") -> 
B170: 2025-12-15 | M170: =IF(S170="x",TEXT(V172,"# ?/?")&" !",IF(T170="x","Nein","")) ->  | N170: =IF(S170="",IF(R170>Stunden2,Pausen2-SUM(N162:N169),IF(R170>Stunden1,Pausen1-SUM(N162:N169),0)),0) -> 0 | Q170: =IF(F170-E170>0,IF(S170="x",MROUND((F170-E170)*V172,1/1440),F170-E170),0) -> 0 | R170: 0 | S170: =IF(G170=DATEN!$L$87,"x","") -> 
B171: 2025-12-15 | M171: =IF(S171="x",TEXT(V172,"# ?/?")&" !",IF(T171="x","Nein","")) ->  | N171: =IF(S171="",IF(R171>Stunden2,Pausen2-SUM(N162:N170),IF(R171>Stunden1,Pausen1-SUM(N162:N170),0)),0) -> 0 | Q171: =IF(F171-E171>0,IF(S171="x",MROUND((F171-E171)*V172,1/1440),F171-E171),0) -> 0 | R171: 0 | S171: =IF(G171=DATEN!$L$87,"x","") -> 
A172: =IF(LEN(B172)>0,IF(WEEKDAY(B172)=4,TRUNC((B172-DATE(YEAR(B172+3-MOD(B172-2,7)),1,MOD(B172-2,7)-9))/7),IF(WEEKDAY(B172)=5,"KW","")),"") ->  | B172: =B161+1 -> 2025-12-15 | C172: =IF(WEEKDAY(B172)=1,7,WEEKDAY(B172)-1) -> 1 | D172: =IF(LEN(B172)>0,IF(OR(INDIRECT("DATEN!D"&9+C172)=0,NOT(ISNA(MATCH(B172,DATEN!$D$18:$D$33,0)))),"X",IF(OR(B172=DATEN!$D$26-1,B172=DATEN!$D$27-2,B172=DATEN!$D$30-2),"V","")),"") ->  | E172: =IF(E162>0,IF(VALUE("24:00:00")-VALUE(MAX(F151:F160))+VALUE(E162)<VALUE("11:00:00"),"Ruhezeit!",""),"") ->  | G172: Tagessumme: | H172: =V166 -> 0 | K172: =IF(LEN(B172)>0,IF(AND(D172<>"X",I172<>"U",I172<>"u",I172<>"K",I172<>"k",OR(I172="F",I172="f",H172<>0,DATEN!$H$8=1),J172<>"f",J172<>"F"),IF(D172="V",H172-INDIRECT("DATEN!D"&9+C172)/2,H172-INDIRECT("DATEN!D"&9+C172)),H172),"") -> -0.3291666667 | L172: =IF(X172>MaxWoZeit,"WoArbZeit>48h!","") ->  | M172: =IF(V164>V165,V164-V165,"") ->  | N172: =SUM(N162:N171) -> 0 | O172: =IF(WEEKDAY(B172,2)=7,SUMIF('Auswertung-Wochen'!$Y$2:$Y$366,P172,'Auswertung-Wochen'!$V$2:$V$366)-SUMIF('Auswertung-Wochen'!$Y$2:$Y$366,P172,'Auswertung-Wochen'!$W$2:$W$366),"") ->  | P172: =YEAR(B172)&"-"&TEXT(_xlfn.ISOWEEKNUM(B172),"00") -> 2025-51 | Q172: =SUM(Q162:Q171) -> 00:00:00 | V172: =IF(D172="x",DATEN!$N$88,DATEN!$N$87) -> 0.125 | W172: Faktor Rufbereitschaft | X172: =IF(LEN(B172)>0,IF(WEEKDAY(B172,2)=1,H172,H172+X161),X161) -> 0
A173: =IF(ISNA(MATCH(B183,DATEN!$D$18:$D$42,0)),"",INDEX(DATEN!$C$18:$D$42,MATCH(B183,DATEN!$D$18:$D$42,0),1)) ->  | B173: =B162+1 -> 2025-12-16 | H173: =IF(Q173>0,IF(ROUND(F173-E173,6)>=ROUND(Mindest,6),Q173,"<15m!"),"") ->  | M173: =IF(S173="x",TEXT(V183,"# ?/?")&" !",IF(T173="x","Nein","")) ->  | N173: =IF(S173="",IF(R173>Stunden2,Pausen2,IF(R173>Stunden1,Pausen1,0)),0) -> 0 | Q173: =IF(F173-E173>0,IF(S173="x",MROUND((F173-E173)*V183,1/1440),F173-E173),0) -> 0 | R173: =Q173 -> 0 | S173: =IF(G173=DATEN!$L$87,"x","") ->  | T173: =IF(ISNA(VLOOKUP(G173,ArbKapp,3,FALSE))=TRUE,"",IF(VLOOKUP(G173,ArbKapp,3,FALSE)="x","x","")) ->  | U173: =IF(ISNA(MATCH(G173,Kapp12Ordi,0)),"","x") ->  | V173: =Q183-N183 -> 0 | W173: Tagessumme
B174: 2025-12-16 | M174: =IF(S174="x",TEXT(V183,"# ?/?")&" !",IF(T174="x","Nein","")) ->  | N174: =IF(S174="",IF(R174>Stunden2,Pausen2-SUM(N173),IF(R174>Stunden1,Pausen1-SUM(N173),0)),0) -> 0 | Q174: =IF(F174-E174>0,IF(S174="x",MROUND((F174-E174)*V183,1/1440),F174-E174),0) -> 0 | R174: =IF(Q174>0,IF(AND(E174=F173,S173<>"x"),Q174+R173-N173,Q174),0) -> 0 | S174: =IF(G174=DATEN!$L$87,"x","") ->  | V174: =IF(ISNA(MATCH("x",U173:U182,0)),MaxZeit,MaxBildung) -> 0.4166666667 | W174: max. Tageszeit
B175: 2025-12-16 | M175: =IF(S175="x",TEXT(V183,"# ?/?")&" !",IF(T175="x","Nein","")) ->  | N175: =IF(S175="",IF(R175>Stunden2,Pausen2-SUM(N173:N174),IF(R175>Stunden1,Pausen1-SUM(N173:N174),0)),0) -> 0 | Q175: =IF(F175-E175>0,IF(S175="x",MROUND((F175-E175)*V183,1/1440),F175-E175),0) -> 0 | R175: =IF(Q175>0,IF(AND(E175=F174,S174<>"x"),Q175+R174-N174,Q175),0) -> 0 | S175: =IF(G175=DATEN!$L$87,"x","") ->  | V175: =SUMIF(T173:T182,"<>x",H173:H182)-N183 -> 00:00:00 | W175: Summe f. Kappung
B176: 2025-12-16 | M176: =IF(S176="x",TEXT(V183,"# ?/?")&" !",IF(T176="x","Nein","")) ->  | N176: =IF(S176="",IF(R176>Stunden2,Pausen2-SUM(N173:N175),IF(R176>Stunden1,Pausen1-SUM(N173:N175),0)),0) -> 0 | Q176: =IF(F176-E176>0,IF(S176="x",MROUND((F176-E176)*V183,1/1440),F176-E176),0) -> 0 | R176: 0 | S176: =IF(G176=DATEN!$L$87,"x","") ->  | V176: =IF(V175>V174,V174,V175) -> 0 | W176: Summe gekappt
B177: 2025-12-16 | M177: =IF(S177="x",TEXT(V183,"# ?/?")&" !",IF(T177="x","Nein","")) ->  | N177: =IF(S177="",IF(R177>Stunden2,Pausen2-SUM(N173:N176),IF(R177>Stunden1,Pausen1-SUM(N173:N176),0)),0) -> 0 | Q177: =IF(F177-E177>0,IF(S177="x",MROUND((F177-E177)*V183,1/1440),F177-E177),0) -> 0 | R177: 0 | S177: =IF(G177=DATEN!$L$87,"x","") ->  | V177: =V176+SUMIF(T173:T182,"x",H173:H182) -> 0 | W177: zzgl.kappungsfrei
B178: 2025-12-16 | M178: =IF(S178="x",TEXT(V183,"# ?/?")&" !",IF(T178="x","Nein","")) ->  | N178: =IF(S178="",IF(R178>Stunden2,Pausen2-SUM(N173:N177),IF(R178>Stunden1,Pausen1-SUM(N173:N177),0)),0) -> 0 | Q178: =IF(F178-E178>0,IF(S178="x",MROUND((F178-E178)*V183,1/1440),F178-E178),0) -> 0 | R178: 0 | S178: =IF(G178=DATEN!$L$87,"x","") -> 
B179: 2025-12-16 | M179: =IF(S179="x",TEXT(V183,"# ?/?")&" !",IF(T179="x","Nein","")) ->  | N179: =IF(S179="",IF(R179>Stunden2,Pausen2-SUM(N173:N178),IF(R179>Stunden1,Pausen1-SUM(N173:N178),0)),0) -> 0 | Q179: =IF(F179-E179>0,IF(S179="x",MROUND((F179-E179)*V183,1/1440),F179-E179),0) -> 0 | R179: 0 | S179: =IF(G179=DATEN!$L$87,"x","") -> 
B180: 2025-12-16 | M180: =IF(S180="x",TEXT(V183,"# ?/?")&" !",IF(T180="x","Nein","")) ->  | N180: =IF(S180="",IF(R180>Stunden2,Pausen2-SUM(N173:N179),IF(R180>Stunden1,Pausen1-SUM(N173:N179),0)),0) -> 0 | Q180: =IF(F180-E180>0,IF(S180="x",MROUND((F180-E180)*V183,1/1440),F180-E180),0) -> 0 | R180: 0 | S180: =IF(G180=DATEN!$L$87,"x","") -> 
B181: 2025-12-16 | M181: =IF(S181="x",TEXT(V183,"# ?/?")&" !",IF(T181="x","Nein","")) ->  | N181: =IF(S181="",IF(R181>Stunden2,Pausen2-SUM(N173:N180),IF(R181>Stunden1,Pausen1-SUM(N173:N180),0)),0) -> 0 | Q181: =IF(F181-E181>0,IF(S181="x",MROUND((F181-E181)*V183,1/1440),F181-E181),0) -> 0 | R181: 0 | S181: =IF(G181=DATEN!$L$87,"x","") -> 
B182: 2025-12-16 | M182: =IF(S182="x",TEXT(V183,"# ?/?")&" !",IF(T182="x","Nein","")) ->  | N182: =IF(S182="",IF(R182>Stunden2,Pausen2-SUM(N173:N181),IF(R182>Stunden1,Pausen1-SUM(N173:N181),0)),0) -> 0 | Q182: =IF(F182-E182>0,IF(S182="x",MROUND((F182-E182)*V183,1/1440),F182-E182),0) -> 0 | R182: 0 | S182: =IF(G182=DATEN!$L$87,"x","") -> 
A183: =IF(LEN(B183)>0,IF(WEEKDAY(B183)=4,TRUNC((B183-DATE(YEAR(B183+3-MOD(B183-2,7)),1,MOD(B183-2,7)-9))/7),IF(WEEKDAY(B183)=5,"KW","")),"") ->  | B183: =B172+1 -> 2025-12-16 | C183: =IF(WEEKDAY(B183)=1,7,WEEKDAY(B183)-1) -> 2 | D183: =IF(LEN(B183)>0,IF(OR(INDIRECT("DATEN!D"&9+C183)=0,NOT(ISNA(MATCH(B183,DATEN!$D$18:$D$33,0)))),"X",IF(OR(B183=DATEN!$D$26-1,B183=DATEN!$D$27-2,B183=DATEN!$D$30-2),"V","")),"") ->  | E183: =IF(E173>0,IF(VALUE("24:00:00")-VALUE(MAX(F162:F171))+VALUE(E173)<VALUE("11:00:00"),"Ruhezeit!",""),"") ->  | G183: Tagessumme: | H183: =V177 -> 0 | K183: =IF(LEN(B183)>0,IF(AND(D183<>"X",I183<>"U",I183<>"u",I183<>"K",I183<>"k",OR(I183="F",I183="f",H183<>0,DATEN!$H$8=1),J183<>"f",J183<>"F"),IF(D183="V",H183-INDIRECT("DATEN!D"&9+C183)/2,H183-INDIRECT("DATEN!D"&9+C183)),H183),"") -> -0.3291666667 | L183: =IF(X183>MaxWoZeit,"WoArbZeit>48h!","") ->  | M183: =IF(V175>V176,V175-V176,"") ->  | N183: =SUM(N173:N182) -> 0 | O183: =IF(WEEKDAY(B183,2)=7,SUMIF('Auswertung-Wochen'!$Y$2:$Y$366,P183,'Auswertung-Wochen'!$V$2:$V$366)-SUMIF('Auswertung-Wochen'!$Y$2:$Y$366,P183,'Auswertung-Wochen'!$W$2:$W$366),"") ->  | P183: =YEAR(B183)&"-"&TEXT(_xlfn.ISOWEEKNUM(B183),"00") -> 2025-51 | Q183: =SUM(Q173:Q182) -> 00:00:00 | V183: =IF(D183="x",DATEN!$N$88,DATEN!$N$87) -> 0.125 | W183: Faktor Rufbereitschaft | X183: =IF(LEN(B183)>0,IF(WEEKDAY(B183,2)=1,H183,H183+X172),X172) -> 0
A184: =IF(ISNA(MATCH(B194,DATEN!$D$18:$D$42,0)),"",INDEX(DATEN!$C$18:$D$42,MATCH(B194,DATEN!$D$18:$D$42,0),1)) ->  | B184: =B173+1 -> 2025-12-17 | H184: =IF(Q184>0,IF(ROUND(F184-E184,6)>=ROUND(Mindest,6),Q184,"<15m!"),"") ->  | M184: =IF(S184="x",TEXT(V194,"# ?/?")&" !",IF(T184="x","Nein","")) ->  | N184: =IF(S184="",IF(R184>Stunden2,Pausen2,IF(R184>Stunden1,Pausen1,0)),0) -> 0 | Q184: =IF(F184-E184>0,IF(S184="x",MROUND((F184-E184)*V194,1/1440),F184-E184),0) -> 0 | R184: =Q184 -> 0 | S184: =IF(G184=DATEN!$L$87,"x","") ->  | T184: =IF(ISNA(VLOOKUP(G184,ArbKapp,3,FALSE))=TRUE,"",IF(VLOOKUP(G184,ArbKapp,3,FALSE)="x","x","")) ->  | U184: =IF(ISNA(MATCH(G184,Kapp12Ordi,0)),"","x") ->  | V184: =Q194-N194 -> 0 | W184: Tagessumme
B185: 2025-12-17 | M185: =IF(S185="x",TEXT(V194,"# ?/?")&" !",IF(T185="x","Nein","")) ->  | N185: =IF(S185="",IF(R185>Stunden2,Pausen2-SUM(N184),IF(R185>Stunden1,Pausen1-SUM(N184),0)),0) -> 0 | Q185: =IF(F185-E185>0,IF(S185="x",MROUND((F185-E185)*V194,1/1440),F185-E185),0) -> 0 | R185: =IF(Q185>0,IF(AND(E185=F184,S184<>"x"),Q185+R184-N184,Q185),0) -> 0 | S185: =IF(G185=DATEN!$L$87,"x","") ->  | V185: =IF(ISNA(MATCH("x",U184:U193,0)),MaxZeit,MaxBildung) -> 0.4166666667 | W185: max. Tageszeit
B186: 2025-12-17 | M186: =IF(S186="x",TEXT(V194,"# ?/?")&" !",IF(T186="x","Nein","")) ->  | N186: =IF(S186="",IF(R186>Stunden2,Pausen2-SUM(N184:N185),IF(R186>Stunden1,Pausen1-SUM(N184:N185),0)),0) -> 0 | Q186: =IF(F186-E186>0,IF(S186="x",MROUND((F186-E186)*V194,1/1440),F186-E186),0) -> 0 | R186: =IF(Q186>0,IF(AND(E186=F185,S185<>"x"),Q186+R185-N185,Q186),0) -> 0 | S186: =IF(G186=DATEN!$L$87,"x","") ->  | V186: =SUMIF(T184:T193,"<>x",H184:H193)-N194 -> 00:00:00 | W186: Summe f. Kappung
B187: 2025-12-17 | M187: =IF(S187="x",TEXT(V194,"# ?/?")&" !",IF(T187="x","Nein","")) ->  | N187: =IF(S187="",IF(R187>Stunden2,Pausen2-SUM(N184:N186),IF(R187>Stunden1,Pausen1-SUM(N184:N186),0)),0) -> 0 | Q187: =IF(F187-E187>0,IF(S187="x",MROUND((F187-E187)*V194,1/1440),F187-E187),0) -> 0 | R187: 0 | S187: =IF(G187=DATEN!$L$87,"x","") ->  | V187: =IF(V186>V185,V185,V186) -> 0 | W187: Summe gekappt
B188: 2025-12-17 | M188: =IF(S188="x",TEXT(V194,"# ?/?")&" !",IF(T188="x","Nein","")) ->  | N188: =IF(S188="",IF(R188>Stunden2,Pausen2-SUM(N184:N187),IF(R188>Stunden1,Pausen1-SUM(N184:N187),0)),0) -> 0 | Q188: =IF(F188-E188>0,IF(S188="x",MROUND((F188-E188)*V194,1/1440),F188-E188),0) -> 0 | R188: 0 | S188: =IF(G188=DATEN!$L$87,"x","") ->  | V188: =V187+SUMIF(T184:T193,"x",H184:H193) -> 0 | W188: zzgl.kappungsfrei
B189: 2025-12-17 | M189: =IF(S189="x",TEXT(V194,"# ?/?")&" !",IF(T189="x","Nein","")) ->  | N189: =IF(S189="",IF(R189>Stunden2,Pausen2-SUM(N184:N188),IF(R189>Stunden1,Pausen1-SUM(N184:N188),0)),0) -> 0 | Q189: =IF(F189-E189>0,IF(S189="x",MROUND((F189-E189)*V194,1/1440),F189-E189),0) -> 0 | R189: 0 | S189: =IF(G189=DATEN!$L$87,"x","") -> 
B190: 2025-12-17 | M190: =IF(S190="x",TEXT(V194,"# ?/?")&" !",IF(T190="x","Nein","")) ->  | N190: =IF(S190="",IF(R190>Stunden2,Pausen2-SUM(N184:N189),IF(R190>Stunden1,Pausen1-SUM(N184:N189),0)),0) -> 0 | Q190: =IF(F190-E190>0,IF(S190="x",MROUND((F190-E190)*V194,1/1440),F190-E190),0) -> 0 | R190: 0 | S190: =IF(G190=DATEN!$L$87,"x","") -> 
B191: 2025-12-17 | M191: =IF(S191="x",TEXT(V194,"# ?/?")&" !",IF(T191="x","Nein","")) ->  | N191: =IF(S191="",IF(R191>Stunden2,Pausen2-SUM(N184:N190),IF(R191>Stunden1,Pausen1-SUM(N184:N190),0)),0) -> 0 | Q191: =IF(F191-E191>0,IF(S191="x",MROUND((F191-E191)*V194,1/1440),F191-E191),0) -> 0 | R191: 0 | S191: =IF(G191=DATEN!$L$87,"x","") -> 
B192: 2025-12-17 | M192: =IF(S192="x",TEXT(V194,"# ?/?")&" !",IF(T192="x","Nein","")) ->  | N192: =IF(S192="",IF(R192>Stunden2,Pausen2-SUM(N184:N191),IF(R192>Stunden1,Pausen1-SUM(N184:N191),0)),0) -> 0 | Q192: =IF(F192-E192>0,IF(S192="x",MROUND((F192-E192)*V194,1/1440),F192-E192),0) -> 0 | R192: 0 | S192: =IF(G192=DATEN!$L$87,"x","") -> 
B193: 2025-12-17 | M193: =IF(S193="x",TEXT(V194,"# ?/?")&" !",IF(T193="x","Nein","")) ->  | N193: =IF(S193="",IF(R193>Stunden2,Pausen2-SUM(N184:N192),IF(R193>Stunden1,Pausen1-SUM(N184:N192),0)),0) -> 0 | Q193: =IF(F193-E193>0,IF(S193="x",MROUND((F193-E193)*V194,1/1440),F193-E193),0) -> 0 | R193: 0 | S193: =IF(G193=DATEN!$L$87,"x","") -> 
